{"text_format":"1","workbook":"xlsx","n_sheets":18,"sheets":["Abstract (Total)","calculation sheet (2)","ABST-CIVIL WORKS ci compar","SUMMARY SHEET","ABST-CIVIL WORKS","Ab. Service Block  ","PLUMBING","Electrical","ELV","Fire","Signage","calculation sheet","Sheet1","Sheet4","Sheet5","Sheet2","Pile comparison","Sheet3"],"not_rendered":{"charts":0,"images":0,"macros":1,"external_links":2,"defined_names":528,"comments":2,"pivot_tables":0},"unopened":[],"bounds":{"document_bytes":16777216,"sheet_cells":100000,"rows_first":2000,"rows_last":500,"rows_between":2000,"halvings":0,"cell_chars":16384,"cell_head_chars":4096},"cells_cut":0,"cells_raw":0,"read":"whole","date_system":"1900"}

{"sheet":"Abstract (Total)","index":0,"n_rows":10,"n_cols":17,"rows_kept":10,"cut":false,"hidden":true,"merged":[[8,0,8,1],[0,0,0,6],[1,0,1,6],[2,0,2,6],[3,0,4,0],[3,1,4,1],[3,2,3,5],[3,6,4,6]]}
["PMSSY  PHASE III-  PROJECTS "]
["CONSTRUCTION OF SUPER SPECIALITY HOSPITAL BLOCK AT GOVT. T.D. MEDICAL COLLEGE ALAPPUZHA, KERALA"]
["ABSTRACT OF ESTIMATE"]
["Sl no","Desciption","Amount in Rs.",null,null,null,"Remarks"]
[null,null,"LMR Items","DSR 2014 Items","Cost Index at 53.33%","Total"]
["I","Civil Works",{"$f":"+#REF!","v":{"$error":"#REF!"}},{"$f":"+#REF!","v":{"$error":"#REF!"}},{"$f":"+#REF!","v":{"$error":"#REF!"}},{"$f":"SUM(C6:E6)","v":{"$error":"#REF!"}},null,null,null,null,null,null,null,null,null,null,585509006]
["II","Plumbing and Sanitary Works",{"$f":"+#REF!","v":{"$error":"#REF!"}},{"$f":"+#REF!","v":{"$error":"#REF!"}},{"$f":"+#REF!","v":{"$error":"#REF!"}},{"$f":"SUM(C7:E7)","v":{"$error":"#REF!"}},null,null,null,null,{"$f":"610600000","v":610600000},null,null,null,null,null,1915618]
["III","Signages",1703152,138568,73898,{"$f":"SUM(C8:E8)","v":1915618}]
["Total",null,{"$f":"SUM(C6:C8)","v":{"$error":"#REF!"}},{"$f":"SUM(D6:D8)","v":{"$error":"#REF!"}},{"$f":"SUM(E6:E8)","v":{"$error":"#REF!"}},{"$f":"SUM(F6:F8)","v":{"$error":"#REF!"}},null,null,null,null,{"$f":"F9-K7","v":{"$error":"#REF!"}},null,null,null,null,null,20964462]
[null,null,null,null,null,null,null,null,null,null,null,null,null,null,null,null,{"$f":"SUM(Q6:Q9)","v":608389086}]

{"sheet":"calculation sheet (2)","index":1,"n_rows":121,"n_cols":26,"rows_kept":121,"cut":false,"hidden":true,"merged":[]}
[]
[null,null,"Pile","Pile cap","Columns","Lintels","Beams","sunshade","slab","Drain wall+slab","Drain slab","sump & pump room","Lift wall",null,"Total"]
[null,"Upto plinth",1675,941.28,17.54,null,131.18,null,{"$f":"238.86+5.81","v":244.67000000000002},57.62,23,101.81,11.64,null,{"$f":"E3+G3+I3+D3+M3+L3+J3+H3","v":1505.74},1515,{"$f":"P3-O3","v":9.2599999999999909}]
[null,"Ground floor",null,null,100.93,20.57,113.39,39.79,313.52,null,null,94.6,null,null,{"$f":"E4+F4+G4+H4+I4+J4+K4+L4+M4","v":682.80000000000007},685,2.1999999999999318,"ok"]
[null,"First floor",null,null,93.3,21.98,112.28,44.33,273.37,null,null,null,null,null,{"$f":"E5+F5+G5+H5+I5+J5+K5+L5+M5","v":545.26},550,4.7400000000000091,"ok"]
[null,"Second floor",null,null,92.54,19.809999999999999,109.49,44.96,264.67,null,null,null,null,null,531.47,535,3.5299999999999727,"ok"]
[null,"Third floor",null,null,92.54,19.420000000000002,111.2,44.96,264.3,null,null,null,null,null,532.42000000000007,535,2.5799999999999272,"ok"]
[null,"Fourth Floor",null,null,92.54,21.48,111.54,44.96,264.05,null,null,null,null,null,534.56999999999994,540,5.4300000000000637,"ok"]
[null,"Fifth Floor",null,null,92.54,19.87,111.33,44.96,263.7,null,null,null,null,null,532.4,535,2.6000000000000227,"ok"]
[null,"Sixth Floor",null,null,92.54,20.8,107.4,114.62,275.56,null,null,null,null,null,610.92000000000007,615,4.0799999999999272,"ok"]
[null,"Terrace ",null,null,23.64,3.75,14.06,0,{"$f":"72.7","v":72.7},null,null,null,null,null,114.15,115,0.84999999999999432,"ok"]
[null,"Total",{"$f":"SUM(C3:C11)","v":1675},941.28,698.11,147.68,921.87,378.58000000000004,2236.54,57.62,23,196.41,11.64,null,5589.73,{"$f":"SUM(P4:P11)","v":4110}]
[null,"Total as per rft sheet",1675,950,711,144,933,380,2238,60,23,197,12]
[null,"difference",{"$f":"C13-C12","v":0},{"$f":"D13-D12","v":8.7200000000000273},12.889999999999986,-3.6800000000000068,11.129999999999995,1.4199999999999591,1.4600000000000364,2.3800000000000026,0,0.59000000000000341,0.35999999999999943]
[null,null,100,150,200,90,150,90,120,90,120,120,120]
[null,null,{"$f":"C15*C13","v":167500},{"$f":"D15*D13","v":142500},142200,12960,139950,34200,268560,5400,2760,23640,1440]
[null,null,{"$f":"C16+D16+E16+F16+G16+H16+I16+K16+J16+L16+M16","v":941110}]
[]
[]
[]
[null,"Final for steel"]
[]
[null,null,"Pile","Pile cap","Columns","Lintels","Beams","sunshade","slab","Drain wall+slab","Drain slab","sump & pump room","Lift wall",null,"Total"]
[null,"Upto plinth",1675,{"$f":"8.72+941.28","v":950},17.5,null,131.19999999999999,null,244.7,58,23,101.8,12,null,{"$f":"E24+G24+I24+D24+M24+L24+J24+H24","v":1515.2},1515,{"$f":"P24-O24","v":-0.20000000000004547},null,244.67,244.7]
[null,"Ground floor",null,null,102,20.57,114,39.79,313.44,null,null,95.2,null,null,{"$f":"E25+F25+G25+H25+I25+J25+K25+L25+M25","v":685},685,0,"ok",313.52,313.55]
[null,"First floor",null,null,94.5,21.98,115,{"$f":"0.65+44.33","v":44.98},273.39999999999998,null,null,null,null,null,{"$f":"E26+F26+G26+H26+I26+J26+K26+L26+M26","v":549.86},550,0.13999999999998636,"ok",273.37,273.39999999999998]
[null,"Second floor",null,null,94.5,19.809999999999999,110.5,{"$f":"0.23+44.96","v":45.19},265,null,null,null,null,null,535,535,0,"ok",264.67,265]
[null,"Third floor",null,null,94.5,19.420000000000002,111.5,{"$f":"0.16+44.96","v":45.12},264.45999999999998,null,null,null,null,null,535,535,0,"ok",264.3,264.35000000000002]
[null,"Fourth Floor",null,null,94,21.48,114.3,{"$f":"0.26+44.96","v":45.22},265,null,null,null,null,null,540,540,0,"ok",264.05,265]
[null,"Fifth Floor",null,null,95,19.87,111.35,{"$f":"0.12+44.96","v":45.08},263.7,null,null,null,null,null,535,535,0,"ok",263.7,263.7]
[null,"Sixth Floor",null,null,95,{"$f":"20.8-3.68","v":17.12},110.65,114.62,275.60000000000002,null,null,null,null,null,612.99,615,2.0099999999999909,"ok",275.56,275.60000000000002]
[null,"Terrace ",null,null,24,3.75,14.5,0,72.7,null,null,null,null,null,114.95,115,4.9999999999997158E-2,"ok",72.7,72.7]
[null,"Total",{"$f":"SUM(C24:C32)","v":1675},950,711,144,933,380,2238,58,23,197,12,null,5622.9999999999991,5625,null,null,2236.54,{"$f":"SUM(T24:T32)","v":2238}]
[null,"Total as per rft sheet",1675,950,711,144,933,380,2238,60,23,197,12]
[null,"difference",{"$f":"C34-C33","v":0},{"$f":"D34-D33","v":0},0,0,0,0,0,2,0,0,0]
[null,null,100,150,200,90,150,90,120,90,120,120,120]
[null,null,{"$f":"C36*C34","v":167500},{"$f":"D36*D34","v":142500},142200,12960,139950,34200,268560,5400,2760,23640,1440]
[null,null,{"$f":"C37+D37+E37+F37+G37+H37+I37+K37+J37+L37+M37","v":941110}]
[null,"Final for concrete"]
[]
[null,null,"Pile","Pile cap","Columns","Lintels","Beams","sunshade","slab","Drain wall+slab","Drain slab","sump & pump room","Lift wall",null,"Total"]
[null,"Upto plinth",1675,{"$f":"8.72+941.28","v":950},17.5,null,131.19999999999999,null,244.7,{"$f":"0.18+57.62","v":57.8},23,101.8,12,null,{"$f":"E42+G42+I42+D42+M42+L42+J42+H42","v":1515},1515,{"$f":"P42-O42","v":0},null,244.67,244.7]
[null,"Ground floor",null,null,102,20.57,114,39.79,313.44,null,null,95.2,null,null,{"$f":"E43+F43+G43+H43+I43+J43+K43+L43+M43","v":685},685,0,"ok",313.52,313.55]
[null,"First floor",null,null,94.5,{"$f":"21.98+0.02","v":22},115,{"$f":"0.65+44.33+0.12","v":45.099999999999994},273.39999999999998,null,null,null,null,null,{"$f":"E44+F44+G44+H44+I44+J44+K44+L44+M44","v":550},550,0,"ok",273.37,273.39999999999998]
[null,"Second floor",null,null,94.5,19.809999999999999,110.5,{"$f":"0.23+44.96","v":45.19},265,null,null,null,null,null,535,535,0,"ok",264.67,265]
[null,"Third floor",null,null,94.5,19.420000000000002,111.5,{"$f":"0.16+44.96","v":45.12},264.45999999999998,null,null,null,null,null,535,535,0,"ok",264.3,264.35000000000002]
[null,"Fourth Floor",null,null,94,21.48,114.3,{"$f":"0.26+44.96","v":45.22},265,null,null,null,null,null,540,540,0,"ok",264.05,265]
[null,"Fifth Floor",null,null,95,19.87,111.35,{"$f":"0.12+44.96","v":45.08},263.7,null,null,null,null,null,535,535,0,"ok",263.7,263.7]
[null,"Sixth Floor",null,null,95,{"$f":"20.8","v":20.8},{"$f":"110.65-1.67","v":108.98},114.62,275.60000000000002,null,null,null,null,null,615,615,0,"ok",275.56,275.60000000000002]
[null,"Terrace ",null,null,24,3.75,14.55,0,72.7,null,null,null,null,null,115,115,0,"ok",72.7,72.7]
[null,"Total",{"$f":"SUM(C42:C50)","v":1675},950,711,147.70000000000002,931.38,380.12,2238,57.8,23,197,12,null,5625,5625,null,null,2236.54,{"$f":"SUM(T42:T50)","v":2238}]
[null,"Final for steel"]
[]
[null,null,"Pile","Pile cap","Columns","Lintels","Beams","sunshade","slab","Drain wall+slab","Drain slab","sump & pump room","Lift wall",null,"Total"]
[null,"Upto plinth",1675,{"$f":"8.72+941.28","v":950},17.5,null,131.19999999999999,null,244.7,{"$f":"58+2","v":60},23,101.8,12,null,{"$f":"E55+G55+I55+D55+M55+L55+J55+H55","v":1517.2},1515,{"$f":"P55-O55","v":-2.2000000000000455},null,244.67,244.7]
[null,"Ground floor",null,null,102,20.57,114,39.79,313.44,null,null,95.2,null,null,{"$f":"E56+F56+G56+H56+I56+J56+K56+L56+M56","v":685},685,0,"ok",313.52,313.55]
[null,"First floor",null,null,94.5,21.98,115,{"$f":"0.65+44.33","v":44.98},273.39999999999998,null,null,null,null,null,{"$f":"E57+F57+G57+H57+I57+J57+K57+L57+M57","v":549.86},550,0.13999999999998636,"ok",273.37,273.39999999999998]
[null,"Second floor",null,null,94.5,19.809999999999999,110.5,{"$f":"0.23+44.96","v":45.19},265,null,null,null,null,null,535,535,0,"ok",264.67,265]
[null,"Third floor",null,null,94.5,19.420000000000002,111.5,{"$f":"0.16+44.96","v":45.12},264.45999999999998,null,null,null,null,null,535,535,0,"ok",264.3,264.35000000000002]
[null,"Fourth Floor",null,null,94,21.48,114.3,{"$f":"0.26+44.96","v":45.22},265,null,null,null,null,null,540,540,0,"ok",264.05,265]
[null,"Fifth Floor",null,null,95,19.87,111.35,{"$f":"0.12+44.96","v":45.08},263.7,null,null,null,null,null,535,535,0,"ok",263.7,263.7]
[null,"Sixth Floor",null,null,95,{"$f":"20.8-3.68","v":17.12},110.65,114.62,275.60000000000002,null,null,null,null,null,612.99,615,2.0099999999999909,"ok",275.56,275.60000000000002]
[null,"Terrace ",null,null,24,3.75,14.5,0,72.7,null,null,null,null,null,114.95,115,4.9999999999997158E-2,"ok",72.7,72.7]
[null,"Total",{"$f":"SUM(C55:C63)","v":1675},{"$f":"SUM(D55:D63)","v":950},711,144,933,380,2238,60,23,197,12,null,{"$f":"SUM(O55:O63)","v":5624.9999999999991},{"$f":"SUM(P55:P63)","v":5625},null,null,2236.54,{"$f":"SUM(T55:T63)","v":2238}]
[null,"Total as per rft sheet",1675,950,711,144,933,380,2238,60,23,197,12]
[null,"difference",{"$f":"C65-C64","v":0},{"$f":"D65-D64","v":0},0,0,0,0,0,0,0,0,0]
[null,null,100,150,200,90,150,90,120,90,120,120,120]
[null,null,{"$f":"C67*C65","v":167500},{"$f":"D67*D65","v":142500},142200,12960,139950,34200,268560,5400,2760,23640,1440]
[null,null,{"$f":"C68+D68+E68+F68+G68+H68+I68+K68+J68+L68+M68","v":941110}]
[]
[null,"Upto plinth",{"$f":"C55*C67","v":167500},{"$f":"D55*D67","v":142500},3500,0,19680,0,29364,5400,{"$f":"K55*K67","v":2760},12216,1440,null,{"$f":"SUM(C71:M71)","v":384360}]
[null,"Ground floor",{"$f":"C56*C67","v":0},{"$f":"D56*D67","v":0},20400,1851.3,17100,3581.1,37612.800000000003,0,0,11424,0,null,{"$f":"SUM(C72:M72)","v":91969.200000000012}]
[null,"First floor",{"$f":"C57*C67","v":0},{"$f":"D57*D67","v":0},18900,1978.2,17250,4048.2,32808,0,0,0,0,null,74984.399999999994]
[null,"Second floor",{"$f":"C58*C67","v":0},{"$f":"D58*D67","v":0},18900,1782.8999999999999,16575,4067.1,31800,0,0,0,0,null,73125]
[null,"Third floor",{"$f":"C59*C67","v":0},{"$f":"D59*D67","v":0},18900,1747.8000000000002,16725,4060.7999999999997,31735.199999999997,0,0,0,0,null,73168.800000000003]
[null,"Fourth Floor",{"$f":"C60*C67","v":0},{"$f":"D60*D67","v":0},18800,1933.2,17145,4069.7999999999997,31800,0,0,0,0,null,73748]
[null,"Fifth Floor",{"$f":"C61*C67","v":0},{"$f":"D61*D67","v":0},19000,1788.3000000000002,16702.5,4057.2,31644,0,0,0,0,null,73192]
[null,"Sixth Floor",{"$f":"C62*C67","v":0},{"$f":"D62*D67","v":0},19000,1540.8000000000002,16597.5,10315.800000000001,33072,0,0,0,0,null,80526.100000000006]
[null,"Terrace ",{"$f":"C63*C67","v":0},{"$f":"D63*D67","v":0},4800,337.5,2175,0,8724,0,0,0,0,null,16036.5]
[null,null,{"$f":"SUM(C71:C79)","v":167500},{"$f":"SUM(D71:D79)","v":142500},142200,12960,139950,34200,268560,5400,2760,23640,1440,null,{"$f":"SUM(O71:O79)","v":941110}]
[null,null,{"$f":"SUM(C80:M80)","v":941110}]
[]
[null,null,"Plastering before round off","Wall tiles before round off","Skirting before round off","Wall tile/skirting to be deducted from plastering"]
[null,"Ground floor",3949.24,817.01,26.73,{"$f":"C84-D84-E84","v":3105.4999999999995}]
[null,"First floor",4136.66,781.89,73.92,{"$f":"C85-D85-E85","v":3280.85}]
[null,"Second floor",4421.54,841.71,62.58,3517.25]
[null,"Third floor",3683.28,807.38,41.6,2834.3]
[null,"Fourth Floor",4263.95,805.84,59.91,3398.2]
[null,"Fifth Floor",3960.3,967.39,40.119999999999997,2952.7900000000004]
[null,"Sixth Floor",4405.21,967.58,52.52,3385.11]
[null,"Terrace ",783.65,null,null,{"$f":"C91-D91-E91","v":783.65}]
[null,"White cement based  putty","inside plaster","ceiling plaster"]
[null,"Ground Floor",3110,945,{"$f":"C93+D93","v":4055},{"$f":"E93-3.75","v":4051.25}]
[null,"First Floor",3285,905,{"$f":"C94+D94","v":4190},{"$f":"E94-3.75","v":4186.25}]
[null,"Second Floor",3525,895,4420,4416.25]
[null,"Third Floor",2840,890,3730,3726.25]
[null,"Fourth Floor",3405,875,4280,4276.25]
[null,"Fifth Floor",2955,1205,4160,4156.25]
[null,"Sixth Floor",3390,1515,4905,4901.25]
[null,"Terrace Floor",790,500,1290,1286.25]
[null,null,null,null,{"$f":"SUM(E93:E100)","v":31030},{"$f":"SUM(F93:F100)","v":31000}]
[]
[null,"Final for steel"]
[]
[null,null,"Pile","Pile cap","Columns","Lintels","Beams","sunshade","slab","Drain wall+slab","Drain slab","sump & pump room","Lift wall",null,"Pile","Pile cap","Columns","Lintels","Beams","sunshade","slab","Drain wall+slab","Drain slab","sump & pump room","Lift wall"]
[null,null,100,150,200,90,150,90,120,90,120,120,120]
[null,"Upto plinth",1675,{"$f":"8.72+941.28","v":950},17.5,null,131.19999999999999,null,244.7,{"$f":"58+2","v":60},23,101.8,12,null,{"$f":"C107*C106","v":167500},{"$f":"D107*D106","v":142500},{"$f":"E107*E106","v":3500},null,{"$f":"G107*G106","v":19680},null,{"$f":"I107*I106","v":29364},{"$f":"J107*J106","v":5400},{"$f":"K107*K106","v":2760},{"$f":"L107*L106","v":12216},{"$f":"M106*M107","v":1440},{"$f":"SUM(O107:Y107)","v":384360}]
[null,"Ground floor",null,null,102,20.57,114,39.79,313.44,null,null,95.2,null,null,null,null,{"$f":"E108*E106","v":20400},{"$f":"F108*F106","v":1851.3},17100,3581.1,37612.800000000003,0,0,11424,0,{"$f":"SUM(O108:Y108)","v":91969.200000000012}]
[null,"First floor",null,null,94.5,21.98,115,{"$f":"0.65+44.33","v":44.98},273.39999999999998,null,null,null,null,null,null,null,{"$f":"E109*E106","v":18900},{"$f":"F109*F106","v":1978.2},17250,4048.2,32808,0,0,0,0,74984.399999999994]
[null,"Second floor",null,null,94.5,19.809999999999999,110.5,{"$f":"0.23+44.96","v":45.19},265,null,null,null,null,null,null,null,{"$f":"E110*E106","v":18900},{"$f":"F110*F106","v":1782.8999999999999},16575,4067.1,31800,0,0,0,0,73125]
[null,"Third floor",null,null,94.5,19.420000000000002,111.5,{"$f":"0.16+44.96","v":45.12},264.45999999999998,null,null,null,null,null,null,null,{"$f":"E111*E106","v":18900},{"$f":"F111*F106","v":1747.8000000000002},16725,4060.7999999999997,31735.199999999997,0,0,0,0,73168.800000000003]
[null,"Fourth Floor",null,null,94,21.48,114.3,{"$f":"0.26+44.96","v":45.22},265,null,null,null,null,null,null,null,{"$f":"E112*E106","v":18800},{"$f":"F112*F106","v":1933.2},17145,4069.7999999999997,31800,0,0,0,0,73748]
[null,"Fifth Floor",null,null,95,19.87,111.35,{"$f":"0.12+44.96","v":45.08},263.7,null,null,null,null,null,null,null,{"$f":"E113*E106","v":19000},{"$f":"F113*F106","v":1788.3000000000002},16702.5,4057.2,31644,0,0,0,0,73192]
[null,"Sixth Floor",null,null,95,{"$f":"20.8-3.68","v":17.12},110.65,114.62,275.60000000000002,null,null,null,null,null,null,null,{"$f":"E114*E106","v":19000},{"$f":"F114*F106","v":1540.8000000000002},16597.5,10315.800000000001,33072,0,0,0,0,80526.100000000006]
[null,"Terrace ",null,null,24,3.75,14.5,0,72.7,null,null,null,null,null,null,null,{"$f":"E115*E106","v":4800},{"$f":"F115*F106","v":337.5},2175,0,8724,0,0,0,0,16036.5]
[null,"Total",{"$f":"SUM(C107:C115)","v":1675},{"$f":"SUM(D107:D115)","v":950},711,144,933,380,2238,60,23,197,12,null,{"$f":"C116*C106","v":167500},{"$f":"D116*D106","v":142500},{"$f":"E116*E106","v":142200},{"$f":"F116*F106","v":12960},139950,34200,268560,5400,2760,23640,1440,941110]
[null,"Total as per rft sheet",1675,950,711,144,933,380,2238,60,23,197,12,null,{"$f":"SUM(O107:O115)","v":167500},{"$f":"SUM(P107:P115)","v":142500},{"$f":"SUM(Q107:Q115)","v":142200},{"$f":"SUM(R107:R115)","v":12960},139950,34200,268560,5400,2760,23640,1440]
[null,"difference",{"$f":"C117-C116","v":0},{"$f":"D117-D116","v":0},0,0,0,0,0,0,0,0,0,null,{"$f":"O117-O116","v":0},{"$f":"P117-P116","v":0},0,0,0,0,0,0,0,0,0]
[null,null,100,150,200,90,150,90,120,90,120,120,120]
[null,null,{"$f":"C119*C117","v":167500},{"$f":"D119*D117","v":142500},142200,12960,139950,34200,268560,5400,2760,23640,1440]
[null,null,{"$f":"C120+D120+E120+F120+G120+H120+I120+K120+J120+L120+M120","v":941110}]

{"sheet":"ABST-CIVIL WORKS ci compar","index":2,"n_rows":156,"n_cols":17,"rows_kept":156,"cut":false,"hidden":true,"merged":[[0,0,0,6],[1,0,1,6]]}
["CONSTRUCTION OF NEW PROPOSED OUT PATIENT BLOCK FOR GENERAL HOSPITAL, ALAPPUZHA"]
["ABSTRACT OF ESTIMATE - CIVIL WORKS "]
[]
["Item No","DSR code","Details of items","Unit","Quantity","Rate","Amount ",null,"Rate with CI","Amount with CI","Amount x CI"]
[1,2.31,"Clearing jungle including uprooting of rank vegetation, grass, brush wood, trees and saplings of girth upto 30 cm measured at a height of 1 m above ground level and removal of rubbish upto a distance of 50 m outside the periphery of the area cleared.","Sqm",{"$f":"#REF!","v":{"$error":"#REF!"}},7.2,{"$f":"ROUND(F5*E5,0)","v":{"$error":"#REF!"}},7.2,{"$f":"H5*1.549","v":11.152799999999999},{"$f":"I5*E5","v":{"$error":"#REF!"}},{"$f":"ROUND(G5*1.549,0)","v":{"$error":"#REF!"}},{"$f":"K5-J5","v":{"$error":"#REF!"}},null,11.152799999999999]
[2,"2.6.1","Earth work in excavation by mechanical means (Hydraulic excavator) / manual means over areas (exceeding 30cm in depth. 1.5m in width as well as 10 sqm on plan) including disposal of excavated earth, lead upto 50m and lift upto 1.5m, disposed earth to be levelled and neatly dressed. All kinds of soil","Cum",{"$f":"#REF!","v":{"$error":"#REF!"}},125.95,{"$f":"ROUND(F6*E6,0)","v":{"$error":"#REF!"}},125.95,{"$f":"H6*1.549","v":195.09655000000001},{"$f":"I6*E6","v":{"$error":"#REF!"}},{"$f":"ROUND(G6*1.549,0)","v":{"$error":"#REF!"}},{"$f":"K6-J6","v":{"$error":"#REF!"}}]
[3,"2.8.1","Earth work in excavation by mechanical means (Hydraulic excavator) / manual means in foundation trenches or drains (not exceeding 1.5 m in width or 10 sqm on plan) including dressing of sides and ramming of bottoms, lift upto 1.5 m, including getting out the excavated soil and disposal of surplus excavated soil as directed, within a lead of 50 m. All kinds of soil.","Cum",{"$f":"#REF!","v":{"$error":"#REF!"}},166.4,{"$error":"#REF!"},166.4,257.75360000000001,{"$error":"#REF!"},{"$error":"#REF!"},{"$error":"#REF!"}]
[4,"2.26.1","Extra for every additional lift of 1.5 m or part thereof in excavation /banking excavated or stacked materials: All kinds of soil.","Cum",{"$f":"#REF!","v":{"$error":"#REF!"}},51.75,{"$error":"#REF!"},51.75,80.160749999999993,{"$error":"#REF!"},{"$error":"#REF!"},{"$error":"#REF!"}]
[{"$f":"A8+1","v":5},2.25,"Filling available excavated earth (excluding rock) in trenches, plinth, sides of foundations etc. in layers not exceeding 20cm in depth, consolidating each deposited layer by ramming and watering, lead up to 50 m and lift upto 1.5 m","Cum",{"$f":"#REF!","v":{"$error":"#REF!"}},125.75,{"$error":"#REF!"},125.75,194.78674999999998,{"$error":"#REF!"},{"$error":"#REF!"},{"$error":"#REF!"}]
[{"$f":"+A9+1","v":6},"1.1.2.8","Conveying and disposing off  the excavated excess earth ","Cum",{"$f":"#REF!","v":{"$error":"#REF!"}},149.16999999999999,{"$error":"#REF!"},149.16999999999999,231.06432999999998,{"$error":"#REF!"},{"$error":"#REF!"},{"$error":"#REF!"}]
[7,"2.34.1","Supplying chemical emulsion in sealed containers including delivery as specified Chlorpyriphos/ Lindane emulsifiable concentrate of 20%","Litre",{"$f":"#REF!","v":{"$error":"#REF!"}},185.95,{"$error":"#REF!"},185.95,288.03654999999998,{"$error":"#REF!"},{"$error":"#REF!"},{"$error":"#REF!"}]
[8,"2.35.3.1","Treatment of soil under existing floors using chemical emulsion @ one litre per hole, 300 mm apart including drilling 12 mm diameter holes and plugging with cement mortar 1 :2 (1 cement : 2 Coarse sand) to match the existing floor : With Chlorpyriphos/Lindane E.C. 20% with 1% concentration","Sqm",{"$f":"#REF!","v":{"$error":"#REF!"}},131.9,{"$error":"#REF!"},131.9,204.31309999999999,{"$error":"#REF!"},{"$error":"#REF!"},{"$error":"#REF!"}]
[9,"4.1.5","1:3:6 (1 Cement : 3 coarse sand : 6 graded stone aggregate 20 mm nominal size).for foundation and flooring ","Cum",{"$f":"#REF!","v":{"$error":"#REF!"}},4927,{"$error":"#REF!"},4927,7631.9229999999998,{"$error":"#REF!"},{"$error":"#REF!"},{"$error":"#REF!"}]
[10,"4.2.2","Providing and laying cement concrete in retaining walls, return walls, walls(any thickness) including attached pilasters, columns, piers, abutments,pillars, posts, struts, buttresses, string or lacing courses, parapets, coping,bed blocks, anchor blocks, plain window sills, fillets, sunken floor,etc., upto floor five level, excluding the cost of centering, shuttering and finishing: 1:1½:3 (1 cement:1½ coarse sand:3 graded stone aggregate20 mm nominal size)","Cum",{"$f":"#REF!","v":{"$error":"#REF!"}},6990.4,{"$error":"#REF!"},6990.4,10828.129599999998,{"$error":"#REF!"},{"$error":"#REF!"},{"$error":"#REF!"}]
[11,4.17,"Making plinth protection 50mm thick of cement concrete 1:3:6 (1 cement :3 coarse sand : 6 graded stone aggregate 20 mm nominal size) over 75mm thick bed of dry brick ballast 40 mm nominal size, well rammed and consolidated and grouted with fine sand including finishing the top smooth","Sqm",{"$f":"#REF!","v":{"$error":"#REF!"}},450.35,{"$error":"#REF!"},450.35,697.59215000000006,{"$error":"#REF!"},{"$error":"#REF!"},{"$error":"#REF!"}]
[12,"20.2A","Boring, providing and installation bored cast-in-situ reinforced cement concrete piles of garde M-25 of specified diameter and length below pile cap, to carry a safe working load not less than specified, excluding the cost of steel reinforcement but including the cost of boring with bentonite solution and temporary casing of appropriate length for setting out and removal of same and the length of the pile to be embedded in the pile cap etc. by Crawler mounted, telescopic boom hydraulic pilling Rig all complete, including removal of\nexcavated earth with all its lifts and leads. Bottom of pile should be embedded 3.00m to the dense sand stratum.  (length of pile for payment shall be measured up to bottom of pile cap). Note: Truck Mounted rotary/TMR/Tube well boring machine shall not be used.",null,null,null,0,null,0,0,0,0]
["a","20.2A.2 + 20.2A.3","800 mm dia piles","m",{"$f":"#REF!","v":{"$error":"#REF!"}},6029.9,{"$error":"#REF!"},6029.9,9340.3150999999998,{"$error":"#REF!"},{"$error":"#REF!"},{"$error":"#REF!"}]
["b","20.2A.2 + 20.2A.3","900 mm dia piles","m",{"$f":"#REF!","v":{"$error":"#REF!"}},7451.15,{"$error":"#REF!"},7451.15,11541.831349999999,{"$error":"#REF!"},{"$error":"#REF!"},{"$error":"#REF!"}]
["c","20.2A.3","1000 mm dia piles","m",{"$f":"#REF!","v":{"$error":"#REF!"}},8872.4,{"$error":"#REF!"},8872.4,13743.347599999999,{"$error":"#REF!"},{"$error":"#REF!"},{"$error":"#REF!"}]
[13,"20.6.2","Vertical load testing of piles in accordance with IS 2911 (Part IV) including installation of loading platform by Kentledge method and preparation of pile head or construction of test cap and dismantling of test cap after test etc. complete as per specification & the direction of Engineer in-charge. Note: 1. Initial and Routine Load Test shall not be carried out by Dynamic method of testing. Note: 2. Testing agency shall submitt the design of loading platform for the approval of Engineer-in-charge.: Single pile above 50 tonne and upto 100 tonne Safe capacity",null,null,null,0,null,0,0,0,{"$f":"K20-J20","v":0}]
["a","20.6.2.1","Initial test (Test Load 2.5 times the Safe capacity)","Per Test",{"$f":"#REF!","v":{"$error":"#REF!"}},46808.45,{"$error":"#REF!"},46808.45,72506.289049999992,{"$error":"#REF!"},{"$error":"#REF!"},{"$error":"#REF!"}]
["b","20.6.2.2","Routine test (Test Load 1.5 times the Safe capacity)","Per Test",{"$f":"#REF!","v":{"$error":"#REF!"}},26714.5,{"$error":"#REF!"},26714.5,41380.760499999997,{"$error":"#REF!"},{"$error":"#REF!"},{"$error":"#REF!"}]
[14,5.37,"Providing and laying in position ready mixed M-25 grade concrete for reinforced cement concrete work, using cement content as per approved design mix, manufactured in fully automatic batching plant and transported to site of work in transit mixer for all leads having continuous agitated mixer, manufactured as per mix design of specified grade for reinforced cement concrete work including pumping of R.M.C. from transit mixer to site of laying , excluding the cost of centering, shuttering finishing and reinforcement including cost of admixtures in recommended proportions as per IS : 9103 to accelerate/ retard setting of concrete, improve workability without impairing strength and durability as per direction of the Engineer - in - charge.",null,null,null,0,null,0,0,0,0]
[null,null,"(Note :- Cement content considered in this item is @ 330 kg/cum. Excess/less cement used as per design mix is payable/recoverable separately).",null,null,null,0,null,0,0,0,0]
["a","5.37.1"," All works upto plinth level.","Cum",{"$f":"#REF!","v":{"$error":"#REF!"}},6713.6,{"$error":"#REF!"},6713.6,10399.366400000001,{"$error":"#REF!"},{"$error":"#REF!"},{"$error":"#REF!"}]
["b","5.37.2","All works above plinth level upto floor V level.","Cum",{"$f":"#REF!","v":{"$error":"#REF!"}},7517.2,{"$error":"#REF!"},7517.2,11644.1428,{"$error":"#REF!"},{"$error":"#REF!"},{"$error":"#REF!"}]
[15,5.34,"Extra for providing richer mixes at all floor levels.Note:- Excess/less cement over the specified cement content used is payable /recoverable separately.",null,null,null,0,null,0,0,0,0]
["a","5.34.1","Providing M-30 grade concrete instead of M-25 grade BMC/RMC. (Note:- Cement content considered in M-30 is @ 340 kg/cum).","Cum",{"$f":"#REF!","v":{"$error":"#REF!"}},69.5,{"$error":"#REF!"},69.5,107.65549999999999,{"$error":"#REF!"},{"$error":"#REF!"},{"$error":"#REF!"}]
[16,5.38,"Extra for R.C.C./ B.M.C/ R.M.C. work above floor V level for each four floors or part thereof.","Cum",{"$f":"#REF!","v":{"$error":"#REF!"}},232.3,{"$error":"#REF!"},232.3,359.83269999999999,{"$error":"#REF!"},{"$error":"#REF!"},{"$error":"#REF!"}]
[17,5.12,"Providing, hoisting and fixing up to floor five level precast reinforced cement concrete work in string courses, bands, copings, bed plates, anchor blocks,plain window sills and the like, including the cost of required centering,shuttering but excluding cost of reinforcement, with 1:2:4 (1 cement: 2coarse sand: 4 graded stone aggregate 20 mm nominal size).","Cum",{"$f":"#REF!","v":{"$error":"#REF!"}},6972.1,{"$error":"#REF!"},6972.1,10799.7829,{"$error":"#REF!"},{"$error":"#REF!"},{"$f":"K30-J30","v":{"$error":"#REF!"}}]
[18,5.9,"Centering and shuttering including strutting, propping etc. and removal of form for :",null,null,null,0,null,0,0,0,0]
["a","5.9.1","Foundations, footings, bases of columns, etc. for mass concrete.","Sqm",{"$f":"#REF!","v":{"$error":"#REF!"}},193.95,{"$error":"#REF!"},193.95,300.42854999999997,{"$error":"#REF!"},{"$error":"#REF!"},{"$error":"#REF!"}]
["b","5.9.2","Walls (any thickness) including attached pilasters, butteresses, plinth and string courses etc.","Sqm",{"$f":"#REF!","v":{"$error":"#REF!"}},378.6,{"$error":"#REF!"},378.6,586.45140000000004,{"$error":"#REF!"},{"$error":"#REF!"},{"$error":"#REF!"}]
["c","5.9.3","Suspended floors, roofs, landings, balconies and access platform.","Sqm",{"$f":"#REF!","v":{"$error":"#REF!"}},422.3,{"$error":"#REF!"},422.3,654.14269999999999,{"$error":"#REF!"},{"$error":"#REF!"},{"$error":"#REF!"}]
["d","5.9.5","Lintels, beams, plinth beams, girders, bressumers and cantilevers.","Sqm",{"$f":"#REF!","v":{"$error":"#REF!"}},342.9,{"$error":"#REF!"},342.9,531.1520999999999,{"$error":"#REF!"},{"$error":"#REF!"},{"$error":"#REF!"}]
["e","5.9.6","Columns, Pillars, Piers, Abutments, Posts and Struts.","Sqm",{"$f":"#REF!","v":{"$error":"#REF!"}},467.85,{"$error":"#REF!"},467.85,724.69965000000002,{"$error":"#REF!"},{"$error":"#REF!"},{"$error":"#REF!"}]
["f","5.9.7","Stairs, (excluding landings) except spiral-staircases.","Sqm",{"$f":"#REF!","v":{"$error":"#REF!"}},419.35,{"$error":"#REF!"},419.35,649.57315000000006,{"$error":"#REF!"},{"$error":"#REF!"},{"$error":"#REF!"}]
["g","5.9.16.1","Edges of slabs and breaks in floors and walls.Under 20 cm wide","m",{"$f":"#REF!","v":{"$error":"#REF!"}},122.2,{"$error":"#REF!"},122.2,189.2878,{"$error":"#REF!"},{"$error":"#REF!"},{"$error":"#REF!"}]
["h","5.9.19","Weather shade, Chajjas, corbels etc., including edges.","Sqm",{"$f":"#REF!","v":{"$error":"#REF!"}},521.75,{"$error":"#REF!"},521.75,808.19074999999998,{"$error":"#REF!"},{"$error":"#REF!"},{"$error":"#REF!"}]
["i","5.9.14","Extra for shuttering in circular work (20% of respective centering and shuttering items","Sqm",{"$f":"#REF!","v":{"$error":"#REF!"}},84.45,{"$error":"#REF!"},84.45,130.81305,{"$error":"#REF!"},{"$error":"#REF!"},{"$error":"#REF!"}]
[{"$f":"A31+1","v":19},"5.11.1","Extra for additional height in centering, shuttering where ever required with adequate bracing, propping etc. including cost of de-shuttering and decentering at all levels, over a height of 3.5 m, for every additional height of 1 metre or part thereof (Plan area to be measured) Suspended floors, roofs, landing, beams and balconies (Plan area to be measured).","Sqm",{"$f":"#REF!","v":{"$error":"#REF!"}},171.5,{"$error":"#REF!"},171.5,265.65350000000001,{"$error":"#REF!"},{"$error":"#REF!"},{"$error":"#REF!"}]
["20a)","5.22.6","Steel reinforcement for R.C.C. work including straightening, cutting, bending, placing in position and binding all complete upto plinth level. Thermo-Mechanically Treated bars of grade Fe-500D or more.","Kg",{"$f":"#REF!","v":{"$error":"#REF!"}},56.6,{"$error":"#REF!"},56.6,87.673400000000001,{"$error":"#REF!"},{"$error":"#REF!"},{"$error":"#REF!"}]
["20b)","5.22A.6","Steel reinforcement for R.C.C. work including straightening, cutting, bending, placing in position and binding all complete above plinth level.Thermo-Mechanically Treated bars of grade Fe-500 D or more.","Kg",{"$f":"#REF!","v":{"$error":"#REF!"}},56.6,{"$error":"#REF!"},56.6,87.673400000000001,{"$error":"#REF!"},{"$error":"#REF!"},{"$error":"#REF!"}]
[21,5.28,"Providing and fixing in position 12mm thick bitumen impregnated fibre board conforming to IS: 1838 including cost of primer, sealing compound in expansion joints. 5cm depth","m",{"$f":"#REF!","v":{"$error":"#REF!"}},22.45,{"$error":"#REF!"},22.45,34.77505,{"$error":"#REF!"},{"$error":"#REF!"},{"$error":"#REF!"}]
[22,"5.29.2.1","Providing and fixing sheet covering over expansion joints with iron screws as per design to match the colour / shade of wall treatment. Aluminium fluted strips 3.15mm thick 150 mm wide.","m",{"$f":"#REF!","v":{"$error":"#REF!"}},336.65,{"$error":"#REF!"},336.65,521.47084999999993,{"$error":"#REF!"},{"$error":"#REF!"},{"$f":"K45-J45","v":{"$error":"#REF!"}}]
[23,"6.4.2","Brick work with common burnt clay F.P.S. (non modular) bricks of class designation 7.5 in superstructure above plinth level up to floor V level in all shapes and sizes in : Cement mortar 1:6 (1 cement : 6 coarse sand)","Cum",{"$f":"#REF!","v":{"$error":"#REF!"}},5582.85,{"$error":"#REF!"},5582.85,8647.8346500000007,{"$error":"#REF!"},{"$error":"#REF!"},{"$error":"#REF!"}]
[24,6.5,"Extra for brick work /  block masonry / Tile brick masonry in superstructure above floor V level, for each four floors or part thereof by mechanical means.","Cum",{"$f":"#REF!","v":{"$error":"#REF!"}},205.45,{"$error":"#REF!"},205.45,318.24204999999995,{"$error":"#REF!"},{"$error":"#REF!"},{"$error":"#REF!"}]
[25,"6.1.2","Brick work with common burnt clay F.P.S. (non modular) bricks of class designation 7.5 in foundation and plinth in: Cement mortar 1:6 (1 cement : 6 coarse sand)","Cum",{"$f":"#REF!","v":{"$error":"#REF!"}},4751.6499999999996,{"$error":"#REF!"},4751.6499999999996,7360.3058499999988,{"$error":"#REF!"},{"$error":"#REF!"},{"$f":"K48-J48","v":{"$error":"#REF!"}}]
[26,"6.13.2","Half brick masonry with common burnt clay F.P.S. (non modular) bricks ofclass designation 7.5 in superstructure above plinth level up to floor V level. Cement mortar 1:4 (1 cement :4 coarse sand)","Sqm",{"$f":"#REF!","v":{"$error":"#REF!"}},684.2,{"$error":"#REF!"},684.2,1059.8258000000001,{"$error":"#REF!"},{"$error":"#REF!"},{"$error":"#REF!"}]
[27,6.15,"Extra for providing and placing in position 2 Nos. 6mm dia. M.S. bars at every third course of half brick masonry.","Sqm",{"$f":"#REF!","v":{"$error":"#REF!"}},56.85,{"$error":"#REF!"},56.85,88.060649999999995,{"$error":"#REF!"},{"$error":"#REF!"},{"$error":"#REF!"}]
[28,"7.1.1","Random rubble masonry with hard stone in foundation and plinth including levelling up with cement concrete 1:6:12 (1 cement : 6 coarse sand : 12 graded stone aggregate 20mm nominal size) upto plinth level with :Cement mortar 1:6 (1 cement : 6 coarse sand).","Cum",{"$f":"#REF!","v":{"$error":"#REF!"}},3965.85,{"$error":"#REF!"},3965.85,6143.1016499999996,{"$error":"#REF!"},{"$error":"#REF!"},{"$error":"#REF!"}]
[29,"9.1.1","Providing wood work in frames of doors, windows, clerestory windows and other frames, wrought framed and fixed in position with hold fast lugs or with dash fasteners of required dia & length ( hold fast lugs or dash fastener shall be paid for separately). Second class teak wood","Cum",{"$f":"#REF!","v":{"$error":"#REF!"}},92743.05,{"$error":"#REF!"},92743.05,143658.98444999999,{"$error":"#REF!"},{"$error":"#REF!"},{"$error":"#REF!"}]
[30,"9.5.1.1 + 9.14","Providing and fixing panelled or panelled and glazed shutters for doors, windows and clerestory windows includingISI marked Stainless Steel butt hinges bright finished of required size with necessary screws excluding, panelling which will be paid for separately, all complete as per direction of Engineer-in-charge. Second class teak wood: 35 mm thick shutters","Sqm",{"$f":"#REF!","v":{"$error":"#REF!"}},2647.95,{"$error":"#REF!"},2647.95,4101.6745499999997,{"$error":"#REF!"},{"$error":"#REF!"},{"$error":"#REF!"}]
[31,"9.7.1","Providing and fixing panelling or panelling and glazing in panelled or panelled and glazed shutters for doors, windows and clerestory windows (Area of opening for panel inserts excluding portion inside grooves or rebates to be measured). Panelling for panelled or panelled and glazed shutters 25 mm to 40 mm thick : Second class teak wood","Sqm",{"$f":"#REF!","v":{"$error":"#REF!"}},2037.05,{"$error":"#REF!"},2037.05,3155.3904499999999,{"$error":"#REF!"},{"$error":"#REF!"},{"$error":"#REF!"}]
[32,9.74,"Providing and fixing bright finished brass tower bolts (barrel type) with necessary screws etc. complete :",null,null,null,0,null,0,0,0,0]
["a","9.74.1","250x10 mm","Each",{"$f":"#REF!","v":{"$error":"#REF!"}},313.2,{"$f":"ROUND(F56*E56,0)","v":{"$error":"#REF!"}},313.2,485.14679999999998,{"$error":"#REF!"},{"$error":"#REF!"},{"$error":"#REF!"}]
[33,"9.79.4","Providing and fixing special quality bright finished brass cupboard or ward robe locks with four levers including necessary screws etc. complete (best make of approved quality) : 75 mm","Each",{"$f":"#REF!","v":{"$error":"#REF!"}},219.65,{"$error":"#REF!"},219.65,340.23784999999998,{"$error":"#REF!"},{"$error":"#REF!"},{"$error":"#REF!"}]
[34,9.81,"Providing and fixing bright finished brass handles with screws etc. complete: ",null,null,null,0,null,0,0,0,0]
["a","9.81.1","125 mm","Each",{"$f":"#REF!","v":{"$error":"#REF!"}},171.2,{"$error":"#REF!"},171.2,265.18879999999996,{"$error":"#REF!"},{"$error":"#REF!"},{"$error":"#REF!"}]
["b","9.81.2","100 mm","Each",{"$f":"#REF!","v":{"$error":"#REF!"}},159.19999999999999,{"$error":"#REF!"},159.19999999999999,246.60079999999996,{"$error":"#REF!"},{"$error":"#REF!"},{"$error":"#REF!"}]
[35,9.82,"Providing and fixing bright finished brass hanging type floor door stopper with necessary screws, etc. complete.","Each",{"$f":"#REF!","v":{"$error":"#REF!"}},85.85,{"$error":"#REF!"},85.85,132.98164999999997,{"$error":"#REF!"},{"$error":"#REF!"},{"$error":"#REF!"}]
[36,9.84,"Providing and fixing aluminium extruded section body tubular type universal hydraulic door closer (having brand logo with ISI, IS : 3564, embossed on the body, door weight upto 36 kg to 80 kg and door width from 701 mm to 1000 mm) with double speed adjustment with necessary accessories and screws etc. complete.","Each",{"$f":"#REF!","v":{"$error":"#REF!"}},388.4,{"$error":"#REF!"},388.4,601.63159999999993,{"$error":"#REF!"},{"$error":"#REF!"},{"$error":"#REF!"}]
[37,9.8800000000000008,"Providing and fixing chromium plated brass 100 mm mortice latch and lock with 6 levers and a pair of lever handles with necessary screws etc. complete (best make of approved quality).","Each",{"$f":"#REF!","v":{"$error":"#REF!"}},678.4,{"$error":"#REF!"},678.4,1050.8416,{"$error":"#REF!"},{"$error":"#REF!"},{"$f":"K63-J63","v":{"$error":"#REF!"}}]
[38,9.1289999999999996,"Providing and fixing cup board shutters 25mm thick, with Pre-laminated flat pressed three layer particle board or graded wood particle board IS: 12823 marked exterior grade (Grade l Type ll) having one side decorative lamination and other side balancing lamination including IInd class teak wood lipping of 25mm wide x12 mm thick with necessary screws and bright finished stainless steel piano hinges complete as per direction of the Engineer-in-Charge","Sqm",{"$f":"#REF!","v":{"$error":"#REF!"}},1590.8,{"$error":"#REF!"},1590.8,2464.1491999999998,{"$error":"#REF!"},{"$error":"#REF!"},{"$error":"#REF!"}]
[39,"9.18.1","Providing and fixing Pre-laminated flat pressed 3 layer (medium density)particle board or graded wood particle board IS : 3087 marked, with oneside decorative and other side balancing lamination Grade I, Type II exteriorgrade IS : 12823 marked, in shelves with screws and fittings whereverrequired, edges to be painted with polyurethane primer (fittings to be paidseparately). 18mm thick","Sqm",{"$f":"#REF!","v":{"$error":"#REF!"}},990.5,{"$error":"#REF!"},990.5,1534.2845,{"$error":"#REF!"},{"$error":"#REF!"},{"$error":"#REF!"}]
[40,9.1609999999999996,"Providing and fixing fire resistant door frame of section 50 x 60mm on horizontal side & 35 x 60mm on vertical side having built in rebate  made out of 1.6mm thick GI sheet (Zinc coating not less than 120gm/m2) suitable for mounting 120 minute Fire Rated Glazed Door Shutters.  The frame shall be filled with Mineral wool insulation having density min. 96kg/m3.  The frame will have a provision of G.I. Anchor fastners 14 nos 95each on vertical style & 4 on horizontal style of size M10 X 80) suitable for fixing in the opening along with Factory made Template for SS Ball Bearing Hinges of Size 100x89x3mm for fixing of fire rated glazed shutter.  The frame shall be finished with a approved fire resistant primer of Powder coating of not less than 30 micron in desired shade as per the directions of Engineer-in-charge.  (Cost of SS ball bearing hinges is excluded)","m",{"$f":"#REF!","v":{"$error":"#REF!"}},1260,{"$error":"#REF!"},1260,1951.74,{"$error":"#REF!"},{"$error":"#REF!"},{"$error":"#REF!"}]
[41,9.1620000000000008,"Providing and fixing 60mm thick glazed fire resistant door shutters of 120 minute Fire Rating confirming to IS:3614 (Part II) or EN 1634-1:1999, tested and certified as per laboratory approved by Engineer-in-charge, with suitable mounting on door frame, consisting of vertical styles, top rail & side rail 60mm x 60mm wide and bottom rail of 110 mm x 60 mm made out of 1.6mm thick GI sheet (zinc coating not less than 120 gm/m2) duly filled mineral wool insulation having density min 96 kg/m3 and fixing with necessary stainless steel ball bearing hinges of size 100 x 89 x 3mm of  approved make, including applying a coat of approved fire resistant primer or powder coating n ot less than 30 micron etc. all complete as per direction of Engineer-in-charge (panelling to be paid for seperately)","m2",{"$f":"#REF!","v":{"$error":"#REF!"}},6839.35,{"$error":"#REF!"},6839.35,10594.15315,{"$error":"#REF!"},{"$error":"#REF!"},{"$error":"#REF!"}]
[42,9.1639999999999997,"Providing and fixing glazing in fire resistant door shutters, fixed panels & partitions etc., with G.I beading made out of 1.6mm thick G.I sheet (zinc coating not less than 120 gm/m2) of size 20 x 33 mm screwed with M4 x 38mm SS screws of distance 75mm from the edges and 150mm c/c, including applying a coat of approved fire resistant primer/powder coatin g of not less than 30 micron on G.I. beading & special ceramic tape of 5 x 20 mm size etc. complete in all respect as per direction of Engineer-in-charge.  The glass shall be clear, toughened, interlayered, non-wired fire resistant having 11mm thickness of approved brand with 120 minutes of fire resistance both integrity & ",null,null,null,0,null,0,0,0,0]
[null,null,"radiation control (EW120) and minimum 15 min of insulation (EI15) and having a sound reduction of 37dB and LT of 86%.  Glass shall be compliant to class 2(B)2 category of Impact Resistance as per EN 12600.  The glass should be manufactured in UL & TUV audited Facility and including UL-EU Certification.  The maximum glazing size cannot be more than 1100 mm x 2200 mm (w x h) or 2.42 sq. mts in total area.  The test report for the complete system (Glased Door or Partition) will be considered valid only if it co ntains the stamp and signature of the authorized signatory from the glass manufacturer.  (Actual glass size is to be measured at site for payments)","m2",{"$f":"#REF!","v":{"$error":"#REF!"}},34058.9,{"$error":"#REF!"},34058.9,52757.236100000002,{"$error":"#REF!"},{"$error":"#REF!"},{"$error":"#REF!"}]
[43,"LMR","Providing and fixing 2mm thick  lead lining over inner side of the door shutter including all fixing accessories and fixuerse etc complete","Sqm",{"$f":"#REF!","v":{"$error":"#REF!"}},11193.6,{"$f":"ROUND(F70*E70,0)","v":{"$error":"#REF!"}},11193.6,11193.6,{"$f":"I70*E70","v":{"$error":"#REF!"}},{"$f":"G70","v":{"$error":"#REF!"}},{"$f":"K70-J70","v":{"$error":"#REF!"}},null,null,null,null,{"$f":"G70","v":{"$error":"#REF!"}}]
[44,21.18,"Providing and fixing 12 mm thick frameless toughened glass door shutter of approved brand and manufacture, including providing and fixing top & bottom pivot & spring type fixing arrangement and making necessary holes etc. for fixing required door fittings, all complete as per direction of Engineer-in-charge (Door handle, lock and stopper etc.to be paid separately).","Sqm",{"$f":"#REF!","v":{"$error":"#REF!"}},4608.8500000000004,{"$error":"#REF!"},4608.8500000000004,7139.1086500000001,{"$error":"#REF!"},{"$f":"ROUND(G71*1.549,0)","v":{"$error":"#REF!"}},{"$error":"#REF!"}]
[45,"LMR","Providing and fixing Stainless Steel (SS Grade 316) frameless double leaf glass door fittings such as   BTS 75 FLOOR SPRING WITH SPINDLE INSERT INCL CEMENT BOX AND COVER PLATE -EN 1-4-MAX DOOR WEIGHT 120 KG -HO 90 DEG,  ulus 10 UNIVERSAL CORNER LOCK WITH LKP AND EPC 60MM BOTH SIDE KEY, PULL HANDLE -H TYPE - TGDI H 350 X 25 CTC 250MM GRADE 316 for each leaf of 12mm toughened glass door as per the direction of the Engineer -in-charge.","Each",{"$f":"#REF!","v":{"$error":"#REF!"}},42160.1,{"$error":"#REF!"},42160.1,42160.1,{"$error":"#REF!"},{"$f":"G72","v":{"$error":"#REF!"}},{"$error":"#REF!"},null,null,null,null,{"$f":"G72","v":{"$error":"#REF!"}}]
[46,"9.117.1","Providing and fixing factory made uPVC door frame made of uPVC extruded sections having an overall dimension as below (tolerance ±1mm), with wall thickness 2.0 mm (± 0.2 mm), corners of the door frame to be Jointed with galvanized brackets and stainless steel screws  joints mitred and Plastic welded. The hinge side vertical of the frames reinforced by galvanized M.S. tube of size 19 X 19 mm and 1mm (± 0.1 mm) wall thickness and 3 nos. stainless steel hinges fixed to the frame complete as per manufacturer’s specification and direction of Engineerin- charge  Extruded section profile size 48x40 mm                                                                                                                                                                                                                                  ","m",{"$f":"#REF!","v":{"$error":"#REF!"}},216.8,{"$error":"#REF!"},216.8,335.82319999999999,{"$error":"#REF!"},{"$error":"#REF!"},{"$error":"#REF!"}]
[47,"9.118.2","30 mm thick factory made Polyvinyl Chloride (UPVC) door shutter made\nof styles and rails of a uPVC hollow section of size 60x30 mm and wall\nthickness 2 mm (± 0.2 mm), with inbuilt decorative moulding edging on one side. The styles and rails mitred and joint at the corners by means of M.S. galvanised/ plastic brackets of size 75x220 mm having wall thickness 1.0 mm and stainless steel screws. The styles of the shutter reinforced by inserting galvanised M.S. tube of size 25x20 mm and 1 mm (± 0.1 mm) wall thickness.",null,null,null,0,null,0,0,0,0]
[null,null,"The lock rail made up of 'H' section, a uPVC hollow section of size 100x30 mm and 2 mm (± 0.2 mm) wall thickness fixed to the shutter styles by means of plastic/ galvanised M.S. 'U' cleats. The shutter frame filled with a uPVC multi-chambered single panel of size not less than 620 mm, having over all thickness of 20 mm and 1 mm (± 0.1 mm) wall thickness . The panels filled vertically and tie bar at two places by inserting horizontally 6 mm galvanised M.S. rod and fastened with nuts and washers, complete as per manufacturer's specification and direction of Engineer-in-charge.","Sqm",{"$f":"#REF!","v":{"$error":"#REF!"}},1948,{"$error":"#REF!"},1948,{"$f":"H75*1.549","v":3017.4519999999998},{"$error":"#REF!"},{"$error":"#REF!"},{"$error":"#REF!"}]
[48,"9.147A","Providing and fixing factory made uPVC white colour casement/ casement cum fixed glazed windows comprising of uPVC multi chambered fram, sash and mullion (wherever required) extruded profiles duly reinforced with 1.60 + 0.2 mm thick galvanized mild steel section made from roll forming process fo required length (shape and size according to uPVC profile), uPVC extruded glazing beeds of appropriate dimension, EPDM gasket, stainless steel (SS 304 grade) friction hinges, zinc alloy (white powder coated) casement handles, GI fasteners 100 X 8mm size for fixing frame to finished wall, plastic packers, plastic caps and necessary stainless steel screws etc.",null,null,null,0,null,0,0,0,0]
[null,null," Profile of frame and sash shall mitred cut and fushion welded at all corners , mullion (if required) shall also fusion welded incoluding drilling of holes for fixing hardwares and  drainage of water etc.  After fixing frame, the gap between frame and adjacent finished wall shasll be filled with weather proof silicon sealent over baker rod of required size and of approved quality, all complete as per approved drawing & direction of Engineer-in-charge. (Single/ double glass panes and silicon sealent shall be paid seperately)",null,null,null,0,null,0,0,0,0]
["a)","9.147A. 1","Casement window single panel with S.S. Friction hinges (300 x 19 x 1.9mm) made of (small series) frame 47 x 50 mm & sash 47 X 68 mm both having wall thickness of 1.9  +  0.2 mm and single glass pane glazing bead of appropriate dimension (Area of window up 0.75 sq.m)","Sqm",{"$f":"#REF!","v":{"$error":"#REF!"}},7908.15,{"$error":"#REF!"},7908.15,12249.724349999999,{"$error":"#REF!"},{"$error":"#REF!"},{"$f":"K78-J78","v":{"$error":"#REF!"}}]
["b)","9.147A. 4","Casement window single panel with S.S. Friction hinges (400 x 19 x 1.9mm) made of (big series) frame 67 X 60mm & sash 67 X 80mm both having wall thickness of 2.3 +  0.2 mm and single glazed bead/double glazed bead of appropriate dimension (Area of window above 0.75 sq.m)","Sqm",{"$f":"#REF!","v":{"$error":"#REF!"}},8162.65,{"$error":"#REF!"},8162.65,12643.944849999998,{"$error":"#REF!"},{"$error":"#REF!"},{"$error":"#REF!"}]
[49,"9.147D","Providing and fixing factory made uPVC white colour sliding glazed window upto 1.5m in height dimension comprising of uPVC multi-chambered frame with in-built roller track and sash extruded profiles duly reinforced with 1.60 + 0.2 mm thick galvanized mild steel section made from roll forming process of required length  (shape & size according to uPVC profile), appropriate dimension of uPVC extruded glazing beads and uPVC extruded interlocks, EPDM gasket, wool pile, zinc alloy (white powder coated) touch locks with hook, zinc alloy body with single nylon rollers (weight bearing capacity to be 40kg), G.I fasteners 100 x 8 mm size for fixing frame to finished wall and necessary stainless steel screws etc. Profile of frame & sash shall be mitred cut and fusion welded at all corners, including drilling of holes for fixing hardware's and drainage of water etc.  ",null,null,null,0,null,0,0,0,0]
[null,null,"After fixing frame the gap between frame and adjacent finished wall shall be filled with weather proof silicon sealent over backer rod of required size and of approved quality, all complete as per approved drawing & direction of Enginer-in-charge. (single/double glass panes, wire mesh and silicon sealant shall be paid separetely)",null,null,null,0,null,0,0,0,{"$f":"K81-J81","v":0}]
[null,null,"Note: For uPVC frame and sash extruded profiles minus 5% tolerance in dimension i.e. In depth & width of profile shall be acceptable",null,null,null,0,null,0,0,0,{"$f":"K82-J82","v":0}]
["a)","9.147D..3","Two track two panels sliding window made of (big series) frame 67 x 50 mm & sash 46 x 62 mm both having wall thickness of 2.3 + 0.2 mm and single glazing bead/ double glazing bead of appropriate   dimension. ","Sqm",{"$f":"#REF!","v":{"$error":"#REF!"}},5826.05,{"$error":"#REF!"},5826.05,9024.551449999999,{"$error":"#REF!"},{"$error":"#REF!"},{"$error":"#REF!"}]
["b)","9.147D..5","Three track three panels sliding window made of (big series) frame 116 x 45 mm & sash 46 x 62 mm both having wall thickness of 2.3 + 0.2 mm and single glazing bead / double glazing bead of appropriate dimension.  ","Sqm",{"$f":"#REF!","v":{"$error":"#REF!"}},6889.55,{"$error":"#REF!"},6889.55,10671.91295,{"$error":"#REF!"},{"$error":"#REF!"},{"$error":"#REF!"}]
[null,null,null,null,null,null,0,null,0,0,0,0]
[50,"21.1.1.2","Providing and fixing aluminium work for doors, windows, ventilators, Louvers and partitions with extruded built up standard tubular sections/ appropriate Z sections and other sections of approved make conforming to IS: 733 and IS: 1285, fixing with dash fasteners of required dia and size, including necessary filling up the gaps at junctions, i.e. at top, bottom and sides with required EPDM rubber/ neoprene gasket etc. Aluminium sections shall be smooth, rust free, straight, mitred and jointed mechanically wherever required including cleat angle, Aluminium snap beading for glazing / paneling, C.P. brass / stainless steel screws, all complete as per architectural drawings and the directions of Engineer-in-charge. (Glazing, paneling and dash fasteners to be paid for separately) : For fixed portion Powder coated aluminium (minimum thickness of powder coating 50 micron)","Kg",{"$f":"#REF!","v":{"$error":"#REF!"}},384.5,{"$error":"#REF!"},384.5,595.59050000000002,{"$error":"#REF!"},{"$error":"#REF!"},{"$error":"#REF!"}]
[51,"21.1.2.2","For shutters of doors, windows & ventilators, Louvers including providing and fixing hinges/ pivots and making provision for fixing of fittings wherever required including the cost of EPDM rubber / neoprene gasket required (Fittings shall be paid for separately). Powder coated aluminium (minimum thickness of powder coating 50 micron)","Kg",{"$f":"#REF!","v":{"$error":"#REF!"}},444.9,{"$error":"#REF!"},444.9,689.15009999999995,{"$error":"#REF!"},{"$error":"#REF!"},{"$error":"#REF!"}]
[52,21.17,"Providing and fixing anodised aluminium grill (anodised transparent ordyed to required shade according to IS: 1868 with minimum anodic coatingof grade AC 15) of approved design/pattern, with approved standardsection and fixed to the existing window frame with C.P. brass/ stainlesssteel screws @ 200 mm centre to centre, including cutting the grill toproper opening size for fixing and operation of handles and fixing approvedanodised aluminium standard section around the opening, all completeas per requirement and direction of Engineer-in-charge. (Only weight ofgrill to be measured for payment).","Kg",{"$f":"#REF!","v":{"$error":"#REF!"}},408.85,{"$error":"#REF!"},408.85,633.30865000000006,{"$error":"#REF!"},{"$error":"#REF!"},{"$error":"#REF!"}]
[53,"21.2.2","Providing and fixing 12mm thick prelaminated particle board flat pressed three layer or graded wood particle board conforming to IS: 12823 Grade l Type ll, in panelling fixed in aluminum doors, windows shutters and partition frames with C.P. brass / stainless steel screws etc. complete as per architectural drawings and directions of engineer-in-charge. Pre-laminated particle board with decorative lamination on both sides.","Sqm",{"$f":"#REF!","v":{"$error":"#REF!"}},866.6,{"$error":"#REF!"},866.6,1342.3634,{"$error":"#REF!"},{"$error":"#REF!"},{"$error":"#REF!"}]
[54,"21.3.2","Providing and fixing glazing in aluminium/uPVC door, window, ventilator shutters and partitions etc. with EPDM rubber / neoprene gasket etc. complete as per the architectural drawings and the directions of engineer-in-charge . (Cost of aluminium snap beading shall be paid in basic item): With float glass panes of 6 mm thickness","Sqm",{"$f":"#REF!","v":{"$error":"#REF!"}},1003.95,{"$error":"#REF!"},1003.95,1555.1185499999999,{"$error":"#REF!"},{"$error":"#REF!"},{"$error":"#REF!"}]
[55,"21.3.3","Providing and fixing glazing in aluminium/uPVC door,  shutters and partitions etc. with EPDM rubber / neoprene gasket etc. complete as per the architectural drawings and the directions of engineer-in-charge . (Cost of aluminium snap beading shall be paid in basic item): With float glass panes of 8 mm thickness","Sqm",{"$f":"#REF!","v":{"$error":"#REF!"}},1153.9000000000001,{"$error":"#REF!"},1153.9000000000001,1787.3911000000001,{"$error":"#REF!"},{"$error":"#REF!"},{"$error":"#REF!"}]
[56,"21.4.2","Providing and fixing double action hydraulic floor spring of approved brand and manufacture conforming to IS : 6315, having brand logo embossed on the body / plate with double spring mechanism and door weight upto 125 kg., for doors, including cost of cutting floors , embedding in floors as required and making good the same matching to the existing floor finishing and cover plates with brass pivot and single piece M.S. sheet outer box with slide plate etc. complete as per the direction of Engineer-in-charge. With brass cover plate minimum 1.25 mm thickness.","Each",{"$f":"#REF!","v":{"$error":"#REF!"}},2228.6,{"$error":"#REF!"},2228.6,3452.1013999999996,{"$error":"#REF!"},{"$error":"#REF!"},{"$error":"#REF!"}]
[57,21.1,"Providing and fixing double glazed hermetically sealed glazing in aluminium windows, ventilators and partition etc. with 6 mm thick clear float glass both side, having 12 mm air gap, including providing EPDM gasket, perforated aluminium spacers, desiccants, sealant (Both primary and secondary sealant) etc. as per specifications, drawings and direction of Engineer-in-charge complete.","Sqm",{"$f":"#REF!","v":{"$error":"#REF!"}},3176.2,{"$error":"#REF!"},3176.2,4919.9337999999998,{"$error":"#REF!"},{"$error":"#REF!"},{"$error":"#REF!"}]
[58,"21.12.2","Providing and fixing aluminium tubular handle bar 32 mm outer dia, 3.0mm thick & 2100 mm long with SS screws etc .complete as per directionof Engineer-in-Charge. Powder coated minimum thickness 50 micron aluminium tubular handle bar","Each",{"$f":"#REF!","v":{"$error":"#REF!"}},509.3,{"$error":"#REF!"},509.3,788.90570000000002,{"$error":"#REF!"},{"$error":"#REF!"},{"$f":"K94-J94","v":{"$error":"#REF!"}}]
[59,21.13,"Providing and fixing 100mm brass locks (best make of approved quality) for aluminium doors including necessary cutting and making good etc. complete","Each",{"$f":"#REF!","v":{"$error":"#REF!"}},359,{"$error":"#REF!"},359,556.09100000000001,{"$error":"#REF!"},{"$error":"#REF!"},{"$f":"K95-J95","v":{"$error":"#REF!"}}]
[60,"9.100.1","Providing and fixing aluminium handles, ISI marked, powder coated to required colour or shade, with necessary screws etc. complete : 125mm","Each",{"$f":"#REF!","v":{"$error":"#REF!"}},51.1,{"$error":"#REF!"},51.1,79.153899999999993,{"$error":"#REF!"},{"$error":"#REF!"},{"$error":"#REF!"}]
[61,"9.97","Providing and fixing aluminium tower bolts, ISI marked, anodised (anodic coating not less than grade AC 10 as per IS : 1868 ) transparent or dyed to required colour or shade, with necessary screws etc. complete :",null,null,null,0,null,0,0,0,0]
["a","9.97.2","250 X 10 mm","Each",{"$f":"#REF!","v":{"$error":"#REF!"}},88.1,{"$error":"#REF!"},88.1,136.46689999999998,{"$error":"#REF!"},{"$error":"#REF!"},{"$error":"#REF!"}]
["b","9.97.3","200 X 10 mm","Each",{"$f":"#REF!","v":{"$error":"#REF!"}},76.150000000000006,{"$error":"#REF!"},76.150000000000006,117.95635,{"$error":"#REF!"},{"$error":"#REF!"},{"$error":"#REF!"}]
[62,"9.101.2","Providing and fixing aluminium hanging floor door stopper, ISI marked, anodised (anodic coating not less than grade AC 10 as per IS : 1868) Transparent or dyed to required colour and shade, with necessary screws etc. complete. Twin rubber stopper\n","Each",{"$f":"#REF!","v":{"$error":"#REF!"}},38,{"$error":"#REF!"},38,58.861999999999995,{"$error":"#REF!"},{"$error":"#REF!"},{"$error":"#REF!"}]
[63,"21.8","Filling the gap in between aluminium frame & adjacent RCC/ Brick/ Stonework by providing weather silicon sealant over backer rod of approved qualityas per architectural drawings and direction of Engineer-in-charge complete.","m",{"$f":"#REF!","v":{"$error":"#REF!"}},62.45,{"$error":"#REF!"},62.45,96.735050000000001,{"$error":"#REF!"},{"$error":"#REF!"},{"$error":"#REF!"}]
[64,10.28,"Providing and fixing stainless steel (Grade 304) railing made of Hollow tubes, channels, plates etc. including welding, grinding, buffing, polishing and making curvature (wherever required) and fitting the same with necessary stainless steel nuts and bolts complete i/c fixing the railing with necessary accessories & stainless steel dash fasteners , stainless steel bolts etc., of required size, on the top of the floor or the side of waist slab with suitable arrangement as per approval of Engineer-in-charge. ( for payment purpose only weight of stainless steel members shall be considered excluding fixing accessories such as nuts, bolts, fasteners etc.)","Kg",{"$f":"#REF!","v":{"$error":"#REF!"}},472.4,{"$error":"#REF!"},472.4,731.74759999999992,{"$error":"#REF!"},{"$error":"#REF!"},{"$error":"#REF!"}]
[65,"9.48.2","Providing and fixing M.S. grills of required pattern in frames of windows etc. with M.S. flats, square or round bars etc. including priming coat with approved steel primer all complete.Fixed to openings /wooden frames with rawl plugs screws etc.","Kg",{"$f":"#REF!","v":{"$error":"#REF!"}},112.45,{"$error":"#REF!"},112.45,174.18504999999999,{"$error":"#REF!"},{"$error":"#REF!"},{"$f":"K103-J103","v":{"$error":"#REF!"}}]
[66,10.17,"Providing and fixing M.S. fan clamp type I or II of 16 mm dia M.S. bar bent to shape with hooked ends in R.C.C. slabs, beams during laying including painting the exposed portion of loop, all as per standard design complete.","Each",{"$f":"#REF!","v":{"$error":"#REF!"}},112.15,{"$error":"#REF!"},112.15,173.72035,{"$error":"#REF!"},{"$error":"#REF!"},{"$f":"K104-J104","v":{"$error":"#REF!"}}]
[67,9.5299999999999994,"Providing 40x5 mm flat iron hold fast 40 cm long including fixing to frame with 10 mm diameter bolts, nuts and wooden plugs and embedding in cement concrete block 30x10x15cm 1:3:6 mix (1 cement : 3 coarse sand : 6 graded stone aggregate 20mm nominal size)","Each",{"$f":"#REF!","v":{"$error":"#REF!"}},118.6,{"$error":"#REF!"},118.6,183.71139999999997,{"$error":"#REF!"},{"$error":"#REF!"},{"$error":"#REF!"}]
[68,"8.2.2.2","Providing and fixing 18mm thick gang saw cut mirror polished premoulded and prepolished) machine cut for kitchen platforms, flooring, vanity counters, window sills , facias and similar locations of required size of approved shade, colour and texture laid over 20mm thick base cement mortar 1:4 (1 cement : 4 coarse sand) with joints treated with white cement, mixed with matching pigment, epoxy touch ups, including rubbing, curing, moulding and polishing to edges to give high gloss finish etc. complete at all levels. Granite of any colour and shade: Area of slab over 0.50 sqm.(Lowest retails price not less than Rs. 2000/m2)","Sqm",{"$f":"#REF!","v":{"$error":"#REF!"}},3113.3,{"$error":"#REF!"},3113.3,4822.5016999999998,{"$error":"#REF!"},{"$error":"#REF!"},{"$error":"#REF!"}]
[69,"8.9.1.2 Analysis","Stone tile (polished) work for wall lining over 12 mm thick bed of cement mortar 1:3 (1 cement : 3 coarse sand) and cement slurry @ 3.3 kg/sqm including pointing in white cement complete..:18mm thick Granite slab of any colour and shade.to the front side of lift room","Sqm",{"$f":"#REF!","v":{"$error":"#REF!"}},3327.6,{"$error":"#REF!"},3327.6,5154.4523999999992,{"$error":"#REF!"},{"$error":"#REF!"},{"$error":"#REF!"}]
[70,"8.3.2","Providing edge moulding to 18mm thick granite stone  including machine polishing to edge to give high gloss finish etc. complete as per design approved by Engineer-in-Charge: to the front side of lift room","m",{"$f":"#REF!","v":{"$error":"#REF!"}},245.7,{"$error":"#REF!"},245.7,380.58929999999998,{"$error":"#REF!"},{"$error":"#REF!"},{"$error":"#REF!"}]
[71,8.5,"Extra for providing opening of required size & shape for wash basins/ kitchen sink in kitchen platform, vanity counters and similar location in marble/Granite/stone work including necessary holes for pillar taps etc. including moulding, rubbing and polishing of cut edges etc. complete.","Each",{"$f":"#REF!","v":{"$error":"#REF!"}},427.95,{"$error":"#REF!"},427.95,662.89454999999998,{"$error":"#REF!"},{"$error":"#REF!"},{"$error":"#REF!"}]
[72,"8.13.1","Providing and laying Polished Granite stone flooring in required design and patterns, in linear as well as curvilinear portions of the building all complete as per the architectural drawings with 18 mm thick stone slab over 20 mm average) thick base of cement mortar 1:4 (1 cement : 4 coarse sand) laid and jointed with cement slurry and pointing with white cement slurry admixed with pigment of matching shade including rubbing , curing and polishing etc. all complete as specified and as directed by the Engineer-in-Charge.Polished Granite stone slab jet Black, Cherry Red, Elite Brown, Cat Eye or equivalent. (Lowest retails price not less than Rs. 2000/m2)","m2",{"$f":"#REF!","v":{"$error":"#REF!"}},2937.7,{"$error":"#REF!"},2937.7,4550.4972999999991,{"$error":"#REF!"},{"$error":"#REF!"},{"$error":"#REF!"}]
[73,11.36,"\"Providing and fixing 1st quality ceramic glazed joint free wall tiles 300x450mm conforming to IS : 15622 (thickness to bespecified by the manufacturer), of approved make, in all colours, shades except burgundy, bottlegreen, black of any size as approved by Engineer-in-Charge, in skirting, risers of steps and dados, over12 mm thick bed of cement mortar 1:3 (1 cement : 3 coarse sand) and jointing with grey cement slurry@ 3.3 kg per sqm, including pointing in white cement mixed with pigment of matching shade complete.Basic Price is 400/sqm\"  Make: NITKO, KAJARIA, ORIENT.","Sqm",{"$f":"#REF!","v":{"$error":"#REF!"}},744.8,{"$error":"#REF!"},744.8,1153.6951999999999,{"$error":"#REF!"},{"$error":"#REF!"},{"$error":"#REF!"}]
[74,11.4,"Providing and laying rectified Glazed Ceramic floor tiles 300x300 mm or more (thickness to be specified by the manufacturer) of 1st quality conforming to IS : 15622 of approved make in all colours, shades, except White, Ivory, Grey, Fume Red Brown, laid on 20 mm thick Cement Mortar 1:4 (1 Cement : 4 Coarse sand) including pointing the joints with white cement and matching pigments etc., complete (Lowest retail price not less than Rs. 500/m2)  Make: NITKO, KAJARIA, ORIENT.","Sqm",{"$f":"#REF!","v":{"$error":"#REF!"}},901.05,{"$error":"#REF!"},901.05,1395.7264499999999,{"$error":"#REF!"},{"$error":"#REF!"},{"$f":"K112-J112","v":{"$error":"#REF!"}}]
[75,"11.41.2","Providing and laying vitrified floor tiles   of First Quality/Premium quality, best quality in different sizes (thickness to be specified by the manufacturer) with water absorption's less than 0.08% and conforming to IS : 15622 of approved make in all colours and shades, laid on 20mm thick cement mortar 1:4 (1 cement : 4 coarse sand) including grouting the joints with white cement and matching pigments etc., complete.Size of Tile 600x600 mm: (Lowest retail price not less than Rs. 900/m2)  Make: NITCO, KAJARIA, ORIENT.","Sqm",{"$f":"#REF!","v":{"$error":"#REF!"}},1119.4000000000001,{"$error":"#REF!"},1119.4000000000001,1733.9506000000001,{"$error":"#REF!"},{"$error":"#REF!"},{"$f":"K113-J113","v":{"$error":"#REF!"}}]
[76,"11.46.2","Providing and laying Vitrified tiles of First Quality/Premium quality, best quality  in different sizes (thickness to be specified by manufacturer) with water absorption less than 0.08 % and conforming to I.S. 15622, of approved make in all colours & shade in skirting, riser of steps, over 12 mm thick bed of cement mortar 1:3 (1 cement: 3 coarse sand), including grouting the joint with white cement & matching pigments etc. complete.Size of Tile 600x600 mm: (Lowest retail price not less than Rs. 900/m2)  Make: NITCO, KAJARIA, ORIENT.","Sqm",{"$f":"#REF!","v":{"$error":"#REF!"}},1135.2,{"$error":"#REF!"},1135.2,1758.4248,{"$error":"#REF!"},{"$error":"#REF!"},{"$error":"#REF!"}]
[77,"11.20.3","Chequerred precast cement concrete tiles 22 mm thick in footpath & courtyard, jointed with neat cement slurry mixed with pigment to match the shade of tiles including rubbing and cleaning etc. complete, on 20 mm thick bed of cement mortar 1:4 (1 cement: 4 coarse sand). Dark shade using ordinary cement.","Sqm",{"$f":"#REF!","v":{"$error":"#REF!"}},716.35,{"$error":"#REF!"},716.35,1109.6261500000001,{"$error":"#REF!"},{"$error":"#REF!"},{"$error":"#REF!"}]
[78,"13.2.1","15 mm cement plaster on the rough side of single or half brick wall of mix: 1:4 (1 cement: 4 fine sand) to the outside of walls ","Sqm",{"$f":"#REF!","v":{"$error":"#REF!"}},200.25,{"$error":"#REF!"},200.25,310.18725000000001,{"$error":"#REF!"},{"$error":"#REF!"},{"$error":"#REF!"}]
[79,"13.4.1","12 mm cement plaster of mix : 1:4 (1 cement: 4 coarse sand) to the inside of walls ","Sqm",{"$f":"#REF!","v":{"$error":"#REF!"}},180.85,{"$error":"#REF!"},180.85,280.13664999999997,{"$error":"#REF!"},{"$error":"#REF!"},{"$error":"#REF!"}]
[80,"13.16.1","6 mm cement plaster of mix : 1:3 (1 cement: 3 fine sand) for under side of roof slab and beams","Sqm",{"$f":"#REF!","v":{"$error":"#REF!"}},143.80000000000001,{"$error":"#REF!"},143.80000000000001,222.74620000000002,{"$error":"#REF!"},{"$error":"#REF!"},{"$error":"#REF!"}]
[81,"13.9.1 + 13.21","Cement plaster 1:3 (1 cement: 3 coarse sand) finished with a floating coat of neat cement.12 mm cement plaster including providing and mixing water proofing material in cement plaster work in proportion recommended by the manufacturers. to the top surface of sunshade ","Sqm",{"$f":"#REF!","v":{"$error":"#REF!"}},244.3,{"$error":"#REF!"},244.3,378.42070000000001,{"$error":"#REF!"},{"$error":"#REF!"},{"$error":"#REF!"}]
[82,13.22,"Extra for plastering exterior walls of height more than 10 m from ground level for every additional height of 3 m or part thereof.",null,null,null,0,null,0,0,0,0]
["a",13.22,"10 m to 13m","Sqm",{"$f":"#REF!","v":{"$error":"#REF!"}},40.65,{"$error":"#REF!"},40.65,62.966849999999994,{"$error":"#REF!"},{"$error":"#REF!"},{"$error":"#REF!"}]
["b","13.22x2","13m to 16m","Sqm",{"$f":"#REF!","v":{"$error":"#REF!"}},81.3,{"$error":"#REF!"},81.3,125.93369999999999,{"$error":"#REF!"},{"$error":"#REF!"},{"$error":"#REF!"}]
["c","13.22x3","16m to 19m","Sqm",{"$f":"#REF!","v":{"$error":"#REF!"}},121.95,{"$error":"#REF!"},121.95,188.90055000000001,{"$error":"#REF!"},{"$error":"#REF!"},{"$error":"#REF!"}]
["d","13.22x4","19m to 22m","Sqm",{"$f":"#REF!","v":{"$error":"#REF!"}},162.6,{"$error":"#REF!"},162.6,251.86739999999998,{"$error":"#REF!"},{"$error":"#REF!"},{"$error":"#REF!"}]
["e","13.22x5","22m to 25m","Sqm",{"$f":"#REF!","v":{"$error":"#REF!"}},203.25,{"$error":"#REF!"},203.25,314.83425,{"$error":"#REF!"},{"$error":"#REF!"},{"$error":"#REF!"}]
["f","13.22x6","25m to 28m","Sqm",{"$f":"#REF!","v":{"$error":"#REF!"}},243.9,{"$error":"#REF!"},243.9,377.80110000000002,{"$error":"#REF!"},{"$error":"#REF!"},{"$error":"#REF!"}]
["g","13.22x7","28m to 31m","Sqm",{"$f":"#REF!","v":{"$error":"#REF!"}},284.55,{"$error":"#REF!"},284.55,440.76794999999998,{"$error":"#REF!"},{"$error":"#REF!"},{"$f":"K127-J127","v":{"$error":"#REF!"}}]
["h)","13.22x8","31m to 34m","Sqm",{"$f":"#REF!","v":{"$error":"#REF!"}},325.2,{"$error":"#REF!"},325.2,503.73479999999995,{"$error":"#REF!"},{"$error":"#REF!"},{"$error":"#REF!"}]
[83,13.8,"Providing and applying white cement based putty of average thickness 1 mm, of approved brand and manufacturer, over the plastered wall surface to prepare the surface even and smooth complete.","Sqm",{"$f":"#REF!","v":{"$error":"#REF!"}},87.35,{"$error":"#REF!"},87.35,135.30515,{"$error":"#REF!"},{"$error":"#REF!"},{"$f":"K129-J129","v":{"$error":"#REF!"}}]
[84,"13.43.1","Applying one coat of water thinnable cement primer of approved brand and manufacture on wall surface :","Sqm",{"$f":"#REF!","v":{"$error":"#REF!"}},36.950000000000003,{"$error":"#REF!"},36.950000000000003,57.235550000000003,{"$error":"#REF!"},{"$error":"#REF!"},{"$f":"K130-J130","v":{"$error":"#REF!"}}]
[85,"13.46.1","Finishing walls with Acrylic Smooth exterior paint of required shade :New work (Two or more coat applied @ 1.67 ltr/10 sqm\nover and including priming coat of exterior primer applied\n@ 2.20 kg/10 sqm)","Sqm",{"$f":"#REF!","v":{"$error":"#REF!"}},96.05,{"$error":"#REF!"},96.05,148.78144999999998,{"$error":"#REF!"},{"$error":"#REF!"},{"$error":"#REF!"}]
[86,"13.60.1","Wall painting with acrylic emulsion paint of approved brand and manufacture to give an even shade: Two or more coats on new work.  Make: Asian, Berger, Jotun","Sqm",{"$f":"#REF!","v":{"$error":"#REF!"}},84.45,{"$error":"#REF!"},84.45,130.81305,{"$error":"#REF!"},{"$error":"#REF!"},{"$error":"#REF!"}]
[87,"13.61.1","Painting with synthetic enamel paint of approved brand and manufacture to give an even shade :Two or more coats on new work.","Sqm",{"$f":"#REF!","v":{"$error":"#REF!"}},78.400000000000006,{"$error":"#REF!"},78.400000000000006,121.44160000000001,{"$error":"#REF!"},{"$error":"#REF!"},{"$error":"#REF!"}]
[88,"22.14.1","Grading roof for water proofing treatment with Cement concrete 1:2:4 (1 cement : 2 coarse sand : 4 gradedstone aggregate 20 mm nominal size)","Cum",{"$f":"#REF!","v":{"$error":"#REF!"}},5583.8,{"$f":"ROUND(F134*E134,0)","v":{"$error":"#REF!"}},5583.8,8649.3061999999991,{"$f":"I134*E134","v":{"$error":"#REF!"}},{"$error":"#REF!"},{"$error":"#REF!"}]
[89,22.5,"Providing and laying water proofing treatment in sunken portion of WCs, bathroom etc., by applying cement slurry mixed with water proofing cement compound consisting of applying : a) First layer of slurry of cement @ 0.488 kg/sqm mixed with water proofing cement compound @ 0.253 kg/sqm. This layer will be allowed to air cure for 4 hours. b) Second layer of slurry of cement @ 0.242 kg/sqm mixed with water proofing cement compound @ 0.126 kg/sqm. This layer will be allowed to air cure for 4 hours followed with water curing for 48 hours. The rate includes preparation of surface, treatment and sealing of all joints, corners, junctions of pipes and masonry with polymer mixed slurry","Sqm",{"$f":"#REF!","v":{"$error":"#REF!"}},298.3,{"$error":"#REF!"},298.3,462.06670000000003,{"$error":"#REF!"},{"$f":"ROUND(G135*1.549,0)","v":{"$error":"#REF!"}},{"$error":"#REF!"}]
[90,12.52,"Providing and fixing tiled false ceiling of approved materials of size 595x595 mm in true horizontal level suspended on inter locking metal grid of hot dipped galvanized steel sections ( galvanized @ 120 gsm/sqm, both side inclusive) consisting of main \"T\" runner with suitably spaced joints to get required length and of size 24x38mm made from 0.30mm thick (minimum) sheet, spaced at 1200mm center to center and cross \"T\" of size 24x25mm made of 0.30mm thick (minimum) sheet, 1200mm long spaced between main \"T\" at 600mm center to center to form a grid of 1200x600 mm and secondary cross \"T\" of length 600mm and size 24x25mm made of 0.30 mm thick (minimum) sheet to be interlocked at middle of the 1200x600mm panel to form grids of 600x600mm and wall angle of size 24x24x0.3 mm",null,null,null,0,null,0,0,0,0]
[null,null,"and laying false ceiling tiles of approved texture in the grid including, wherever, required, cutting/making, opening for services like diffusers, grills, light fittings, fixtures, smoke detectors etc. Main \"T\" runners to be suspended from ceiling using GI slotted cleats of size 27 x 37 x 25 x1.6 x mm fixed to ceiling with 12.5 mm dia and 50 mm long dash fasteners, 4mm GI adjustable rods with galvanised butterfly level clips of size 85 x 30 x 0.8 mm spaced at 1200mm center to center along main T, bottom exposed width of 24 mm of all T-sections shall be pre-painted with polyester paint, all complete at all heights as per specifications drawings and as directed by Engineer-in-charge.",null,null,null,0,null,0,0,0,0]
["a","12.52.2","GI Metal Ceiling Lay in perforated Tegular edge global white color tiles of size 595x595 mm and 0.5 mm thick with 8 mm drop; made of GI sheet having galvanizing of 100 gms/sqm (both sides inclusive) and 20% perforation area with 1.8 mm dia holes and having NRC (Noise Reduction Coefficient ) of 0.5, electro statically polyester powder coated of thickness 60 microns minimum), including factory painted after bending and perforation,and backed with a black Glass fiber acoustical fleece.","Sqm",{"$f":"#REF!","v":{"$error":"#REF!"}},1163.9000000000001,{"$error":"#REF!"},1163.9000000000001,1802.8811000000001,{"$error":"#REF!"},{"$error":"#REF!"},{"$error":"#REF!"}]
["b","12.52.3","12.5 mm thick square edge PVC Laminated GypsumTile of size 595x595 mm, made of Gypsum plasterboard, manufactured from natural gypsum as per IS 2095 part Iand laminated with white 0.16mm thick fire retardantPVC film on the face side and 12micron metalized polyester on the back side with all edges sealed with the face side PVC film which goes around and wrapsthe edges and is bonded to the edges and the backside metalized polyester","m2",{"$f":"#REF!","v":{"$error":"#REF!"}},993.15,{"$error":"#REF!"},993.15,{"$f":"H139*1.549","v":1538.3893499999999},{"$error":"#REF!"},{"$error":"#REF!"},{"$error":"#REF!"}]
[91,"12.45.3","Providing and fixing false ceiling at all height including providing and fixingof frame work made of special sections, power pressed from M.S. sheetsand galvanized with zinc coating of 120 gms/sqm (both side inclusive) asper IS : 277 and consisting of angle cleats of size 25 mm wide x 1.6 mmthick with flanges of 27 mm and 37mm, at 1200 mm centre to centre, oneflange fixed to the ceiling with dash fastener 12.5 mm dia x 50mm long with 6mm dia bolts, other flange of cleat fixed to the angle hangers of 25x10x0.50mm of required length with nuts & bolts of required size and other end ofangle hanger fixed with intermediate G.I. channels 45x15x0.9 mm runningat the spacing of 1200 mm centre to centre, to which the ceiling section0.5 mm thick bottom wedge of 80 mm with tapered flanges of 26 mm eachhaving lips of 10.5 mm, at 450 mm centre to centre,",null,null,null,0,null,0,0,0,0]
[null,null," shall be fixed in adirection perpendicular to G.I. intermediate channel with connecting clipsmade out of 2.64 mm dia x 230 mm long G.I. wire at every junction, includingfixing perimeter channels 0.5 mm thick 27 mm high having flanges of 20mm and 30 mm long, the perimeter of ceiling fixed to wall/partition with thehelp of rawl plugs at 450 mm centre, with 25mm long dry wall screws @230 mm interval, including fixing of gypsum board to ceiling section andperimeter channel with the help of dry wall screws of size 3.5 x 25 mm at230 mm c/c, including jointing and finishing to a flush finish of tapered andsquare edges of the board with recomme-nded jointing compound , jointingtapes , finishing with jointing compound in 3 layers covering upto 150 mmon both sides of joint and two coats of primer suitable for board, all as permanufacturer’s specification and also including the cost of making openingsfor light fittings, grills, diffusers, cutouts made with frame of perimeterchannels suitably fixed, all complete as per drawings, specification anddirection of the Engineer in Charge but excluding the cost of painting with : 12.5 mm thick tapered edge gypsum fire resistant board conforming to IS: 2095- Part I","Sqm",{"$f":"#REF!","v":{"$error":"#REF!"}},958.65,{"$error":"#REF!"},958.65,1484.94885,{"$error":"#REF!"},{"$error":"#REF!"},{"$error":"#REF!"}]
[92,16.100000000000001,"Preparation and consolidation of sub grade with power road roller of 8 to 12 tonne capacity after excavating earth to an average of 22.5 cm depth,dressing to camber and consolidating with road roller including makinggood the undulations etc. and re-rolling the sub grade and disposal ofsurplus earth with lead upto 50 metres.","Sqm",{"$f":"#REF!","v":{"$error":"#REF!"}},90.1,{"$error":"#REF!"},90.1,139.56489999999999,{"$error":"#REF!"},{"$error":"#REF!"},{"$f":"K142-J142","v":{"$error":"#REF!"}}]
[93,"16.78.1","Construction of granular sub-base by providing close graded Material\nconforming to specifications, mixing in a mechanical mix plant at OMC, carriage of mixed material by tippers to work site, for all leads & lifts, spreading in uniform layers of specified thickness with motor grader on prepared surface and compacting with vibratory power roller to achieve the desired density, complete as per specifications and\ndirections of Engineer-in-Charge. With material conforming to Grade-I (size range 75 mm to 0.075 mm) having CBR Value-30","Cum",{"$f":"#REF!","v":{"$error":"#REF!"}},2089.6999999999998,{"$error":"#REF!"},2089.6999999999998,3236.9452999999994,{"$error":"#REF!"},{"$error":"#REF!"},{"$f":"K143-J143","v":{"$error":"#REF!"}}]
[94,16.79,"Providing, laying, spreading and compacting graded stone aggregate (sizerange 53 mm to 0.075 mm ) to wet mix macadam (WMM) specificationincluding premixing the material with water at OMC in for all leads & lifts,laying in uniform layers with mechanical paverfinisher in sub- base / basecourse on well prepared surface and compacting with vibratory roller of 8 to10 tonne capacity to achievethe desired density, complete as per specificationsand directions of Engineer-in-Charge.","Cum",{"$f":"#REF!","v":{"$error":"#REF!"}},2132.25,{"$error":"#REF!"},2132.25,3302.8552500000001,{"$error":"#REF!"},{"$error":"#REF!"},{"$error":"#REF!"}]
[95,"16.31.2.1","Providing and applying tack coat using bitumen emulsion conforming to IS: 8887, using emulsion pressure distributer including preparing the surface & cleaning with mechanical broom. With medium setting bitumen emulsion. On W.B.M / W.M.M. @ 0.4kg/sqm","m2",{"$f":"#REF!","v":{"$error":"#REF!"}},13.2,{"$f":"ROUND(E145*F145,0)","v":{"$error":"#REF!"}},13.2,20.4468,{"$error":"#REF!"},{"$error":"#REF!"},{"$error":"#REF!"}]
[93,16.36,"Providing and laying Bitumen Penetration Macadam with hard stone aggregate of quality, size and grading as specified, with bitumen of suitable penetration grade, including required key aggregate as specified, spreading coarse aggregate with the help of self propelled/ tipper tail mounted aggregate spreader and applying bitumen by a pressure distributor and then spreading key aggregate with the help of aggregate spreader complete, including consolidation with road roller of minimum 8 to 10 tonne capacity to achieve specified values of compaction and surface accuracy : ",null,null,null,0,null,0,0,0,0]
[null,"16.36.1","For 50mm compacted thickness using coarse aggregate of size 50-20 mm graded @ 0.60 cum per 10 sqm key aggregate of size 12.5 mm graded @ 0.15 cum per 10 sqm. With paving asphalt grade VG - 10 @ 50 kg/ 10 sqm.","m2",{"$f":"#REF!","v":{"$error":"#REF!"}},342.05,{"$error":"#REF!"},342.05,529.83545000000004,{"$error":"#REF!"},{"$error":"#REF!"},{"$error":"#REF!"}]
[97,"16.31.2.2","Providing and applying tack coat using bitumen emulsion conforming to IS: 8887, using emulsion pressure distributer including preparing the surface & cleaning with mechanical broom. With medium setting bitumen emulsion. On bituminous surface @ 0.25kg/sqm","m2",{"$f":"#REF!","v":{"$error":"#REF!"}},8.75,{"$error":"#REF!"},8.75,13.553749999999999,{"$error":"#REF!"},{"$error":"#REF!"},{"$error":"#REF!"}]
[98,"16.33.1","2.5 cm premix carpet surfacing with 2.25 cum and 1.12 cum of stone chippings of 13.2 mm and 11.2 mm size respectively per 100 sqm and 52 kg and 56 kg of hot bitumen per cum of stone chippings of 13.2 mm and 11.2 mm size respectively, including a tack coat with hot straight run bitumen, including consolidation with road roller of 6 to 9 tonne capacity etc. complete (tack coat to be paid for separately). with paving Asphalt grade VG-10 heated and then mixed with solvent at the rate of 70 grams per kg of asphalt.","m2",{"$f":"#REF!","v":{"$error":"#REF!"}},169.6,{"$error":"#REF!"},169.6,262.71039999999999,{"$error":"#REF!"},{"$error":"#REF!"},{"$error":"#REF!"}]
[99,16.399999999999999,"Providing and laying seal coat of premixed fine aggregate ( passing 2.36 mm and retained on 180 micron sieve) with bitumen using 128 kg of bitumen of grade VG - 10 bitumen per cum of fine aggregate and 0.60 cum of fine aggregate per 100 sqm of road surface, including rolling and finishing with road roller all complete.","m2",{"$f":"#REF!","v":{"$error":"#REF!"}},59.5,{"$error":"#REF!"},59.5,92.165499999999994,{"$error":"#REF!"},{"$error":"#REF!"},{"$error":"#REF!"}]
[100,"12.20","Providing and laying pressed clay tiles  (Terracotta tiles) as per approved pattern 20 mm nominal thickness of approved size on roofs jointed with cement mortar 1:4 (1 cement: 4 coarse sand ) mixed with 2% integral water proofing compound, laid over a bed of 20 mm thick cement mortar 1:4 (1 cement:4 coarse sand) and finished neat complete for providing at sloped sunshade and roof","m2",{"$f":"#REF!","v":{"$error":"#REF!"}},438.45,{"$error":"#REF!"},438.45,679.15904999999998,{"$error":"#REF!"},{"$error":"#REF!"},{"$f":"K151-J151","v":{"$error":"#REF!"}},null,null,null,null,0]
[null,null,"Total",null,null,null,{"$f":"SUM(G5:G151)","v":{"$error":"#REF!"}},null,null,{"$f":"SUM(J5:J151)","v":{"$error":"#REF!"}},{"$f":"SUM(K5:K151)","v":{"$error":"#REF!"}},{"$f":"SUM(L5:L151)","v":{"$error":"#REF!"}},null,null,null,null,{"$f":"SUM(Q1:Q151)","v":{"$error":"#REF!"}}]
[null,null,"Total LMR items",null,null,null,{"$f":"Q152","v":{"$error":"#REF!"}}]
[null,null,"Total DSR Items",null,null,null,{"$f":"ROUND(G152-G153,0)","v":{"$error":"#REF!"}}]
[null,null,"Apply cost Index of 54.9%",null,null,null,{"$f":"ROUND(G154*54.9%,0)","v":{"$error":"#REF!"}}]
[null,null,"Total DSR + LMR including Cost Index",null,null,null,{"$f":"G153+G154+G155","v":{"$error":"#REF!"}},null,null,{"$f":"G156-J152","v":{"$error":"#REF!"}}]

{"sheet":"SUMMARY SHEET","index":3,"n_rows":12,"n_cols":3,"rows_kept":12,"cut":false,"hidden":false,"merged":[[0,0,0,2]]}
["CONSTRUCTION OF NEW OUTPATIENT BLOCK FOR GENERAL HOSPITAL, ALAPPPUZHA -PART I"]
[]
["SL.NO.","ITEM","TOTAL AMOUNT (Rs.)"]
[1,"CIVIL WORKS",{"$f":"'ABST-CIVIL WORKS'!H153","v":0}]
[2,"SERVICE BLOCK",{"$f":"'Ab. Service Block  '!H53","v":0}]
[3,"PLUMBING WORKS",{"$f":"PLUMBING!H104","v":0}]
[4,"ELECTRICAL WORKS",{"$f":"Electrical!H553","v":0}]
[5,"ELV",{"$f":"ELV!H125","v":0}]
[6,"FIRE FIGHTING",{"$f":"Fire!H120","v":0}]
[7,"SIGNAGE",{"$f":"Signage!H20","v":0}]
[null,"GRAND TOTAL",{"$f":"SUM(C4:C10)","v":0}]
[null,null,{"$f":"FnConvert(C11)","v":"Rupees "}]

{"sheet":"ABST-CIVIL WORKS","index":4,"n_rows":153,"n_cols":9,"rows_kept":153,"cut":false,"hidden":false,"merged":[[1,0,1,7],[0,0,0,7]]}
["CONSTRUCTION OF NEW PROPOSED OUT PATIENT BLOCK FOR GENERAL HOSPITAL, ALAPPUZHA -PART I"]
["ABSTRACT OF ESTIMATE - CIVIL WORKS "]
[]
["Item No","DSR code","Details of items","Unit","Quantity","Rate (Rs.) in figures ","Rate (Rs.) in words","Amount (Rs.)"]
[1,2.31,"Clearing jungle including uprooting of rank vegetation, grass, brush wood, trees and saplings of girth upto 30 cm measured at a height of 1 m above ground level and removal of rubbish upto a distance of 50 m outside the periphery of the area cleared.","Sqm",4200,null,{"$f":"FnConvert(F5)","v":"Rupees "},{"$f":"ROUND(E5*F5,0)","v":0}]
[2,"2.6.1","Earth work in excavation by mechanical means (Hydraulic excavator) / manual means over areas (exceeding 30cm in depth. 1.5m in width as well as 10 sqm on plan) including disposal of excavated earth, lead upto 50m and lift upto 1.5m, disposed earth to be levelled and neatly dressed. All kinds of soil","Cum",2740,null,{"$f":"FnConvert(F6)","v":"Rupees "},{"$f":"ROUND(E6*F6,0)","v":0}]
[3,"2.8.1","Earth work in excavation by mechanical means (Hydraulic excavator) / manual means in foundation trenches or drains (not exceeding 1.5 m in width or 10 sqm on plan) including dressing of sides and ramming of bottoms, lift upto 1.5 m, including getting out the excavated soil and disposal of surplus excavated soil as directed, within a lead of 50 m. All kinds of soil.","Cum",362,null,"Rupees ",{"$f":"ROUND(E7*F7,0)","v":0}]
[4,"2.26.1","Extra for every additional lift of 1.5 m or part thereof in excavation /banking excavated or stacked materials: All kinds of soil.","Cum",620,null,"Rupees ",0]
[{"$f":"A8+1","v":5},2.25,"Filling available excavated earth (excluding rock) in trenches, plinth, sides of foundations etc. in layers not exceeding 20cm in depth, consolidating each deposited layer by ramming and watering, lead up to 50 m and lift upto 1.5 m","Cum",2062,null,"Rupees ",0]
[{"$f":"+A9+1","v":6},"1.1.2.8","Conveying and disposing off  the excavated excess earth ","Cum",1018,null,"Rupees ",0]
[7,"2.34.1","Supplying chemical emulsion in sealed containers including delivery as specified Chlorpyriphos/ Lindane emulsifiable concentrate of 20%","Litre",980,null,"Rupees ",0]
[8,"2.35.3.1","Treatment of soil under existing floors using chemical emulsion @ one litre per hole, 300 mm apart including drilling 12 mm diameter holes and plugging with cement mortar 1 :2 (1 cement : 2 Coarse sand) to match the existing floor : With Chlorpyriphos/Lindane E.C. 20% with 1% concentration","Sqm",1765,null,"Rupees ",0]
[9,"4.1.5","1:3:6 (1 Cement : 3 coarse sand : 6 graded stone aggregate 20 mm nominal size).for foundation and flooring ","Cum",364,null,"Rupees ",0]
[10,"4.2.2","Providing and laying cement concrete in retaining walls, return walls, walls(any thickness) including attached pilasters, columns, piers, abutments,pillars, posts, struts, buttresses, string or lacing courses, parapets, coping,bed blocks, anchor blocks, plain window sills, fillets, sunken floor,etc., upto floor five level, excluding the cost of centering, shuttering and finishing: 1:1½:3 (1 cement:1½ coarse sand:3 graded stone aggregate20 mm nominal size)","Cum",50,null,"Rupees ",0]
[11,4.17,"Making plinth protection 50mm thick of cement concrete 1:3:6 (1 cement :3 coarse sand : 6 graded stone aggregate 20 mm nominal size) over 75mm thick bed of dry brick ballast 40 mm nominal size, well rammed and consolidated and grouted with fine sand including finishing the top smooth","Sqm",340,null,"Rupees ",0]
[12,"20.2A","Boring, providing and installation bored cast-in-situ reinforced cement concrete piles of garde M-25 of specified diameter and length below pile cap, to carry a safe working load not less than specified, excluding the cost of steel reinforcement but including the cost of boring with bentonite solution and temporary casing of appropriate length for setting out and removal of same and the length of the pile to be embedded in the pile cap etc. by Crawler mounted, telescopic boom hydraulic pilling Rig all complete, including removal of\nexcavated earth with all its lifts and leads. Bottom of pile should be embedded 3.00m to the dense sand stratum.  (length of pile for payment shall be measured up to bottom of pile cap). Note: Truck Mounted rotary/TMR/Tube well boring machine shall not be used."]
["a","20.2A.2 + 20.2A.3","800 mm dia piles","m",602,null,"Rupees ",0]
["b","20.2A.2 + 20.2A.3","900 mm dia piles","m",854,null,"Rupees ",0]
["c","20.2A.3","1000 mm dia piles","m",441,null,"Rupees ",0]
[13,"20.6.2","Vertical load testing of piles in accordance with IS 2911 (Part IV) including installation of loading platform by Kentledge method and preparation of pile head or construction of test cap and dismantling of test cap after test etc. complete as per specification & the direction of Engineer in-charge. Note: 1. Initial and Routine Load Test shall not be carried out by Dynamic method of testing. Note: 2. Testing agency shall submitt the design of loading platform for the approval of Engineer-in-charge.: Single pile above 50 tonne and upto 100 tonne Safe capacity"]
["a","20.6.2.1","Initial test (Test Load 2.5 times the Safe capacity)","Per Test",1,null,"Rupees ",0]
["b","20.6.2.2","Routine test (Test Load 1.5 times the Safe capacity)","Per Test",5,null,"Rupees ",0]
[14,5.37,"Providing and laying in position ready mixed M-25 grade concrete for reinforced cement concrete work, using cement content as per approved design mix, manufactured in fully automatic batching plant and transported to site of work in transit mixer for all leads having continuous agitated mixer, manufactured as per mix design of specified grade for reinforced cement concrete work including pumping of R.M.C. from transit mixer to site of laying , excluding the cost of centering, shuttering finishing and reinforcement including cost of admixtures in recommended proportions as per IS : 9103 to accelerate/ retard setting of concrete, improve workability without impairing strength and durability as per direction of the Engineer - in - charge."]
["a","5.37.1"," All works upto plinth level.","Cum",1750,null,"Rupees ",0]
["b","5.37.2","All works above plinth level upto floor V level.","Cum",4110,null,"Rupees ",0]
[15,5.34,"Extra for providing richer mixes at all floor levels.Note:- ",null,null,null,null,0]
["a","5.34.1","Providing M-30 grade concrete instead of M-25 grade BMC/RMC. ","Cum",7052,null,"Rupees ",0]
[16,5.38,"Extra for R.C.C./ B.M.C/ R.M.C. work above floor V level for each four floors or part thereof.","Cum",1265,null,"Rupees ",0]
[17,5.12,"Providing, hoisting and fixing up to floor five level precast reinforced cement concrete work in string courses, bands, copings, bed plates, anchor blocks,plain window sills and the like, including the cost of required centering,shuttering but excluding cost of reinforcement, with 1:2:4 (1 cement: 2coarse sand: 4 graded stone aggregate 20 mm nominal size).","Cum",23,null,"Rupees ",0]
[18,5.9,"Centering and shuttering including strutting, propping etc. and removal of form for :"]
["a","5.9.1","Foundations, footings, bases of columns, etc. for mass concrete.","Sqm",1886,null,"Rupees ",0]
["b","5.9.2","Walls (any thickness) including attached pilasters, butteresses, plinth and string courses etc.","Sqm",1325,null,"Rupees ",0]
["c","5.9.3","Suspended floors, roofs, landings, balconies and access platform.","Sqm",13650,null,"Rupees ",0]
["d","5.9.5","Lintels, beams, plinth beams, girders, bressumers and cantilevers.","Sqm",10360,null,"Rupees ",0]
["e","5.9.6","Columns, Pillars, Piers, Abutments, Posts and Struts.","Sqm",6620,null,"Rupees ",0]
["f","5.9.7","Stairs, (excluding landings) except spiral-staircases.","Sqm",590,null,"Rupees ",0]
["g","5.9.16.1","Edges of slabs and breaks in floors and walls.Under 20 cm wide","m",11020,null,"Rupees ",0]
["h","5.9.19","Weather shade, Chajjas, corbels etc., including edges.","Sqm",4200,null,"Rupees ",0]
["i","5.9.14","Extra for shuttering in circular work (20% of respective centering and shuttering items","Sqm",85,null,"Rupees ",0]
[{"$f":"A30+1","v":19},"5.11.1","Extra for additional height in centering, shuttering where ever required with adequate bracing, propping etc. including cost of de-shuttering and decentering at all levels, over a height of 3.5 m, for every additional height of 1 metre or part thereof (Plan area to be measured) Suspended floors, roofs, landing, beams and balconies (Plan area to be measured).","Sqm",12620,null,"Rupees ",0]
["20a)","5.22.6","Steel reinforcement for R.C.C. work including straightening, cutting, bending, placing in position and binding all complete upto plinth level. Thermo-Mechanically Treated bars of grade Fe-500D or more.","Kg",371080,null,"Rupees ",0]
["20b)","5.22A.6","Steel reinforcement for R.C.C. work including straightening, cutting, bending, placing in position and binding all complete above plinth level.Thermo-Mechanically Treated bars of grade Fe-500 D or more.","Kg",556010,null,"Rupees ",0]
[21,5.28,"Providing and fixing in position 12mm thick bitumen impregnated fibre board conforming to IS: 1838 including cost of primer, sealing compound in expansion joints. 5cm depth","m",420,null,"Rupees ",0]
[22,"5.29.2.1","Providing and fixing sheet covering over expansion joints with iron screws as per design to match the colour / shade of wall treatment. Aluminium fluted strips 3.15mm thick 150 mm wide.","m",420,null,"Rupees ",0]
[23,"6.4.2","Brick work with common burnt clay F.P.S. (non modular) bricks of class designation 7.5 in superstructure above plinth level up to floor V level in all shapes and sizes in : Cement mortar 1:6 (1 cement : 6 coarse sand)","Cum",2755,null,"Rupees ",0]
[24,6.5,"Extra for brick work /  block masonry / Tile brick masonry in superstructure above floor V level, for each four floors or part thereof by mechanical means.","Cum",900,null,"Rupees ",0]
[25,"6.1.2","Brick work with common burnt clay F.P.S. (non modular) bricks of class designation 7.5 in foundation and plinth in: Cement mortar 1:6 (1 cement : 6 coarse sand)","Cum",60,null,"Rupees ",0]
[26,"6.13.2","Half brick masonry with common burnt clay F.P.S. (non modular) bricks ofclass designation 7.5 in superstructure above plinth level up to floor V level. Cement mortar 1:4 (1 cement :4 coarse sand)","Sqm",3315,null,"Rupees ",0]
[27,6.15,"Extra for providing and placing in position 2 Nos. 6mm dia. M.S. bars at every third course of half brick masonry.","Sqm",3315,null,"Rupees ",0]
[28,"7.1.1","Random rubble masonry with hard stone in foundation and plinth including levelling up with cement concrete 1:6:12 (1 cement : 6 coarse sand : 12 graded stone aggregate 20mm nominal size) upto plinth level with :Cement mortar 1:6 (1 cement : 6 coarse sand).","Cum",25,null,"Rupees ",0]
[29,"9.1.1","Providing wood work in frames of doors, windows, clerestory windows and other frames, wrought framed and fixed in position with hold fast lugs or with dash fasteners of required dia & length ( hold fast lugs or dash fastener shall be paid for separately). Second class teak wood","Cum",2.3000000000000003,null,"Rupees ",0]
[30,"9.5.1.1 + 9.14","Providing and fixing panelled or panelled and glazed shutters for doors, windows and clerestory windows includingISI marked Stainless Steel butt hinges bright finished of required size with necessary screws excluding, panelling which will be paid for separately, all complete as per direction of Engineer-in-charge. Second class teak wood: 35 mm thick shutters","Sqm",7.5,null,"Rupees ",0]
[31,"9.7.1","Providing and fixing panelling or panelling and glazing in panelled or panelled and glazed shutters for doors, windows and clerestory windows (Area of opening for panel inserts excluding portion inside grooves or rebates to be measured). Panelling for panelled or panelled and glazed shutters 25 mm to 40 mm thick : Second class teak wood","Sqm",6,null,"Rupees ",0]
[32,9.74,"Providing and fixing bright finished brass tower bolts (barrel type) with necessary screws etc. complete :",null,null,null,null,0]
["a","9.74.1","250x10 mm","Each",9,null,"Rupees ",0]
[33,"9.79.4","Providing and fixing special quality bright finished brass cupboard or ward robe locks with four levers including necessary screws etc. complete (best make of approved quality) : 75 mm","Each",124,null,"Rupees ",0]
[34,9.81,"Providing and fixing bright finished brass handles with screws etc. complete: ",null,null,null,null,0]
["a","9.81.1","125 mm","Each",12,null,"Rupees ",0]
["b","9.81.2","100 mm","Each",124,null,"Rupees ",0]
[35,9.82,"Providing and fixing bright finished brass hanging type floor door stopper with necessary screws, etc. complete.","Each",3,null,"Rupees ",0]
[36,9.84,"Providing and fixing aluminium extruded section body tubular type universal hydraulic door closer (having brand logo with ISI, IS : 3564, embossed on the body, door weight upto 36 kg to 80 kg and door width from 701 mm to 1000 mm) with double speed adjustment with necessary accessories and screws etc. complete.","Each",3,null,"Rupees ",0]
[37,9.8800000000000008,"Providing and fixing chromium plated brass 100 mm mortice latch and lock with 6 levers and a pair of lever handles with necessary screws etc. complete (best make of approved quality).","Each",1,null,"Rupees ",0]
[38,9.1289999999999996,"Providing and fixing cup board shutters 25mm thick, with Pre-laminated flat pressed three layer particle board or graded wood particle board IS: 12823 marked exterior grade (Grade l Type ll) having one side decorative lamination and other side balancing lamination including IInd class teak wood lipping of 25mm wide x12 mm thick with necessary screws and bright finished stainless steel piano hinges complete as per direction of the Engineer-in-Charge","Sqm",93,null,"Rupees ",0]
[39,"9.18.1","Providing and fixing Pre-laminated flat pressed 3 layer (medium density)particle board or graded wood particle board IS : 3087 marked, with oneside decorative and other side balancing lamination Grade I, Type II exteriorgrade IS : 12823 marked, in shelves with screws and fittings whereverrequired, edges to be painted with polyurethane primer (fittings to be paidseparately). 18mm thick","Sqm",300,null,"Rupees ",0]
[40,9.1609999999999996,"Providing and fixing fire resistant door frame of section 50 x 60mm on horizontal side & 35 x 60mm on vertical side having built in rebate  made out of 1.6mm thick GI sheet (Zinc coating not less than 120gm/m2) suitable for mounting 120 minute Fire Rated Glazed Door Shutters.  The frame shall be filled with Mineral wool insulation having density min. 96kg/m3.  The frame will have a provision of G.I. Anchor fastners 14 nos 95each on vertical style & 4 on horizontal style of size M10 X 80) suitable for fixing in the opening along with Factory made Template for SS Ball Bearing Hinges of Size 100x89x3mm for fixing of fire rated glazed shutter.  The frame shall be finished with a approved fire resistant primer of Powder coating of not less than 30 micron in desired shade as per the directions of Engineer-in-charge.  (Cost of SS ball bearing hinges is excluded)","m",180,null,"Rupees ",0]
[41,9.1620000000000008,"Providing and fixing 60mm thick glazed fire resistant door shutters of 120 minute Fire Rating confirming to IS:3614 (Part II) or EN 1634-1:1999, tested and certified as per laboratory approved by Engineer-in-charge, with suitable mounting on door frame, consisting of vertical styles, top rail & side rail 60mm x 60mm wide and bottom rail of 110 mm x 60 mm made out of 1.6mm thick GI sheet (zinc coating not less than 120 gm/m2) duly filled mineral wool insulation having density min 96 kg/m3 and fixing with necessary stainless steel ball bearing hinges of size 100 x 89 x 3mm of  approved make, including applying a coat of approved fire resistant primer or powder coating n ot less than 30 micron etc. all complete as per direction of Engineer-in-charge (panelling to be paid for seperately)","m2",97,null,"Rupees ",0]
[42,9.1639999999999997,"Providing and fixing glazing in fire resistant door shutters, fixed panels & partitions etc., with G.I beading made out of 1.6mm thick G.I sheet (zinc coating not less than 120 gm/m2) of size 20 x 33 mm screwed with M4 x 38mm SS screws of distance 75mm from the edges and 150mm c/c, including applying a coat of approved fire resistant primer/powder coatin g of not less than 30 micron on G.I. beading & special ceramic tape of 5 x 20 mm size etc. complete in all respect as per direction of Engineer-in-charge.  The glass shall be clear, toughened, interlayered, non-wired fire resistant having 11mm thickness of approved brand with 120 minutes of fire resistance both integrity & ",null,null,null,null,0]
[null,null,"radiation control (EW120) and minimum 15 min of insulation (EI15) and having a sound reduction of 37dB and LT of 86%.  Glass shall be compliant to class 2(B)2 category of Impact Resistance as per EN 12600.  The glass should be manufactured in UL & TUV audited Facility and including UL-EU Certification.  The maximum glazing size cannot be more than 1100 mm x 2200 mm (w x h) or 2.42 sq. mts in total area.  The test report for the complete system (Glased Door or Partition) will be considered valid only if it co ntains the stamp and signature of the authorized signatory from the glass manufacturer.  (Actual glass size is to be measured at site for payments)","m2",4,null,"Rupees ",0]
[43,"LMR","Providing and fixing 2mm thick  lead lining over inner side of the door shutter including all fixing accessories and fixuerse etc complete","Sqm",9,null,{"$f":"FnConvert(F69)","v":"Rupees "},0,{"$f":"H69","v":0}]
[44,21.18,"Providing and fixing 12 mm thick frameless toughened glass door shutter of approved brand and manufacture, including providing and fixing top & bottom pivot & spring type fixing arrangement and making necessary holes etc. for fixing required door fittings, all complete as per direction of Engineer-in-charge (Door handle, lock and stopper etc.to be paid separately).","Sqm",24,null,"Rupees ",0]
[45,"LMR","Providing and fixing Stainless Steel (SS Grade 316) frameless double leaf glass door fittings such as   BTS 75 FLOOR SPRING WITH SPINDLE INSERT INCL CEMENT BOX AND COVER PLATE -EN 1-4-MAX DOOR WEIGHT 120 KG -HO 90 DEG,  ulus 10 UNIVERSAL CORNER LOCK WITH LKP AND EPC 60MM BOTH SIDE KEY, PULL HANDLE -H TYPE - TGDI H 350 X 25 CTC 250MM GRADE 316 for each leaf of 12mm toughened glass door as per the direction of the Engineer -in-charge.","Each",4,null,"Rupees ",{"$f":"ROUND(E71*F71,0)","v":0},{"$f":"H71","v":0}]
[46,"9.117.1","Providing and fixing factory made uPVC door frame made of uPVC extruded sections having an overall dimension as below (tolerance ±1mm), with wall thickness 2.0 mm (± 0.2 mm), corners of the door frame to be Jointed with galvanized brackets and stainless steel screws  joints mitred and Plastic welded. The hinge side vertical of the frames reinforced by galvanized M.S. tube of size 19 X 19 mm and 1mm (± 0.1 mm) wall thickness and 3 nos. stainless steel hinges fixed to the frame complete as per manufacturer’s specification and direction of Engineerin- charge  Extruded section profile size 48x40 mm                                                                                                                                                                                                                                  ","m",555,null,"Rupees ",0]
[47,"9.118.2","30 mm thick factory made Polyvinyl Chloride (UPVC) door shutter made\nof styles and rails of a uPVC hollow section of size 60x30 mm and wall\nthickness 2 mm (± 0.2 mm), with inbuilt decorative moulding edging on one side. The styles and rails mitred and joint at the corners by means of M.S. galvanised/ plastic brackets of size 75x220 mm having wall thickness 1.0 mm and stainless steel screws. The styles of the shutter reinforced by inserting galvanised M.S. tube of size 25x20 mm and 1 mm (± 0.1 mm) wall thickness.",null,null,null,null,0]
[null,null,"The lock rail made up of 'H' section, a uPVC hollow section of size 100x30 mm and 2 mm (± 0.2 mm) wall thickness fixed to the shutter styles by means of plastic/ galvanised M.S. 'U' cleats. The shutter frame filled with a uPVC multi-chambered single panel of size not less than 620 mm, having over all thickness of 20 mm and 1 mm (± 0.1 mm) wall thickness . The panels filled vertically and tie bar at two places by inserting horizontally 6 mm galvanised M.S. rod and fastened with nuts and washers, complete as per manufacturer's specification and direction of Engineer-in-charge.","Sqm",191,null,"Rupees ",0]
[48,"9.147A","Providing and fixing factory made uPVC white colour casement/ casement cum fixed glazed windows comprising of uPVC multi chambered fram, sash and mullion (wherever required) extruded profiles duly reinforced with 1.60 + 0.2 mm thick galvanized mild steel section made from roll forming process fo required length (shape and size according to uPVC profile), uPVC extruded glazing beeds of appropriate dimension, EPDM gasket, stainless steel (SS 304 grade) friction hinges, zinc alloy (white powder coated) casement handles, GI fasteners 100 X 8mm size for fixing frame to finished wall, plastic packers, plastic caps and necessary stainless steel screws etc.",null,null,null,null,0]
[null,null," Profile of frame and sash shall mitred cut and fushion welded at all corners , mullion (if required) shall also fusion welded incoluding drilling of holes for fixing hardwares and  drainage of water etc.  After fixing frame, the gap between frame and adjacent finished wall shasll be filled with weather proof silicon sealent over baker rod of required size and of approved quality, all complete as per approved drawing & direction of Engineer-in-charge. (Single/ double glass panes and silicon sealent shall be paid seperately)",null,null,null,null,0]
["a)","9.147A. 1","Casement window single panel with S.S. Friction hinges (300 x 19 x 1.9mm) made of (small series) frame 47 x 50 mm & sash 47 X 68 mm both having wall thickness of 1.9  +  0.2 mm and single glass pane glazing bead of appropriate dimension (Area of window up 0.75 sq.m)","Sqm",50,null,"Rupees ",0]
["b)","9.147A. 4","Casement window single panel with S.S. Friction hinges (400 x 19 x 1.9mm) made of (big series) frame 67 X 60mm & sash 67 X 80mm both having wall thickness of 2.3 +  0.2 mm and single glazed bead/double glazed bead of appropriate dimension (Area of window above 0.75 sq.m)","Sqm",28,null,"Rupees ",0]
[49,"9.147D","Providing and fixing factory made uPVC white colour sliding glazed window upto 1.5m in height dimension comprising of uPVC multi-chambered frame with in-built roller track and sash extruded profiles duly reinforced with 1.60 + 0.2 mm thick galvanized mild steel section made from roll forming process of required length  (shape & size according to uPVC profile), appropriate dimension of uPVC extruded glazing beads and uPVC extruded interlocks, EPDM gasket, wool pile, zinc alloy (white powder coated) touch locks with hook, zinc alloy body with single nylon rollers (weight bearing capacity to be 40kg), G.I fasteners 100 x 8 mm size for fixing frame to finished wall and necessary stainless steel screws etc. Profile of frame & sash shall be mitred cut and fusion welded at all corners, including drilling of holes for fixing hardware's and drainage of water etc.  ",null,null,null,null,0]
[null,null,"After fixing frame the gap between frame and adjacent finished wall shall be filled with weather proof silicon sealent over backer rod of required size and of approved quality, all complete as per approved drawing & direction of Enginer-in-charge. (single/double glass panes, wire mesh and silicon sealant shall be paid separetely)",null,null,null,null,0]
[null,null,"Note: For uPVC frame and sash extruded profiles minus 5% tolerance in dimension i.e. In depth & width of profile shall be acceptable"]
["a)","9.147D..3","Two track two panels sliding window made of (big series) frame 67 x 50 mm & sash 46 x 62 mm both having wall thickness of 2.3 + 0.2 mm and single glazing bead/ double glazing bead of appropriate   dimension. ","Sqm",165,null,"Rupees ",0]
["b)","9.147D..5","Three track three panels sliding window made of (big series) frame 116 x 45 mm & sash 46 x 62 mm both having wall thickness of 2.3 + 0.2 mm and single glazing bead / double glazing bead of appropriate dimension.  ","Sqm",710,null,"Rupees ",0]
[]
[50,"21.1.1.2","Providing and fixing aluminium work for doors, windows, ventilators, Louvers and partitions with extruded built up standard tubular sections/ appropriate Z sections and other sections of approved make conforming to IS: 733 and IS: 1285, fixing with dash fasteners of required dia and size, including necessary filling up the gaps at junctions, i.e. at top, bottom and sides with required EPDM rubber/ neoprene gasket etc. Aluminium sections shall be smooth, rust free, straight, mitred and jointed mechanically wherever required including cleat angle, Aluminium snap beading for glazing / paneling, C.P. brass / stainless steel screws, all complete as per architectural drawings and the directions of Engineer-in-charge. (Glazing, paneling and dash fasteners to be paid for separately) : For fixed portion Powder coated aluminium (minimum thickness of powder coating 50 micron)","Kg",4188,null,"Rupees ",0]
[51,"21.1.2.2","For shutters of doors, windows & ventilators, Louvers including providing and fixing hinges/ pivots and making provision for fixing of fittings wherever required including the cost of EPDM rubber / neoprene gasket required (Fittings shall be paid for separately). Powder coated aluminium (minimum thickness of powder coating 50 micron)","Kg",3277,null,"Rupees ",0]
[52,21.17,"Providing and fixing anodised aluminium grill (anodised transparent ordyed to required shade according to IS: 1868 with minimum anodic coatingof grade AC 15) of approved design/pattern, with approved standardsection and fixed to the existing window frame with C.P. brass/ stainlesssteel screws @ 200 mm centre to centre, including cutting the grill toproper opening size for fixing and operation of handles and fixing approvedanodised aluminium standard section around the opening, all completeas per requirement and direction of Engineer-in-charge. (Only weight ofgrill to be measured for payment).","Kg",25,null,"Rupees ",0]
[53,"21.2.2","Providing and fixing 12mm thick prelaminated particle board flat pressed three layer or graded wood particle board conforming to IS: 12823 Grade l Type ll, in panelling fixed in aluminum doors, windows shutters and partition frames with C.P. brass / stainless steel screws etc. complete as per architectural drawings and directions of engineer-in-charge. Pre-laminated particle board with decorative lamination on both sides.","Sqm",290,null,"Rupees ",0]
[54,"21.3.2","Providing and fixing glazing in aluminium/uPVC door, window, ventilator shutters and partitions etc. with EPDM rubber / neoprene gasket etc. complete as per the architectural drawings and the directions of engineer-in-charge . (Cost of aluminium snap beading shall be paid in basic item): With float glass panes of 6 mm thickness","Sqm",950,null,"Rupees ",0]
[55,"21.3.3","Providing and fixing glazing in aluminium/uPVC door,  shutters and partitions etc. with EPDM rubber / neoprene gasket etc. complete as per the architectural drawings and the directions of engineer-in-charge . (Cost of aluminium snap beading shall be paid in basic item): With float glass panes of 8 mm thickness","Sqm",370,null,"Rupees ",0]
[56,"21.4.2","Providing and fixing double action hydraulic floor spring of approved brand and manufacture conforming to IS : 6315, having brand logo embossed on the body / plate with double spring mechanism and door weight upto 125 kg., for doors, including cost of cutting floors , embedding in floors as required and making good the same matching to the existing floor finishing and cover plates with brass pivot and single piece M.S. sheet outer box with slide plate etc. complete as per the direction of Engineer-in-charge. With brass cover plate minimum 1.25 mm thickness.","Each",243,null,"Rupees ",0]
[57,21.1,"Providing and fixing double glazed hermetically sealed glazing in aluminium windows, ventilators and partition etc. with 6 mm thick clear float glass both side, having 12 mm air gap, including providing EPDM gasket, perforated aluminium spacers, desiccants, sealant (Both primary and secondary sealant) etc. as per specifications, drawings and direction of Engineer-in-charge complete.","Sqm",43,null,"Rupees ",0]
[58,"21.12.2","Providing and fixing aluminium tubular handle bar 32 mm outer dia, 3.0mm thick & 2100 mm long with SS screws etc .complete as per directionof Engineer-in-Charge. Powder coated minimum thickness 50 micron aluminium tubular handle bar","Each",346,null,"Rupees ",0]
[59,21.13,"Providing and fixing 100mm brass locks (best make of approved quality) for aluminium doors including necessary cutting and making good etc. complete","Each",282,null,"Rupees ",0]
[60,"9.100.1","Providing and fixing aluminium handles, ISI marked, powder coated to required colour or shade, with necessary screws etc. complete : 125mm","Each",274,null,"Rupees ",0]
[61,"9.97","Providing and fixing aluminium tower bolts, ISI marked, anodised (anodic coating not less than grade AC 10 as per IS : 1868 ) transparent or dyed to required colour or shade, with necessary screws etc. complete :"]
["a","9.97.2","250 X 10 mm","Each",620,null,"Rupees ",0]
["b","9.97.3","200 X 10 mm","Each",280,null,"Rupees ",0]
[62,"9.101.2","Providing and fixing aluminium hanging floor door stopper, ISI marked, anodised (anodic coating not less than grade AC 10 as per IS : 1868) Transparent or dyed to required colour and shade, with necessary screws etc. complete. Twin rubber stopper\n","Each",235,null,"Rupees ",0]
[63,"21.8","Filling the gap in between aluminium frame & adjacent RCC/ Brick/ Stonework by providing weather silicon sealant over backer rod of approved qualityas per architectural drawings and direction of Engineer-in-charge complete.","m",1570,null,"Rupees ",0]
[64,10.28,"Providing and fixing stainless steel (Grade 304) railing made of Hollow tubes, channels, plates etc. including welding, grinding, buffing, polishing and making curvature (wherever required) and fitting the same with necessary stainless steel nuts and bolts complete i/c fixing the railing with necessary accessories & stainless steel dash fasteners , stainless steel bolts etc., of required size, on the top of the floor or the side of waist slab with suitable arrangement as per approval of Engineer-in-charge. ( for payment purpose only weight of stainless steel members shall be considered excluding fixing accessories such as nuts, bolts, fasteners etc.)","Kg",1885,null,"Rupees ",0]
[65,"9.48.2","Providing and fixing M.S. grills of required pattern in frames of windows etc. with M.S. flats, square or round bars etc. including priming coat with approved steel primer all complete.Fixed to openings /wooden frames with rawl plugs screws etc.","Kg",15120,null,"Rupees ",0]
[66,10.17,"Providing and fixing M.S. fan clamp type I or II of 16 mm dia M.S. bar bent to shape with hooked ends in R.C.C. slabs, beams during laying including painting the exposed portion of loop, all as per standard design complete.","Each",350,null,"Rupees ",0]
[67,9.5299999999999994,"Providing 40x5 mm flat iron hold fast 40 cm long including fixing to frame with 10 mm diameter bolts, nuts and wooden plugs and embedding in cement concrete block 30x10x15cm 1:3:6 mix (1 cement : 3 coarse sand : 6 graded stone aggregate 20mm nominal size)","Each",18,null,"Rupees ",0]
[68,"8.2.2.2","Providing and fixing 18mm thick gang saw cut mirror polished premoulded and prepolished) machine cut for kitchen platforms, flooring, vanity counters, window sills , facias and similar locations of required size of approved shade, colour and texture laid over 20mm thick base cement mortar 1:4 (1 cement : 4 coarse sand) with joints treated with white cement, mixed with matching pigment, epoxy touch ups, including rubbing, curing, moulding and polishing to edges to give high gloss finish etc. complete at all levels. Granite of any colour and shade: Area of slab over 0.50 sqm.(Lowest retails price not less than Rs. 2000/m2)","Sqm",1610,null,"Rupees ",0]
[69,"8.9.1.2 Analysis","Stone tile (polished) work for wall lining over 12 mm thick bed of cement mortar 1:3 (1 cement : 3 coarse sand) and cement slurry @ 3.3 kg/sqm including pointing in white cement complete..:18mm thick Granite slab of any colour and shade.to the front side of lift room","Sqm",165,null,"Rupees ",0]
[70,"8.3.2","Providing edge moulding to 18mm thick granite stone  including machine polishing to edge to give high gloss finish etc. complete as per design approved by Engineer-in-Charge: to the front side of lift room","m",145,null,"Rupees ",0]
[71,8.5,"Extra for providing opening of required size & shape for wash basins/ kitchen sink in kitchen platform, vanity counters and similar location in marble/Granite/stone work including necessary holes for pillar taps etc. including moulding, rubbing and polishing of cut edges etc. complete.","Each",105,null,"Rupees ",0]
[72,"8.13.1","Providing and laying Polished Granite stone flooring in required design and patterns, in linear as well as curvilinear portions of the building all complete as per the architectural drawings with 18 mm thick stone slab over 20 mm average) thick base of cement mortar 1:4 (1 cement : 4 coarse sand) laid and jointed with cement slurry and pointing with white cement slurry admixed with pigment of matching shade including rubbing , curing and polishing etc. all complete as specified and as directed by the Engineer-in-Charge.Polished Granite stone slab jet Black, Cherry Red, Elite Brown, Cat Eye or equivalent. (Lowest retails price not less than Rs. 2000/m2)","m2",5910,null,"Rupees ",0]
[73,11.36,"\"Providing and fixing 1st quality ceramic glazed joint free wall tiles 300x450mm conforming to IS : 15622 (thickness to bespecified by the manufacturer), of approved make, in all colours, shades except burgundy, bottlegreen, black of any size as approved by Engineer-in-Charge, in skirting, risers of steps and dados, over12 mm thick bed of cement mortar 1:3 (1 cement : 3 coarse sand) and jointing with grey cement slurry@ 3.3 kg per sqm, including pointing in white cement mixed with pigment of matching shade complete.Basic Price is 400/sqm\"  ","Sqm",6000,null,"Rupees ",0]
[74,11.4,"Providing and laying rectified Glazed Ceramic floor tiles 300x300 mm or more (thickness to be specified by the manufacturer) of 1st quality conforming to IS : 15622 of approved make in all colours, shades, except White, Ivory, Grey, Fume Red Brown, laid on 20 mm thick Cement Mortar 1:4 (1 Cement : 4 Coarse sand) including pointing the joints with white cement and matching pigments etc., complete (Lowest retail price not less than Rs. 500/m2)  ","Sqm",550,null,"Rupees ",0]
[75,"11.41.2","Providing and laying vitrified floor tiles   of First Quality/Premium quality, best quality in different sizes (thickness to be specified by the manufacturer) with water absorption's less than 0.08% and conforming to IS : 15622 of approved make in all colours and shades, laid on 20mm thick cement mortar 1:4 (1 cement : 4 coarse sand) including grouting the joints with white cement and matching pigments etc., complete.Size of Tile 600x600 mm: (Lowest retail price not less than Rs. 900/m2)  ","Sqm",3120,null,"Rupees ",0]
[76,"11.46.2","Providing and laying Vitrified tiles of First Quality/Premium quality, best quality  in different sizes (thickness to be specified by manufacturer) with water absorption less than 0.08 % and conforming to I.S. 15622, of approved make in all colours & shade in skirting, riser of steps, over 12 mm thick bed of cement mortar 1:3 (1 cement: 3 coarse sand), including grouting the joint with white cement & matching pigments etc. complete.Size of Tile 600x600 mm: (Lowest retail price not less than Rs. 900/m2)  ","Sqm",365,null,"Rupees ",0]
[77,"11.20.3","Chequerred precast cement concrete tiles 22 mm thick in footpath & courtyard, jointed with neat cement slurry mixed with pigment to match the shade of tiles including rubbing and cleaning etc. complete, on 20 mm thick bed of cement mortar 1:4 (1 cement: 4 coarse sand). Dark shade using ordinary cement.","Sqm",1040,null,"Rupees ",0]
[78,"13.2.1","15 mm cement plaster on the rough side of single or half brick wall of mix: 1:4 (1 cement: 4 fine sand) to the outside of walls ","Sqm",10100,null,"Rupees ",0]
[79,"13.4.1","12 mm cement plaster of mix : 1:4 (1 cement: 4 coarse sand) to the inside of walls ","Sqm",23300,null,"Rupees ",0]
[80,"13.16.1","6 mm cement plaster of mix : 1:3 (1 cement: 3 fine sand) for under side of roof slab and beams","Sqm",7730,null,"Rupees ",0]
[81,"13.9.1 + 13.21","Cement plaster 1:3 (1 cement: 3 coarse sand) finished with a floating coat of neat cement.12 mm cement plaster including providing and mixing water proofing material in cement plaster work in proportion recommended by the manufacturers. to the top surface of sunshade ","Sqm",2660,null,"Rupees ",0]
[82,13.22,"Extra for plastering exterior walls of height more than 10 m from ground level for every additional height of 3 m or part thereof.",null,null,null,null,0]
["a",13.22,"10 m to 13m","Sqm",960,null,"Rupees ",0]
["b","13.22x2","13m to 16m","Sqm",960,null,"Rupees ",0]
["c","13.22x3","16m to 19m","Sqm",960,null,"Rupees ",0]
["d","13.22x4","19m to 22m","Sqm",980,null,"Rupees ",0]
["e","13.22x5","22m to 25m","Sqm",1020,null,"Rupees ",0]
["f","13.22x6","25m to 28m","Sqm",1010,null,"Rupees ",0]
["g","13.22x7","28m to 31m","Sqm",1050,null,"Rupees ",0]
["h)","13.22x8","31m to 34m","Sqm",70,null,"Rupees ",0]
[83,13.8,"Providing and applying white cement based putty of average thickness 1 mm, of approved brand and manufacturer, over the plastered wall surface to prepare the surface even and smooth complete.","Sqm",31000,null,"Rupees ",0]
[84,"13.43.1","Applying one coat of water thinnable cement primer of approved brand and manufacture on wall surface :","Sqm",31000,null,"Rupees ",0]
[85,"13.46.1","Finishing walls with Acrylic Smooth exterior paint of required shade :New work (Two or more coat applied @ 1.67 ltr/10 sqm\nover and including priming coat of exterior primer applied\n@ 2.20 kg/10 sqm)","Sqm",10100,null,"Rupees ",0]
[86,"13.60.1","Wall painting with acrylic emulsion paint of approved brand and manufacture to give an even shade: Two or more coats on new work.  Make: Asian, Berger, Jotun","Sqm",31000,null,"Rupees ",0]
[87,"13.61.1","Painting with synthetic enamel paint of approved brand and manufacture to give an even shade :Two or more coats on new work.","Sqm",960,null,"Rupees ",0]
[88,"22.14.1","Grading roof for water proofing treatment with Cement concrete 1:2:4 (1 cement : 2 coarse sand : 4 gradedstone aggregate 20 mm nominal size)","Cum",133,null,{"$f":"FnConvert(F133)","v":"Rupees "},0]
[89,22.5,"Providing and laying water proofing treatment in sunken portion of WCs, bathroom etc., by applying cement slurry mixed with water proofing cement compound consisting of applying : a) First layer of slurry of cement @ 0.488 kg/sqm mixed with water proofing cement compound @ 0.253 kg/sqm. This layer will be allowed to air cure for 4 hours. b) Second layer of slurry of cement @ 0.242 kg/sqm mixed with water proofing cement compound @ 0.126 kg/sqm. This layer will be allowed to air cure for 4 hours followed with water curing for 48 hours. The rate includes preparation of surface, treatment and sealing of all joints, corners, junctions of pipes and masonry with polymer mixed slurry","Sqm",550,null,"Rupees ",0]
[90,12.52,"Providing and fixing tiled false ceiling of approved materials of size 595x595 mm in true horizontal level suspended on inter locking metal grid of hot dipped galvanized steel sections ( galvanized @ 120 gsm/sqm, both side inclusive) consisting of main \"T\" runner with suitably spaced joints to get required length and of size 24x38mm made from 0.30mm thick (minimum) sheet, spaced at 1200mm center to center and cross \"T\" of size 24x25mm made of 0.30mm thick (minimum) sheet, 1200mm long spaced between main \"T\" at 600mm center to center to form a grid of 1200x600 mm and secondary cross \"T\" of length 600mm and size 24x25mm made of 0.30 mm thick (minimum) sheet to be interlocked at middle of the 1200x600mm panel to form grids of 600x600mm and wall angle of size 24x24x0.3 mm",null,null,null,null,{"$f":"ROUND(E135*F135,0)","v":0}]
[null,null,"and laying false ceiling tiles of approved texture in the grid including, wherever, required, cutting/making, opening for services like diffusers, grills, light fittings, fixtures, smoke detectors etc. Main \"T\" runners to be suspended from ceiling using GI slotted cleats of size 27 x 37 x 25 x1.6 x mm fixed to ceiling with 12.5 mm dia and 50 mm long dash fasteners, 4mm GI adjustable rods with galvanised butterfly level clips of size 85 x 30 x 0.8 mm spaced at 1200mm center to center along main T, bottom exposed width of 24 mm of all T-sections shall be pre-painted with polyester paint, all complete at all heights as per specifications drawings and as directed by Engineer-in-charge.",null,null,null,null,0]
["a","12.52.2","GI Metal Ceiling Lay in perforated Tegular edge global white color tiles of size 595x595 mm and 0.5 mm thick with 8 mm drop; made of GI sheet having galvanizing of 100 gms/sqm (both sides inclusive) and 20% perforation area with 1.8 mm dia holes and having NRC (Noise Reduction Coefficient ) of 0.5, electro statically polyester powder coated of thickness 60 microns minimum), including factory painted after bending and perforation,and backed with a black Glass fiber acoustical fleece.","Sqm",3910,null,"Rupees ",0]
["b","12.52.3","12.5 mm thick square edge PVC Laminated GypsumTile of size 595x595 mm, made of Gypsum plasterboard, manufactured from natural gypsum as per IS 2095 part Iand laminated with white 0.16mm thick fire retardantPVC film on the face side and 12micron metalized polyester on the back side with all edges sealed with the face side PVC film which goes around and wrapsthe edges and is bonded to the edges and the backside metalized polyester","m2",560,null,"Rupees ",0]
[91,"12.45.3","Providing and fixing false ceiling at all height including providing and fixingof frame work made of special sections, power pressed from M.S. sheetsand galvanized with zinc coating of 120 gms/sqm (both side inclusive) asper IS : 277 and consisting of angle cleats of size 25 mm wide x 1.6 mmthick with flanges of 27 mm and 37mm, at 1200 mm centre to centre, oneflange fixed to the ceiling with dash fastener 12.5 mm dia x 50mm long with 6mm dia bolts, other flange of cleat fixed to the angle hangers of 25x10x0.50mm of required length with nuts & bolts of required size and other end ofangle hanger fixed with intermediate G.I. channels 45x15x0.9 mm runningat the spacing of 1200 mm centre to centre, to which the ceiling section0.5 mm thick bottom wedge of 80 mm with tapered flanges of 26 mm eachhaving lips of 10.5 mm, at 450 mm centre to centre,",null,null,null,null,0]
[null,null," shall be fixed in adirection perpendicular to G.I. intermediate channel with connecting clipsmade out of 2.64 mm dia x 230 mm long G.I. wire at every junction, includingfixing perimeter channels 0.5 mm thick 27 mm high having flanges of 20mm and 30 mm long, the perimeter of ceiling fixed to wall/partition with thehelp of rawl plugs at 450 mm centre, with 25mm long dry wall screws @230 mm interval, including fixing of gypsum board to ceiling section andperimeter channel with the help of dry wall screws of size 3.5 x 25 mm at230 mm c/c, including jointing and finishing to a flush finish of tapered andsquare edges of the board with recomme-nded jointing compound , jointingtapes , finishing with jointing compound in 3 layers covering upto 150 mmon both sides of joint and two coats of primer suitable for board, all as permanufacturer’s specification and also including the cost of making openingsfor light fittings, grills, diffusers, cutouts made with frame of perimeterchannels suitably fixed, all complete as per drawings, specification anddirection of the Engineer in Charge but excluding the cost of painting with : 12.5 mm thick tapered edge gypsum fire resistant board conforming to IS: 2095- Part I","Sqm",5270,null,"Rupees ",0]
[92,16.100000000000001,"Preparation and consolidation of sub grade with power road roller of 8 to 12 tonne capacity after excavating earth to an average of 22.5 cm depth,dressing to camber and consolidating with road roller including makinggood the undulations etc. and re-rolling the sub grade and disposal ofsurplus earth with lead upto 50 metres.","Sqm",1990,null,"Rupees ",0]
[93,"16.78.1","Construction of granular sub-base by providing close graded Material\nconforming to specifications, mixing in a mechanical mix plant at OMC, carriage of mixed material by tippers to work site, for all leads & lifts, spreading in uniform layers of specified thickness with motor grader on prepared surface and compacting with vibratory power roller to achieve the desired density, complete as per specifications and\ndirections of Engineer-in-Charge. With material conforming to Grade-I (size range 75 mm to 0.075 mm) having CBR Value-30","Cum",300,null,"Rupees ",0]
[94,16.79,"Providing, laying, spreading and compacting graded stone aggregate (sizerange 53 mm to 0.075 mm ) to wet mix macadam (WMM) specificationincluding premixing the material with water at OMC in for all leads & lifts,laying in uniform layers with mechanical paverfinisher in sub- base / basecourse on well prepared surface and compacting with vibratory roller of 8 to10 tonne capacity to achievethe desired density, complete as per specificationsand directions of Engineer-in-Charge.","Cum",300,null,"Rupees ",0]
[95,"16.31.2.1","Providing and applying tack coat using bitumen emulsion conforming to IS: 8887, using emulsion pressure distributer including preparing the surface & cleaning with mechanical broom. With medium setting bitumen emulsion. On W.B.M / W.M.M. @ 0.4kg/sqm","m2",1990,null,"Rupees ",0]
[93,16.36,"Providing and laying Bitumen Penetration Macadam with hard stone aggregate of quality, size and grading as specified, with bitumen of suitable penetration grade, including required key aggregate as specified, spreading coarse aggregate with the help of self propelled/ tipper tail mounted aggregate spreader and applying bitumen by a pressure distributor and then spreading key aggregate with the help of aggregate spreader complete, including consolidation with road roller of minimum 8 to 10 tonne capacity to achieve specified values of compaction and surface accuracy : ",null,null,null,null,0]
[null,"16.36.1","For 50mm compacted thickness using coarse aggregate of size 50-20 mm graded @ 0.60 cum per 10 sqm key aggregate of size 12.5 mm graded @ 0.15 cum per 10 sqm. With paving asphalt grade VG - 10 @ 50 kg/ 10 sqm.","m2",1990,null,"Rupees ",0]
[97,"16.31.2.2","Providing and applying tack coat using bitumen emulsion conforming to IS: 8887, using emulsion pressure distributer including preparing the surface & cleaning with mechanical broom. With medium setting bitumen emulsion. On bituminous surface @ 0.25kg/sqm","m2",3980,null,"Rupees ",0]
[98,"16.33.1","2.5 cm premix carpet surfacing with 2.25 cum and 1.12 cum of stone chippings of 13.2 mm and 11.2 mm size respectively per 100 sqm and 52 kg and 56 kg of hot bitumen per cum of stone chippings of 13.2 mm and 11.2 mm size respectively, including a tack coat with hot straight run bitumen, including consolidation with road roller of 6 to 9 tonne capacity etc. complete (tack coat to be paid for separately). with paving Asphalt grade VG-10 heated and then mixed with solvent at the rate of 70 grams per kg of asphalt.","m2",1990,null,"Rupees ",0]
[99,16.399999999999999,"Providing and laying seal coat of premixed fine aggregate ( passing 2.36 mm and retained on 180 micron sieve) with bitumen using 128 kg of bitumen of grade VG - 10 bitumen per cum of fine aggregate and 0.60 cum of fine aggregate per 100 sqm of road surface, including rolling and finishing with road roller all complete.","m2",1990,null,"Rupees ",0]
[100,"12.20","Providing and laying pressed clay tiles  (Terracotta tiles) as per approved pattern 20 mm nominal thickness of approved size on roofs jointed with cement mortar 1:4 (1 cement: 4 coarse sand ) mixed with 2% integral water proofing compound, laid over a bed of 20 mm thick cement mortar 1:4 (1 cement:4 coarse sand) and finished neat complete for providing at sloped sunshade and roof","m2",3900,null,"Rupees ",0,0]
[101,null,"Demolition carefully with manual/machinery of existing tiled roof OP Block,a  sheet roofed building  (single storied buildings with an approdimate area of 500 sqm)  and a septic tank including  Stacking of servicable material and disposing off unservicable materials etc as per direction of Engineer in charge  in consultation with client and provide a septic tank if required.","Each",1,null,"Rupees ",0,{"$f":"H151","v":0}]
[102,null,"Design, Engineering And Supply Of 2000 Litres per hour RO plant based High Purity Water Treatment Plant\n","no",1,null,"Rupees ",0,{"$f":"H152","v":0}]
[null,null,"Total",null,null,null,{"$f":"FnConvert(H153)","v":"Rupees "},{"$f":"SUM(H5:H152)","v":0},{"$f":"SUM(I1:I152)","v":0}]

{"sheet":"Ab. Service Block  ","index":5,"n_rows":53,"n_cols":8,"rows_kept":53,"cut":false,"hidden":false,"merged":[[0,0,0,7],[1,0,1,7]]}
["CONSTRUCTION OF NEW PROPOSED OUT PATIENT BLOCK FOR GENERAL HOSPITAL, ALAPPUZHA -PART I"]
["ABSTRACT OF ESTIMATE - CIVIL WORKS -SERVICE BLOCK "]
["Item No","DSR code","Details of items","Unit","Quantity","Rate (Rs.) in figures ","Rate (Rs.) in words","Amount (Rs.)"]
[1,"2.6.1","Earth work in excavation by mechanical means (Hydraulic excavator) / manual means over areas (exceeding 30cm in depth. 1.5m in width as well as 10 sqm on plan) including disposal of excavated earth, lead upto 50m and lift upto 1.5m, disposed earth to be levelled and neatly dressed. All kinds of soil","m3",95,null,{"$f":"FnConvert(F4)","v":"Rupees "},{"$f":"ROUND(F4*E4,0)","v":0}]
[2,2.25,"Filling available excavated earth (excluding rock) in trenches, plinth, sides of foundations etc. in layers not exceeding 20cm in depth, consolidating each deposited layer by ramming and watering, lead up to 50 m and lift upto 1.5 m","m3",93,null,{"$f":"FnConvert(F5)","v":"Rupees "},{"$f":"ROUND(F5*E5,0)","v":0}]
[3,20.2,"Boring, providing and installation bored cast-in-situ reinforced cement concrete piles of grade M-25 of specified diameter and length below the pile cap, to carry a safe working load not less than specified, excluding the cost of steel reinforcement but including the cost of boring with bentonite solution and temporary casing of appropriate length for setting out and removal of same and the length of the pile to be embedded in the pile cap etc. by percussion drilling using Direct mud circulation (DMC) or Bailer and chisel technique by tripod and mechanical Winch Machine all complete, including removal of excavated earth with all its lifts and leads (length of pile for payment shall be measured up to bottom of pile cap). Note: Truck Mounted rotary /TMR /Tube well boring machine shall not be used.",null,null,null,null,0]
["a","20.2.2","500 mm dia piles","metre",196,null,"Rupees ",0]
[4,"20.6.2","Vertical load testing of piles in accordance with IS 2911 (Part IV) including installation of loading platform by Kentledge method and preparation of pile head or construction of test cap and dismantling of test cap after test etc. complete as per specification & the direction of Engineer in-charge. Note: 1. Initial and Routine Load Test shall not be carried out by Dynamic method of testing. Note: 2. Testing agency shall submitt the design of loading platform for the approval of Engineer-in-charge.: Single pile above 50 tonne and upto 100 tonne Safe capacity",null,null,null,null,0]
["a","20.6.2.1","Initial test (Test Load 2.5 times the Safe capacity)","Each",1,null,"Rupees ",0]
["b","20.6.2.2","Routine test (Test Load 1.5 times the Safe capacity)","Each",1,null,"Rupees ",0]
[5,"4.1.5","1:3:6 (1 Cement : 3 coarse sand : 6 graded stone aggregate 20 mm nominal size).for foundation and flooring ","m3",26,null,"Rupees ",0]
[6,5.37,"Providing and laying in position ready mixed M-25 grade concrete for reinforced cement concrete work, using cement content as per approved design mix, manufactured in fully automatic batching plant and transported to site of work in transit mixer for all leads having continuous agitated mixer, manufactured as per mix design of specified grade for reinforced cement concrete work including pumping of R.M.C. from transit mixer to site of laying , excluding the cost of centering, shuttering finishing and reinforcement including cost of admixtures in recommended proportions as per IS : 9103 to accelerate/ retard setting of concrete, improve workability without impairing strength and durability as per direction of the Engineer - in - charge.",null,null,null,null,0]
[null,null,null,null,null,null,null,0]
["a","5.37.1"," All works upto plinth level.","m3",56,null,"Rupees ",0]
["b","5.37.2","All works above plinth level upto floor V level.","m3",40,null,"Rupees ",0]
[7,5.34,"Extra for providing richer mixes at all floor levels.Note:- Excess/less cement over the specified cement content used is payable /recoverable separately.",null,null,null,null,0]
[null,"5.34.1","Providing M-30 grade concrete instead of M-25 grade BMC/RMC. (Note:- Cement content considered in M-30 is @ 340 kg/cum).","m3",135,null,"Rupees ",0]
[8,5.9,"Centering and shuttering including strutting, propping etc. and removal of form for :",null,null,null,null,0]
["a","5.9.1","Foundations, footings, bases of columns, etc. for mass concrete.","m2",25,null,"Rupees ",0]
["b","5.9.3","Suspended floors, roofs, landings, balconies and access platform.","m2",125,null,"Rupees ",0]
["c","5.9.5","Lintels, beams, plinth beams, girders, bressumers and cantilevers.","m2",170,null,"Rupees ",0]
["d","5.9.6","Columns, Pillars, Piers, Abutments, Posts and Struts.","m2",75,null,"Rupees ",0]
["e","5.9.16.1","Edges of slabs and breaks in floors and walls.Under 20 cm wide","m",130,null,"Rupees ",0]
["f","5.9.19","Weather shade, Chajjas, corbels etc., including edges.","m2",19,null,"Rupees ",0]
["9a)","5.22.6","Steel reinforcement for R.C.C. work including straightening, cutting, bending, placing in position and binding all complete Thermo-Mechanically Treated bars.","kg",11175,null,"Rupees ",0]
["9b)","5.22A.6","Steel reinforcement for R.C.C. work including straightening, cutting, bending, placing in position and binding all complete above plinth level.Thermo-Mechanically Treated bars of grade Fe-500 D or more.","kg",5525,null,"Rupees ",0]
[10,"6.4.2","Brick work with common burnt clay F.P.S. (non modular) bricks of class designation 7.5 in superstructure above plinth level up to floor V level in all shapes and sizes in : Cement mortar 1:6 (1 cement : 6 coarse sand)","m3",38,null,"Rupees ",0]
[11,"21.1.1.2","Providing and fixing aluminium work for doors, windows, ventilators and partitions with extruded built up standard tubular sections/ appropriate Z sections and other sections of approved make conforming to IS: 733 and IS: 1285, fixing with dash fasteners of required dia and size, including necessary filling up the gaps at junctions, i.e. at top, bottom and sides with required EPDM rubber/ neoprene gasket etc. Aluminium sections shall be smooth, rust free, straight, mitred and jointed mechanically wherever required including cleat angle, Aluminium snap beading for glazing / paneling, C.P. brass / stainless steel screws, all complete as per architectural drawings and the directions of Engineer-in-charge. (Glazing, paneling and dash fasteners to be paid for separately) : For fixed portion Powder coated aluminium (minimum thickness of powder coating 50 micron)","kg",91,null,"Rupees ",0]
[12,"21.1.2.2","For shutters of doors, windows & ventilators including providing and fixing hinges/ pivots and making provision for fixing of fittings wherever required including the cost of EPDM rubber / neoprene gasket required (Fittings shall be paid for separately). Powder coated aluminium (minimum thickness of powder coating 50 micron)","kg",76,null,"Rupees ",0]
[13,"21.2.2","Providing and fixing 12mm thick prelaminated particle board flat pressed three layer or graded wood particle board conforming to IS: 12823 Grade l Type ll, in panelling fixed in aluminum doors, windows shutters and partition frames with C.P. brass / stainless steel screws etc. complete as per architectural drawings and directions of engineer-in-charge. Pre-laminated particle board with decorative lamination on both sides.","m2",3,null,"Rupees ",0]
[14,"21.3.2","Providing and fixing glazing in aluminium/UPVC door, window, ventilator shutters and partitions etc. with EPDM rubber / neoprene gasket etc. complete as per the architectural drawings and the directions of engineer-in-charge . (Cost of aluminium snap beading shall be paid in basic item): With float glass panes of 6 mm thickness","m2",12,null,"Rupees ",0]
[15,21.13,"Providing and fixing 100mm brass locks (best make of approved quality) for aluminium doors including necessary cutting and making good etc. complete","Each",1,null,"Rupees ",0]
[16,"9.100.1"," Providing and fixing aluminium handles, ISI marked, anodised (anodic coating not less than grade AC 10 as per IS : 1868) transparent or dyed to required colour or shade, with necessary screws etc. complete : 125mm","Each",2,null,"Rupees ",0]
[17,"9.97.2","Providing and fixing aluminium tower bolts, ISI marked, anodised (anodic coating not less than grade AC 10 as per IS : 1868 ) transparent or dyed to required colour or shade, with necessary screws etc. complete : 250 X 10 mm","Each",3,null,"Rupees ",0]
[18,"9.101.2","Providing and fixing aluminium hanging floor door stopper, ISI marked, anodised (anodic coating not less than grade AC 10 as per IS : 1868) Transparent or dyed to required colour and shade, with necessary screws etc. complete. Twin rubber stopper\n","Each",1,null,"Rupees ",0]
[19,"10.16.1","Steel work in built up tubular (round, square or rectangular hollow tubes etc.) trusses etc., including cutting, hoisting, fixing in position and applying a priming coat of approved steel primer, including welding and bolted withspecial shaped washers etc. complete.","kg",2250,null,"Rupees ",0]
[20,"9.48.2","Providing and fixing M.S. grills of required pattern in frames of windows etc. with M.S. flats, square or round bars etc. including priming coat with approved steel primer all complete.Fixed to openings /wooden frames with rawl plugs screws etc.","kg",225,null,"Rupees ",0]
[21,10.17,"Providing and fixing M.S. fan clamp type I or II of 16 mm dia M.S. bar bent to shape with hooked ends in R.C.C. slabs, beams during laying including painting the exposed portion of loop, all as per standard design complete.","Each",2,null,"Rupees ",0]
[22,"13.2.1","15 mm cement plaster on the rough side of single or half brick wall of mix: 1:4 (1 cement: 4 fine sand) to the outside of walls ","m2",190,null,"Rupees ",0]
[23,"13.4.1","12 mm cement plaster on single brick/block or half brick/block wall of mix : 1:4 (1 cement: 4 coarse sand) to the inside of walls ","m2",150,null,"Rupees ",0]
[24,"13.16.1","6 mm cement plaster of mix : 1:3 (1 cement: 3 fine sand) for under side of roof slab and beams","m2",195,null,"Rupees ",0]
[25,"13.9.1 + 13.21","Cement plaster 1:3 (1 cement: 3 coarse sand) finished with a floating coat of neat cement.12 mm cement plaster including providing and mixing water proofing material in cement plaster work in proportion recommended by the manufacturers. to the top surface of sunshade ","m2",130,null,"Rupees ",0]
[26,"13.43.1","Applying one coat of water thinnable cement primer of approved brand and manufacture on wall surface :","m2",345,null,"Rupees ",0]
[27,"13.47.1","Finishing walls with Premium Acrylic Smooth exterior paint with Silicone additives of required shade New work (Two or more coats applied @ 1.43 ltr/ 10 sqm. over and including priming coat of exterior primer applied @ 2.20 kg/ 10 sqm).","m2",206,null,"Rupees ",0]
[28,"13.44.1","Finishing walls with water proofing cement paint of required shade :New work (Two or more coats applied @ 3.84 kg/10 sqm)","m2",345,null,"Rupees ",0]
[29,"13.61.1","Painting with synthetic enamel paint of approved brand and manufacture to give an even shade :Two or more coats on new work.","m2",120,null,"Rupees ",0]
[30,"11.20.3","Chequerred precast cement concrete tiles 22 mm thick in footpath & courtyard, jointed with neat cement slurry mixed with pigment to match the shade of tiles including rubbing and cleaning etc. complete, on 20 mm thick bed of cement mortar 1:4 (1 cement: 4 coarse sand). Dark shade using ordinary cement.","m2",7,null,"Rupees ",0]
[31,"10.6.1","Supplying and fixing rolling shutters of approved make, made of required\nsize M.S. laths, interlocked together through their entire length and jointed together at the end by end locks, mounted on specially designed pipe shaft with brackets, side guides and arrangements for inside and outside locking with push and pull operation complete, including the cost of providing and fixing necessary 27.5 cm long wire springs manufactured from high tensile steel wire of adequate strength conforming to IS: 4454 - part 1 and M.S. top cover of required thickness for rolling shutters. 80x1.25 mm M.S. laths with 1.25 mm thick top cover","m2",18,null,"Rupees ",0]
[32,10.7,"Providing and fixing ball bearing for rolling shutters.","Each",4,null,"Rupees ",0]
[33,10.9,"Extra for providing grilled rolling shutters manufactured out of 8 mm dia. M.S. bar instead of laths as per design approved by Engineer-in-charge.(area of grill to be measured).","m2",12,null,"Rupees ",0]
[34,12.5,"Providing and fixing precoated galvanised iron profile sheets (size, shape and pitch of corrugation as approved by Engineer-in-charge) 0.50 mm (+ 0.05 %) total coated thickness with zinc coating 120 grams per sqm as per IS: 277, in 240 mpa steel grade, 5-7 microns epoxy primer on both side of the sheet and polyester top coat 15-18 microns. Sheet should have protective guard film of 25 microns minimum  to avoid scratches during transportation and should be supplied in single length upto 12 metre or as desired by Engineerin- charge. The sheet shall be fixed using self drilling /self tapping screws of size (5.5x 55 mm) with EPDM seal, complete upto any pitch in horizontal/ vertical or curved surfaces, excluding the cost of purlins, rafters and trusses and including cutting to size and shape\nwherever required.","m2",101,null,"Rupees ",0]
[35,"11.3.1","Cement concrete flooring 1:2:4 (1 cement : 2 coarse sand : 4 graded stone aggregate) finished with a floating coat of neat cement, including cement slurry, but excluding the cost of nosing of steps etc. complete: 40 mm thick with 20 mm nominal size stone aggregate","m2",165,null,"Rupees ",0]
[null,null,"Total",null,null,null,{"$f":"FnConvert(H53)","v":"Rupees "},{"$f":"SUM(H4:H52)","v":0}]

{"sheet":"PLUMBING","index":6,"n_rows":104,"n_cols":9,"rows_kept":104,"cut":false,"hidden":false,"merged":[[0,0,0,7],[1,0,1,7]]}
["CONSTRUCTION OF NEW PROPOSED OUT PATIENT BLOCK FOR GENERAL HOSPITAL, ALAPPUZHA -PART I"]
["ABSTRACT OF ESTIMATE - PLUMBING WORKS"]
["Item No","DSR code","Details of items","Unit","Quantity","Rate (Rs.) in figures ","Rate (Rs.) in words","Amount (Rs.)"]
[1,"17.1.1","Providing and fixing water closet squatting pan (Indian type W.C. pan ) with 100mm sand cast Iron P or S trap, 10 litre low level white P.V.C. flushing cistern, including flush pipe, with manually controlled device (handle lever) conforming to IS : 7231, with all fittings and fixtures complete including cutting and making good the walls and floors wherever required : White Vitreous china Orissa pattern W.C. pan of size 580x440mm with integral type foot rests. (Make: Hindware,  Jaquar, Cera). Materials should be selected by the Engineer in charge ","Each",4,null,{"$f":"FnConvert(F4)","v":"Rupees "},{"$f":"F4*E4","v":0}]
[2,17.809999999999999,"Providing and fixing floor mounted, white vitreous china single piece, double traps syphonic water closet of approved brand/ make, shape, size and pattern including integrated white vitreous china cistern of capacity 10 litres with dual flushing\nsystem, including all fittings and fixtures with seat cover, cistern fittings, nuts, bolts and gasket etc including making connection with the existing P/S trap, complete in all respect as per directions of Engineer-in-Charge.. Make: Hindware, Cera, Jaquar etc.","Each",74,null,"Rupees ",{"$f":"F5*E5","v":0}]
[3,17.5,"Providing and fixing white vitreous china flat back half stall urinal of size 580x380x350mm with white PVC automatic flushing cistern, with fittings, standard size C.P. brass flush pipe, spreaders with unions and clamps (all in C.P. brass) with waste fitting as per IS : 2556, C.I. trap with outlet grating and other couplings in C.P. brass including painting of fittings and cutting and making good the walls and floors wherever required : (Make: Hindware,  Jaquar, Cera): Materials should be selected by the Engineer in charge ",null,null,null,"Rupees ",0]
["a","17.5.1","Single half stall urinal with 5 litre P.V.C. automatic flushing cistern.","Each",2,null,"Rupees ",0]
["b","17.5.2","Range of two half stall urinals with 5 litre P.V.C. automatic flushing cistern","Each",2,null,"Rupees ",0]
["c","17.5.3","Range of three half stall urinals with 10 litre P.V.C. automatic flushing cistern.","Each",19,null,"Rupees ",0]
[4,"8.10.2","Providing and fixing stone slab table rubbed, edges rounded and polished of size 75x50 cm deep and 1.8 cm thick fixed in urinal partitions by cutting a chase of appropriate width with chase cutter and embedding the stone in the chase with epoxy grout or with cement concrete 1:2:4 (1 cement : 2 coarse sand : 4 graded stone aggregate 6 mm nominal size) as per direction of Engineer-in-charge and finished smooth.Granite Stone of approved shade.","Sqm",32,null,"Rupees ",0]
[5,"MR","Providing and fixing wash basin (counter type) with CI / MS brackets, 15mm CP brass Pillar taps, 32mm CP brass waste of standard pattern, including painting of fittings and brackets, cutting and making good the walls wherever required.: White Vitreous China Wash basin size 630 x 450mm with a single 15mm C.P brass piller tap. Make: Hindware, Cera, Jaquar etc.., (Lowest retail price of basin not less than Rs. 3000/each and Pillar tap not less than Rs. 1500/each. Materials to be selected by the Engineer in charge)","Each",182,null,"Rupees ",0,{"$f":"G11","v":"Rupees "}]
[6,"17.10.1.1","Providing and fixing Stainless Steel A ISI 304 (18/8) kitchen sink as per IS 13983 with C.I. brackets and stainless steel plug 40 mm including painting of fittings and brackets, cutting and making good the walls wherever required : Kitchen sink with drain board 510x1040 mm bowl depth 250 mm(Make: Hindware,  Jaquar, Parryware): Materials should be selected by the Engineer in charge ","Each",15,null,"Rupees ",0]
[7,"17.28.2.2","Providing and fixing P.V.C. waste pipe for sink or wash basin including P.V.C. waste fittings complete.Flexible pipe 40 mm dia","Each",197,null,"Rupees ",0]
[8,"17.32.2","Providing and fixing mirror of superior glass (of approved quality) and of required shape and size with plastic moulded frame of approved make and shade with 6 mm thick hard board backing :Rectangular shape 453x357mm",null,null,null,null,0]
["a","17.32.2","Rectangular shape 453x357mm","Each",106,null,"Rupees ",0]
["b","17.32.4","Rectangular shape 1500x450 mm","Each",28,null,"Rupees ",0]
[9,"17.34.1","Providing and fixing toilet paper holder :C.P. Brass","Each",152,null,"Rupees ",0]
[10,"17.69.2","Providing and fixing PTMT Waste Coupling for  sink, of approved quality and colour.Waste coupling 38 mm dia of 83 mm length and 77mm breadth, weighing not less than 60gms.","Each",15,null,"Rupees ",0]
[11,"17.73.2","Providing and fixing PTMT towel rail complete with brackets fixed to wooden cleats with CP brass screws with concealed fitting arrangement of approved quality and colour.600mm long towel rail with total length of 645mm, width 78mm and effective height of 88mm, weighing not less than 190gms.","Each",223,null,"Rupees ",0]
[12,18.7,"Providing and fixing Chlorinated Polyvinyl Chloride (CPVC) pipes, having thermal stability for hot & cold water supply including all CPVC plain & brass threaded fittings including fixing the pipe with clamps at 1.00 m spacing. This includes jointing of pipes & fittings with one step CPVC solvent cement and testing of joints complete as per direction of Engineer in Charge. Make: Supreme, Finolex, Astral Internal work - Exposed on wall",null,null,null,null,0]
["a","18.7.1","15 mm nominal outer dia .Pipes.","Metre",120,null,"Rupees ",0]
["b","18.7.2","20 mm nominal outer dia .Pipes.","Metre",635,null,"Rupees ",0]
["c","18.7.3","25 mm nominal outer dia .Pipes","Metre",1185,null,"Rupees ",0]
["d","18.7.4","32 mm nominal outer dia .Pipes.","Metre",220,null,"Rupees ",0]
["e","18.7.5","40 mm nominal outer dia .Pipes.","Metre",450,null,"Rupees ",0]
["f","18.7.6","50 mm nominal outer dia .Pipes","Metre",110,null,"Rupees ",0]
["g","18.9.8 analysis","75 mm nominal outer dia .Pipes","Metre",275,null,"Rupees ",0]
["h","18.9.9 analysis","100 mm nominal outer dia .Pipes","Metre",275,null,"Rupees ",0]
[13,18.8,"Providing and fixing Chlorinated Polyvinyl Chloride (CPVC) pipes, having thermal stability for hot & cold water supply including all CPVC plain & brass threaded fittings i/c fixing the pipe with clamps at 1.00 m spacing. This includes jointing of pipes & fittings with one step CPVC solvent cement and the cost of cutting chases and making good the same including testing of joints complete as per direction of Engineer in Charge. Make: Supreme, Finolex, Astral  Concealed work including cutting chases and making good the walls etc.",null,null,null,null,0]
["a","18.8.1","15 mm nominal outer dia .Pipes","Metre",1030,null,"Rupees ",0]
["b","18.8.2","20 mm nominal outer dia .Pipes","Metre",1120,null,"Rupees ",0]
["c","18.8.3","25 mm nominal outer dia .Pipes.","Metre",350,null,"Rupees ",0]
["d","18.8.4","32 mm nominal outer dia .Pipes.","Metre",30,null,"Rupees ",0]
[14,18.899999999999999,"Providing and fixing Chlorinated Polyvinyl Chloride (CPVC) pipes, having thermal stability for hot & cold water supply including all CPVC plain & brass threaded fittings This includes jointing of pipes & fittings with one step CPVC solvent cement ,trenching ,refilling & testing of joints complete as per direction of Engineer in Charge.Make: Supreme, Finolex, Astral   External work",null,null,null,null,0]
["a","18.9.2","20 mm nominal outer dia .Pipes.","Metre",10,null,"Rupees ",0]
["b","18.9.3","25 mm nominal outer dia .Pipes.","Metre",10,null,"Rupees ",0]
["c","18.9.4","32 mm nominal outer dia .Pipes.","Metre",30,null,"Rupees ",0]
["d","18.9.5","40 mm nominal outer dia .Pipes.","Metre",30,null,"Rupees ",0]
["e","18.9.6","50 mm nominal outer dia .Pipes.","Metre",220,null,"Rupees ",0]
["f","18.9.7","62.50 mm nominal inner dia Pipes","Metre",220,null,"Rupees ",0]
[15,18.170000000000002,"Providing and fixing gun metal gate valve with C.I. wheel of approved quality (screwed end) :",null,null,null,null,0]
["a","18.17.1A","20 mm nominal bore","Each",40,null,"Rupees ",0]
["a","18.17.1","25 mm nominal bore","Each",40,null,"Rupees ",0]
["b","18.17.2","32 mm nominal bore","Each",20,null,"Rupees ",0]
["c","18.17.3","40 mm nominal bore","Each",10,null,"Rupees ",0]
["d","18.17.4","50 mm nominal bore","Each",10,null,"Rupees ",0]
["e","18.17.5","65 mm nominal bore","Each",4,null,"Rupees ",0]
["f","18.17.6","80 mm nominal bore","Each",4,null,"Rupees ",0]
[16,18.18,"Providing and fixing ball valve (brass) of approved quality, High or low pressure, with plastic floats complete",null,null,null,null,0]
["a","18.18.1","15 mm nominal bore","Each",1,null,"Rupees ",0]
["b","18.18.2","20 mm nominal bore","Each",3,null,"Rupees ",0]
["c","18.18.3","25 mm nominal bore","Each",3,null,"Rupees ",0]
[17,18.21,"Providing and fixing uplasticised PVC connection pipe with brass unions :",null,null,null,null,0]
["a","18.21.1.1","30 cm length 15 mm nominal bore","Each",195,null,"Rupees ",0]
["b","18.21.2.1","45 cm length 15 mm nominal bore","Each",155,null,"Rupees ",0]
[18,"18.33.1","Constructing masonry Chamber 60x60x75 cm inside, in brick work in cement mortar 1:4 (1 cement : 4 coarse sand) for sluice valve, with C.I. surface box 100mm. top diameter, 160 mm bottom diameter and 180 mm deep ( inside) with chained lid and RCC top slab 1:2:4 mix (1 cement :2 coarse sand : 4 graded stone aggregate 20mm nominal size ) , i/c necessary excavation, foundation concrete 1:5:10 (1 cement : 5 fine sand : 10 graded stone aggregate 40 mm nominal size) and inside plastering with cement mortar 1:3 (1 cement : 3 coarse sand) 12 mm thick finished with a floating coat of neat cement complete as per standard design : With common burnt clay F.P.S.(non modular) bricks of class designation 7.5.","Each",1,null,"Rupees ",0]
[19,"18.37.1","Constructing masonry Chamber 60x45x50 cm inside, in brick work in cement mortar 1:4 (1 cement : 4 coarse sand) for water meter complete with C.I. double flap surface box 400x200x200 mm (inside) with locking arrangement and RCC top slab 1:2:4 mix (1 cement : 2 coarse sand : 4 graded stone aggregate 20 mm nominal size) , i/c necessary excavation, foundation concrete 1:5:10 ( 1 cement : 5 fine sand:10 graded stone aggregate 40 mm nominal size) and inside plastering with cement mortar 1:3 (1 cement : 3 coarse sand) 12 mm thick finished with a floating coat of neat cement complete as per standard design : With common burnt clay F.P.S.(non modular) bricks of class designation 7.5.","Each",1,null,"Rupees ",0]
[20,"MR","Providing and fixing C.P. brass long body bib cock (Sink cock)of approved quality conforming to IS standards and weighing not less than 690 gms. 15 mm nominal bore  (Lowest retail price not less than 1800/each. Materials to be selected by the Engineer in charge) Make: Jauqar,  Hindware, , crome. ","Each",114,null,"Rupees ",0,{"$f":"G58","v":"Rupees "}]
[21,"MR","Providing and fixing C.P. brass stop cock (concealed) of standard design and of approved make conforming to IS:8931.:15 mm nominal bore. (Lowest retail price not less than 1000/each.: Make:Jauqar, Hindware, , crome","Each",17,null,"Rupees ",0,{"$f":"G59","v":"Rupees "}]
[22,"MR","Providing and fixing C.P. brass angle valve for basin mixer and geyser points of approved quality conforming to IS:8931 a) 15 mm nominal bore:15mm nominal bore: (Lowest retail price not less than 850/each. Make:Jauqar, Hindware, crome","Each",417,null,"Rupees ",0,{"$f":"G60","v":"Rupees "}]
[23,"MR","Providing and fixing SS grating  with rim including setting in floor with white cement mortar and making good the floor (Chilli make) 125mm dia   (Lowest retail price not less than 120/each.Make: Supreme, Finolex, Cera, crome  etc..,","Each",222,null,"Rupees ",0,{"$f":"G61","v":"Rupees "}]
[24,"MR","Providing and fixing of over head shower 150mm dia  with shower flange 170 mm long, including shower head and shower arm conforming to I.S Specification of approved make as per directions including all lead and lift etc., complete.  (Lowest retail price not less than 1500/each. Materials to be selected by the Engineer in charge) Make: Crabtree ,Cera, Jaquar etc..,","Each",17,null,"Rupees ",0,{"$f":"G62","v":"Rupees "}]
[25,18.649999999999999,"Providing and fixing PTMT soap Dish Holder having length of 138mm, breadth 102mm, height of 75mm with concealed fitting arrangements. Weighing not less than 106 gms.","Each",290,null,"Rupees ",0]
[26,"18.76.1","Cutting holes up to 30x30 cm in walls including making good the same: With common burnt clay F.P.S. (non modular) bricks.","Each",150,null,"Rupees ",0]
[27,18.77,"Cutting holes up to 15x15cm in R.C.C. floors and roofs for passing drain pipe etc. and repairing the hole after insertion of drain pipe etc. with cement concrete 1:2:4 (1 cement :2 coarse sand : 4 graded stone aggregate 20 mm nominal size) including finishing complete so as to make it leak proof.","Each",400,null,"Rupees ",0]
[28,"12.41.2","Providing and fixing on wall face unplasticised Rigid PVC rain water pipes conforming to IS : 13592 Type A including jointing with seal ring conforming to IS : 5382 leaving 10 mm gap for thermal expansion.(i) Single socketed pipes. 110 mm diameter","Metre",600,null,"Rupees ",0]
[29,12.42,"Providing and fixing on wall face unplasticised - PVC moulded fittings/ accessories for unplasticised Rigid PVC rain water pipes conforming to IS : 13592 Type A including jointing with seal ring conforming to IS : 5382 leaving 10 mm gap for thermal expansion.",null,null,null,null,0]
["a","12.42.1.2","Coupler: 110 mm","Each",150,null,{"$f":"FnConvert(F68)","v":"Rupees "},0]
["b","12.42.3.2","Single tee with door: 110x110x110 mm","Each",24,null,"Rupees ",{"$f":"F69*E69","v":0}]
["c","12.42.5.2","Bend :110 mm","Each",120,null,"Rupees ",0]
["d","12.42.6.2","110 mm Shoe","Each",24,null,"Rupees ",0]
[30,12.44,"Providing and fixing to the inlet mouth of rain water pipe cast iron grating 15 cm diameter and weighing not less than 440 grams.","Each",24,null,"Rupees ",0]
[31,"12.43.2","Providing and fixing unplasticised -PVC pipe clips of approved design to unplasticised - PVC rain water pipes by means of 50x50x50mm hard wood plugs, screwed with M.S. screws of required length including cutting brick work and fixing in cement mortar 1:4 (1 cement : 4 coarse sand) and making good the wall etc. complete. 110 mm","Each",600,null,"Rupees ",0]
[32,19.399999999999999,"Providing and fixing square-mouth S.W. gully trap class SP-1 complete with C.I. grating brick masonry chamber with water tight C.I. cover with frame of 300 x300 mm size (inside) the weight of cover to be not less than 4.50 kg and frame to be not less than 2.70 kg as per standard design : 100x100 mm size P type With common burnt clay F.P.S. (non modular) bricks of class designation 7.5",null,null,null,null,0]
["a","19.4.1.1","100x100 mm size P type With common burnt clay F.P.S. (non modular) bricks of class designation 7.5","Each",15,null,"Rupees ",0]
["b","19.4.2.1","150 x 100 mm size P type. With common burnt clay F.P.S. (non modular) bricks of class designation 7.5","Each",6,null,"Rupees ",0]
["c","19.4.3.1","180x150 mm size P type With common burnt clay F.P.S. (non modular) bricks of class designation 7.5","Each",6,null,"Rupees ",0]
[33,"2.10.1.2","Excavating trenches of required width for pipes, cables, etc including excavation for sockets, and dressing of sides, ramming of bottoms, depth upto 1.5 m including getting out the excavated soil, and then returning the soil as required, in layers not exceeding 20 cm in depth, including consolidating each deposited layer by ramming, watering, etc. and disposing of surplus excavated soil as directed, within a lead of 50 m :All kinds of soil:Pipes, cables etc. exceeding 80 mm dia. but not exceeding 300 mm dia.","Metre",60,null,"Rupees ",0]
[34,null,"Providing and laying non-pressure NP2 class (light duty) R.C.C. pipes with collars jointed with stiff mixture of cement mortar in the proportion of 1:2 (1 cement : 2 fine sand) including testing of joints etc. complete :",null,null,null,null,0]
["a","19.6.3","250 mm dia. R.C.C. pipe","Metre",60,null,"Rupees ",0]
[35,19.7,"Constructing brick masonry manhole in cement mortar 1:4 ( 1 cement : 4 coarse sand ) with R.C.C. top slab with 1:2:4 mix (1 cement : 2 coarse sand : 4 graded stone aggregate 20 mm nominal size), foundation concrete 1:4:8 mix (1 cement : 4 coarse sand : 8 graded stone aggregate 40mm nominal size), inside plastering 12mm thick with cement mortar 1:3 (1 cement : 3 coarse sand) finished with floating coat of neat cement and making channels in cement concrete 1:2:4 (1 cement : 2 coarse sand : 4 graded stone aggregate 20mm nominal size) finished with a floating coat of neat cement complete as per standard design :",null,null,null,"Rupees ",0]
["a","19.7.1.1","Inside size 90x80 cm and 45 cm deep including C.I. cover with frame (light duty) 455x610 mm internal dimensions, total weight of cover and frame to be not less than 38 kg (weight of cover 23 kg and weight of frame 15 kg) : With common burnt clay F.P.S. (non modular) bricks of class designation 7.5","Each",20,null,"Rupees ",0]
["b","19.7.3.1","Inside size 120x90 cm and 90 cm deep including C.I. cover with frame (heavy duty) 560 mm internal diameter, total weight of cover and frame to be not less than 208 kg (weight of cover 108 kg and weight of frame 100 kg) : With common burnt clay F.P.S. (non modular) bricks of class designation 7.5","Each",10,null,"Rupees ",0]
[36,19.8,"Extra for depth for manholes"]
["a","19.8.1.1","Size 90x80 cm With common burnt clay F.P.S. (non modular) bricks of class designation 7.5","Metre",15,null,"Rupees ",0]
["b","19.8.2.1","Size 120x90 cm With common burnt clay F.P.S. (non modular) bricks of class designation 7.5","Metre",10,null,"Rupees ",0]
[37,19.16,"Providing orange colour safety foot rest of minimum 6 mm thick plastic encapsulated as per IS : 10910 on 12mm dia steel bar conforming to IS : 1786 having minimum cross section as 23 mmx25mm and over all minimum length 263 mm and width as 165mm with minimum 112 mm space between protruded legs having 2 mm tread on top surface by ribbing or chequering besides necessary and adequate anchoring projections on tail length on 138 mm as per standard drawing and suitable to with stand the bend test and chemical resistance test as per specifications and having manufacture's permanent identification mark to be visible even after fixing, including fixing in manholes with 30x20x15 cm cement concrete block 1:3:6 (1 cement : 3 coarse sand : 6 graded stone aggregate 20 mm nominal size) complete as per design.","Each",120,null,"Rupees ",0]
[38,"LMR","Providing, Fixing, Testing & Commissioning of full way  brass valve of brass body with threaded / flanged joints complete with nuts, bolts, gaskets, washers  etc.15mm dia bronze valve ","Each",40,null,"Rupees ",0,{"$f":"G88","v":"Rupees "}]
[39,"MR","Supplying and fixing Wash Basin with one pair mounting brackets, EWC & Cistern complete with fittings & seat cover, hinged rail, grab rails and one no of faucet for WB with Rack Bolt, Flexible Tube for pillar Tap & Waste Coupling Designed for people with special needs (Handicapped/ Physically disabled People) P trap, Angle valve, including fittings and brackets, cutting and making good the walls wherever required, including cost & conveyance of all materials, labour charges, sundries etc complete as directed by the Engineer in charge.(Materials should be selected by the Engineer in charge).(Make Hindware No. 70002- or equivalent make of quality & quantity of items)","Each",13,null,"Rupees ",0,{"$f":"G89","v":"Rupees "}]
[40,"MR","Providing & fixing of CP Health faucet. Hand operated spray unit (instand type).Make:Jauqar, Hindware, Parryware, crome., (Lowest retail price not less than 1200/each. Materials to be selected by the Engineer in charge)","Set",87,null,"Rupees ",0,{"$f":"G90","v":"Rupees "}]
[41,"M.R.","Providing and fixing UPVC SWR  pipe for soil, waste and vent pipe to IS : 13592 of SWR quality, including all fittings, like: Bends, Tees, Elbows, Collars, junction, inspection doors, clamps for fixing walls and slabs, flanged pipes for providing slab core cutting  portion, vent cowls, offsets, access pipes, jointing with rubber ring / solvent cement by application of leak proof adhesive like FRP paste including cutting holes in walls and floors, chasing walls and floors and making good. clipping to walls and slabs, trenching, refilling etc. complete Make: Supreme, Finolex, Prince",null,null,null,null,null,0]
["a)","MR","50mm dia UPVC SWR  Type B pipe  ","Mtr.",330,null,"Rupees ",0,"Rupees "]
["b)","M.R.","63mm dia UPVC SWR  Type B pipe  ","Mtr.",605,null,"Rupees ",0,"Rupees "]
["c)","M.R.","75mm dia UPVC SWR  Type B pipe  ","Mtr.",550,null,"Rupees ",0,"Rupees "]
["d)","MR","90mm dia UPVC SWR  Type B pipe  ","Mtr.",445,null,"Rupees ",0,"Rupees "]
["e)","M.R.","110mm dia UPVC SWR  Type B pipe  ","Mtr.",680,null,"Rupees ",0,"Rupees "]
["f)","M.R.","160mm dia UPVC SWR  Type B pipe  ","Mtr.",370,null,"Rupees ",0,"Rupees "]
["g","MR","200mm dia UPVC SWR  Type B pipe  ","Mtr.",220,null,"Rupees ",0,"Rupees "]
[42,"MR","Providing and fixing PVC pipe 10kg/cm2 including all fittings, like : Bends, Tees, Elbows, Collars etc.jointing with rubber ring / solvent cement by application of leak proof adhesive like FRP paste including cutting holes in walls and floors and making good. clipping to walls and slabs, trenching, refilling etc. complete Make: Supreme, Finolex, Prince"]
["a","MR","75mm PVC pipe 10kg/cm2","Mr",110,null,"Rupees ",0,{"$f":"G100","v":"Rupees "}]
[43,"M.R.","Providing and fixing PVC floor trap self cleansing design with or without vent arm, suitable dia. inlet and out etc.  complete including cutting and making good the walls and floors. Make: Supreme, Finolex, Prince. ","Each",222,null,"Rupees ",0,"Rupees "]
[44,"LMR","Providing and fixing C.I. M.H.cover with frame (Heavy duty) 560 mm internal diameter,  total weight of cover and frame to be not less than 208 kg (weight of cover 108 kg and weight of frame 100 kg) :, ","Each",5,null,"Rupees ",0,{"$f":"G102","v":"Rupees "}]
[45,"MR","Supply, erection and commissioning of 5HP three phase monobloc pump with bronze impressler with required head and discharge ","Each",4,null,"Rupees ",0,"Rupees "]
[null,null,"Total amount ",null,null,null,{"$f":"FnConvert(H104)","v":"Rupees "},{"$f":"SUM(H4:H103)","v":0},{"$f":"ROUND(SUM(I4:I103),0)","v":0}]

{"sheet":"Electrical","index":7,"n_rows":553,"n_cols":8,"rows_kept":553,"cut":false,"hidden":false,"merged":[[552,2,552,4],[0,0,0,7],[1,0,1,7]]}
["CONSTRUCTION OF NEW PROPOSED OUT PATIENT BLOCK FOR GENERAL HOSPITAL, ALAPPUZHA -PART I"]
["ABSTRACT OF ESTIMATE - ELECTRICAL WORKS "]
["Item No","DSR code","Details of items","Unit","Quantity","Rate (Rs.) in figures ","Rate (Rs.) in words","Amount (Rs.)"]
["1. Wiring "]
[1.1000000000000001,"1.10.3","Wiring for  light point / fan point / exhaust fan point / call bell point with 1.5 sq.mm FRLS PVC insulated copper conductor single core cable in surface/recessed  medium Type PVC conduit with modular switch, modular plate, suitable GI box and earthing the point with 1.5 sqmm,  FRLS PVC insulated copper conductor single core cable etc. as required.","Point",1585,null,{"$f":"FnConvert(F5)","v":"Rupees "},{"$f":"ROUND(E5*F5,0)","v":0}]
[1.2,1.1100000000000001,"Wiring for twin control light point with 1.5sq.mm FRLS PVC insulated copper conductor singlecore cable in surface/ recessed  PVC  conduct, 2 way modular switch, modular plate, suitable GI box and earthing the point with 1.5 Sq mm FRLS PVC insulated coppper conductor single core cable etc as required","Point",25,null,"Rupees ",{"$f":"ROUND(E6*F6,0)","v":0}]
[1.3,1.1399999999999999,"Wiring for circuit/submain wiring along with earth wire with the following sizes of  FRLS PVC insulated copper conductor, single core cable in surface/recessed PVC conduit as required."]
["1.3.1","1.14.1","2 x 1.5 sq.mm + 1x1.5 sq.mm earth wire          ","m",11100,null,"Rupees ",0]
["1.3.2","1.14.2","2 x 2.5 sq.mm + 1x 2.5 sq.mm earth wire ","m",20200,null,"Rupees ",0]
["1.3.3","1.14.3","2 x 4 sq.mm +1x 4 sq.mm earth wire ","m",10100,null,"Rupees ",0]
["1.3.4","1.14.4","2 X 6 sqmm + 1 x 6 sqmm earth wire ","m",1800,null,"Rupees ",0]
["1.3.5","1.14.9","4 x 6 sqmm + 2 x 6 sqmm earth wire","m",740,null,"Rupees ",0]
[1.4,1.21,"Supplying and fixing of following sizes of medium class PVC conduit along with accessories in surface/recess including cutting the wall and making good the same in case of recessed conduit as required."]
["1.4.1","1.21.1","20 mm","m",150,null,"Rupees ",0]
["1.4.2","1.21.2","25 mm","m",150,null,"Rupees ",0]
["1.4.3","1.21.3","32 mm","m",260,null,"Rupees ",0]
["1.4.4","1.21.4","40 mm","m",80,null,"Rupees ",0]
[1.5,1.25,"Supplying and fixing stepped type electronic fan regulator on the existing modular plate switch box including connections but excluding modular plate etc. as required.","Each",340,null,"Rupees ",0]
[1.6,1.26,"Supplying and fixing modular blanking plate on the existing modular plate & switch box excluding modular plate as required.","Each",290,null,"Rupees ",0]
[1.7,1.31,"Supplying and fixing suitable size GI box with modular plate and cover in front on surface or in recess, including providing and fixing 3 pin 5/6 amps modular socket outlet and 5/6 amps modular switch, connection etc. as required. ","Each",725,null,"Rupees ",0]
[1.8,1.32,"Supplying and fixing suitable size GI box with modular plate and cover in front on surface or in recess, including providing and fixing 6 pin 5/6 & 15/16 amps modular socket outlet and 15/16 amps modular switch, connection etc. as required.","Each",265,null,"Rupees ",0]
[1.9,1.33,"Supply and fixing 3 pin, 6A ceiling rose on the existing junction box / wooden block including connection etc as required.","Each",835,null,"Rupees ",0]
[1.1000000000000001,1.38,"Supply and fixing call bell / buzzer suitable for single phase, 230 volts, complete as required. ","Each",20,null,"Rupees ",0]
[1.1100000000000001,1.41,"Installation, testing and commissioning of prewired, fluorescent fittings / compact flourescent fitting / LED  batten of all types, complete with all accessories and tube  etc. directly on  ceiling /wall, including connections with 1.5 sq.mm FRLS PVC insulated, copper conductor, single core cable  and earthing etc. as required.","Each",550,null,"Rupees ",0]
[1.1200000000000001,1.42,"Installation, testing and commissioning of pre-wired, fluorescent fitting / compact fluorescent fitting / LED  batten of all types, complete with all accessories and tube  etc.  including supplying and fixing ball and socket arrangement, 2 no. down rods of 20 mm dia X 1.6 mm thick steel conduit upto 30 cm length, painting and wiring the down rods and connection with 1.5 sq. mm FRLS PVC insulated, copper conductor, single core cable and earthing etc. as required.","Each",60,null,"Rupees ",0]
[1.1299999999999999,1.44,"Installation, testing and commissioning of ceiling fan including wiring the down rod of standard length (upto  30 cm.) with 1.5  sq.mm  FRLS PVC insulated, copper conductor, single core cable etc. as required.","Each",340,null,"Rupees ",0]
[1.1399999999999999,1.48,"Supply and fixing extra conduit down rod of 20 cm length GI pipe, 15 mm dia, heavy gauge including painting etc as required. (Note: More than 5cm length shall be rounded to the nearest 10cm and 5cm or less shall be ignored).    ","Each",1360,null,"Rupees ",0]
[1.1499999999999999,"1.50.1","Installation of exhaust fan upto 450mm sweep in the existing opening, including making good the damage, connection, testing, commissioning etc. as required.","Each",90,null,"Rupees ",0]
[1.1599999999999999,"1.55.3","Wiring for group controlled (looped) light point/fan point/exhaust fan point/ call bell point (without independent switch etc.) with 1.5 sq. mm FRLS PVC insulated copper conductor single core cable in surface/ recessed PVC conduit, and earthing the point with 1.5 sq. mm FRLS PVC insulated copper conductor single core cable etc. as required.","Point",800,null,"Rupees ",0]
[1.17,1.56,"Supplying and fixing suitable size GI box with modular plate and cover in front on surface or in recess, including providing and fixing 2 nos 3 pin 5/6 amps modular socket outlet and 2nos 5/6 amps modular switch, connection etc. as required. (for light plugs to be used in non residential buildings.)","Each",265,null,"Rupees ",0]
[1.18,1.57,"Supplying & fixing suitable size GI box wih modular plate and cover in front on surface or in recess including providing and fixing 25 A modular socket outlet and 25 A modular SP MCB, “C” curve including connections, painting etc. as required.","Each",12,null,"Rupees ",0]
[]
["2. MCCB, MCB & DBs"]
[2.1,2.2000000000000002,"Providing and fixing Following rating and breaking capacity and pole MCCB exisitng cubicle panel board including drilling holes in cubicle panel, making connections etc as required."]
["2.1.1","2.2.1","100 Amp ,16 KA,TP MCCB","Nos",2,null,"Rupees ",0]
["2.1.2","2.2.2","125 Amp ,16 KA,TP MCCB","Nos",2,null,"Rupees ",0]
[2.2000000000000002,2.2999999999999998,"Supplying and fixing following way single pole and neutral, sheet steel, MCB distribution board, 240 volts, on surface/ recess complete with tinned copper busbar, neutral busbar, earth bar, din bar, interconnection, powder painted including earthing etc. as required. (But without MCB/ RCCB/ Isolator)"]
["2.2.1","2.3.2","8 way double door","Nos",2,null,"Rupees ",0]
["2.2.2","2.3.3","12 way double door ","Nos",4,null,"Rupees ",0]
["2.2.3","2.3.4","16 way double door ","Nos",6,null,"Rupees ",0]
[2.2999999999999998,2.4,"Supplying and fixing following way horizontal type three pole and neutral, sheet steel, MCB distribution board, 415 volts, on surface/ recess complete with tinned copper busbar, neutral busbar, earth bar, din bar, interconnection, powder painted including earthing etc. as required. (But without MCB/ RCCB/ Isolator)"]
["2.3.1","2.4.1","4 way Double Door","Nos",15,null,"Rupees ",0]
["2.3.2","2.4.2","6 way Double Door  ","Nos",37,null,"Rupees ",0]
["2.3.3","2.4.3","8 way Double Door ","Nos",13,null,"Rupees ",0]
[2.4,2.5,"Supplying and fixing following way surface / recess mounted vertical  type, 415 volt, TPN MCB distribution board of sheet steel, dust protected, duly powder painted, inclusive of 200amps tinned copper busbar, common neutral link, earth bar, din bar, for mounting MCB's, (but without MCB's and incomer), as required. (Note: Vertical type MCB TPDB is normally used where 3 phase outlets are required).",null,null,null,null,0]
["2.4.1","2.5.1","4 way Double door","Each",20,null,"Rupees ",0]
["2.4.2","2.5.2","8 way Double door","Each",6,null,"Rupees ",0]
[2.5,2.1,"Supplying and fixing 5 amps to 32 amps rating, 240/415 volts, \"C\" curve, miniature circuit breaker suitable for inductive load of following poles in the existing MCB DB complete with connections, testing and commissioning etc. as required.",null,null,null,null,0]
["2.5.1","2.10.1","Single pole","Each",1270,null,"Rupees ",0]
["2.5.2","2.10.3","Double pole","Each",6,null,"Rupees ",0]
["2.5.3","2.10.4","Triple pole","Each",40,null,"Rupees ",0]
["2.5.4","2.10.5","Triple pole and neutral","Each",8,null,"Rupees ",0]
[2.6,2.11,"Supplying and fixing single pole blanking plate in the existing MCB DB complete etc. as required.","Each",190,null,"Rupees ",0]
[2.7,2.12,"Supplying and fixing following rating, double pole, 240 volts, isolator in the existing MCB DB complete with connections, testing and commissioning etc. as required.",null,null,null,null,0]
["2.7.1","2.12.1","40 amps","Each",6,null,"Rupees ",0]
["2.7.2","2.12.2","63 amps","Each",6,null,"Rupees ",0]
[2.8,2.13,"Supplying and fixing following rating, four pole, 415 volts, isolator in the existing MCB DB complete with connections, testing and commissioning etc. as required.",null,null,null,null,0]
["2.8.1","2.13.1","40 amps","Each",68,null,"Rupees ",0]
["2.8.2","2.13.2","63 amps","Each",26,null,"Rupees ",0]
[2.9,2.14,"Supplying and fixing following rating, double pole, (single phase and neutral), 240 volts, residual current circuit breaker (RCCB), having a sensitivity current upto 300 milliamperes in the existing MCB DB complete with connections, testing and commissioning etc. as required.",null,null,null,null,0]
["2.9.1","2.14.1","25 amps","Each",2,null,"Rupees ",0]
["2.9.2","2.14.2","40 amps","Each",4,null,"Rupees ",0]
["2.9.3","2.14.3","63 amps","Each",6,null,"Rupees ",0]
[2.1,2.15,"Supplying and fixing following rating, four pole, (three phase and neutral), 415 volts, residual current circuit breaker (RCCB), having a sensitivity current upto 300 milliamperes in the existing MCB DB complete with connections, testing and commissioning etc. as required."]
["2.10.1","2.15.1","25 amps","Each",28,null,"Rupees ",0]
["2.10.2","2.15.2","40 amps","Each",36,null,"Rupees ",0]
["2.10.3","2.15.3","63 amps","Each",12,null,"Rupees ",0]
[2.11,2.16,"Supplying and fixing DP sheet steel enclosure on surface / recess along with 25/32 amps 240 volts, \"C\" curve DP MCB complete with connections, testing and commissioining etc as required.","Each",5,null,"Rupees ",0]
[2.12,2.17,"Supplying and fixing TPN sheet steel enclosure on surface / recess along with 16/25/32 amps 415 volts, \"C\" curve TPN MCB complete with connections, testing and commissioining etc as required.","Each",8,null,{"$f":"FnConvert(F69)","v":"Rupees "},0]
[2.13,2.1800000000000002,"Supplying and fixing 20 amps, 240 volts, SPN industrial type, socket outlet, with 2 pole and earth, metal enclosed plug top along with 20 amps `C' series, SP, MCB in sheet steel enclosure on surface or in recess, with chained metal cover for the socket outlet and complete with connections testing and commissioning etc, as required.","Each",8,null,"Rupees ",{"$f":"ROUND(E70*F70,0)","v":0}]
[2.14,2.2000000000000002,"Supplying and fixing 30 amps, 415 volts, TPN industrial type, socket outlet, with 4 pole and earth, metal enclosed plug top along with 30amps `C' series, TPN, MCB in sheet steel enclosure on surface or in recess, with chained metal cover for the socket outlet and complete with connections testing and commissioning etc, as required.","Each",4,null,"Rupees ",0]
[]
[]
["3. Cable Tray"]
[3.1,4.0999999999999996,"Supply and installing following size of perforated hot dipped GI cable trays(galvanisation thickness not less than 50 microns) with perforations not more that 17.5% in convenient sections, jointed with connectors, suspended from the ceiling with GI suspenders / fixed to walls with suitable GI clamps, including bolts and nuts, bends, reducers, Tees, cross members etc as required.",null,null,null,null,0]
["3.1.1","4.6.2","150 mm width x 50 mm depth x 1.6 mm thickness","m",660,null,"Rupees ",0]
["3.1.2","4.6.3","225 mm width x 50 mm depth x 1.6 mm thickness","m",350,null,"Rupees ",0]
["3.1.3","4.6.4","300 mm width x 50 mm depth x 1.6 mm thickness","m",180,null,"Rupees ",0]
["3.1.4","4.6.10","450 mm width x 62.5 mm depth x 2.0 mm thickness","m",140,null,"Rupees ",0]
[null,null,null,null,null,null,null,0]
["4. Earthing",null,null,null,null,null,null,0]
[4.0999999999999996,5.6,"Earthing with copper earth plate 600 mm X 600 mm X 3 mm thick including accessories, and providing masonry enclosure with cover plate having locking arrangement and watering pipe of 2.7 metre long etc. with charcoal/ coke and salt as required.","Set",35,null,"Rupees ",0]
[4.2,5.8,"Supplying and laying 25 mm X 5 mm copper strip at 0.50 metre below ground as strip earth electrode, including connection/ terminating with nut, bolt, spring, washer etc. as required. (Jointing shall be done by overlapping and with 2 sets of brass nut bolt & spring washer spaced at 50mm)","m",890,null,"Rupees ",0]
[4.3,5.14,"Providing and fixing 25 mm X 5 mm copper strip on surface or in recess for connections etc. as required. ","m",350,null,"Rupees ",0]
[4.4000000000000004,5.15,"Providing and fixing 25 mm X 5 mm G.I. strip on surface or in recess for connections etc. as required.","m",2100,null,"Rupees ",0]
[4.5,5.18,"Providing and fixing 6 SWG dia G.I. wire on surface or in recess for loop earthing along with existing surface / recessed conduit / submain wiring / cable as required. ","m",480,null,"Rupees ",0]
[4.5999999999999996,5.19,"Providing and fixing 4 mm dia copper wire on surface or in recess for loop earthing along with existing surface / recessed conduit / submain wiring / cable as required. ","m",860,null,"Rupees ",0]
[4.7,5.2,"Providing and fixing earth bus of 50 mm x 5 mm copper strip on surface for connections etc as required.","m",110,null,"Rupees ",0]
[null,null,null,null,null,null,null,0]
["5. MV Cable Laying",null,null,null,null,null,null,0]
[5.0999999999999996,7.1,"Laying of one number PVC insulated and PVC sheathed / XLPE power cable of 1.1 KV grade of following size direct in ground including excavation, sand cushioning, protective covering and refilling the trench etc as required.",null,null,null,null,0]
["5.1.1","7.1.1","Upto 35 sq. mm","m",765,null,"Rupees ",0]
["5.1.2","7.1.2","Above 35 sq. mm and upto 95 sq. mm","m",50,null,"Rupees ",0]
["5.1.3","7.1.3","Above 95 sq. mm and upto 185 sq. mm","m",130,null,"Rupees ",0]
["5.1.4","7.1.4","Above 185 sq. mm and upto 400 sq. mm","m",200,null,"Rupees ",0]
[5.2,7.2,"Laying of one number additional PVC insulated and PVC sheathed / XLPE power cable of 1.1 KV grade of following size direct in ground in the same trench in one tier horizontal formation including excavation, sand cushioning, protective covering  but excluding and refilling the trench etc as required.",null,null,null,null,0]
["5.2.1","7.2.1","Upto 35 sq. mm","m",50,null,"Rupees ",0]
["5.2.2","7.2.2","Above 35 sq. mm and upto 95 sq. mm","m",40,null,"Rupees ",0]
["5.2.3","7.2.3","Above 95 sq. mm and upto 185 sq. mm","m",200,null,"Rupees ",0]
["5.2.4","7.2.4","Above 185 sq. mm and upto 400 sq. mm","m",100,null,"Rupees ",0]
[5.3,7.5,"Laying of one number PVC insulated and PVC sheathed / XLPE power cable of 1.1 KV grade of following size in the existing RCC/ HUME/ METAL pipe as required.",null,null,null,null,0]
["5.3.1","7.5.1","Upto 35 sq. mm","m",120,null,"Rupees ",0]
["5.3.2","7.5.2","Above 35 sq. mm and upto 95 sq. mm","m",30,null,"Rupees ",0]
["5.3.3","7.5.3","Above 95 sq. mm and upto 185 sq. mm","m",300,null,"Rupees ",0]
["5.3.4","7.5.4","Above 185 sq. mm and upto 400 sq. mm","m",50,null,"Rupees ",0]
[5.4,7.6,"Laying of one number PVC insulated and PVC sheathed / XLPE power cable of 1.1 KV grade of following size in the existing open duct as required.",null,null,null,null,0]
["5.4.1","7.6.1","Upto 35 sq. mm","m",90,null,"Rupees ",0]
["5.4.2","7.6.2","Above 35 sq. mm and upto 95 sq. mm","m",20,null,"Rupees ",0]
["5.4.3","7.6.3","Above 95 sq. mm and upto 185 sq. mm","m",350,null,"Rupees ",0]
["5.4.4","7.6.4","Above 185 sq. mm and upto 400 sq. mm","m",425,null,"Rupees ",0]
[5.5,7.7,"Laying and fixing of one number PVC insulated and PVC sheathed / XLPE power cable of 1.1 KV grade of following size on wall surface as required.",null,null,null,null,0]
["5.5.1","7.7.1","Upto 35 sq. mm (clamped with 1mm thick saddle)","m",1650,null,"Rupees ",0]
["5.5.2","7.7.2","Above 35 sq. mm and upto 95 sq. mm (clamped with 25x3mm MS flat clamp)","m",150,null,"Rupees ",0]
["5.5.3","7.7.3","Above 95 sq. mm and upto 185 sq. mm (clamped with 25/40x3mm MS flat clamp)","m",350,null,"Rupees ",0]
["5.5.4","7.7.4","Above 185 sq. mm and upto 400 sq. mm (clamped with 40x3mm MS flat clamp)","m",125,null,"Rupees ",0]
[5.6,7.8,"Laying and fixing of one number PVC insulated and PVC sheathed / XLPE power cable of 1.1 KV grade of following size on cable tray as required.",null,null,null,null,0]
["5.6.1","7.8.1","Upto 35 sq. mm (clamped with 1mm thick saddle)","m",3850,null,"Rupees ",0]
["5.6.2","7.8.2","Above 35 sq. mm and upto 95 sq. mm (clamped with 25x3mm MS flat clamp)","m",300,null,"Rupees ",0]
["5.6.3","7.8.3","Above 95 sq. mm and upto 185 sq. mm (clamped with 25/40x3mm MS flat clamp)","m",725,null,"Rupees ",0]
["5.6.4","7.8.4","Above 185 sq. mm and upto 400 sq. mm (clamped with 40x3mm MS flat clamp)","m",200,null,"Rupees ",0]
[5.7,7.9,"Supplying and making cable route marker with cement concrete 1:2:4 (1 cement : 2 coarse sand : 4 graded stone aggregate 20 mm nominal size ) of size 60 cm X 60 cm at the bottom and 50 cm X 50 cm at the top with a thickness of 10cm including inscription duly engraved as required.","each",35,null,"Rupees ",0]
[null,null,null,null,null,null,null,0]
["6. HT Cable Laying",null,null,null,null,null,null,0]
[6.1,8.1,"Laying of one number PVC insulated and PVC sheathed / XLPE power cable of 11 KV grade of following size direct in ground including excavation, sand cushioning, protective covering and refilling the trench etc as required.",null,null,null,null,0]
["6.1.1","8.1.2","Above 120 sq. mm and upto 400 sq. mm","m",240,null,"Rupees ",0]
[6.2,8.3000000000000007,"Laying of one number PVC insulated and PVC sheathed / XLPE power cable of 11 KV grade of following size in the existing RCC/ HUME/ METAL pipe as required.",null,null,null,null,0]
["6.2.1","8.3.2","Above 120 sq. mm and upto 400 sq. mm","m",50,null,"Rupees ",0]
[6.3,null,"Laying of one number PVC insulated and PVC sheathed / XLPE power cable of 11 KV grade of following size in the existing masonry open duct as required.",null,null,null,null,0]
["6.3.1","8.4.2","Above 120 sq. mm and upto 400 sq. mm","m",80,null,"Rupees ",0]
[]
["7. MV Cable Jointing & End Termination"]
[7.1,9.1,"Supplying and making end termination with brass compression gland and aluminium for following size of PVC insulated and PVC sheathed / XLPE aluminium conductor cable of 1.1 KV grade as required."]
["7.1.1","9.1.31","3.5 C x 400 sq.mm                ","Nos",32,null,{"$f":"FnConvert(F133)","v":"Rupees "},0]
["7.1.2","9.1.30","3.5 C x 300 sq.mm                ","Nos",6,null,"Rupees ",{"$f":"ROUND(E134*F134,0)","v":0}]
["7.1.3","9.1.29","3.5 C x 240 sq.mm","Nos",10,null,"Rupees ",0]
["7.1.4","9.1.27","3.5 C x 185 sq.mm","Nos",44,null,"Rupees ",0]
["7.1.5","9.1.26","3.5 C x 150 sq.mm","Nos",14,null,"Rupees ",0]
["7.1.6","9.1.25","3.5 C x 120 sq.mm               ","Nos",8,null,"Rupees ",0]
["7.1.7","9.1.24","3.5 C x 95 sq.mm               ","Nos",4,null,"Rupees ",0]
["7.1.8","9.1.23","3.5 C x 70 sq.mm                 ","Nos",6,null,"Rupees ",0]
["7.1.9","9.1.22","3.5 C x 50 sq.mm                 ","Nos",6,null,"Rupees ",0]
["7.1.10","9.1.21","3.5 C x 35 sq.mm","Nos",6,null,"Rupees ",0]
["7.1.11","9.1.20","3.5 C x  25 sq.mm","Nos",34,null,"Rupees ",0]
["7.1.12","9.1.34","4 x 25 sqmm","Nos",6,null,"Rupees ",0]
["7.1.13","9.1.33","4 x 16 sqmm","Nos",74,null,"Rupees ",0]
["7.1.14","9.1.32","4 x 10 sq.mm                         ","Nos",58,null,"Rupees ",0]
["7.1.15","9.1.3","2 x 16 sqmm","Nos",10,null,"Rupees ",0]
["7.1.16","9.1.2","2 x 10 sqmm","Nos",12,null,"Rupees ",0]
["7.1.17","9.1.1","2 x 6 sqmm","Nos",12,null,"Rupees ",0]
[null,null,null,null,null,null,null,0]
["8. HV Cable Jointing & End Termination"]
[8.1,10.4,"Supplying and making indoor cable end termination with heat shrinkable jointing kit complete with all accessories including lugs suitable for following size of 3 core, XLPE aluminium conductor cable of 11 KV grade as required :"]
["8.1.1","10.4.2","150 sq.mm","Each",4,null,"Rupees ",0]
["8.1.2","10.4.3","240 sq. mm","Each",2,null,"Rupees ",0]
[8.1999999999999993,10.5,"Supplying and making outdoor cable end termination with heat shrinkable jointing kit complete with all accessories including lugs suitable for following size of 3 core, XLPE aluminium conductor cable of 11 KV grade as required :",null,null,null,null,0]
["8.2.1","10.5.3","240 sq. mm","Each",2,null,"Rupees ",0]
[]
["9. Miscellaneous civil Items"]
[9.1,"10.2 (SR civil)","Supply and installing of DG set stack, outdoor busduct support  using angular structure, channel, I section, necessary nut and bolt and all required accessories for erecting exhaust pipe from 2 nos DG set. The design of the stack with foundation shall be got approved before fabrication. The foundation for the stack shall be measured separately.","Kg",8000,null,"Rupees ",0]
[9.1999999999999993,14.13,"Providing, laying and fixing following dia G.I. pipe (medium class) in ground complete with G.I. fittings including trenching (75 cm deep)and re-filling etc as required"]
["9.2.1","14.13.1","50 mm dia","m",20,null,"Rupees ",0]
["9.2.2","14.13.3","100 mm dia","m",30,null,"Rupees ",0]
["9.2.3","14.13.4","150 mm dia","m",40,null,"Rupees ",0]
[9.3000000000000007,14.14,"Providing, laying and fixing following dia RCC pipe NP2 class (light duty) in ground complete with RCC collars, jointing with cement mortar 1:2 (1 cement : 2 fine sand) including trenching (75 cm deep) and refilling etc as required."]
["9.3.1","14.14.1","100 mm dia","m",50,null,"Rupees ",0]
["9.3.2","14.14.2","150 mm dia","m",80,null,"Rupees ",0]
["9.3.3","14.14.4","300 mm dia","m",160,null,"Rupees ",0]
[" "]
["10. Lighting Controls"]
[]
[10.1,15.1,"Supplying, installation, testing and commissioning of Passive Infrared (PIR) technology based occupancy sensor having high preformance, non regulating programmable type, suitable for connected load upto 10 Amp , for mounting height up to 2.8 mtr and for 5 m diameter coverage area along with necessary fixing arrangements i/c programming at site etc. complete as required.","Each",40,null,"Rupees ",0]
[10.199999999999999,15.4,"Supplying, installation, testing & commissioning of Astronomical time switch of following configuration to be mounted in feeder pillars / Lighting DBs for automatic switching On & Off of street lights at sun set & sun rise or twilight (Auto ON, Auto Off, Auto modes) with manual override facility with 12/24 hour display format with suitable battery and indication for relay status i/c programming at site complete as required. ",null,null,null,null,0]
[null,"15.4.3","3 output (1 output per phase) and suitable for three phase supply","Each",3,null,"Rupees ",0]
[]
["11. HT Panel & Transformer"]
[]
[11.1,null,"Supply,fabrication, erection, testing & commissioning of 11 KV DP structure using required size of ISMB for poles and required size cross channel with  ISMC for supporting structure for 11kV components, 11 KV  pin, disc and stay insulators, supports, jumpers '/interconnecting conductors  with 0'SWG Cu, 25x3mm braided copper earthing for non current moving part like handle of AB switch etc. The item includes erection of DP structure on suitable concrete foundation and  painting with one coat of metal primer after fabrication and two coats of aluminium enamel paint after erection complete and consists of the following. The cost of the civil foundation shall be measured along with civil items. The design of the foundation shall be got approved from Engineer-in-charge before execution. ",null,null,null,null,0]
[null,null,"11KV,400 A  single brake,TP, gang operated AB switch with operating handle & locking mechanism - 1 set "]
[null,null,"11 KV Lighting Arrestors - 1 set"]
[null,null,"11 KV Drop out fuses - 1 set "]
[null,null,"The consumers DP structure shall be braced with state electricity board DP structure if required & interconnection shall be done with 0 SWG Cu wire."]
[null,null,"The DP structure shall be with all necessary accessories for connecting 11kV cable as per particular specification & drawing. The 11kV DP structure shall be done as per the requirement of statutory authority.","Job",2,null,"Rupees ",0]
[]
[11.2,null,"Supply, installation, testing & commissioing of 11kV outdoor type CT/PT unit with CT rating suitable as per Kerala State Electricty Department , class 0.2S, 15VA CT & 11kV/110V class 0.2S 100VA PT to be mounted on to the DP structure. The item also include supply & installation of TOD meter in a suitable weather proof sheet steel enclosure (14SWG) in 600mm plinth including Test terminal block, control fuses & 10C 2.5sqmm armoured copper cable between CT/PT unit & TOD meter. The work shall be as per state electricity board norms. The cost of the civil foundation shall be measured along with civil items. The design of the foundation shall be got approved from Engineer-in-charge before execution. ","Job",1,null,"Rupees ",0]
[]
[11.3,null,"Supply, fabricating & erection of 1.8 mtr high chain link fencing (50mm cross link) over 600 mm high brick masonry, using 4 mm thick GI chain link with a framework of 50x50x6 mm MS angle between vertical posts of ISMC 75x50mm at 2400 mm  interval, which are fixed to the concrete footing (1:2:4) of size 450x450x200 mm (above GL) with adequate footing depth, between the brick / block masonry. Brick / block masonry (345 mm thick) and 200 mm from ground level for foundation & plinth in cement mortar (1:6). The brick masonry is to be pointed using cement mortar 1:3 to have a flush finish. Earth strip shall be connected to the fencing for its earthing.The MS framework for chain link fencing is finished using zinc chromate primer & 2 coats of synthetic enamel paint. 1.5 mtr wide gate shall be  provided with suitable locking arrangements.The rate shall be inclusive of all materials, labour, lead, lift, etc including excavation works and fabrication and assembly works including all nuts, bolts & other miscellaneuos items, etc.complete ","m",20,null,"Rupees ",0]
[null,null,"HT CABLE",null,null,null,null,0]
[11.4,null,"Supply of 3C x 240 sqmm 11kV (E) grade XLPE insulated PVC sheathed compact circular armoured aluminium conductor HT power cable, insulation screened with extruded semi conducting compound in combination with copper tape suitable for 11kV earthed system confirming to relavent standard. ","m",270,null,"Rupees ",0]
[11.5,null,"Supply of 3C x 150 sqmm 11kV (E) grade XLPE insulated PVC sheathed compact circular armoured aluminium conductor HT power cable, insulation screened with extruded semi conducting compound in combination with copper tape suitable for 11kV earthed system confirming to relavent standard. ","m",40,null,"Rupees ",0]
[11.6,null,"INDOOR HT PANEL"]
[null,null,"Supply, installation, testing and commissioning of Indoor HT VCB 3 panel unit, floor mounted, fabricated with 2mm thick CRCA sheet suitably reinforced, powder coated, with segregated HT & LT compartment consisting of "]
[null,null,"Incomer"]
[null,null,"One no. 11 kV, 630A, TP, 500 MVA, VCB, with suitably interlocked earth switch, having horizontal draw out and isolation.  The VCB shall be fitted with motorized spring mechanism for closing , ON, OFF LED /mechanical indication lamp, emergency trip, Microprocessor based Protection relays (3 OC & 1 SC), high speed tripping relay, trip circuit supervision relay, safety shutter etc.  The breaker shall be complete  with closing coil, tripping coil and shunt trip.  Providing necessary power pack (in-built) also forms part of the scope.  The panel shall be provided with the required no. of auxiliary contacts with 4NO+4NC spare contacts.  "]
[null,null,"Outgoing"]
[null,null,"Two nos. 11 kV, 630A, TP, 350 MVA, VCB, having horizontal draw out and isolation.  The VCB shall be fitted with motorized spring mechanism for closing with  ON, OFF LED / mechanical indication lamp, emergency trip, Microprocessor based Protection relays (3 OC & 1 SC), high speed tripping relay, trip circuit supervision relay, auxillary relay for Transformer, safety shutter etc.  The breaker shall be complete  with closing coil, tripping coil and shunt trip.  Providing necessary power pack (in-built) also forms part of the scope.  The panel shall be provided with the required no. of auxiliary contacts with 4NO+4NC spare contacts. "]
[null,null,null,null,null,null,null,0]
[null,null,"Components in each incomer and outgoing panels shall also include, but not limited to the follwing items.",null,null,null,null,0]
[null,null,"1 no. Trip neutral close (T-N-C) switch.",null,null,null,null,{"$f":"ROUND(E198*F198,0)","v":0}]
[null,null,"1 no. Analogue volt meter scaled 0-15KV with selector switch ",null,null,null,null,{"$f":"ROUND(E199*F199,0)","v":0}]
[null,null,"1 no. Analogue ammeter scaled 0-50 A with selector switch ",null,null,null,null,{"$f":"ROUND(E200*F200,0)","v":0}]
[null,null,"1 set On,Off, Trip, Trip healthy, spring charge indication lamp"]
[null,null,"1 set panel earth bus."]
[null,null,"1 set Inbuilt  Power pack of 110V AC input with DC output for control &  indication  "]
[null,null,"1 set Draw out type 3 limb, 11 kV/110V, 100VA, class 0.5, epoxy cast resin potential transformer with necessary HT & LT fuses."]
[null,null,"1 set Epoxy resin cast CT with suitable ratio as per demand load, with 15VA, class 0.5 for metering & 15VA class 5P10 for protection "]
[null,null,"1 no Panel heater with a control switch and illumination lamp with door switch."]
[null,null,"1 set Test terminal block."]
[null,null,"1 set 630 A TP copper bus having a current density of 1.2A per sqmm duly sleeved with all accessories and insulators complete as required.   "]
[null,null,"1 set 8 window solid state alarm annunciator with test, acknowledge, rest push buttom with hooter."]
[null,null,"The panel shall be subjected to all routine tests as per IS/IEC standards. Type test certificate of identical panel shall be submitted."]
[null,null,"The VCB & panel shall be provided with all necessary standard safety feature as per IS & door interlocks such as breaker cannot be drawn out when breaker is in ON position and similarly breaker cannot be closed unless it is fully in drawn in condition.   "]
[null,null,"In addition to the above, 11kV HT panel shall be with all requirements as per the guidelines by Local E.B authorities and Electrical inspectorate. ","No",1,null,{"$f":"FnConvert(F212)","v":"Rupees "},{"$f":"ROUND(E212*F212,0)","v":0}]
[11.7,null,"DISTRIBUTION TRANSFORMER (DRY TYPE) "]
[null,null,"Supply, installation, testing and commissioning of 630 kVA, 11kV/433V, 3 phase, 50 Hz, Delta star, DYn11, Dry type, cast resin, indoor, natually cooled, copper double wound transformer with On load tap changer from +5% to -10% in steps of ±2.5%,with automatic voltage regulating relay provide at secondary with primary trip, tap raise / lower push button, Indication for tap position/ tap change in progress, Supply ON, Control supply isolator,Auto/Independent, Auto/ Manual switch,neccesary control cables and other facilities, etc, class F insulation, complete with WTI and scanner for alarm & trip, unidirectional rollers, cable end box for termination of HT cables &  LT Cable complete with rating and technical name plate, earthing terminals with lugs, lifting lugs in all respect with all necessary standard accessories and as per IS. The transformer shall have suitable enclosure for providing neutral CT on earthed star point with connector for connection to REF relay provided in Main panel. The Transformer Enclosure shall have suitably designed Louvers for Air Circulation & efficient Cooling. The enclosure shall be Epoxy Powder coated. The transformer shall be confirm to IS:2026/77 subjected to all routine tests as per IS/IEC standards. Type test certificate shall be submitted.     ","Set",2,null,{"$f":"FnConvert(F214)","v":"Rupees "},{"$f":"ROUND(E214*F214,0)","v":0}]
[null,null,null,null,null,null,{"$f":"FnConvert(F215)","v":"Rupees "},{"$f":"ROUND(E215*F215,0)","v":0}]
[null,null,null,null,null,null,null,{"$f":"ROUND(E216*F216,0)","v":0}]
["12. DG set & Control Panel",null,null,null,null,null,null,{"$f":"ROUND(E217*F217,0)","v":0}]
[12.1,null,"Supply, Installation, Testing and Commissioning of 500 KVA, silent type, water cooled, radiator type, four stroke, electric start D.G Set with acoustic enclosure and standard control panel. The engine shall be capable of taking 10% overload for one hour after 12 hours of continuous operation. The DG shall be suitable for AMF operation. The alternator shall be brushless, self excited, self regulated, brushless, SPDP enclosure, class H insulation, suitable for continuous operation at 1500 rpm, generating 415 V +/- 5% at 0.8 p.f, 50Hz, 0.85 load factor, 3 phase, 4 wire system generally conforming to BS: 2613 & IS: 4722.",null,null,null,null,{"$f":"ROUND(E218*F218,0)","v":0}]
[null,null,"The control panel shall be provided with 800 A FP  MCCB  with Isolation facility - 1 nos. and all neccesary engine protection equipments, indications, control cables, instruments,relays and accesories for the satisfactory operation of DG set. The panel shall be suitable for receving 3 runs 3.5C X 400 sqmm cable . The item also include supply and installation of diesel 990 ltr day tank with all necessary fuel piping, fittings etc from the day tank to engine for each DG set including necessary trenching. "]
[null,null,"Both Engine and Alternator shall be mounted on common channel iron base frame, and with standard accessories such as antiviberation pad, lead acid batteries (as specified by engine manufacturer) and engine driven battery charger along with leads, battery stand, fuel piping from fuel tank to Engine, electronic governor, Residential silencer, External battery charger, suitable size cable termination box etc as required. Rate shall be inclusive of all lift, lead charges, first filling of oil  DG set. The work should be as per Electrical Inspectorate / Pollution control board norms.","Nos",2,null,{"$f":"FnConvert(F220)","v":"Rupees "},{"$f":"ROUND(E220*F220,0)","v":0}]
[12.2,null,"Supply & installation of exhaust gas piping of suitable diameter ( Not less than 6 inch for each exhaust pipe) as per manufactures standard welded black MS, B class pipe confirming to IS:3589 cut to required lengths and installed with necessary bends, supports and clamps, anti- vibration mountings, insulation of  exhaust system with mineral wool / Rockwool, 50mm thick wire mesh & aluminum cladding etc. ","m",160,null,{"$f":"FnConvert(F221)","v":"Rupees "},{"$f":"ROUND(E221*F221,0)","v":0}]
[null,null,null,null,null,null,null,{"$f":"ROUND(E222*F222,0)","v":0}]
["13. LT Panels",null,null,null,null,null,null,{"$f":"ROUND(E223*F223,0)","v":0}]
[null,null,"Note:All LT Panels(Switch boards)  shall  be Validated Design as per the standards IEC 61439-1/2.      The Panels and the associated equipment including switchgear, control gear, Busbar supports, Busbar orientation, Busbar links etc shall be identical in construction to the assembly which has undergone the total type test. • The tottaly type tested designs of the switchboards shall be proven design from switchgear manufacturer (OEM)• All Switch gears shall conforms Ics= 100% Icu as per IEC 60947-2• Switchboards shall have a short circuit level of minimum of 50 KA withstand. The enclosures shall be designed to take care of normal stress as well as abnormal electro-mechanical stress due to short circuit conditions. Switchboards shall have Rated Impulse withstand voltage of 12kv.• Switchboards must have mechanical impact IK10 tested• Busbars shall be made of high conductivity, and high strength Aluminium E91 grade.  Busbar shall be suitable to withstand the stresses of fault level as specified in schedule of quantities. Degree of Protection of Enclosures shall be IEC60529\n\n",null,null,null,null,{"$f":"ROUND(E224*F224,0)","v":0}]
[13.1,null,"Supply, Installation, Testing & Commissioning of Main  LT panel, cubicle type, made out of min 2mm thick CRCA sheet (load bearing), totally enclosed, IP42, free standing, floor mounting, dust and vermin proof, powder coated, indoor, compartmentalised, suitable for operation on 3 phase and neutral, 415 V, 50Hz AC system with busbars extendable on both sides, including internal wiring with suitable size wires, rotary handle, spreaders, 3mm thick gland plate, hinged type door with neoprene / PU gasket etc. The panel shall include supply & installation of following switchgears, metering instruments and accessories as per specification. "]
[null,null,"Incomer"]
[null,null,"1000A, FP, 50kA, microprocessor based ACB electrical operated, drawout type, motorised, with overload, instantaneous SC, delayed SC, and ground fault protection with necessary communication port, shunt trip coil, U/V release etc - 2 nos."]
[null,null,"800A, FP, 50kA, microprocessor based ACB electrical operated, drawout type, motorised, with overload, instantaneous SC, delayed SC, and ground fault protection with necessary communication port, shunt trip coil, U/V release etc - 2 nos.",null,null,null,null,{"$f":"ROUND(E228*F228,0)","v":0}]
[null,null,"AMF & Load Management Circuit",null,null,null,null,{"$f":"ROUND(E229*F229,0)","v":0}]
[null,null,"PLC based AMF logic with EB sensing, protection for under / over voltage, reverse power, under / over frequency, unbalance, programmable start/stop timings,shall be provided.",null,null,null,null,{"$f":"ROUND(E230*F230,0)","v":0}]
[null,null,"This AMF & Load Balancing System includes following operational features.\n1)   Manual Mode\n2)   Auto Mode\n3)   Semi Auto Mode\nProvision  for  Transformer & DG  Selection  depending  upon the load requirements.\n1)    DG1\n2)    DG2\n3)   DG1 & DG2"]
[null,null,"Suitable electrical and mechanical interlock shall be provided between the DG , EB incomers & Bus couplers to ensure that only one supply is available at a time on each section of bus and to eliminate any possiblity of both supplies at one bus section."]
[null,null,"The panel shall have all neccesary Control cables, Instruments, Relays and  accessories for the auto / manual load sharing logic for 2 nos DGSets  and satisfactory operation of AMF.  "]
[null,null,"Neccesary provision and control wirring shall be done to trip LT panel incomer on failure of 11kV HT supply."]
[null,null,"Bus Coupler",null,null,null,null,{"$f":"ROUND(E235*F235,0)","v":0}]
[null,null,"1000A, FP, 50kA, microprocessor based ACB electrical operated, drawout type, motorised with out protection with necessary communication port, shunt trip coil etc - 1 no.",null,null,null,null,{"$f":"ROUND(E236*F236,0)","v":0}]
[null,null,"Busbar"]
[null,null,"1 Set of 1000 A TPN busbars of high conductivity electrolytic quality Aluminium alloy  and suitable size earthing conductor through out the panel for its earthing. "]
[null,null,"Instruments"]
[null,null,"2A, C curve SP MCB - 4 set"]
[null,null,"RYB indication lamp, LED type - 4 set"]
[null,null,"On/Off, Trip indication lamp, LED type - 4 set "]
[null,null,"(0-500)V voltmeter, Digital type - 4 set"]
[null,null,"(0-1000)A ammeter, Digital type - 2 set"]
[null,null,"(0-800)A ammeter, Digital type - 2 set"]
[null,null,"4 set 3 phase Digital Multi function meter to read V, A, F, kW, PF, kWH, Acc class 1 and with necessary communication port (Backnet/Modbus/RS:485) suited for BMS system"]
[null,null,"Low set earth fault relay using CT of 250/5A 15VA Cl. 5P10 with necessary control cable from CT at transformer neutral to 51G relay in MSB panel-  2 set"]
[null,null,"Low set earth fault relay using CT of 160/5A 15VA Cl. 5P10 with necessary control cable from CT at DG set neutral to 51G relay in MSB panel-  2 set"]
[null,null,"1000/5A 15VA class 1 resin cast CT - 2 set"]
[null,null,"800/5A 15VA class 1 resin cast CT - 2 set"]
[null,null,"1000/5A 15VA class 1 resin cast CT for connection to APFC panel including necessary size connecting cable - 2 set"]
[null,null,"Outgoing."]
[null,null,"630A TPN 35kA MCCB with microprocessor release with adjustable OL, SC and EF protection - 2 nos. "]
[null,null,"400A TPN 35kA MCCB with microprocessor release with adjustable OL, SC and EF protection - 6 nos. "]
[null,null,"400A, TPN, switch disconnector unit (Isolator), AC23, 415V, 50Hz, complete with handle assembly having door interlock - 1 no. "]
[null,null,"Space provision for mounting 1 nos 630A MCCB"]
[null,null,"7 Nos 3 phase Digital Multi function meter to read V, A, F, kW, kWh with Acc class 1 including respective feeder rating CT on the outgoing feeders","Each",1,null,{"$f":"FnConvert(F257)","v":"Rupees "},{"$f":"ROUND(E257*F257,0)","v":0}]
[13.2,null,"Supply, Installation, Testing & Commissioning of 200 kVAR APFC panel, cubicle type, made out of min 2mm thick CRCA sheet (load bearing), totally enclosed, IP42, free standing, floor mounting, dust and vermin proof, powder coated, indoor, compartmentalised, suitable for operation on 3 phase and neutral, 415 V, 50Hz AC system, including internal wiring with suitable size wires, rotary handle, spreaders 3mm thick gland plate, hinged type door with neoprene / PU gasket etc. The panel shall include supply & installation of following switchgears, metering instruments and accessories as per specification. Required nos. of louvers and panel mounted cooling fans with auto/ manual control shall be provided."]
[null,null,"Incomer"]
[null,null,"1 No 400A, TPN, 35kA, MCCB with Thermal Magnetic release,  having adjustable OL & SC protection."]
[null,null,"Busbar"]
[null,null,"1 Set of 400 Amp TPN busbars of high conductivity electrolytic quality Aluminium alloy and suitable size earthing conductor through out the panel for its earthing. "]
[null,null,"Instruments"]
[null,null,"1 No 3 phase Digital Multi function meter to read V, A, F,PF with Acc class 1."]
[null,null,"1 Set of phase indicating lamps, LED type, RYB. "]
[null,null,"1 Set of 2A 10kA C curve SP control MCB "]
[null,null,"1 Set of 400/5A, Class 1.0, 5VA, Cast Resin CT for metering. "]
[null,null,"1 no. 7 stage APFC relay "]
[null,null,"7 set On, Off push button"]
[null,null,"7 set On, Off LED type indication lamp"]
[null,null,"1 set Auto / manual selector switch."]
[null,null,"Suitable type Timer circuit shall be provided for disconnecting the APFC  panel during the starting of DG set. The APFC panel shall be put into operation once the DG set load is stabilised. "]
[null,null,"Outgoing."]
[null,null,"2 Nos 125A, TPN, 25kA, MCCB with Thermal Magnetic release, having adjustable OL & SC protection."]
[null,null,"3 Nos 63A, TPN, 25kA, MCCB with Thermal Magnetic release, having adjustable OL & SC protection."]
[null,null,"2 Nos 40A, TPN, 25kA, MCCB with Thermal Magnetic release, having adjustable OL & SC protection."]
[null,null,"1 Nos. 12.5 kVAR MPP heavy duty capacitor with capacitor duty contactor & 7% detuned harmonic filter. "]
[null,null,"3 Nos. 25 kVAR MPP heavy duty capacitor with capacitor duty contactor & 7% detuned harmonic filter. "]
[null,null,"2 Nos. 50kVAR MPP heavy duty capacitor with capacitor duty contactor & 7% detuned harmonic filter."]
[null,null,"1 No. 12.5 kVAR MPP heavy duty capacitor with 7% detuned harmonic filter directly connected.","Each",{"$f":"'[2]BOQ CASUALTY '!E285","v":2},null,{"$f":"FnConvert(F280)","v":"Rupees "},{"$f":"ROUND(E280*F280,0)","v":0}]
[13.3,null,"Supply, Installation, Testing & Commissioning of Sub panel, cubicle type, made out of min 2mm thick CRCA sheet (load bearing), totally enclosed, IP42, free standing, floor mounting, dust and vermin proof, powder coated, indoor, compartmentalised, suitable for operation on 3 phase and neutral, 415 V, 50Hz AC system, including internal wiring with suitable size wires, rotary handle, spreaders, 3mm thick gland plate, hinged type door with neoprene gasket / PU etc. The panel shall include supply & installation of following switchgears, metering instruments and accessories as per specification. "]
[null,null,"Incomer",null,null,null,null,{"$f":"ROUND(E282*F282,0)","v":0}]
[null,null,"630A TPN 35kA MCCB with microprocessor release with adjustable OL, SC and EF protection - 1 nos. ",null,null,null,null,{"$f":"ROUND(E283*F283,0)","v":0}]
[null,null,"Busbar"]
[null,null,"1 Set of 630 A TPN busbars of high conductivity electrolytic quality Aluminium alloy and suitable size earthing conductor through out the panel for its earthing. "]
[null,null,"Instruments"]
[null,null,"2A, C curve SP MCB - 3 nos."]
[null,null,"RYB indication lamp, LED type - 3 nos."]
[null,null,"1 No 3 phase Digital Multi function meter to read V, A, F, kW, kWh, Acc class 1."]
[null,null,"630/5A 5VA class 1 resin cast CT - 1 set"]
[null,null,"Outgoing."]
[null,null,"400A, 35kA TPN MCCB, thermal magnetic having adjustable O/L, SC protection - 2 nos. "]
[null,null,"200A, 25kA TPN MCCB, thermal magnetic having adjustable O/L, SC protection - 2 nos. ","Each",1,null,{"$f":"FnConvert(F293)","v":"Rupees "},{"$f":"ROUND(E293*F293,0)","v":0}]
[13.4,null,"Supply, Installation, Testing & Commissioning of Medical Equipment Panel-1, cubicle type, made out of min 2mm thick CRCA sheet (load bearing), totally enclosed, IP42, free standing, floor mounting, dust and vermin proof, powder coated, indoor, compartmentalised, suitable for operation on 3 phase and neutral, 415 V, 50Hz AC system, including internal wiring with suitable size wires, rotary handle, spreaders, 3mm thick gland plate, hinged type door with neoprene gasket / PU etc. The panel shall include supply & installation of following switchgears, metering instruments and accessories as per specification. "]
[null,null,"Incomer"]
[null,null,"630A TPN 35kA MCCB with microprocessor release with adjustable OL, SC and EF protection - 1 nos. "]
[null,null,"Busbar"]
[null,null,"1 Set of 630 A TPN busbars of high conductivity electrolytic quality Aluminium alloy and suitable size earthing conductor through out the panel for its earthing. "]
[null,null,"Instruments"]
[null,null,"2A, C curve SP MCB - 3 nos."]
[null,null,"RYB indication lamp, LED type - 3 nos."]
[null,null,"1 No 3 phase Digital Multi function meter to read V, A, F, kW, kWh, Acc class 1"]
[null,null,"630/5A 5VA class 1 resin cast CT - 1 set"]
[null,null,"Outgoing."]
[null,null,"315A, TPN, 35kA MCCB, thermal magnetic having adjustable O/L, SC protection - 3 nos. "]
[null,null,"160A, TPN, 25kA MCCB, thermal magnetic having adjustable O/L, SC protection - 2 nos. ","Each",1,null,{"$f":"FnConvert(F306)","v":"Rupees "},{"$f":"ROUND(E306*F306,0)","v":0}]
[13.5,null,"Supply, Installation, Testing & Commissioning of Medical Equipment Panel-2, cubicle type, made out of min 2mm thick CRCA sheet (load bearing), totally enclosed, IP42, free standing, floor mounting, dust and vermin proof, powder coated, indoor, compartmentalised, suitable for operation on 3 phase and neutral, 415 V, 50Hz AC system, including internal wiring with suitable size wires, rotary handle, spreaders, 3mm thick gland plate, hinged type door with neoprene gasket / PU etc. The panel shall include supply & installation of following switchgears, metering instruments and accessories as per specification. "]
[null,null,"Incomer"]
[null,null,"400A TPN 35kA MCCB with microprocessor release with adjustable OL, SC and EF protection - 1 nos. "]
[null,null,"Busbar"]
[null,null,"1 Set of 400 A TPN busbars of high conductivity electrolytic quality Aluminium alloy and suitable size earthing conductor through out the panel for its earthing. "]
[null,null,"Instruments"]
[null,null,"2A, C curve SP MCB - 3 nos."]
[null,null,"RYB indication lamp, LED type - 3 nos."]
[null,null,"1 No 3 phase Digital Multi function meter to read V, A, F, kW, kWh, Acc class 1"]
[null,null,"400/5A 5VA class 1 resin cast CT - 1 set"]
[null,null,"Outgoing."]
[null,null,"200A, TPN, 35kA MCCB, thermal magnetic having adjustable O/L, SC protection - 3 nos. "]
[null,null,"125A, TPN, 25kA MCCB, thermal magnetic having adjustable O/L, SC protection - 2 nos. ","Each",1,null,{"$f":"FnConvert(F319)","v":"Rupees "},{"$f":"ROUND(E319*F319,0)","v":0}]
[13.6,null,"Supply, Installation, Testing & Commissioning of Utiility Panel-1,cubicle type, made out of min 2mm thick CRCA sheet (load bearing), totally enclosed, IP42, free standing, floor mounting, dust and vermin proof, powder coated, indoor, compartmentalised, suitable for operation on 3 phase and neutral, 415 V, 50Hz AC system, including internal wiring with suitable size wires, rotary handle, spreaders, 3mm thick gland plate, hinged type door with neoprene gasket / PU etc. The panel shall include supply & installation of following switchgears, metering instruments and accessories as per specification. "]
[null,null,"Incomer"]
[null,null,"400A TPN 35kA MCCB with microprocessor release with adjustable OL, SC and EF protection - 1 nos. "]
[null,null,"Busbar"]
[null,null,"1 Set of 400 A TPN busbars of high conductivity electrolytic quality Aluminium alloy and suitable size earthing conductor through out the panel for its earthing. "]
[null,null,"Instruments"]
[null,null,"2A, C curve SP MCB - 3 nos."]
[null,null,"RYB indication lamp, LED type - 3 nos."]
[null,null,"1 No 3 phase Digital Multi function meter to read V, A, F, kW, kWh, Acc class 1"]
[null,null,"400/5A 5VA class 1 resin cast CT - 1 set"]
[null,null,"Outgoing."]
[null,null,"250A, TPN, 35kA MCCB, thermal magnetic having adjustable O/L, SC protection - 2 nos. "]
[null,null,"160A, TPN, 35kA MCCB, thermal magnetic having adjustable O/L, SC protection - 2 nos. ","Each",1,null,{"$f":"FnConvert(F332)","v":"Rupees "},{"$f":"ROUND(E332*F332,0)","v":0}]
[13.7,null,"Supply, Installation, Testing & Commissioning of Utiility Panel-2,cubicle type, made out of min 2mm thick CRCA sheet (load bearing), totally enclosed, IP42, free standing, floor mounting, dust and vermin proof, powder coated, indoor, compartmentalised, suitable for operation on 3 phase and neutral, 415 V, 50Hz AC system, including internal wiring with suitable size wires, rotary handle, spreaders, 3mm thick gland plate, hinged type door with neoprene gasket / PU etc. The panel shall include supply & installation of following switchgears, metering instruments and accessories as per specification. "]
[null,null,"Incomer",null,null,null,null,{"$f":"ROUND(E334*F334,0)","v":0}]
[null,null,"400A, TPN, switch disconnector unit (Isolator), AC23, 415V, 50Hz, complete with handle assembly having door interlock - 1 no. "]
[null,null,"Busbar"]
[null,null,"1 Set of 400 A TPN busbars of high conductivity electrolytic quality Aluminium alloy and suitable size earthing conductor through out the panel for its earthing. "]
[null,null,"Instruments"]
[null,null,"2A, C curve SP MCB - 3 nos."]
[null,null,"RYB indication lamp, LED type - 3 nos."]
[null,null,"1 No 3 phase Digital Multi function meter to read V, A, F, kW, kWh, Acc class 1"]
[null,null,"400/5A 5VA class 1 resin cast CT - 1 set"]
[null,null,"Outgoing."]
[null,null,"250A, TPN, 35kA MCCB, thermal magnetic having adjustable O/L, SC protection - 2 nos. "]
[null,null,"250A, TPN, switch disconnector unit (Isolator), AC23, 415V, 50Hz, complete with handle assembly having door interlock - 2 nos. ","Each",1,null,{"$f":"FnConvert(F345)","v":"Rupees "},{"$f":"ROUND(E345*F345,0)","v":0}]
[13.8,null,"Supply, Installation, Testing & Commissioning of Power panel, cubicle type, made out of min 2mm thick CRCA sheet (load bearing), totally enclosed, IP42, free standing, floor mounting, dust and vermin proof, powder coated, indoor, compartmentalised, suitable for operation on 3 phase and neutral, 415 V, 50Hz AC system, including internal wiring with suitable size wires, rotary handle, spreaders, 3mm thick gland plate, hinged type door with neoprene gasket / PU etc. The panel shall include supply & installation of following switchgears, metering instruments and accessories as per specification. "]
[null,null,"Incomer"]
[null,null,"400A TPN 35kA MCCB with microprocessor release with adjustable OL, SC and EF protection - 1 nos. ",null,null,null,null,{"$f":"ROUND(E348*F348,0)","v":0}]
[null,null,"Busbar",null,null,null,null,{"$f":"ROUND(E349*F349,0)","v":0}]
[null,null,"1 Set of 400 A TPN busbars of high conductivity electrolytic quality Aluminium alloy and suitable size earthing conductor through out the panel for its earthing. "]
[null,null,"Instruments"]
[null,null,"2A, C curve SP MCB - 3 nos."]
[null,null,"RYB indication lamp, LED type - 3 nos."]
[null,null,"1 No 3 phase Digital Multi function meter to read V, A, F, kW, kWh, Acc class 1."]
[null,null,"400/5A 5VA class 1 resin cast CT - 1 set"]
[null,null,"Outgoing."]
[null,null,"100 A, TPN, 25kA MCCB, thermal magnetic having adjustable O/L, SC protection - 2 nos. "]
[null,null,"63 A, TPN, 25kA MCCB, thermal magnetic having adjustable O/L, SC protection - 7 nos. ","Each",1,null,{"$f":"FnConvert(F358)","v":"Rupees "},{"$f":"ROUND(E358*F358,0)","v":0}]
[13.9,null,"Supply, Installation, Testing & Commissioning of Light Panel, cubicle type, made out of min 2mm thick CRCA sheet (load bearing), totally enclosed, IP42, free standing, floor mounting, dust and vermin proof, powder coated, indoor, compartmentalised, suitable for operation on 3 phase and neutral, 415 V, 50Hz AC system, including internal wiring with suitable size wires, rotary handle, spreaders, 3mm thick gland plate, hinged type door with neoprene / PU gasket etc. The panel shall include supply & installation of following switchgears, metering instruments and accessories as per specification. "]
[null,null,"Incomer"]
[null,null,"200A TPN 25kA MCCB with thermal magnetic release with adjustable OL, SC and EF protection - 1 nos. "]
[null,null,"Busbar"]
[null,null,"1 Set of 200 A TPN busbars of high conductivity electrolytic quality Aluminium alloy and suitable size earthing conductor through out the panel for its earthing. "]
[null,null,"Instruments"]
[null,null,"2A, C curve SP MCB - 3 nos."]
[null,null,"RYB indication lamp, LED type - 3 nos."]
[null,null,"1 No 3 phase Digital Multi function meter to read V, A, F, kW, kWh, Acc class 1."]
[null,null,"200/5A 5VA class 1 resin cast CT - 1 set"]
[null,null,"Outgoing."]
[null,null,"40 A TPN 25 kA MCCB, thermal magnetic  having adjustable O/L, SC protection  - 9 nos. ","Each",1,null,{"$f":"FnConvert(F370)","v":"Rupees "},{"$f":"ROUND(E370*F370,0)","v":0}]
[13.1,null,"Supply, Installation, Testing & Commissioning of VRF Panel, cubicle type, made out of min 2mm thick CRCA sheet (load bearing), totally enclosed, IP42, free standing, floor mounting, dust and vermin proof, powder coated, indoor, compartmentalised, suitable for operation on 3 phase and neutral, 415 V, 50Hz AC system, including internal wiring with suitable size wires, rotary handle, spreaders, 3mm thick gland plate, hinged type door with neoprene / PU gasket etc. The panel shall include supply & installation of following switchgears, metering instruments and accessories as per specification. "]
[null,null,"Incomer"]
[null,null,"250A TPN 35kA MCCB with thermal magnetic release with adjustable OL, SC and EF protection - 1 nos. "]
[null,null,"Busbar"]
[null,null,"1 Set of 250 A TPN busbars of high conductivity electrolytic quality Aluminium alloy and suitable size earthing conductor through out the panel for its earthing. "]
[null,null,"Instruments"]
[null,null,"2A, C curve SP MCB - 3 nos."]
[null,null,"RYB indication lamp, LED type - 3 nos."]
[null,null,"1 No 3 phase Digital Multi function meter to read V, A, F, kW, kWh, Acc class 1"]
[null,null,"250/5A 5VA class 1 resin cast CT - 1 set"]
[null,null,"Outgoing."]
[null,null,"63 A TPN 25 kA MCCB, thermal magnetic  having adjustable O/L, SC protection  - 6 nos. ","Each",1,null,{"$f":"FnConvert(F382)","v":"Rupees "},{"$f":"ROUND(E382*F382,0)","v":0}]
[13.11,null,"Supply, Installation, Testing & Commissioning of Lift Panel, cubicle type, made out of min 2mm thick CRCA sheet (load bearing), totally enclosed, IP42, free standing, floor mounting, dust and vermin proof, powder coated, indoor, compartmentalised, suitable for operation on 3 phase and neutral, 415 V, 50Hz AC system, including internal wiring with suitable size wires, rotary handle, spreaders, 3mm thick gland plate, hinged type door with neoprene / PU gasket etc. The panel shall include supply & installation of following switchgears, metering instruments and accessories as per specification. "]
[null,null,"Incomer"]
[null,null,"160A TPN 35kA MCCB with thermal magnetic release with adjustable OL, SC and EF protection - 1 nos. "]
[null,null,"Busbar"]
[null,null,"1 Set of 160 A TPN busbars of high conductivity electrolytic quality Aluminium alloy and suitable size earthing conductor through out the panel for its earthing. "]
[null,null,"Instruments"]
[null,null,"2A, C curve SP MCB - 3 nos."]
[null,null,"RYB indication lamp, LED type - 3 nos."]
[null,null,"1 No 3 phase Digital Multi function meter to read V, A, F, kW, kWh, Acc class 1."]
[null,null,"160/5A 5VA class 1 resin cast CT - 1 set"]
[null,null,"Outgoing."]
[null,null,"63 A TPN 25 kA MCCB, thermal magnetic  having adjustable O/L, SC protection  - 5 nos. ","Each",1,null,{"$f":"FnConvert(F394)","v":"Rupees "},{"$f":"ROUND(E394*F394,0)","v":0}]
[13.12,null,"Supply, Installation, Testing & Commissioning of Sub Utility Panel, cubicle type, made out of min 2mm thick CRCA sheet (load bearing), totally enclosed, IP42, free standing, floor mounting, dust and vermin proof, powder coated, indoor, compartmentalised, suitable for operation on 3 phase and neutral, 415 V, 50Hz AC system, including internal wiring with suitable size wires, rotary handle, spreaders, 3mm thick gland plate, hinged type door with neoprene / PU gasket etc. The panel shall include supply & installation of following switchgears, metering instruments and accessories as per specification. "]
[null,null,"Incomer"]
[null,null,"250A TPN 35kA MCCB with thermal magnetic release with adjustable OL, SC and EF protection - 1 nos. "]
[null,null,"Busbar"]
[null,null,"1 Set of 250 A TPN busbars of high conductivity electrolytic quality Aluminium alloy and suitable size earthing conductor through out the panel for its earthing. "]
[null,null,"Instruments"]
[null,null,"2A, C curve SP MCB - 3 nos."]
[null,null,"RYB indication lamp, LED type - 3 nos."]
[null,null,"1 No 3 phase Digital Multi function meter to read V, A, F, kW, kWh, Acc class 1"]
[null,null,"250/5A 5VA class 1 resin cast CT - 1 set"]
[null,null,"Outgoing."]
[null,null,"160 A TPN 25kA MCCB, thermal magnetic  having adjustable O/L, SC protection  - 2 nos. "]
[null,null,"63 A TPN  25kA MCCB, thermal magnetic  having adjustable O/L, SC protection  - 1 nos. "]
[null,null,"40 A TPN  25kA MCCB, thermal magnetic  having adjustable O/L, SC protection  - 3 nos. ","Each",1,null,{"$f":"FnConvert(F408)","v":"Rupees "},{"$f":"ROUND(E408*F408,0)","v":0}]
[13.13,null,"Supply, Installation, Testing & Commissioning of UPS panel 1&2, cubicle type, made out of min 2mm thick CRCA sheet (load bearing), totally enclosed, IP42, free standing, floor mounting, dust and vermin proof, powder coated, indoor, compartmentalised, suitable for operation on 3 phase and neutral, 415 V, 50Hz AC system, including internal wiring with suitable size wires, rotary handle, spreaders, 3mm thick gland plate, hinged type door with neoprene / PU gasket etc. The panel shall include supply & installation of following switchgears, metering instruments and accessories as per specification. "]
[null,null,"Incomer"]
[null,null,"160A TPN 25kA MCCB with thermal magnetic release with adjustable OL, SC and EF protection - 1 nos. ",null,null,null,{"$f":"FnConvert(F411)","v":"Rupees "},{"$f":"ROUND(E411*F411,0)","v":0}]
[null,null,"Busbar",null,null,null,null,{"$f":"ROUND(E412*F412,0)","v":0}]
[null,null,"1 Set of 160 A TPN busbars of high conductivity electrolytic quality Aluminium alloy and suitable size earthing conductor through out the panel for its earthing. "]
[null,null,"Instruments"]
[null,null,"2A, C curve SP MCB - 3 nos."]
[null,null,"RYB indication lamp, LED type - 3 nos."]
[null,null,"1 No 3 phase Digital Multi function meter to read V, A, F, kW, kWh, Acc class 1"]
[null,null,"160/5A 5VA class 1 resin cast CT - 1 set"]
[null,null,"Outgoing."]
[null,null,"63 A TPN  25kA MCCB, thermal magnetic  having adjustable O/L, SC protection  - 2 nos. "]
[null,null,"40 A TPN  25kA MCCB, thermal magnetic  having adjustable O/L, SC protection  - 4 nos. ","Each",2,null,{"$f":"FnConvert(F421)","v":"Rupees "},{"$f":"ROUND(E421*F421,0)","v":0}]
[13.14,null,"Supply, Installation, Testing & Commissioning of Plumbing panel, cubicle type, made out of min 2mm thick CRCA sheet (load bearing), totally enclosed, IP42, free standing, floor mounting, dust and vermin proof, powder coated,outdoor, compartmentalised, suitable for operation on 3 phase and neutral, 415 V, 50Hz AC system, including internal wiring with suitable size wires, rotary handle, spreaders, 3mm thick gland plate, hinged type door with neoprene / PU gasket etc. The panel shall include supply & installation of following switchgears, metering instruments and accessories as per specification. "]
[null,null,"Incomer"]
[null,null,"63A, TPN, switch disconnector unit (Isolator), AC23, 415V, 50Hz, complete with handle assembly having door interlock - 1 no. "]
[null,null,"Busbar"]
[null,null,"1 Set of  100A TPN busbars of high conductivity electrolytic quality Aluminium alloy and suitable size earthing conductor through out the panel for its earthing. "]
[null,null,"Instruments",null,null,null,null,{"$f":"ROUND(E427*F427,0)","v":0}]
[null,null,"2A, C curve SP MCB - 3 nos."]
[null,null,"RYB indication lamp, LED type - 3 nos."]
[null,null,"1 No 3 phase Digital Multi function meter to read V, A, F, kW, kWh, Acc class 1."]
[null,null,"100/5A 5VA class 1 resin cast CT - 1 set"]
[null,null,"Outgoing."]
[null,null,"32A TPN C curve MCB - 4 nos. "]
[null,null,"2 nos Suitable DOL / star delta starters shall be provided for the pump motor with indiaction lamp, push button, contactor, OLR, SSP etc."]
[null,null,"2 set level sensor and auxillary relay for auto start / stop of pumps shall be provided.","Each",1,null,{"$f":"FnConvert(F435)","v":"Rupees "},{"$f":"ROUND(E435*F435,0)","v":0}]
[13.15,null,"Supply, Installation, Testing & Commissioning of Street  lighting panel, cubicle type, made out of 2mm thick CRCA sheet, totally enclosed, free standing, floor mounting, dust and vermin proof, powder coated, outdoor type, compartmentalised, suitable for operation on 3 phase and neutral, 415 V, 50Hz AC system, including internal wiring with suitable size wires, rotary handle, spreaders, 3mm thick gland plate, hinged type door with neoprene gasket etc. The panel shall include supply & installation of following switchgears, metering instruments and accessories as per specification. "]
[null,null,"Incomer"]
[null,null,"40A TPN 25kA MCCB with thermal magnetic release with adjustable OL, SC and EF protection - 1 nos. "]
[null,null,"40A AC1 duty 4P Power contactor - 1 nos."]
[null,null,"Busbar"]
[null,null,"1 Set of 40 A TPN busbars of high conductivity electrolytic quality Aluminium alloy. "]
[null,null,"Instruments"]
[null,null,"2A, C curve SP MCB - 3 nos."]
[null,null,"RYB indication lamp, LED type - 3 nos."]
[null,null,"1 No 3 phase Digital Multi function meter to read V, A, F, kW, kWh, Acc class 1."]
[null,null,"40/5A 5VA class 1 resin cast CT - 1 set"]
[null,null,"Outgoing."]
[null,null,"16A TP+NL C curve MCB - 5 nos. "]
[null,null,"Necessary space provision and control wiring for satisfactory operation of Astronimical time switch for automatic switching ON & OFF of street lights.and bypass arrangement for contractor ","Nos",1,null,{"$f":"FnConvert(F449)","v":"Rupees "},{"$f":"ROUND(E449*F449,0)","v":0}]
[13.16,null,"Supply, installing, testing and commissioing of following capacity circuit breaker in sheet steel enclosure for use on 3 phase 4 wire 415 volts, 50Hz AC complete with all necessary accessories including fixing connectors, spreaders, extended rotory handle, steel fasteners, connecting to earthing system etc. as required. "]
["13.16.1",null,"315A, TPN, 35kA, thermal magnetic based MCCB with adjustable OL , SC protection.","Each",2,null,{"$f":"FnConvert(F451)","v":"Rupees "},{"$f":"ROUND(E451*F451,0)","v":0}]
["13.16.2",null,"200A, TPN, 25kA, thermal magnetic based MCCB with adjustable OL protection.","Each",2,null,{"$f":"FnConvert(F452)","v":"Rupees "},{"$f":"ROUND(E452*F452,0)","v":0}]
["13.16.3",null,"160A, TPN, 25kA, thermal magnetic based MCCB with adjustable OL protection.","Each",3,null,{"$f":"FnConvert(F453)","v":"Rupees "},{"$f":"ROUND(E453*F453,0)","v":0}]
[null,null,null,null,null,null,null,{"$f":"ROUND(E454*F454,0)","v":0}]
["14. UPS ",null,null,null,null,null,null,0]
[14.1,null,"Supply, Installation Testing and commissioning of 75 kVA/KW 3 phase (Includes running modules+ Minimum 1 redundant module) double conversion, DSP Based VFI technology 3 Level inverter , True on line, Hot swappable Modular  UPS system  as per IEC 62040-3 with 415V +/- 15% V,50Hz,3Ph Input & 415V +/- 15%,3Ph,50 Hz output. Each Module shall be 3 phase either with 20/25/30 kVA Capacity  having kVA=KW (Unity power factor)and frame size shall be suitable for adding modules upto 100 kVA. Input & output of module should be electrically isolate in case of any fault.In case of face reverse,load should continue to support rectifer.UPS should work on load power factor 0.5 lag to 0.5 lead.Output shall be true sine wave.  UPS shall have RS 232 ports, monitoring software , O/L.S.C. protections & self diagnostic features,LCD Display Panel for Functions & all parameters, complying with IEC standards. Convertors,Invertors, rectifiers & Battery Charger shall  utilize PWM technology with IGBT."]
[null,null,"Battery Back up time of 30 minutes for 50KW load with required numbers of 'SMF -VRLA Battery with Battery management  System, housed in  suitable Cabinet /stand.Static ByPass with hot swappable centralized  bypass option (should be able to replace module without interrupting load), complete with  Internal wiring & all accessories to be provided.UPS shall be capable of over load  capacity 110 % for 60 min , 125 % fo 10 min, 150% for 60 sec. Proper earthing as per  UPS vendor specfication should be provided.",null,null,null,null,0]
[null,null,"The necessary cabling and terminations from isolator to UPS and UPS to UPS distrubition panel also should provided.The System shall have in-built P.F.correction & shall ensure THD as per latest International standards.Also UPS shall be compactiable with genset supply.  The efficiency of UPS shall be not less than 95% .","Each",2,null,"Rupees ",0]
[14.2,null,"Supply, Installation Testing and commissioning of  double convertion, DSP Based, True on line UPS system  as per IEC 62040-3 with 415V +/- 15% V,50Hz,3Ph Input & 415V,3Ph,50 Hz , Output, working on 16 Bit microprocessor Architecture, with in built Isolation  transformers,  RS 232 ports, monitoring software , O/L.S.C. protections & self diagnostic features,LCD Display Panel for Functions & all parameters, complying with IEC standards. Convertors,Invertors, rectifiers & Battery Charger shall  utilize PWM technology with IGBT. Battery Back up time of 30 minutes with required Nos. of 'SMF Battery with Battery management  System, housed in  suitable Cabinet /stand,Static ByPass, complete with  Internal wiring & all accessories to be provided. Proper earthing as per  UPS vendor specfication should be provided."]
[null,null,"The necesary cabling and terminations from isolator to UPS and UPS to UPS distrubition panel also should provided.The System shall have in-built P.F.correction(Output > 0.9) & shall ensure THD as per latest International standards.  The efficiency of UPS shall be not less than 93% ."]
["14.2.1",null,"20 kVA  with Individual Battery Bank","Each",1,null,"Rupees ",0]
[14.3,null,"Supply, installation, testing and commissioning of 24V, 120 AH rating heavy duty, Valve Regulated  maintenance free  Battery unit  including suitable floor Mounted Battery Racks, Interconnecting cables, Batteries duly charged and complete with all accessories, etc.  The Rack shall be painted with Anti-Acid Resistant paint. ","Set",1,null,"Rupees ",0]
[14.4,null,"Supply, installation,Testing & Commissioning  of  Battery Charger Unit for charging above Battery with Auto-Manual selector for  \"Boost Charging\", Float Charging\". The battery charger shall operate on 230V AC +/-10%, 1Ph, 50Hz supply. The battery charger shall be provided with D.C. Distribution Board. The  Housing for the battery charger shall be of Indoor Type, fabricated with 2mm thick CRCA sheet ,Floor Mounting cabinet with louvers, The unit shall be constant voltage current limiting type with boost voltage adjustable type, with all protections, Indicating lamps, DC voltmeter and ammeter etc complete as required. "]
[null,null,"The DC DB shall be part of battery charger with"]
[null,null,"1 set of 20A, DP MCB (DC)"]
[null,null,"Outgoing"]
[null,null,"4 nos. 6A, DP  MCBs, incoming and outgoing terminals.","Set",1,null,"Rupees ",0]
[]
["15. LT Cable"]
[15.1,null,"Supply of the following size 1.1kV grade XLPE insulated PVC sheathed, armoured Aluminium conductor power cable confirming to IS 7098 (part 1) ammended upto date. "]
["15.1.1",null,"3.5 C x 400 sq.mm                ","m",500,null,"Rupees ",0]
["15.1.2",null,"3.5 C x 300 sq.mm                ","m",200,null,"Rupees ",0]
["15.1.3",null,"3.5 C x 240 sq.mm","m",260,null,"Rupees ",0]
["15.1.4",null,"3.5 C x 185 sq.mm","m",1480,null,"Rupees ",0]
["15.1.5",null,"3.5 C x 150 sq.mm","m",250,null,"Rupees ",0]
["15.1.6",null,"4 C x 120 sq.mm                 ","m",200,null,"Rupees ",0]
["15.1.7",null,"3.5 C x 120 sq.mm               ","m",200,null,"Rupees ",0]
["15.1.8",null,"3.5 C x 95 sq.mm               ","m",150,null,"Rupees ",0]
["15.1.9",null,"3.5 C x 70 sq.mm                 ","m",190,null,"Rupees ",0]
["15.1.10",null,"3.5 C x 50 sq.mm                 ","m",200,null,"Rupees ",0]
["15.1.11",null,"3.5 C x 35 sq.mm","m",150,null,"Rupees ",0]
["15.1.12",null,"4 C x  25 sq.mm","m",120,null,"Rupees ",0]
["15.1.13",null,"3.5 C x  25 sq.mm","m",950,null,"Rupees ",0]
["15.1.14",null,"4 C x 16 sqmm","m",1720,null,"Rupees ",0]
["15.1.15",null,"4 C x 10 Sq.mm                         ","m",1670,null,"Rupees ",0]
["15.1.16",null,"4 C x 6 sqmm                         ","m",1020,null,"Rupees ",0]
["15.1.17",null,"4 C x 4 sqmm                         ","m",725,null,"Rupees ",0]
["15.1.18",null,"2 Cx 16 sqmm","m",250,null,"Rupees ",0]
["15.1.19",null,"2 Cx 10 sqmm","m",340,null,"Rupees ",0]
["15.1.20",null,"2 Cx 6 sqmm","m",300,null,"Rupees ",0]
[]
["16. Light Fittings and Fans"]
[null,null,"Note:All lightning Luminaire shall have fixed with Electronic  Ballast, starters, control gears and necessary all connected accessories, supporting bracket/chain suspender, balance socket, suspension conduit, hooks, clamps, screws, connectors, terminal,  flexible wire with flexible hose & gland from light point to lighting luminaries, CABLING /WIRES UPTO WIRING POINT FROM LUMINAIRES  etc.. complete as required without any extra cost."]
[16.100000000000001,null,"Supply and installation of recess mounted Round  LED 18 W down light in die-cast aluminium housing including high efficiency diffuser provides soft glare free light, driver etc  including all required mounting accessories complete. (Make: Crompton LCDD-18-CDL /Havells LHEBJNP7IN1WO18 /Wipro -LD90-231-XXX-65-XX ).","Nos",410,null,"Rupees ",0]
[16.2,null,"Supply of 20W LED  Batten surface mounting luminarire with Decorative box type fitting with high effciency PMMA diffuser including all necessary accessories complete. (Make: Crompton DMLN1LT8-16/LTT8-20 /Havells LHFYBWP1TB1W020-LHLDDBXEUL7Z020 /Wipro -W10 921208/LL13-181-65SE ).","Nos",180,null,"Rupees ",0]
[16.3,null,"Supply of 9/10 W LED Batten surface mounting luminarire with Decorative box type fitting with high effciency PMMA diffuser including all necessary accessories complete. (Make : Crompton LCTL-9-CDL/Havells LHEWEBP7IN1WO10 / Wipro-LL20-III-XXX-65-NE ).","No",205,null,"Rupees ",0]
[16.399999999999999,null,"Supply and installation of compact Recess mounted 36W LED luminaire with High transculent diffuser gives soft glare free light & complete with electronic driver including all required mounting accessories complete. (Make : Crompton LCTLR36-FO-CDL /Havells LHECDIL7PN1W036 / Wipro -CRCO 10R038HP57GL1)","No",720,null,"Rupees ",0]
[16.5,null,"Supply and installation of compact surface mounted 36W LED luminaire in MS housing with opal diffuser & complete with electronic driver & high brightness  including all required mounting accessories complete. (Make : Crompton LCTLS36 CDL /Havells LHEWEBP7NL1W036 /Wipro -CRCO 10S036HP57G1 ).","No",15,null,"Rupees ",0]
[16.600000000000001,null,"Supply and installation of surface mounted  Round 18 W LED down lighter in powder coated white finish with integrated electronic driver,  including all required mounting accessories complete.  (Make : Havells LHEAAGP7IA1WO18 /Wipro -LD80-171-XXX-60-SM / Crompton LCDSPL R 18 CDL).","No",10,null,"Rupees ",0]
[16.7,null,"Supply and installation of 42/40 W Recessed bottom opening LED Clean room luminaire with  IP 65 ,UV resistant & polycarbonate cover etc including all required mounting accessories complete.  (Make: Crompton LBRP40CL22CD  /Havells LHEDDN7PW5W042 / Wipro-LC20-551-XXX-57-XX  ).","No",65,null,"Rupees ",0]
[16.8,null,"Supply of 20 W LED tube light Surface mounting industrial type corrossion resistant IP65 luminaire with polycarbonate body, polycarbonate cover, SS toggles etc including all necessary accessories complete. (Make:Crompton IPFC111LT8-16/ Havells LHEKAWN7PZ6J020/Wipro)","No",225,null,"Rupees ",0]
[16.899999999999999,null,"Supply and installation of 40/50W LED, IP65, flood light luminaire with high pressure die cast housing, high power LED including all accessories like driver, installation accessories etc as required. (Make: Crompton LFLE 50 CDL/HAVELLS LHEPBFUEIN6W050/ Wipro -LF19-471-060-57-XX)","No",10,null,"Rupees ",0]
[16.100000000000001,null,"Supply and installation of 10W LED, IP65, Wall mounted  Square light luminaire with ABS plastic white housing, and 0.5mm CRCA with White powder coated finish refelector including all accessories like driver, installation accessories etc as required. (Make: Crompton /HAVELLS LHEOAOP7UZ6W010/ Wipro -LW02-101-XXX-60-XX)","Each",105,null,"Rupees ",0]
[16.11,null,"Supply and installation of Wall fan 400 mm sweep, 230V.1Ph, complete with  Openable mesh Cover ,string Operated etc as required. (Make: Crompton WM High speed / Havells Swing / Usha Max Air white ) ","No",35,null,"Rupees ",0]
[16.12,null,"Supply of ceiling fan 1200 mm sweep,230V,1Ph, 5 star rated complete with double ball bearing, motor blades, down rods, canopy, capacitor etc complete as required.  (Make: Usha Technix Decorative (5 star rating) / Crompton Aura plus (5 star) / Havells ES -50 Premium 5) ","No",340,null,"Rupees ",0]
[16.13,null,"Supply  of 250 mm sweep ventillating fan complete with louvers and cable from ceiling rose / connector to fan.  (Make: Crompton Brisk Air /Havells Ventil Air-DX WHT/BLK /Usha Crisp Air )","No",90,null,"Rupees ",0]
[16.14,null,"Supply of 450 mm sweep, 900 rpm Heavy Duty Industrial type air exhaust fan complete with louvers and cable from ceiling rose/connector to fan. (Make :Crompton Heavy duty EXHD 450-6-1/ Havells Turbo force / Usha Turbo Heavy duty)","Nos",5,null,"Rupees ",0]
[]
["17. External Lighting "]
[17.100000000000001,null,"Supply & installation of Hot dipped Galvanised (internally and externally), seamless, octogonal pole of overall length 5M with single arm bracket of 1.5m length 48mm dia x 3.25mm thick with standard arm cap. The pole shall have inbuilt cable loop in loop out with flush door and locking facility. The bottom dia of the pole shall be 135mm and top 70mm with 3mm sheet thickness. The pole shall be with base plate of 225x225x16mm and 4nos required size of foundation bolt. The pole shall be mounted on suitable size foundation (design to be got approved) with baseplate arrangement and provided with 4A SP C curve MCB, loop in loop out terminals block, required dia GI / PVC pipe shall be provided in the foundation for taking cable in & out from the pole, 3Cx1.5sqmm unarmounred PVC insulated round copper cable from loop in loop out to light fixture etc with all required accessories.  The cost of the civil foundation is not considered in this item. The design of the foundation to be got approved from Engineer-in-charge before execution.","Nos",26,null,"Rupees ",0]
[]
[17.2,null,"Supply & installation of Hot dipped Galvanised (internally and externally), seamless, octogonal pole of overall length 5M with double arm bracket of 1.5m length 48mm dia x 3.25mm thick with standard arm cap. The pole shall have inbuilt cable loop in loop out with flush door and locking facility. The bottom dia of the pole shall be 135mm and top 70mm with 3mm sheet thickness. The pole shall be with base plate of 225x225x16mm and 4nos required size of foundation bolt. The pole shall be mounted on suitable size foundation (design to be got approved) with baseplate arrangement and provided with 4A SP C curve MCB, loop in loop out terminals block, required dia GI / PVC pipe shall be provided in the foundation for taking cable in & out from the pole, 3Cx1.5sqmm unarmounred PVC insulated round copper cable from loop in loop out to light fixture etc with all required accessories.  The cost of the civil foundation is not considered in this item. The design of the foundation to be got approved from Engineer-in-charge before execution.","Nos",4,null,"Rupees ",0]
[17.3,null,"Supply, installation, testing & commissioning of IP66, 25W LED street light fixture, with die cast aluminium housing, stainless steel toggle, electronic driver etc as required. The light fitting shall be suitabily installed with all required accessories to the street light pole. (Crompton LSTP-25-CDL/ Wipro LR02-291-XXX-57-XX /  Havells LHETAXU7PA6J025)","Nos",34,null,"Rupees ",0]
[]
[17.399999999999999,null,"Supply & installation of 10 / 8 W LED bollard  of reliable and robust design and should be environmentally friendly and have wide beam, reliable lighting performance with integrated baseplate and driver and Wide beam optic with Translucent diffuse tube,  and dark grey housing made of aluminium and polycarbonate diffuser.Should have long lifetime with IP65 protection and IK08 impact resistance including all minor civil works requred for installation of approved make and design.( Crompton LBSL1-10-CDL/Havells LHEVBDP7IN6K008 / Wipro -CRLA11008HP57-08)","Nos",6,null,"Rupees ",0]
[]
["18. Lightning Protection System"]
[18.100000000000001,null,"1 meter air terminal with accessories:  Providing and fixing Air terminals as per IEC -62305 part-3 10mm aluminium interception rod of 1 meter. Quick mounting of the interception rod in the base using plug technology.  connector . With an interception tip on the top.","Set",4,null,{"$f":"FnConvert(F518)","v":"Rupees "},{"$f":"ROUND(E518*F518,0)","v":0}]
[18.2,null,"4 meter air terminal with Accessories: Providing and fixing Air terminals as per IEC -62305 part-3  16mm rod tapered to 10 mm aluminium rod 4 meter rod:\nMeets the technical specification according to DIN EN 50164-2 (VDE 0815 part 202).\nMeets the requirement of VDE0185/305(IEC 62305): semi-hard (E-AlMgSiO5 corresponds to DIN 48801) Suitable for high wind load.\nSystem consist of Fang Fix with base and clamp on the top air terminal is erected.\nFang fix clamp made of cable bracket, lightning tested for 100 KA 10/350 micro sec waveform.\n2 nos of 16 KG stone of 365 mm diameter, high level of stability.\nQuick and easy mounting of interception rod using anchors.\nConcrete, frost-resistant, can be stacked.","Set",3,null,"Rupees ",0]
[18.3,null,"8mm solid aluminium round conductor: For concrete building\nMeets the technical specification according to DIN EN 50164-2 (VDE 0815 part 202).\nMeets the requirement of VDE0185/305(IEC 62305) : semi-hard (E-AlMgSiO5 corresponds to DIN 48801)\n With 50 sq.mm cross sectional area.\nPolyamide Conductor holder:\nWith M8 female thread or diameter 7mm, M8 Screw to connect the conductor holder.\nWeather and temperature resistant from -35 to +90 degree Celsius tested. Conductor holder @ 0.8 meter distance for air terminal and @ 1 meter distance for down conductors\n"]
["18.3.1",null,"a) Vertical run- Down conductor","Meter",630,null,"Rupees ",0]
["18.3.2",null,"b) Horizontal run-Parapet application","Meter",420,null,"Rupees ",0]
[18.399999999999999,null,"8mm solid aluminium round conductor: For concrete building Terrace application:Meets the technical specification according to DIN EN 50164-2 (VDE 0815 part 202). Meets the requirement of VDE0185/305(IEC 62305) : semi-hard (E-AlMgSiO5 corresponds to DIN 48801) With 50 sq.mm cross sectional area .Polyamide roof cable holder for flat roof: DIN 48829 Form B1. Closed form with bottom. With double conductor holder. Filling weight 1Kg (frost-resistant concrete). Sleeve from polyethylene, black. Glue:   All weather conditions tested glue to fix holder.","Meter",145,null,"Rupees ",0]
[18.5,null,"Providing and fixing of cross connector/T connector:   to route vertical down conductor /mesh formation made of stainless steel (grade 316) with necessary screws etc as required. Installed with 4 hexagonal bolts M8*25 with M8 hexagonal nuts in stainless steel (grade 316)","Each",37,null,"Rupees ",0]
[18.600000000000001,null,"Providing and fixing of expansion piece with connector: For equalising temperature related length changes. Necessary on conductors length over 20 meters. For round conductor.                                                                                                Connector: For T cross and parallel connectors. Quick installation using hexagonal bolt M10X30 high-grade hot dip galvanised. Conforms to the requirements according to DIN VDE 0185-305 (IEC 62305)","Each",8,null,"Rupees ",0]
[18.7,null,"Providing and Fixing of Stainless steel Test Joint (grade 316) , with 4 hexagonal bolts M6 X 12 , confirms to the requirements according to IS/IEC 62305 (DIN VDE 0185-305 ) mounted in a IP 66 enclosure. Capable of carring lightning current 100KA (10/350). Connection options: 1 x CU flat strip to round conductor","Each",20,null,"Rupees ",0]
[18.8,null,"Providing and fixing of Stainless steel Cross connector for Flat (grade 304): Suitable for copper flat. Installed with 4 nos of hexagonal bolts.","Each",35,null,"Rupees ",0]
[18.899999999999999,null,"Providing and fixing of PVC trapezoidal 1.5m long ducts including the fastening clamps","Set",20,null,"Rupees ",0]
[18.100000000000001,null,"Providing maintenance free Earthing system comprises of molecularly bonded copper of 99.9% purity on low carbon steel of 3m length having a diameter of 17.2 mm with copper coating thickness of 250 microns with fault current withstand capability of 20 KA rms value for 1 second and I peak of 50 KA.  Universal Clamp  made of SS 304 for clamping.Earth compound  is used for improving the soil conductivity.The material should have a resistivity less than 0.2 Ωm. It should be free from hazardous substances The compound is required to have minimum 25Kg of the total composite. Polypropylene & Polyethylene Earth electrode inspection chamber with heavy duty cover should be used to cover the Earth Rod. The dimension shall be 300mmx 300mmx 190mm with a weight bearing capacity of 50KN. ","Set",28,null,"Rupees ",0]
[]
["19 Miscellaneous "]
[19.100000000000001,null,"Supplying and fixing of following rating 415 volts, \"C\" curve, miniature circuit breaker suitable for inductive load of following poles in the existing MCB DB complete with connections, testing and commissioning etc. as required."]
["19.1.1",null,"40A / 63A TP C curve MCB","Each",22,null,"Rupees ",0]
[19.2,null,"Supplying and fixing following ways surface / recess mounting vertical type, 415 volts, TPN MCB distribution board of sheet steel, dust protected, duly powder painted. Inclusive of 200 amps tinned copper bus bar, common neutral link, earth bar, din bar for mounting MCBs with 100/125 amps TP 16kA MCCB as incomer interconnection between incomer MCCB and busbar (but without MCBs/MCCB) as required. (Note vertical type MCB TPDB is normally used where 3 phase outlets are required). "]
["19.2.1",null,"4 way ","Each",4,null,"Rupees ",0]
["19.2.2",null,"6 way","Each",2,null,"Rupees ",0]
["19.2.3",null,"8 way","Each",2,null,"Rupees ",0]
[19.3,null,"Supplying and fixing FP sheet steel enclosure on surface / recess along with 40/63 amps 415 volts, \"C\" curve TPN MCB complete with connections, testing and commissioining etc as required.","Each",12,null,"Rupees ",0]
[19.399999999999999,null,"Supplying and fixing FP Weather proof cabinets-IP65-IK-09- class II with door and cabinets fully reversible on surface/ recess along with 16/25/32 amps 415 volts \"C\" curve TPN MCB complete with connections, testing and commissioning etc. as required.","Each",8,null,"Rupees ",0]
[19.5,null,"Supplying and fixing FP Weather proof cabinets-IP65-IK-09- class II with door and cabinets fully reversible on surface/ recess along with 40/63 amps 415 volts \"C\" curve TPN MCB complete with connections, testing and commissioning etc. as required.","Each",10,null,"Rupees ",0]
[19.600000000000001,null,"Providing and fixing 4 mm dia copper wire at 0.50 metre below ground level for conductor earth electrode, including connection/ termination etc. as required.","m",430,null,"Rupees ",0]
[19.7,null,"Supplying and laying 50 mm X 6 mm CU strip at 0.50 metre below ground as strip earth electrode, including connection/ terminating with nut, bolt, spring, washer etc. as required. (Jointing shall be done by overlapping and with 2 sets of brass nut bolt & spring washer spaced at 50mm)","m",120,null,"Rupees ",0]
[19.8,null,"Providing and fixing 10 SWG copper wire on surface or in recess for loop earthing along with existing surface / recessed conduit / submain wiring/cable as required.","m",390,null,"Rupees ",0]
[19.899999999999999,null,"Supplying and making end termination with brass compression gland and aluminium  for following size of PVC insulated and PVC sheathed / XLPE aluminium conductor cable of 1.1 KV grade as required.",null,null,null,null,0]
["19.9.1",null,"4 x 120 sqmm","Nos",10,null,"Rupees ",0]
["19.9.2",null,"4 x 6 sqmm                         ","Nos",42,null,"Rupees ",0]
["19.9.3",null,"4 x 4 sqmm                         ","Nos",78,null,"Rupees ",0]
[19.100000000000001,null,"Supply and fixing anodised aluminum glass framed shock treatment chart.","Each",4,null,"Rupees ",0]
[19.11,null,"Supply & laying ISI marked following electrical grade chequered type rubber insulation mat as per IS 15642."]
["19.11.1",null,"2m x 1m x 6 mm for 415V grade","Nos",50,null,"Rupees ",0]
["19.11.2",null,"2m x 1m x 12 mm for 11kV grade","Nos",15,null,"Rupees ",0]
["19.11.3",null,"Supply and providing 15\" long rubber hand gloves 15kV.","Pair",2,null,"Rupees ",0]
[null,null,"Total Amount",null,null,null,{"$f":"FnConvert(H553)","v":"Rupees "},{"$f":"SUM(H5:H552)","v":0}]

{"sheet":"ELV","index":8,"n_rows":125,"n_cols":8,"rows_kept":125,"cut":false,"hidden":false,"merged":[[94,0,95,0],[92,0,93,0],[28,0,28,4],[63,0,63,4],[47,0,47,4],[1,0,1,7],[2,0,2,7],[0,0,0,6],[4,0,4,6],[7,0,8,0],[9,0,10,0],[30,0,31,0]]}
["`"]
["CCONSTRUCTION OF NEW PROPOSED OUT PATIENT BLOCK FOR GENERAL HOSPITAL, ALAPPUZHA -PART I"]
[" ESTIMATE - ELV WORKS "]
["Item No","DSR code","Details of items","Unit","Quantity","Rate (Rs.) in figures ","Rate (Rs.) in words","Amount (Rs.)"]
["  CCTV SURVEILLANCE SYSTEM - IP TYPE"]
[null,2016,"DSR ITEMS"]
[1,"1.21.2","Supplying and fixing of 25 mm Medium class PVC conduit along with accessories in surface/recess including cutting the wall and making good the same in case of recessed conduit as required.","mtrs",4500,null,{"$f":"FnConvert(F7)","v":"Rupees "},{"$f":"ROUND(F7*E7,0)","v":0}]
[2,1.53,"Supply and drawing of UTP 4 pair Cat 6 LAN cable in the existing surface/recessed PVC conduit as required."]
[null,"1.53.1","one run","mtrs",5500,null,"Rupees ",{"$f":"ROUND(F9*E9,0)","v":0}]
[3,null,"Supplying and installing following size of perforated GI cable trays(galvanisation thickness not less than\n50 microns) with perforation not more than 17.5%, in convenient sections, joined with connectors, suspended from the ceiling with GI suspenders including bolts & nuts, required bends, tees, reduces  etc as required."]
[null,"4.6.4","300 mm width X 50 mm depth X 1.6 mm thickness","mtrs",50,null,"Rupees ",0]
[null,null,"SUB TOTAL FOR DSR ITEMS"]
[null,null,"NON DSR ITEMS"]
[4,"LMR","Supply, installation, testing and commissioning of  IP based IR  WDR minidome day night colour Camera, 1/3\" progressive CMOS, 4 MP, 3 - 10 mm MFZ, night vision compatible,IR range upto 15 mtrs PoE, inbuilt micro SD card,Ethernet port, H.264, IP 66, ONVIF, UL, FCC & CE certified. All mounting accessories shall be included","No",55,null,"Rupees ",0]
[5,"LMR","Supply, installation, testing and commissioning of  IP based IR PTZ camera, 1/3\" CMOS, 2 Megapixel,30X zoom, WDR,  IR range of 200 Meters, inbuilt micro SD card,,Ethernet port,TDN, PoE, DWDR, BLC, AGC, DNR, OSD,H.264 High Profile dual-stream, ONVIF, Wall/corner Mount, IP-66. CE, FCC, C-Tick certified. All mounting accessories and mounting arm suitable for the location shall be included","No",3,null,"Rupees ",0]
[6,"LMR","Supply,installation, testing and commissioning of IP Network Video Recorders 16 channel with 16 ports, 2 SATA, audio 1 input 1 output, video 1 HDMI 1 VGA, recording resolution 5MP/3MP/1080P, 720P/ D1 @ 30 fps, network throughput 200 Mbps from IPC and 128 Mbps to Client, Smart search supported, Remote access by DDNS & P2P, 4 channel alarm input and 2 channel relay output, 2 USB ports, ONVIF, UL & CE certified.","No",4,null,"Rupees ",0]
[7,"LMR","Supply, installation, testing and commissioning of 20 100/1000 SFP ports + 4 Combo 10/100/1000BASE-T/SFP ports + 4 10G SFP+ ports, L2 Management Switch - Core Switch","No",1,null,"Rupees ",0]
[8,"LMR","Supply, installation, testing and commissioning of 24 port- Edge PoE switch","No",7,null,"Rupees ",0]
[9,"LMR","Supply, installation, testing and commissioning of Patch Panel  UTP Keystone- 24 Port- Fully loaded (Cat 5e,Cat 6 & Cat 6 A )","No",7,null,"Rupees ",0]
[10,"LMR","Supply and installation of Cat 6 UTP patch cord, 1 mtr","No",200,null,"Rupees ",0]
[11,"LMR","Supply, installation, testing and commissioning of Server PC, Intel i7 processor, 24 inch LED monitor, Gigabit LAN port, USB port, 8GB DDR3 RAM,1TB HDD,1GB dual graphic card, 100/1000 LAN ports, optical mouse, Keyboard, DVD Writer. Genuine Win 8.1 Pro - Down grade to Win 7 professional, 24 inch LED monitor","No",1,null,"Rupees ",0]
[12,"LMR","Supply, installation, testing and commissioning of Professional Joystick designed for Surveillance application as compatible with the above mentioned system. UL+CE+FCC certification minimum.","No",1,null,"Rupees ",0]
[13,"LMR","Supply, installation, testing and commissioning of Surveillance  / ESATA compatible Hard Disk of 4TB capacity to achieve the total storage for the NVR server","No",10,null,"Rupees ",0]
[14,"LMR","Supply, Installation, Testing & Commissioning of 42 inch full HD LED monitor with resolution 1920X1080 pixel including wall mounting accessories (location: central control room).Material shall be UL/CE listed","No",2,null,"Rupees ",0]
[15,"LMR","Supply and installation of wall  mounted 6U rack  including cable manager, power supply units etc.to accommodate ethernet switch and  patch panel at each floor ","No",7,null,"Rupees ",0]
[16,"LMR","Supply and installation of wall mounted 22U rack  including cable manager, power supply units etc.to accommodate NVR, ethernet switch patch panel etc in control rooom","No",1,null,"Rupees ",0]
[]
[]
[" FIRE DETECTION AND ALARM SYSTEM - ADDRESSABLE TYPE"]
[null,null,"DSR ITEMS"]
[17,null,"Supplying and installing following size of perforated GI cable trays (galvanisation thickness not less than 50 microns) with perforation not more than 17.5%, in convenient sections, joined with connectors, suspended from the ceiling with GI suspenders including bolts & nuts, required bends, tees, reduces  etc as required."]
[null,"4.6.4","300 mm width X 50 mm depth X 1.6 mm thickness","mtrs",30,null,"Rupees ",0]
[]
[null,null,"NON DSR ITEMS"]
[18,"LMR","Supply, installation, testing & commissioning of Addressable Fire Alarm Control Panel with battery back up for 24 hours normal operation and 30 minutes alarm operation.The Panel shall be  4 or 5 loop capacity.The panel shall consist of 80 character LCD display, RS 485 network cards , loop cards, BMS interface module through any protocol available in market (bacnet, modbus etc.), Printer port, in built battery, power supply unit etc.Panel shall have capacity to connect 198 to 250 devices per loop. The panel shall have 80 character LCD unit to indicate all events with address and shall comply standards of BS5839  or approval from LPCB/UL. It shall be possible to do the configuration and programming with out using server or dongle during commissioning.","No",2,null,"Rupees ",0]
[19,"LMR","Supply,Installation,Testing & Commissioning of Addressable Smoke detector having multiple sensitivity mode adjustment (range of obscuration) complete with base, Junction box, cable termination by using gland & locknut and other accessories as required.(Location of use: Above & below false ceiling)","No",391,null,"Rupees ",0]
[20,"LMR","Supply,Installation,Testing & Commissioning of Addressable Multi sensor detector having multiple sensitivity mode adjustment (range of obscuration) complete with base, Junction box, cable termination by using gland & locknut and other accessories as required. (Multi Sensor Detector)The device shall comply standards of BS5839  or approval from LPCB/UL","No",21,null,"Rupees ",0]
[21,"LMR","Supply,Installation,Testing & Commissioning of Addressable heat detector. The device shall comply standards of BS5839  or approval from LPCB/UL","No",5,null,"Rupees ",0]
[22,"LMR","Supply,Installation,Testing & Commissioning of  Response indicator for all detectors located above false ceiling","No",74,null,"Rupees ",0]
[23,"LMR","Supply,Installation,Testing & Commissioning of Addressable Fault isolator module in case of short circuit  de linking or loose circuits between two successive fault isolators including cable termination by using gland & locknut. It shall be capable of monitoring shorted loop circuit and automatically restore communications when abnormal condition is corrected.The device shall comply standards of BS5839  or approval from LPCB/UL","No",40,null,"Rupees ",0]
[24,"LMR","Supply,Installation,Testing & Commissioning of  Addressable monitor module including cable termination by using gland & locknut. It shall be capable of providing voltfree contact rated at 24v DC, 2A.It shall communicate between flow switches / tamper switches installed in fire protection system & FACP and avail status of the system.The device shall comply standards of BS5839  or approval from LPCB/UL","No",4,null,"Rupees ",0]
[24,"LMR","Supply,Installation,Testing & Commissioning of  Addressable Control/Relay Module including cable termination by using gland & locknut. It shall be capable of providing voltfree contact rated at 24v DC, 2A.It shall communicate between Access control doors/ AHU/Lift Shut off and avail status of the system.The Control/Relay Module shall be UL Listed.","No",11,null,"Rupees ",0]
[25,"LMR","Supply,Installation,Testing & Commissioning of Addressable type  Horn / Strobe upto 95dBA @ 3m for audible annunciation and 75cd flashing at 1 Hz for visual indication.The device shall comply standards of BS5839  or approval from LPCB/UL","No",36,null,"Rupees ",0]
[26,"LMR","Supply,Installation,Testing & Commissioning of Addressable Single action Manual pull station  having an integrally mounted addressable module that monitors and reports contact status.It shall be red in colour.The device shall comply standards of BS5839  or approval from LPCB/UL","No",36,null,"Rupees ",0]
[27,"LMR","Supply laying and termination  of  2 Core x 1.5  Sq.mm cable, Armoured, FRLS, PVC Insulated copper cable  along  with  all accessories. Cable shall be terminated in devices and control panel by using properly sized cable gland & locknut. Cable shall be installed on wall/slab by using GI saddles at regular interval as per the specifications.","Mtrs",6500,null,"Rupees ",0]
[null,null,"SUB TOTAL FOR NON DSR ITEMS "]
[]
["PUBLIC ADDRESS SYSTEM"]
[null,null,"NON DSR ITEMS"]
[28,"LMR","Supply, installation, testing & commissioning of column loudspeaker 10-15W","No","72",null,"Rupees ",0]
[29,"LMR","Supply, installation, testing & commissioning of 6 watts ceiling speakers","No","15",null,"Rupees ",0]
[30,"LMR","Supply, installation, testing & commissioning of voice alarm call Station with all cables and accessories","No",1,null,"Rupees ",0]
[31,"LMR","Supply, installation, testing & commissioning of  voice alarm keypad - Extension to voice alarm call station with all cables and accessories","No",2,null,"Rupees ",0]
[32,"LMR","Supply, installation, testing & commissioning of voice alarm controller with all cables and accessories","No",1,null,"Rupees ",0]
[33,"LMR","Supply, installation, testing & commissioning of voice alarm router with all cables and accessories","No",2,null,"Rupees ",0]
[34,"LMR","Supply, installation, testing & commissioning of  240W Booster Amplifier, 4 channel with all cables and accessories","No",4,null,"Rupees ",0]
[35,"LMR","Supply, Installation, Testing & Commissioning of Paging Microphone, goose neck type","No",1,null,"Rupees ",0]
[36,"LMR","Supply, installation, testing & commissioning of MP3 Player for audio playback only","No",1,null,"Rupees ",0]
[37,"LMR","Supply, laying and termination of  Shielded Cat 6 cable with all necessary accessories (To be used for interconnecting head end equipments in the control room. Cut lengths of suitable size may be used with end terminations.The rate includes cable with all accessories and labour charges)","Meter",100,null,"Rupees ",0]
[38,"LMR","Supply, laying and termination of  2 Core x 1.5  Sq.mm Armoured  Al.Mylar Screened FRLS Twin Twisted PVC Insulated cable along with all accessories. Accessories include cable glands, locknuts,saddle clips, cable tie & other hardwares to achieve cable termination and installation. Cable shall be terminated in speakers and amplifiers "," Meter",5000,null,"Rupees ",0]
[39,"LMR","Supply, installation, testing & commissioning of standard AV rack with 600mm Width, 800 mm Outer Depth  and 36U Height","No",1,null,"Rupees ",0]
[]
[]
["TELEPHONE, DATA AND TV SYSTEM"]
[null,null,"DATA SYSTEM"]
[null,null,"DSR ITEMS"]
[40,"1.21.2","Supplying and fixing of 25 mm Medium class PVC conduit along with accessories in surface/recess including cutting the wall and making good the same in case of recessed conduit as required.","mtrs",11000,null,"Rupees ",0]
[41,"1.21.3","Supplying and fixing of 32 mm Medium class PVC conduit along with accessories in surface/recess including cutting the wall and making good the same in case of recessed conduit as required.","mtrs",1000,null,"Rupees ",0]
[null,null,"Supplying and fixing of  GI box of following size modules, alongwith modular base & cover plate for modular switches in recess etc as required."]
[42,"1.27.1","1 or 2 Module (75mmX75mm)","No",160,null,"Rupees ",0]
[null,1.53,"Supply and drawing of UTP 4 pair Cat 6 LAN cable in the existing surface/recessed PVC conduit as required.",null,null,null,null,0]
[43,"1.53.1","one run","mtrs",5000,null,{"$f":"FnConvert(F72)","v":"Rupees "},{"$f":"ROUND(F72*E72,0)","v":0}]
[44,"1.53.2","two run","mtrs",4000,null,"Rupees ",0]
[45,"1.53.3","three run","mtrs",5000,null,"Rupees ",0]
[null,null,"Supplying and installing following size of perforated GI cable trays(galvanisation thickness not less than 50 microns) with perforation not more than 17.5%, in convenient sections, joined with connectors, suspended from the ceiling with GI suspenders including bolts & nuts, required bends, tees, reduces  etc as required."]
[46,"4.6.2","150 mm width X 50 mm depth X 1.6 mm thickness","mtrs",70,null,"Rupees ",0]
[47,"4.6.4","300 mm width X 50 mm depth X 1.6 mm thickness","mtrs",70,null,"Rupees ",0]
[null,null,"SUB TOTAL FOR DSR ITEMS"]
[null,null,"NON DSR ITEMS"]
[null,null,"Supplying and fixing following modular switch/ socket on the existing modular plate & switch box including connections but excluding modular plate etc as required."]
[48,"LMR","RJ 45 socket","No",160,null,"Rupees ",0]
[49,"LMR","Supply and installation of Cat-6 shuttered 24 port patch panel ","No",12,null,"Rupees ",0]
[50,"LMR","SITC of  24 port  unmanaged ethernet switch","No",12,null,"Rupees ",0]
[51,"LMR","SITC of  24 port L2 managed ethernet switch","No",1,null,"Rupees ",0]
[52,"LMR","Supply and installation of 9U rack with  Front glass door, Rear Perforated door with handle Lock & key. Front/Rear 19\" mounting angles, top, bottom open, RAL 9005 with all other accessories","No",8,null,"Rupees ",0]
[]
[]
[null,null,"TELEPHONE SYSTEM"]
[null,null,"DSR ITEMS"]
[52,"1.18.2","Supplying and drawing 2 pair, 0.5 sq mm FR PVC insulated copper conductor, un armoured telephone cable in the existing surface/recessed steel/ PVC conduit.","mtrs",14000,null,"Rupees ",0]
[53,"1.21.2","Supplying and fixing of 25 mm Medium class PVC conduit along with accessories in surface/recess including cutting the wall and making good the same in case of recessed conduit as required.","mtrs",12000,null,"Rupees ",0]
[54,"1.21.3","Supplying and fixing of 32 mm Medium class PVC conduit along with accessories in surface/recess including cutting the wall and making good the same in case of recessed conduit as required.","mtrs",1000,null,"Rupees ",0]
[55,null,"Supplying and fixing following modular switch/ socket on the existing modular plate & switch box including connections but excluding modular plate etc as required."]
[null,"1.24.6","Telephone socket","No",180,null,"Rupees ",0]
[56,null,"Supplying and fixing of  GI box of following size modules, alongwith modular base & cover plate for modular switches in recess etc as required."]
[null,"1.27.1","1 or 2 module( 75 mmx75 mm)","No",180,null,"Rupees ",0]
[null,null,"Supplying and installing following size of perforated GI cable trays(galvanisation thickness not less than\n50 microns) with perforation not more than 17.5%, in convenient sections, joined with connectors, suspended from the ceiling with GI suspenders including bolts & nuts, required bends, tees, reduces  etc as required."]
[57,"4.6.2","150 mm width X 50 mm depth X 1.6 mm thickness","mtrs",70,null,"Rupees ",0]
[58,"4.6.4","300 mm width X 50 mm depth X 1.6 mm thickness","mtrs",70,null,"Rupees ",0]
[null,null,"SUB TOTAL FOR DSR ITEMS"]
[null,null,"NON DSR ITEMS"]
[59,"LMR","Supply,laying and termination of 20 pair telephone cable, 0.5mm copper PVC insulated,unarmoured telephone cable drawn in the existing cable tray","mtrs",1500,null,"Rupees ",0]
[60,"LMR","Supply,laying and termination of 10 pair telephone cable, 0.5mm copper PVC insulated,unarmoured telephone cable drawn in the existing cable tray","mtrs",200,null,"Rupees ",0]
[61,"LMR","Supply,laying and termination of 20 pair telephone terminal block housed in engineering plastic box with transparent hinged door ","No",12,null,"Rupees ",0]
[62,"LMR","Supply,laying and termination of 10 pair telephone terminal block housed in engineering plastic box with transparent hinged door ","No",3,null,"Rupees ",0]
[63,"LMR","Supply,installation,testring and commissioning of EPABX with the following specifications:                                                                             \n1.208 Analog Extensions with CLI Expandable to 512  Ports\n2. 08 Port Analog trunk with CLI and Power Failure Transfer and with Protection modules.\n3. 02 PRI.\n4. 02 nos Operator Console with 30 Direct selection Keys each. \n5. 08 Port Voice Guidance to announce Extension Busy status, Wake up call announcement and other important telephone features,  Auto Attendant facility for Welcome message announcement.\n6. 02Nos -500 pair MDF(wall mountable)\n7. 01 No. Call Billing and monitoring Software.\n8. Charger/UPS with Batteries for backup of 1 hour.\n\n                                          ","No",1,null,"Rupees ",0]
[]
[]
[null,null,"TOKEN SYSTEM"]
[null,null,"NON DSR ITEMS"]
[null,null,"SITC of following items for and as required to make the system complete and operational in all respects complete as per specification, drawings and standard as required."]
[64,"LMR","QMS Server: \n6 core 64 bit, 16GB RAM\nSAS RAID Controller, 2x 6TB Enterprise SATA\n2x Gigabit Ethernet, IPMI 2.0 with KVM over LAN\n1 x Keyboard, 1 x Mouse, 1 x 21.5” LED display, Enterprise Linux, Single Phase OBO Class C SPD and Enclosure. Location: central control room","No",1,null,"Rupees ",0]
[65,"LMR","LAN Switch: L2 Network Switch (Fiber up link + CAT6/Fiber ports) 24 Port 10/100 Layer 2 Unmanaged/Semi managed with built in fiber adapter, Single Phase OBO Class C SPD and Enclosure.Location: central control room","No",1,null,"Rupees ",0]
[66,"LMR","LAN Switch: Network Switch 16 Port 10/100 Layer 2 Unmanaged, Single Phase OBO Class C SPD and Enclosure. Location: each floor","No",7,null,"Rupees ",0]
[67,"LMR","LAN Repeater Switch: Network Switch 8 Port 10/100 Layer 2 Unmanaged, Single Phase OBO Class C SPD and Enclosure. Location: each floor","No",7,null,"Rupees ",0]
[68,"LMR","Manageable Wifi Access Point for Network connectivity","No",18,null,"Rupees ",0]
[69,"LMR","Administrator PC: 4Core 64bit CPU, 8GB, 500GB, minimum 19” LED Backlit, DVD Drive, 120W power supply, Windows 10 Pro, 3year warranty, with Wifi with Ticket dispenser and inkjet Printer, Single Phase OBO Class C SPD and Enclosure. Location: central control room","No",1,null,"Rupees ",0]
[70,"LMR","Android tablet compatible with QMS software with minimuim Android 6 version. Location: consultation rooms/pharmacy/nurse station in lab etc.","No",75,null,"Rupees ",0]
[71,"LMR","Kiosk PC: Rugged Touch Screen, dual core 64bit, 4GB Ram, 500GB HDD, Windows 10 Pro, 1 years onsite warranty, Single Phase OBO Class C SPD and Enclosure. Location: entry area in ground floor","No",6,null,"Rupees ",0]
[72,"LMR","LCD Display Unit with Controller and Sounder,Single Phase OBO Class C SPD and Enclosure. Location: reg. counters","No",23,null,"Rupees ",0]
[73,"LMR","Ticket / Token dispenser Unit (Wall Mounted / Free Standing) with necessary accessories. Location: near kisk PC","No",3,null,"Rupees ",0]
[74,"LMR","32” LCD Display with necessary mounting kits and Digital Controller and other accessories. Location: waiting areas","No",47,null,"Rupees ",0]
[75,"LMR","Conduits, wiring and other accessories    supply, fixing of pvc conduit of suitable size, drawing & termination of 23 AWG CAT 6 cable,  supply and fixing of suitable sized metallic/PVC enclosure and other accessories necessary to complete the wiring as required at the existing hospital building ","mtrs",9500,null,"Rupees ",0]
[76,"LMR","Development,Integration, Testing and commissioning of QMS software with all provision to interface with the Hospital Information System",null,1,null,"Rupees ",0]
[null,null,"Total Amount",null,null,null,{"$f":"FnConvert(H125)","v":"Rupees "},{"$f":"SUM(H7:H124)","v":0}]

{"sheet":"Fire","index":9,"n_rows":120,"n_cols":8,"rows_kept":120,"cut":false,"hidden":false,"merged":[[2,0,2,6],[0,0,1,7]]}
["CONSTRUCTION OF NEW PROPOSED OUT PATIENT BLOCK FOR GENERAL HOSPITAL, ALAPPUZHA -PART I"]
[]
["ABSTRACT OF ESTIMATE - FIRE FIGHTING SYSTEM"]
["Sl. No","DSR No.","DESCRIPTION","UNIT","QTY","Rate (Rs.) in figures ","Rate (Rs.) in words","Amount (Rs.)"]
[1,null,"FIRE FIGHTING SYSTEM"]
[1.1000000000000001,"MR","Supply, installation, testing and commissioning  of electrically driven high pressure centrifugal fire hydrant /  sprinkler pump, suitable for automatic operation consisting of the following:"]
[null,null,"a) Horizontal, split casing, high pressure singlestage, singleoutlet, centrifugal pump, suitable for operation on 415 volts ± 6%, 3 phase, 50  HZ AC supply. The installation shall be complete  with flexible coupling and coupling guard as required. Fire pump shall have CI casing, CS diffusers, bronze impeller (hard finished and dynamically balanced) and SS (304) Shaft with  mechanical seal, capable for delivering 2280 LPM at outlet head of 68.m & suitable HP and ensure a minimum pressure of 3.5 Kg/Sqcm  at the  farthest or top most hydrant/sprinkler. The installation shall be complete with necessary pressure gauge with gun metal shut off cock on delivery side. (The pump should be tested and assembled for bench mark at factory and shall be approved by the Local fire Authority). "]
[null,null,"Pump shall be capable of furnishing not less than 150% of rated capacity at a head of not less than 65% of the rated head. The shut off head shall not exceed 120% of rated head."]
[null,null,"b. Squirrel cage induction motor, TEFC type suitable for  operation on 415 volts, 3 phase 50 HZ A.C supply, for  the  above pump with synchronous speed of 2900 RPM, conforming  to IP 55 protection & class F insulation. The motor shall conform to IS 325-1978 (up to date) with  flexible coupling  and coupling  guard complete  as required. "]
[null,null,"c. Common  base  plate for (a) and (b) from M.S. Channel for required size."]
[null,null,"d. Suitable cement concrete foundation with cement concrete plaster  (design and drawing to be provided by the Contractor while the foundation will be done by others) complete with anti-vibration arrangement  of cushy foot mountings and provide necesssary earthing as per IS standards.","Set",2,null,{"$f":"FnConvert(F11)","v":"Rupees "},{"$f":"ROUND(E11*F11,0)","v":0}]
[1.2,"MR","Supply, installation, testing and commissioning of jockey pump (pressurisation pump) comprising of the following:",null,null,null,null,{"$f":"ROUND(E12*F12,0)","v":0}]
[null,null,"a.Verical inline centrifugal pump, suitable for operation on 415 volts ± 6%, 3 phase, 50 HZ A.C supply.   The installation shall be complete with  Flexible coupling  and  coupling guard, complete as  required. Jockey pump shall be of stainless steel construction.",null,null,null,null,0]
[null,null,"The pump head and base shall be CI GG20 construction and impellers, diffusers, shaft sleeve, seal bush & pump shaft shall be in SS 304 material.  The pump shall be provided with   mechanical seal The system shall be complete with necessary pressure gauge with gun metal shut off cock on delivery side  (The pump should be tested and assembled for bench mark at factory and shall be approved by the Local fire Authority).",null,null,null,null,0]
[null,null,"b. Squirrel cage induction motor TEFC type for operation on 415 V, 3 phase 50  HZ AC supply for the above pump with a synchronous speed of 2900  R.P.M. with flexible  coupling and  coupling guard etc. as required.",null,null,null,null,0]
[null,null,"c. Common base  plate  for (a) and (b) from M.S. channel as required size.",null,null,null,null,0]
[null,null,"d. Suitable cement concrete foundation with plaster,  complete with Antivibration arrangement of cushy foot mounting  and provide necesssary earthing as per IS standards.",null,null,null,null,0]
[null,null,"For pump defined above & of duty as follows :",null,null,null,null,0]
[null,null,"Hydrant & Sprinkler System ",null,null,null,null,0]
[null,null,"Flow : 180 LPM",null,null,null,null,0]
[null,null,"Head : 68m","Set",2,null,{"$f":"FnConvert(F21)","v":"Rupees "},0]
[1.3,"MR","Supply, installation, testing and commissioning  of Diesel Engine driven high pressure centrifugal fire hydrant / sprinkler pump, suitable for automatic operation consisting of the following:",null,null,null,null,0]
[null,null,"a) Horizontal type, centifugal, split casing pump of cast iron body and bronze impeller with stainless steel shaft, mechanical seal to ensure a minimum pressure of 3.5 kg/sq.cm at the highest and farthest outlet at specified flow of 2280 lpm at 68 m head conforming to IS 1520",null,null,null,null,0]
[null,null,"b) Suitable HP, 1500 RPM water cooled with radiator, diesel engine conforming to relevant BS & IS standard complete with auto starting mechanism, 12 Volts electric starting equipment, suitable batteries, battery charger, diesel tank of adequate capacity to run the pump for 4 hrs, control panel for diesel engine pump, exhaust pipe extended upto 1 m outside pump house duly insulated with 50 mm thick glass wool with 1.0 mm thick aluminium sheet cladding, residential silencer, instruments and protection as per specification, stop solenoid for auto stop in the event of fault with audio indications, pained with post office red colour etc. as required.",null,null,null,null,0]
[null,null,"c. Common  base  plate for (a) and (b) from M.S. Channel for required size.",null,null,null,null,0]
[null,null,"d. Suitable cement concrete foundation with cement concrete plaster  (design and drawing to be provided by the Contractor while the foundation will be done by others) complete with anti-vibration arrangement  of cushy foot mountings  and provide necesssary earthing as per IS standards.","Set",1,null,{"$f":"FnConvert(F26)","v":"Rupees "},0]
[1.4,"MR","CONTROL PANEL",null,null,null,null,0]
[null,null,"Fabrication, Supplying, Installation, Testing and Commissioning of Electrical control panel of cubical construction, floor mounted type, fabricated out of 2mm. thick CRCA sheet, compartmentalized with hinged lockable doors, dust and vermin proof, powder coated of approved shade after 7 tank treatment process, cable alley, inter connection, having switchgears and accessories mounting and internal wiring, earth terminals, numbering etc. complete in all respect, suitable for operation on 415 V, 3 phase, 50 Hz. AC supply with enclosure protection class IP 42 required.",null,null,null,null,0]
[null,null,"(A) COMMON PANEL IN FIRE PUMP HOUSE",null,null,null,null,0]
[null,null,"INCOMER\n(a)250Amps. TPN isolator",null,null,null,null,0]
[null,null,"(b) Voltmeter (0-500 Volts) with selector switch.",null,null,null,null,0]
[null,null,"(c) Ammeter (0-250 Amps) with selector switch\n& CT's etc.",null,null,null,null,0]
[null,null,"(d)Set of 3 Phase indicating lamp.",null,null,null,null,0]
[null,null,"(e)Set of Al. bus bar 250Amps.",null,null,null,null,0]
[null,null,"OUT GOING",null,null,null,null,0]
[null,null,"(a) Main Fire pump\n200Amps. TPN  isolator for suitable HP fully automatic star delta starter with over load protection, current sensing type single phase preventer complete with all accessories and internal wiring required for automatic operation, selector switch for local/remote, auto/manual/ OFF operation.",null,null,null,null,0]
[null,null,"(b) Jockey pump",null,null,null,null,0]
[null,null,"32 Amps. TPN fuses  for two Jockey Pumps fully  DOL starter with over load protection, current sensing type single phase preventer complete with all accessories and internal wiring required for automatic operation, selector switch for local/remote, auto/manual/ OFF operation.",null,null,null,null,0]
[null,null,"(c)Diesel Engine Control.",null,null,null,null,0]
[null,null,"(a) 2 Pole MCB 16Amps",null,null,null,null,0]
[null,null,"PLC Control for Diesel Engine comprising:-",null,null,null,null,0]
[null,null,"(i)Auto/Manual selector switch & 3 attempt starting device, timers and relays as required, push buttons, start/stop in manual mode.",null,null,null,null,0]
[null,null,"(ii)Indication lamp for High/Low Lub. Oil pressure, High Water Temp. and Engine ON indication.",null,null,null,null,0]
[null,null,"(iii)SMF Battery VRLA type with charger suitable for 12 V/ 24 V DC with boost and tickle selector switch, 0-30 V DC volt meter, 0-20A DC Ammeter",null,null,null,null,0]
[null,null,"(iv)All standard relays and accessories for automatic\noperation of diesel engine.",null,null,null,null,0]
[null,null,"e) All automatic operation of Main Pump, Sprinkler Pump & Jockey Pump as per IS/CPWD specification attached","No",1,null,{"$f":"FnConvert(F46)","v":"Rupees "},0]
[1.5,"MR","POWER CABLING",null,null,null,null,0]
[null,null,"Supply and Laying of below sized XLPE insulated PVC sheathed Aluminum conductor armored cabling to the incoming and outgoing of fire pump panel including necessary termination, glanding, necessary connections etc",null,null,null,null,0]
["1.5.1",null,"3.5 x 95 sq mm ","Meters",100,null,{"$f":"FnConvert(F49)","v":"Rupees "},0]
["1.5.2",null,"3.5 x 70 sq mm ","Meters",75,null,"Rupees ",0]
["1.5.3",null,"3 x   16 sq mm ","Meters",55,null,"Rupees ",0]
[1.6,"MR","Providing & fixing MS Class ‘C’ diesel engine exhaust pipe (including all fittings, clamps, steel support) of suitable dia for the engine. The pipe shall be provided with 12 mm thick supercera ceramic fibre rope","RM",40,null,"Rupees ",0]
[1.7,"MR","Providing, fixing, testing and commissioning of precharged air vessel (size 450 mm dia & 2000 mm height) for pressurization of hydrant / sprinkler system complete with adequate pressure switches (as per design / requirement) with valves to operate as per operating sequences  including 25 mm dia drain valve, air release valve with stop cock on the top, 25 mm dia inlet with isolating valve duly painted  from inside and outside complete as required.","Nos.",1,null,"Rupees ",0]
[1.8,"MR","Supply, installation, testing and commissioning  of industrial type pressure switch having 1/4\" BSP(F) connection IP:32 enclosure protection, phosphor bronze bellows as sensing element, SDPT contact system, switch rating 6A Inductive/lOA resistive 380 V AC, 0.2A Inductive/10A resistive 250V DC suit with ball valve etc. complete as required.","No.",5,null,"Rupees ",0]
[1.9,"MR","Providing and fixing  in position the industrial type pressure gauges with gun metal/brass valve complete as required .","No.",9,null,"Rupees ",0]
[1.1000000000000001,"MR","Supplying and applying thick readymade wrapping & coating 4mm thick  material over one coat of coal tar primer for underground pipes","Sq.Mtr",245,null,"Rupees ",0]
[1.1100000000000001,"MR","Providing and fixing forged brass  ball valve with forged brass ball suitable for operating pressure of  not less than 16 kg / sq.cm of the  following  size.",null,null,null,null,0]
["1.11.1",null,"50 mm dia","No.",2,null,{"$f":"FnConvert(F58)","v":"Rupees "},0]
["1.11.2",null,"25 mm dia","No.",18,null,{"$f":"FnConvert(F59)","v":"Rupees "},0]
[1.1200000000000001,"MR","Supplying, fixing, testing and commissioning of following BUTTERFLY VALVE (MANUAL) with C I body SS disc nitrile sheet & O ring & PN 16 pressure rating as specified ",null,null,null,null,0]
["1.12.1",null,"150 mm dia","No",22,null,{"$f":"FnConvert(F61)","v":"Rupees "},0]
["1.12.2",null,"100 mm dia","No",18,null,{"$f":"FnConvert(F62)","v":"Rupees "},0]
["1.12.3",null,"80 mm dia","No",2,null,{"$f":"FnConvert(F63)","v":"Rupees "},0]
[1.1299999999999999,"MR","Supplying, fixing, testing and commissioning of following NON - RETURN VALVE with dual plate of C I body SS plates vulcanized NBR seal flanged end & PN16 pressure rating as specified ",null,null,null,null,0]
["1.13.1",null,"150 mm dia","No",8,null,{"$f":"FnConvert(F65)","v":"Rupees "},0]
["1.13.2",null,"100 mm dia","No",2,null,{"$f":"FnConvert(F66)","v":"Rupees "},0]
[1.1399999999999999,"MR","Providing  and  fixing  CI `Y' strainer  suitable for operating pressure of 16 Kg / sqcm with   SS 304  perforated  sheet  basket including  rubber gasket, flanges, nuts, bolts and washers, complete as required.",null,null,null,null,0]
["1.14.1",null,"150 mm dia","No.",3,null,{"$f":"FnConvert(F68)","v":"Rupees "},0]
["1.14.2",null,"100 mm dia","No.",2,null,{"$f":"FnConvert(F69)","v":"Rupees "},0]
[1.1499999999999999,"MR","Providing and fixing of spring loaded relief valve suitable for pressure of 16 Kg / sqcm including flanges nuts bolt and washer etc. complete as required.",null,null,null,null,0]
["1.15.1",null,"25 mm dia","No.",6,null,{"$f":"FnConvert(F71)","v":"Rupees "},0]
[1.1599999999999999,"MR","Providing & fixing SS fire hydrant single landing valve with 80 mm NB. flanged inlet, brass spindle controlled 63 mm dia female  instantaneous outlet type. SS coupling, blank cap, chain, twist release type lug & all accessories Conforming to IS standards with ISI mark. Including  fixing with anchor fastner and flanged tapping  from  wet riser.","No.",24,null,"Rupees ",0]
[1.17,"MR","Providing & fixing swinging type First Aid hose reel in red colour drum with 30 mts. long and 19 mm dia heavy duty thermoplastic water hose, globe valve stop cock, terminating with SS coupling & nozzle of 6mm outlet with shut off valve confirming to IS:12585 complete with MS socket for tap-off, drum and brackets (including painting) for fixing on wall with anchor fastner, bolts & nuts conforming to IS:884-1969 complete as required.","No.",14,null,"Rupees ",0]
[1.18,"MR","Providing & fixing non-perlocating, rubber reinforced lined fire hose pipe (as per IS : 636, Type A) of 63 mm dia and length as described below. The hose shall be rated for brust pressure of 35.7 Kg/sqcm. Hose shall be complete with ISI marked brass male & female coupling (IS:903) bound & rivetted to hose pipe with copper rivets & 1.5 mm copper wire.",null,null,null,null,0]
[null,"MR","15 m length","No.",48,null,"Rupees ",0]
[1.19,"MR","Providing and Fixing SS 63 mm dia instantaneous pattern branch short pipe, 20 mm dia nozzle conforming to IS standard, suitable for inter connection to hose pipe coupling complete as required.","No.",24,null,"Rupees ",{"$f":"ROUND(E76*F76,0)","v":0}]
[1.2,"MR","Providing and fixing standard firemans axe with heavy rubber handle.","No.",14,null,"Rupees ",0]
[1.21,"MR","Supply, installation, testing and commissioning of weather proof hose cabinet having the size of 750x600x250mm made of 16gauge  MS Sheet with full front front glass door and locking arrangements suitable to accommodate 2 nos 15m long hose pipes and 1 No. branch pipe.  The cabinet shall be painted to scarlet red color outside and white inside.  ","No.",14,null,"Rupees ",0]
[1.22,"MR","Providing and fixing pre fabricated weather proof lockable cabinet of size not less than 0.9 x 0.6 x 0.45 mtr made out of MS sheet of 16 gauge thickness having central opening and 4 mm thick glazed glass doors (Two No.) suitably marked on the outside with the letters \"FIRE HOSE\" including necessary locking arrangement and shall be painted with one coat of primer and two coats of synthetic enamel paint of approved shade.",null,null,null,null,0]
[null,"MR","The cabinet shall be suitable  to accommodate 2 No.  15 mtr  long  Hose pipe & 2 No. branch pipe nozzle.  It shall be mounted on raised Brick platform complete as required. (Cost shall be inclusive of providing break glass box containing key for the cabinet along with hammer).","No.",10,null,"Rupees ",0]
[1.23,"MR","Providing & fixing SS fire brigade connection (suction collecting head) consisting of 4 No. 63 mm dia instantaneous type male couplings with built-in check valves, 1 No. 150 mm dia sluice valve, (1 No. 150 mm dia non-return valve) and  150 mm dia flanged outlet complete with bolts, nuts and rubber insertions as required and as per IS standards","No.",1,null,"Rupees ",0]
[1.24,"MR","Providing & fixing SS fire brigade suction hose coupling (draw-out connection) with nut for female coupling as per IS standards complete with 100 mm dia GI suction pipe and 100 mm dia foot valve (to be connected to static tank). Provision of GI drop pipe and foot valve shall be made in all the fire water static   storage   tanks   (4 No.) (GI pipe to be paid separately through appropriate item while cost of foot valve to be included).","No.",1,null,"Rupees ",0]
[1.25,"MR","Providing & fixing MS cabinet (to enclose  suction collecting head and draw-out connection as per Item above) fabricated from 16 g MS sheet with full front glass door and locking arrangement duly painted with one coat of primer and two or more coats of synthetic enamel paint of approved  make and shade and suitably mounted on a raised masonry paltform as required  (Approx 0.6 m x 0.6 m x 0.45 m)","No.",2,null,"Rupees ",0]
[1.26,"MR","Providing,laying and fixing following dia RCC NP2 class (light duty) in ground complete with RCC collars, jointing with cement mortar 1:2 (1 cement : 2 fine sand) including trenching (75 cm deep) and refilling etc. as required",null,null,null,null,0]
["1.26.1",null,"500 mm dia","metre",50,null,"Rupees ",0]
[null,null,null,null,null,null,null,0]
[1.27,"MR","Providing, laying, jointing and testing of following sizes of MS 'C' class pipes, heavy grade, conforming to IS-1239 with all accessories like all fittings (for pipes upto 50mm dia threaded forged steel fittings and for pipes above 50 mm dia MS fitting with welded joint shall be used) including tees, elbows, reducers, union,  flanges, rubber gaskets, GI nuts bolts, washer including supporting / fixing the pipe on floor/wall/ceiling with clamps, hangers (using anchor fastners) as per specification. Pipe sleeve of suitable higher size shall be provided wherever the pipes are crossing the walls / floors and sealing the sleeves with glass wool in between & fire sealent compound at either end all as per Project Manager’s requirements including  cutting holes and chases in brick, RCC work and making good the same to original conditions complete in all respects. ",null,null,null,null,0]
[null,null,"All hangers, clamps, brackets etc. shall be of galvanized iron unless specified otherwise and then supply of the same shall also be included for rates under this head. Welding of any kind on the galvanized support / hanger shall not be permitted.",null,null,null,null,0]
[null,null,"Providing two coats of synthetic enamel paint of approved shade over a coat of primer. Prior to application of primer the surface should be cleaned for any dirt, rusts, rough substance etc. Including  painting of legends both direction arrow ",null,null,null,null,0]
["1.27.1",null,"25 mm dia","RM",1478,null,"Rupees ",0]
["1.27.2",null,"32 mm dia","RM",236,null,"Rupees ",0]
["1.27.3",null,"40 mm dia","RM",264,null,"Rupees ",0]
["1.27.4",null,"50 mm dia","RM",366,null,"Rupees ",0]
["1.27.5",null,"65 mm dia","RM",612,null,"Rupees ",0]
["1.27.6",null,"80 mm dia","RM",180,null,"Rupees ",0]
["1.27.7",null,"100 mm dia","RM",150,null,"Rupees ",0]
["1.27.8",null,"150 mm dia","RM",900,null,"Rupees ",0]
["1.27.9",null,"200 mm dia","RM",10,null,"Rupees ",0]
[1.28,"MR","Supply, installation, testing and commissioning of electrically operated water flow switches (Vane type) including   tamper switch and accessories, complete   with tap off socket arrangement as required, with  potential  free  contact  with 2 Nos. NONC.","No.",4,null,"Rupees ",0]
[1.29,"MR","Providing & Fixing of Installation Control Valve with turbine type Mechanic Alarm Gong to be connected with control valve, drain & test valve and all other necessary components as per manufacturer's specifications complete as required","No.",1,null,"Rupees ",0]
[1.3,"MR","Providing & fixing brass quartzoid sprinklers (UL approved) of 15 mm dia size, suitable for sustaining the pressure on the seat & water hammer effect. The type & temperature rating shall be as follows :",null,null,null,null,0]
[1.31,null,"Supply, installation, testing and commissioning of approved make 15mm dia brass Sprinkler heads, quick response, designed to operate at 68 deg.  Celsius etc. with necessery fittings etc of Pendant type","No.",684,null,"Rupees ",0]
[1.32,"MR","Supply, installation, testing and commissioning of approved make 15mm dia brass Sprinkler heads designed to operate at 68 deg.  Celsius etc. with necessery fittings etc of Sidewall extended coverage sprinkler quick response type. ","No.",110,null,"Rupees ",0]
[1.33,"MR","Supply, installation, testing and commissioning of approved make 15mm dia brass Sprinkler heads, quick response, designed to operate at 68 deg.  Celsius etc. with necessery fittings etc of upright type. ","No.",100,null,"Rupees ",0]
[1.34,"MR","Supplying, fixing, testing & commissioning of Sprinkler Flexible Hose 1000 mm in length, Unbraided, UL Listed along with all necessary accessories like Nipple threaded , Reducing Nipple  threaded, Large Bracket with Bolt, Small Bracket with Bolt, clamps,reduser collar,Meter Square Bar etc complete as per spec.","No.",684,null,"Rupees ",0]
[1.35,"MR","Providing and fixing C.I Sluice valves(with cap) complete with bolts, nuts, rubber insertions etc.(Class-II)",null,null,null,null,0]
[null,null,"200 mm dia","No.",2,null,"Rupees ",0]
[null,null,null,null,null,null,null,0]
[2,null," FIRE EXTINGUISHERS",null,null,null,null,0]
[2.1,"MR","Supply, installation, testing and commissioning of following types of extinguisher with provision of wall bracket (fixed with anchor fastner) or floor mounted.",null,null,null,null,0]
["2.1.1",null,"ISI marked (IS:940) portable chemical fire extinguisher, water (gas pressure) type capacity 9 litres with gun metal cap and nozzle and complete in all  respects  including initial fill and wall suspension brackets","No.",14,null,"Rupees ",0]
[2.2000000000000002,"MR","ISI marked (IS:2878) Fire Extinguisher, Carbon-di-oxide type capacity 4.5 Kg. Flat base including valve, discharge hose of not less than 10 mm dia, 1M long and complete in all respects including initial fill with CO2 gas conforming to IS:307-1966 filled to a filling rate of not more than 0.667 and wall suspension bracket.","No.",42,null,"Rupees ",0]
[2.2999999999999998,"MR","ABC (Powder Type) Fire Extinguisher. In HP Mild Steel Cylinders ISI marked  fitted with pressure indicating gauge, internal tube, squeeze lever type valve fully charged with ABC powder (Mono Ammonium Phosphate) pressured by Nitrogen complete in all respects including wall suspension bracket and confoming to IS:1349-1993.",null,null,null,null,0]
["2.3.1",null,"2 Kg","No.",42,null,"Rupees ",0]
["2.3.2",null,"4 Kg","No.",35,null,"Rupees ",0]
[2.4,"MR","Mechanical Foam type Fire Extinguisher. In HP Mild Steel Cylinders ISI marked  fitted with pressure indicating gauge, internal tube, squeeze lever type valve fully charged complete in all respects including wall suspension bracket / trolley mounted and confoming to IS:910 ",null,null,null,null,0]
[null,null,"50 Litres (trolley mounted)","No.",1,null,"Rupees ",0]
[2.5,"MR","Supply & installation of Clean agent Fire Extinguisher 4 Kgs. Capacity with wall hook built in 1 piece with body and bottom. Mild Steel Body of 1.6 mm thickness with pressure gauge, refillable device and safety release device CE Certified Brass valve suitable for B and C Classes of Fire complete with Charge of Saclon II Eco (Gas) is also known as HFC Blend A, It is a blend of Hydro Fluoro carbon and organic detossificant essence P 26. The Extinguisher shall have pressure gauge for indicating inside pressure with opening and closing lever of squeeze grip type with tamper proof seal. The Extinguisher is externally epoxy powder coated as per IS: 5 Colour Shade No. 538 complete with wall bracket. Fire Extinguisher as per IS:15683-2006 with ISI Mark. (For operation theatre & ICU)","No.",2,null,"Rupees ",0]
[2.6,"MR","Supplying and installing at approved location approved make fire buckets of 24 gauge galvanized steel sheet, standard 9 litre capacity and of round bottom shape, painted white inside and red outside and black on the bottom, inscribed with letters “FIRE” in black and gold. Cost shall be inclusive of providing MS stand for 2 nos of fire buckes, or , duly painted over a coat of primer.","No.",3,null,"Rupees ",0]
[null,null,"GRAND TOTAL ",null,null,null,{"$f":"FnConvert(H120)","v":"Rupees "},{"$f":"SUM(H11:H119)","v":0}]

{"sheet":"Signage","index":10,"n_rows":20,"n_cols":8,"rows_kept":20,"cut":false,"hidden":false,"merged":[[0,0,1,7],[2,0,2,7],[3,5,4,5],[3,6,4,6],[3,7,4,7],[3,0,4,0],[3,1,4,1],[3,2,4,2],[3,3,4,3],[3,4,4,4]]}
["CONSTRUCTION OF NEW PROPOSED OUT PATIENT BLOCK FOR GENERAL HOSPITAL, ALAPPUZHA -PART I"]
[]
["ABSTRACT OF ESTIMATE - SIGNAGE WORKS "]
["Sl. No","DSR No.","DESCRIPTION","UNIT","QTY","Rate (Rs.) in figures ","Rate (Rs.) in words","Amount (Rs.)"]
[]
[1,null,"FIRE SIGNAGES",null,null,0]
[1.1000000000000001,null,"Providing and installing in position the following type of sign boards made out of 3mm thick rigid PVC board with computer cut with texts written to recommended height in photolumiscent    material    complete    vide    technical specifications with mirror fasteners. Sizes and mounting height of the board shall be as per technical specification."]
["1.1.1",null,"Signage with printed  \"IN CASE OF FIRE, USE STAIRS UNLESS INSTRUCTED OTHERWISE\" of 1.5cm height letters in red with white back ground.The size of the board shall be 25cm x 30 cm and shall be fixed at the height of 2 mts. from finished floor near Manual call points.Auto Glo","No.",21,null,{"$f":"FnConvert(F8)","v":"Rupees "},{"$f":"ROUND(F8*E8,0)","v":0}]
["1.1.1",null,"Life safety related signage's (EXIT, DIRECTION ARROWs i.e., left ,right ,straight ,down up, Both way )as per site condition. The size of the board shall be 10cm x 30 cm  ","No.",140,null,"Rupees ",{"$f":"ROUND(F9*E9,0)","v":0}]
[1.2,null,"Providing and fixing in position the signage's \" FIRE ORDER\" it should contain the following matter on 3mm thick \"Opaque\" PVC foam board of computerized cut, PVC non-reflective self adhesive vinyl painted foam board of 4'' x 12''.",null,null,null,null,0]
["1.2.1",null,"Alert the security at security room by actuating manual call point located at strategic locations.auto glo","No",14,null,"Rupees ",0]
["1.2.2",null,"Evacuate the occupants by using fire exits and emergency exits only and assemble at  assembly point.auto glo","No",14,null,"Rupees ",0]
["1.2.3",null,"Be calm and do not give any room from panic, walk, do not run.","No",14,null,"Rupees ",0]
["1.2.4",null,"Action by security/reception upon receipt of information through fire alarm or fire detectors or by using public address system.","No",1,null,"Rupees ",0]
["1.2.5",null,"Alert the security / occupants / staff by using public address system.","No",7,null,"Rupees ",0]
["1.2.6",null,"Inform fire control through any one of the following phone numbers:","No",14,null,"Rupees ",0]
["1.2.7",null,"Refer evacuation plan from evacuating standard people.","No",14,null,"Rupees ",0]
["1.2.8",null,"Main master board site identification size","No",7,null,"Rupees ",0]
["1.2.9",null,"Assembly point  12\"x12\"","No",1,null,"Rupees ",0]
[null,null,"TOTAL of   FIRE SIGNAGE",null,null,null,{"$f":"FnConvert(H20)","v":"Rupees "},{"$f":"SUM(H8:H19)","v":0}]

{"sheet":"calculation sheet","index":11,"n_rows":51,"n_cols":19,"rows_kept":51,"cut":false,"hidden":true,"merged":[]}
[]
[null,null,"Pile","Pile cap","Columns","Lintels","Beams","sunshade","slab","Drain wall+slab","Drain slab","sump & pump room","Lift wall","Total"]
[null,"Upto plinth",1675,941.28,17.54,null,131.18,null,{"$f":"238.86+5.81","v":244.67000000000002},57.62,23,101.81,11.64,{"$f":"E3+G3+I3+D3+M3+L3+J3+H3","v":1505.74},1515,{"$f":"O3-N3","v":9.2599999999999909}]
[null,"Ground floor",null,null,100.93,20.57,113.39,39.79,313.52,null,null,94.6,null,{"$f":"E4+F4+G4+H4+I4+J4+K4+L4+M4","v":682.80000000000007},685,2.1999999999999318,"ok"]
[null,"First floor",null,null,93.3,21.98,112.28,44.33,273.37,null,null,null,null,{"$f":"E5+F5+G5+H5+I5+J5+K5+L5+M5","v":545.26},550,4.7400000000000091,"ok"]
[null,"Second floor",null,null,92.54,19.809999999999999,109.49,44.96,264.67,null,null,null,null,531.47,535,3.5299999999999727,"ok"]
[null,"Third floor",null,null,92.54,19.420000000000002,111.2,44.96,264.3,null,null,null,null,532.42000000000007,535,2.5799999999999272,"ok"]
[null,"Fourth Floor",null,null,92.54,21.48,111.54,44.96,264.05,null,null,null,null,534.56999999999994,540,5.4300000000000637,"ok"]
[null,"Fifth Floor",null,null,92.54,19.87,111.33,44.96,263.7,null,null,null,null,532.4,535,2.6000000000000227,"ok"]
[null,"Sixth Floor",null,null,92.54,20.8,107.4,114.62,275.56,null,null,null,null,610.92000000000007,615,4.0799999999999272,"ok"]
[null,"Terrace ",null,null,23.64,3.75,14.06,0,{"$f":"72.7","v":72.7},null,null,null,null,114.15,115,0.84999999999999432,"ok"]
[null,"Total",{"$f":"SUM(C3:C11)","v":1675},941.28,698.11,147.68,921.87,378.58000000000004,2236.54,57.62,23,196.41,11.64,5589.73,{"$f":"SUM(O4:O11)","v":4110}]
[null,"Total as per rft sheet",1675,950,711,144,933,380,2238,60,23,197,12]
[null,"difference",{"$f":"C13-C12","v":0},{"$f":"D13-D12","v":8.7200000000000273},12.889999999999986,-3.6800000000000068,11.129999999999995,1.4199999999999591,1.4600000000000364,2.3800000000000026,0,0.59000000000000341,0.35999999999999943]
[null,null,100,150,200,90,150,90,120,90,120,120,120]
[null,null,{"$f":"C15*C13","v":167500},{"$f":"D15*D13","v":142500},142200,12960,139950,34200,268560,5400,2760,23640,1440]
[null,null,{"$f":"C16+D16+E16+F16+G16+H16+I16+K16+J16+L16+M16","v":941110}]
[]
[]
[]
[null,"Final for steel"]
[]
[null,null,"Pile","Pile cap","Columns","Lintels","Beams","sunshade","slab","Drain wall+slab","Drain slab","sump & pump room","Lift wall","Total"]
[null,"Upto plinth",1675,{"$f":"8.72+941.28","v":950},17.5,null,131.19999999999999,null,244.7,58,23,101.8,12,{"$f":"E24+G24+I24+D24+M24+L24+J24+H24","v":1515.2},1515,{"$f":"O24-N24","v":-0.20000000000004547},null,244.67,244.7]
[null,"Ground floor",null,null,102,20.57,114,39.79,313.44,null,null,95.2,null,{"$f":"E25+F25+G25+H25+I25+J25+K25+L25+M25","v":685},685,0,"ok",313.52,313.55]
[null,"First floor",null,null,94.5,21.98,115,{"$f":"0.65+44.33","v":44.98},273.39999999999998,null,null,null,null,{"$f":"E26+F26+G26+H26+I26+J26+K26+L26+M26","v":549.86},550,0.13999999999998636,"ok",273.37,273.39999999999998]
[null,"Second floor",null,null,94.5,19.809999999999999,110.5,{"$f":"0.23+44.96","v":45.19},265,null,null,null,null,535,535,0,"ok",264.67,265]
[null,"Third floor",null,null,94.5,19.420000000000002,111.5,{"$f":"0.16+44.96","v":45.12},264.45999999999998,null,null,null,null,535,535,0,"ok",264.3,264.35000000000002]
[null,"Fourth Floor",null,null,94,21.48,114.3,{"$f":"0.26+44.96","v":45.22},265,null,null,null,null,540,540,0,"ok",264.05,265]
[null,"Fifth Floor",null,null,95,19.87,111.35,{"$f":"0.12+44.96","v":45.08},263.7,null,null,null,null,535,535,0,"ok",263.7,263.7]
[null,"Sixth Floor",null,null,95,{"$f":"20.8-3.68","v":17.12},110.65,114.62,275.60000000000002,null,null,null,null,612.99,615,2.0099999999999909,"ok",275.56,275.60000000000002]
[null,"Terrace ",null,null,24,3.75,14.5,0,72.7,null,null,null,null,114.95,115,4.9999999999997158E-2,"ok",72.7,72.7]
[null,"Total",{"$f":"SUM(C24:C32)","v":1675},950,711,144,933,380,2238,58,23,197,12,5622.9999999999991,5625,null,null,2236.54,{"$f":"SUM(S24:S32)","v":2238}]
[null,"Total as per rft sheet",1675,950,711,144,933,380,2238,60,23,197,12]
[null,"difference",{"$f":"C34-C33","v":0},{"$f":"D34-D33","v":0},0,0,0,0,0,2,0,0,0]
[null,null,100,150,200,90,150,90,120,90,120,120,120]
[null,null,{"$f":"C36*C34","v":167500},{"$f":"D36*D34","v":142500},142200,12960,139950,34200,268560,5400,2760,23640,1440]
[null,null,{"$f":"C37+D37+E37+F37+G37+H37+I37+K37+J37+L37+M37","v":941110}]
[null,"Final for concrete"]
[]
[null,null,"Pile","Pile cap","Columns","Lintels","Beams","sunshade","slab","Drain wall+slab","Drain slab","sump & pump room","Lift wall","Total"]
[null,"Upto plinth",1675,{"$f":"8.72+941.28","v":950},17.5,null,131.19999999999999,null,244.7,{"$f":"0.18+57.62","v":57.8},23,101.8,12,{"$f":"E42+G42+I42+D42+M42+L42+J42+H42","v":1515},1515,{"$f":"O42-N42","v":0},null,244.67,244.7]
[null,"Ground floor",null,null,102,20.57,114,39.79,313.44,null,null,95.2,null,{"$f":"E43+F43+G43+H43+I43+J43+K43+L43+M43","v":685},685,0,"ok",313.52,313.55]
[null,"First floor",null,null,94.5,{"$f":"21.98+0.02","v":22},115,{"$f":"0.65+44.33+0.12","v":45.099999999999994},273.39999999999998,null,null,null,null,{"$f":"E44+F44+G44+H44+I44+J44+K44+L44+M44","v":550},550,0,"ok",273.37,273.39999999999998]
[null,"Second floor",null,null,94.5,19.809999999999999,110.5,{"$f":"0.23+44.96","v":45.19},265,null,null,null,null,535,535,0,"ok",264.67,265]
[null,"Third floor",null,null,94.5,19.420000000000002,111.5,{"$f":"0.16+44.96","v":45.12},264.45999999999998,null,null,null,null,535,535,0,"ok",264.3,264.35000000000002]
[null,"Fourth Floor",null,null,94,21.48,114.3,{"$f":"0.26+44.96","v":45.22},265,null,null,null,null,540,540,0,"ok",264.05,265]
[null,"Fifth Floor",null,null,95,19.87,111.35,{"$f":"0.12+44.96","v":45.08},263.7,null,null,null,null,535,535,0,"ok",263.7,263.7]
[null,"Sixth Floor",null,null,95,{"$f":"20.8","v":20.8},{"$f":"110.65-1.67","v":108.98},114.62,275.60000000000002,null,null,null,null,615,615,0,"ok",275.56,275.60000000000002]
[null,"Terrace ",null,null,24,3.75,14.55,0,72.7,null,null,null,null,115,115,0,"ok",72.7,72.7]
[null,"Total",{"$f":"SUM(C42:C50)","v":1675},950,711,147.70000000000002,931.38,380.12,2238,57.8,23,197,12,5625,5625,null,null,2236.54,{"$f":"SUM(S42:S50)","v":2238}]

{"sheet":"Sheet1","index":12,"n_rows":1345,"n_cols":9,"rows_kept":1345,"cut":false,"hidden":true,"merged":[]}
[]
["Description","Nos","Nos","L","B","D","Qty",1,"Remarks"]
["Raft",null,null,null,null,null,null,1,"Raft"]
["Porch area",1,1,9.23,13.11,0.3,{"$f":"ROUND(PRODUCT(B4:F4),2)","v":36.299999999999997},1,"Raft"]
["Central area",1,1,41.65,27.23,0.3,340.24,1,"Raft"]
["Block B & C  area",1,1,29.58,14.04,0.3,124.59,1,"Raft"]
["Block B & C  area",1,1,13.26,6.92,0.3,27.53,1,"Raft"]
["Block B & C  area",1,1,5.43,1.22,0.3,1.99,1,"Raft"]
["Block G & F  area",1,1,29.58,15.55,0.3,137.99,1,"Raft"]
["Block G & F  area",1,1,13.26,6.91,0.3,27.49,1,"Raft"]
["Block G & F  area",1,1,5.43,1.24,0.3,2.02,1,"Raft"]
["B/w ramp & doctors entry",1,1,6.81,19.420000000000002,0.3,39.68,1,"Raft"]
["Block D & E  area",1,1,29.9,41.42,0.3,371.54,1,"Raft"]
["Ramp",1,1,31.35,6.81,0.3,64.05,1,"Raft"]
["Raft Beams",null,null,null,null,null,null,1,"Raft beam"]
["Along Grid A/8-26",1,1,26.65,0.5,0.7,9.33,1,"Raft beam"]
["Along Grid B/8-15",1,1,19.920000000000002,0.5,0.7,6.97,1,"Raft beam"]
["Along Grid D/1-12",1,1,30.51,0.5,0.7,10.68,1,"Raft beam"]
["Along Grid D/13-12",1,1,5.0999999999999996,0.5,0.7,1.79,1,"Raft beam"]
["Along Grid E/8-15",1,1,19.670000000000002,0.5,0.7,6.88,1,"Raft beam"]
["Along Grid F/8-11",1,1,4.29,0.5,0.7,1.5,1,"Raft beam"]
["Along Grid H/4-25",1,1,62.68,0.5,0.7,21.94,1,"Raft beam"]
["Along Grid I/4-23",1,1,55.7,0.5,0.7,19.5,1,"Raft beam"]
["Along Grid J/13-14",1,1,5.83,0.5,0.7,2.04,1,"Raft beam"]
["Along Grid L/13-14",1,1,5.49,0.5,0.7,1.92,1,"Raft beam"]
["Along Grid M/4-10",1,1,15.81,0.5,0.7,5.53,1,"Raft beam"]
["Along Grid M/15-23",1,1,22.13,0.5,0.7,7.75,1,"Raft beam"]
["Along Grid H/19-25",1,1,21.55,0.5,0.7,7.54,1,"Raft beam"]
["Along Grid D/19-26",1,1,22.81,0.5,0.7,7.98,1,"Raft beam"]
["Along Grid B/15-18",1,1,6.48,0.5,0.89999999999999991,2.92,1,"Raft beam"]
["Along Grid D/15-18",1,1,6.48,0.5,0.89999999999999991,2.92,1,"Raft beam"]
["Along Grid E/15-26",1,1,30.14,0.5,0.89999999999999991,13.56,1,"Raft beam"]
["Along Grid F/15-26",1,1,30.14,0.5,0.89999999999999991,13.56,1,"Raft beam"]
["Along Grid E/1-8",1,1,22.15,0.5,0.89999999999999991,9.9700000000000006,1,"Raft beam"]
["Along Grid F/2-8",1,1,21.24,0.5,0.89999999999999991,9.56,1,"Raft beam"]
["Along Grid H/2-4",1,1,7.2,0.5,0.89999999999999991,3.24,1,"Raft beam"]
["Along Grid J/4-12",1,1,21.85,0.5,0.89999999999999991,9.83,1,"Raft beam"]
["Along Grid J/15-23",1,1,21.85,0.5,0.89999999999999991,9.83,1,"Raft beam"]
["Along Grid K/4-23",1,1,55.73,0.5,0.89999999999999991,25.08,1,"Raft beam"]
["Along Grid L/4-12",1,1,21.9,0.5,0.89999999999999991,9.86,1,"Raft beam"]
["Along Grid M/10-15",1,1,18.55,0.5,0.89999999999999991,8.35,1,"Raft beam"]
["Along Grid L/15-23",1,1,21.12,0.5,0.89999999999999991,9.5,1,"Raft beam"]
["Along Grid Q/10-15",1,1,18.21,0.5,0.89999999999999991,8.19,1,"Raft beam"]
["Along Grid R/5-21",1,1,40.4,0.5,0.89999999999999991,18.18,1,"Raft beam"]
["Along Grid S/5-21",1,1,40.4,0.5,0.89999999999999991,18.18,1,"Raft beam"]
["Along Grid T/5-21",1,1,40.4,0.5,0.89999999999999991,18.18,1,"Raft beam"]
["Along Grid U/5-21",1,1,40.4,0.5,0.89999999999999991,18.18,1,"Raft beam"]
["Along Grid V/5-21",1,1,40.4,0.5,0.89999999999999991,18.18,1,"Raft beam"]
["Along Grid W/5-21",1,1,40.4,0.5,0.89999999999999991,18.18,1,"Raft beam"]
["Along Grid 3/D-I",1,1,12.55,0.5,0.89999999999999991,5.65,1,"Raft beam"]
["Along Grid 5/D-I",1,1,12.55,0.5,0.89999999999999991,5.65,1,"Raft beam"]
["Along Grid 22/D-I",1,1,12.55,0.5,0.89999999999999991,5.65,1,"Raft beam"]
["Along Grid 24/D-I",1,1,12.55,0.5,0.89999999999999991,5.65,1,"Raft beam"]
["Along Grid 11/M-Q",1,1,6.91,0.5,0.89999999999999991,3.11,1,"Raft beam"]
["Along Grid 12/M-Q",1,1,6.91,0.5,0.89999999999999991,3.11,1,"Raft beam"]
["Along Grid 13/M-Q",1,1,6.91,0.5,0.89999999999999991,3.11,1,"Raft beam"]
["Along Grid 14/M-Q",1,1,6.91,0.5,0.89999999999999991,3.11,1,"Raft beam"]
["Along Grid 5/R-W",1,1,29.3,0.5,0.89999999999999991,13.19,1,"Raft beam"]
["Along Grid 8/R-W",1,1,29.3,0.5,0.89999999999999991,13.19,1,"Raft beam"]
["Along Grid 10/R-W",1,1,29.3,0.5,0.89999999999999991,13.19,1,"Raft beam"]
["Along Grid 12/R-W",1,1,29.3,0.5,0.89999999999999991,13.19,1,"Raft beam"]
["Along Grid 13/R-W",1,1,29.3,0.5,0.89999999999999991,13.19,1,"Raft beam"]
["Along Grid 16/R-W",1,1,29.3,0.5,0.89999999999999991,13.19,1,"Raft beam"]
["Along Grid 18/R-W",1,1,29.3,0.5,0.89999999999999991,13.19,1,"Raft beam"]
["Along Grid 20/R-W",1,1,29.3,0.5,0.89999999999999991,13.19,1,"Raft beam"]
["Along Grid 1/D-E",1,1,4.78,0.5,0.7,1.67,1,"Raft beam"]
["Along Grid 2/E-I",1,1,8.06,0.5,0.7,2.82,1,"Raft beam"]
["Along Grid 4/D-M",1,1,28.98,0.5,0.7,10.14,1,"Raft beam"]
["Along Grid 5/I-M",1,1,16.2,0.5,0.7,5.67,1,"Raft beam"]
["Along Grid 6/D-M",1,1,28.98,0.5,0.7,10.14,1,"Raft beam"]
["Along Grid 7/D-G",1,1,8.6,0.5,0.7,3.01,1,"Raft beam"]
["Along Grid 8/A-F",1,1,20,0.5,0.7,7,1,"Raft beam"]
["Along Grid 9/G-H",1,1,4.5,0.5,0.7,1.58,1,"Raft beam"]
["Along Grid 10/G-H",1,1,4.68,0.5,0.7,1.64,1,"Raft beam"]
["Along Grid 10/A-H",1,1,24.56,0.5,0.7,8.6,1,"Raft beam"]
["Along Grid 11/A-H",1,1,24.56,0.5,0.7,8.6,1,"Raft beam"]
["Along Grid 12/A-H",1,1,24.56,0.5,0.7,8.6,1,"Raft beam"]
["Along Grid 13/A-H",1,1,24.56,0.5,0.7,8.6,1,"Raft beam"]
["Along Grid 14/A-H",1,1,24.56,0.5,0.7,8.6,1,"Raft beam"]
["Along Grid 15/A-H",1,1,24.56,0.5,0.7,8.6,1,"Raft beam"]
["Along Grid 18/A-H",1,1,24.56,0.5,0.7,8.6,1,"Raft beam"]
["Along Grid 19/A-H",1,1,12.66,0.5,0.7,4.43,1,"Raft beam"]
["Along Grid 20/A-H",1,1,12.66,0.5,0.7,4.43,1,"Raft beam"]
["Along Grid 23/A-H",1,1,12.66,0.5,0.7,4.43,1,"Raft beam"]
["Along Grid 25/E-H",1,1,8.0299999999999994,0.5,0.7,2.81,1,"Raft beam"]
["Along Grid 26/D-E",1,1,4.83,0.5,0.7,1.69,1,"Raft beam"]
["Along Grid 10/I-Q",1,1,23.13,0.5,0.7,8.1,1,"Raft beam"]
["Along Grid 12/I-M",1,1,16.2,0.5,0.7,5.67,1,"Raft beam"]
["Along Grid 13/I-M",1,1,16.2,0.5,0.7,5.67,1,"Raft beam"]
["Along Grid 15/I-Q",1,1,23.07,0.5,0.7,8.07,1,"Raft beam"]
["Along Grid 18/I-M",1,1,16.2,0.5,0.7,5.67,1,"Raft beam"]
["Along Grid 20/I-M",1,1,16.2,0.5,0.7,5.67,1,"Raft beam"]
["Along Grid 22/I-M",1,1,16.2,0.5,0.7,5.67,1,"Raft beam"]
["Along Grid 23/I-M",1,1,16.2,0.5,0.7,5.67,1,"Raft beam"]
["Ramp (Longer side)",1,3,31.32,0.5,0.7,32.89,1,"Raft beam"]
["Ramp (Shorter side)",1,5,5.16,0.5,0.7,9.0299999999999994,1,"Raft beam"]
["Column Pedestal",null,null,null,null,null,null,1,"Column Pedestal"]
["Column 0.4mX0.35m",88,1,0.55000000000000004,0.5,0.9,21.78,1,"Column Pedestal"]
["Column 0.4mX0.4m",54,1,0.55000000000000004,0.55000000000000004,0.9,14.7,1,"Column Pedestal"]
["Column 0.45mX0.5m",30,1,0.6,0.65,0.9,10.53,1,"Column Pedestal"]
["Column 0.5mX0.5m",22,1,0.65,0.65,0.9,8.3699999999999992,1,"Column Pedestal"]
["Column 0.4mX0.65m",5,1,0.55000000000000004,0.8,0.9,1.98,1,"Column Pedestal"]
["Ramp",null,null,null,null,null,null,1,"Column Pedestal"]
["Column 0.4mX0.35m",18,1,0.55000000000000004,0.5,0.9,4.46,1,"Column Pedestal"]
["Columns",null,null,null,null,null,null,1,"Column"]
["Column 0.4mX0.35m",4,1,0.4,0.35,0.6,0.34,1,"Column"]
["Column 0.4mX0.35m",{"$f":"88-4-24","v":60},1,0.4,0.35,0.6,5.04,1,"Column"]
["Column 0.4mX0.35m",24,1,0.4,0.35,0.6,2.02,1,"Column"]
["Column 0.4mX0.4m",2,1,0.4,0.4,0.6,0.19,1,"Column"]
["Column 0.4mX0.4m",{"$f":"54-2-10","v":42},1,0.4,0.4,0.6,4.03,1,"Column"]
["Column 0.4mX0.4m",10,1,0.4,0.4,0.6,0.96,1,"Column"]
["Column 0.45mX0.5m",{"$f":"30-7","v":23},1,0.45,0.5,0.6,3.11,1,"Column"]
["Column 0.45mX0.5m",7,1,0.45,0.5,0.6,0.95,1,"Column"]
["Column 0.5mX0.5m",{"$f":"22-1","v":21},1,0.5,0.5,0.6,3.15,1,"Column"]
["Column 0.5mX0.5m",1,1,0.5,0.5,0.6,0.15,1,"Column"]
["Column 0.4mX0.65m",5,1,0.4,0.65,0.6,0.78,1,"Column"]
["Ramp",null,null,null,null,null,null,1,"Column"]
["Column 0.4mX0.35m",18,1,0.4,0.35,0.6,1.51,1,"Column"]
["Plinth Level",null,null,null,null,null,null,1]
["Plinth Beam",null,null,null,null,null,null,1,"Plinth Beam"]
["Grid A,B/17-7, 300 X 600",1,2,26.14,0.3,0.47500000000000003,{"$f":"ROUND(PRODUCT(B121:F121),2)","v":7.45},1,"Plinth Beam"]
["Grid 8/A-F, 300 X 600",1,1,19.66,0.3,0.47500000000000003,2.8,1,"Plinth Beam"]
["Grid 11,12,13,14,15,17/A-H, 300 X 600",1,6,24.09,0.3,0.47500000000000003,20.6,1,"Plinth Beam"]
["Grid C/13-14, 300 X 600",1,1,5.26,0.3,0.47500000000000003,0.75,1,"Plinth Beam"]
["Grid D/1-12, 300 X 600",1,1,29.98,0.3,0.47500000000000003,4.2699999999999996,1,"Plinth Beam"]
["Grid E/15-8, 300 X 600",1,1,19.59,0.3,0.47500000000000003,2.79,1,"Plinth Beam"]
["Grid 1/D-E, 300 X 600",1,1,4.43,0.3,0.47500000000000003,0.63,1,"Plinth Beam"]
["Grid 2/E-H, 300 X 600",1,1,7.83,0.3,0.47500000000000003,1.1200000000000001,1,"Plinth Beam"]
["Grid 4,6/D-H, 300 X 600",1,2,12.26,0.3,0.47500000000000003,3.49,1,"Plinth Beam"]
["Grid 7/D-F, 300 X 600",1,1,7.83,0.3,0.47500000000000003,1.1200000000000001,1,"Plinth Beam"]
["Grid G/9-7, 300 X 600",1,1,1.63,0.3,0.47500000000000003,0.23,1,"Plinth Beam"]
["Grid F/8-11, 300 X 600",1,1,4.0199999999999996,0.3,0.47500000000000003,0.56999999999999995,1,"Plinth Beam"]
["Grid 10/F-H, 300 X 600",1,1,4.43,0.3,0.47500000000000003,0.63,1,"Plinth Beam"]
["Grid 9/G-H, 300 X 600",1,1,4.05,0.3,0.47500000000000003,0.57999999999999996,1,"Plinth Beam"]
["Grid H/4-19, 300 X 600",1,1,40.17,0.3,0.47500000000000003,5.72,1,"Plinth Beam"]
["Grid H/26-20, 300 X 600",1,1,21.6,0.3,0.47500000000000003,3.08,1,"Plinth Beam"]
["Grid D/20-27, 300 X 600",1,1,22.85,0.3,0.47500000000000003,3.26,1,"Plinth Beam"]
["Grid 27/D-E, 300 X 600",1,1,4.43,0.3,0.47500000000000003,0.63,1,"Plinth Beam"]
["Grid I/24-4, 300 X 600",1,1,55.7,0.3,0.47500000000000003,7.94,1,"Plinth Beam"]
["Grid 4/I-M, 300 X 600",1,1,15.79,0.3,0.47500000000000003,2.25,1,"Plinth Beam"]
["Grid 3,5,23,25/D-H, 300 X 600",1,4,12.26,0.3,0.47500000000000003,6.99,1,"Plinth Beam"]
["Grid 20,21,24/D-H, 300 X 600",1,3,12.26,0.3,0.47500000000000003,5.24,1,"Plinth Beam"]
["Grid E/1-8, 300 X 600",1,1,22.18,0.3,0.47500000000000003,3.16,1,"Plinth Beam"]
["Grid E/2-8, 300 X 600",1,1,20.93,0.3,0.47500000000000003,2.98,1,"Plinth Beam"]
["Grid 25/D-E, 300 X 600",1,1,4.2,0.3,0.47500000000000003,0.6,1,"Plinth Beam"]
["Grid D/19-15, 300 X 600",1,1,9.7100000000000009,0.3,0.47500000000000003,1.38,1,"Plinth Beam"]
["Grid E/15-27, 300 X 600",1,1,30.22,0.3,0.47500000000000003,4.3099999999999996,1,"Plinth Beam"]
["Grid F/15-26, 300 X 600",1,1,28.97,0.3,0.47500000000000003,4.13,1,"Plinth Beam"]
["Grid H-E/26, 300 X 600",1,1,7.83,0.3,0.47500000000000003,1.1200000000000001,1,"Plinth Beam"]
["Grid 5,6,10,21,23/J-M, 300 X 600",1,1,12.26,0.3,0.47500000000000003,1.75,1,"Plinth Beam"]
["Grid 24,19,12,13,14/H-M, 300 X 600",1,5,16.32,0.3,0.47500000000000003,11.63,1,"Plinth Beam"]
["Grid I-Q/15, 300 X 600",1,1,22.7,0.3,0.47500000000000003,3.23,1,"Plinth Beam"]
["Grid 14-13/J, 300 X 600",1,1,5.43,0.3,0.47500000000000003,0.77,1,"Plinth Beam"]
["Grid L/13-14, 300 X 600",1,1,4.97,0.3,0.47500000000000003,0.71,1,"Plinth Beam"]
["Grid J,L/12-4, 300 X 600",1,2,21.84,0.3,0.47500000000000003,6.22,1,"Plinth Beam"]
["Grid K/4-24, 300 X 600",1,1,55.7,0.3,0.47500000000000003,7.94,1,"Plinth Beam"]
["Grid M/4-10, 300 X 600",1,1,15.53,0.3,0.47500000000000003,2.21,1,"Plinth Beam"]
["Grid M/10-15, 300 X 600",1,1,18.29,0.3,0.47500000000000003,2.61,1,"Plinth Beam"]
["Grid J,L/15-24, 300 X 600",1,2,21.85,0.3,0.47500000000000003,6.23,1,"Plinth Beam"]
["Grid M/15-24, 300 X 600",1,1,22.07,0.3,0.47500000000000003,3.14,1,"Plinth Beam"]
["Grid 15/M-Q, 300 X 600",1,1,6.82,0.3,0.47500000000000003,0.97,1,"Plinth Beam"]
["Grid 10,12/M-Q, 300 X 600",1,2,6.91,0.3,0.47500000000000003,1.97,1,"Plinth Beam"]
["Grid M-W/13-14, 300 X 600",1,2,36.700000000000003,0.3,0.47500000000000003,10.46,1,"Plinth Beam"]
["Grid Q/10-15, 300 X 600",1,1,18.23,0.3,0.47500000000000003,2.6,1,"Plinth Beam"]
["Grid 6,9,11,13,14,17,20,22/R-W, 300 X 600",1,8,28.75,0.3,0.47500000000000003,32.78,1,"Plinth Beam"]
["Grid R,S/6-22, 300 X 600",1,2,40.33,0.3,0.47500000000000003,11.49,1,"Plinth Beam"]
["Grid T,U,V,W/6-13, 300 X 600",1,4,17.38,0.3,0.47500000000000003,9.91,1,"Plinth Beam"]
["Grid T,U,V,W/22-24, 300 X 600",1,4,17.399999999999999,0.3,0.47500000000000003,9.92,1,"Plinth Beam"]
["Grid 4,5/J-K, 300 X 600",1,2,3.53,0.3,0.47500000000000003,1.01,1,"Plinth Beam"]
["Grid 5-6/J-K, 300 X 600",1,1,3.53,0.3,0.47500000000000003,0.5,1,"Plinth Beam"]
["Grid 10-11/M-Q, 300 X 600",1,1,6.91,0.3,0.47500000000000003,0.98,1,"Plinth Beam"]
["Grid 12-13/ T,U,V,W, 300 X 600",1,4,5.0199999999999996,0.3,0.47500000000000003,2.86,1,"Plinth Beam"]
["Grid I-J/19,21, 300 X 600",1,2,3.53,0.3,0.47500000000000003,1.01,1,"Plinth Beam"]
["Grid D-E/7-3, 230 X 400",1,3,4.43,0.23,0.27500000000000002,0.84,1,"Plinth Beam"]
["Grid F-H/2-7, 230 X 400",1,5,4.43,0.23,0.27500000000000002,1.4,1,"Plinth Beam"]
["Grid F-H/6-4, 230 X 400",1,1,6.22,0.23,0.27500000000000002,0.39,1,"Plinth Beam"]
["Grid F-H/6-4, 230 X 400",1,1,2.0299999999999998,0.23,0.27500000000000002,0.13,1,"Plinth Beam"]
["Grid F-H/4-2, 230 X 400",1,1,1.75,0.23,0.27500000000000002,0.11,1,"Plinth Beam"]
["Grid F-H/4-2, 230 X 400",1,2,2.78,0.23,0.27500000000000002,0.35,1,"Plinth Beam"]
["Grid F-H/4-2, 230 X 400",1,1,2.86,0.23,0.27500000000000002,0.18,1,"Plinth Beam"]
["Grid F-H/4-2, 230 X 400",1,1,4.79,0.23,0.27500000000000002,0.3,1,"Plinth Beam"]
["Grid F-H/4-2, 230 X 400",1,3,1.91,0.23,0.27500000000000002,0.36,1,"Plinth Beam"]
["Grid F-H/4-2, 230 X 400",1,1,1.36,0.23,0.27500000000000002,0.09,1,"Plinth Beam"]
["Grid F-H/4-2, 230 X 400",1,1,1.85,0.23,0.27500000000000002,0.12,1,"Plinth Beam"]
["Grid 12-11/B-D, 230 X 400",1,1,4.42,0.23,0.27500000000000002,{"$f":"ROUND(PRODUCT(B185:F185),2)","v":0.28000000000000003},1,"Plinth Beam"]
["Grid 12-11/D'-E, 230 X 400",1,1,3.81,0.23,0.27500000000000002,0.24,1,"Plinth Beam"]
["Grid J-K/5-4, 230 X 400",1,1,4.43,0.23,0.27500000000000002,0.28000000000000003,1,"Plinth Beam"]
["Grid J-K/5-4, 230 X 400",1,1,3.55,0.23,0.27500000000000002,0.22,1,"Plinth Beam"]
["Grid J-K/10-6, 230 X 400",1,1,7.19,0.23,0.27500000000000002,0.45,1,"Plinth Beam"]
["Grid J-K/10-6, 230 X 400",1,1,4.43,0.23,0.27500000000000002,0.28000000000000003,1,"Plinth Beam"]
["Grid L-M/6-7, 230 X 400",1,1,4.43,0.23,0.27500000000000002,0.28000000000000003,1,"Plinth Beam"]
["Grid I-J/11-12, 230 X 400",1,1,3.53,0.23,0.27500000000000002,0.22,1,"Plinth Beam"]
["Grid 10-12/L-M, 230 X 400",1,1,6.06,0.23,0.27500000000000002,0.38,1,"Plinth Beam"]
["Grid 10-12/L-M, 230 X 400",1,2,3.2,0.23,0.27500000000000002,0.4,1,"Plinth Beam"]
["Grid O/10-12, 230 X 400",1,1,6.22,0.23,0.27500000000000002,0.39,1,"Plinth Beam"]
["Grid S-T/10-6, 230 X 400",1,1,6.63,0.23,0.27500000000000002,0.42,1,"Plinth Beam"]
["Grid S-T/10-6, 230 X 400",1,1,6.98,0.23,0.27500000000000002,0.44,1,"Plinth Beam"]
["Grid U-V/9-6, 230 X 400",1,1,6.95,0.23,0.27500000000000002,0.44,1,"Plinth Beam"]
["Grid U-V/9-6, 230 X 400",1,1,6.43,0.23,0.27500000000000002,0.41,1,"Plinth Beam"]
["Grid U-V/9-6, 230 X 400",1,1,1.86,0.23,0.27500000000000002,0.12,1,"Plinth Beam"]
["Grid 7/V-W, 230 X 400",1,1,4,0.23,0.27500000000000002,0.25,1,"Plinth Beam"]
["Grid V-W/11-12, 230 X 400",1,1,4.2300000000000004,0.23,0.27500000000000002,0.27,1,"Plinth Beam"]
["Grid V-W/11-12, 230 X 400",1,1,0.71,0.23,0.27500000000000002,0.04,1,"Plinth Beam"]
["Grid U-V/11-13, 230 X 400",1,1,7.11,0.23,0.27500000000000002,0.45,1,"Plinth Beam"]
["Grid U-V/11-13, 230 X 400",1,1,6.46,0.23,0.27500000000000002,0.41,1,"Plinth Beam"]
["Grid U-V/11-13, 230 X 400",1,1,3.13,0.23,0.27500000000000002,0.2,1,"Plinth Beam"]
["Grid U-V/11-13, 230 X 400",1,1,3.88,0.23,0.27500000000000002,0.25,1,"Plinth Beam"]
["Grid U-V/11-13, 230 X 400",1,1,1.97,0.23,0.27500000000000002,0.12,1,"Plinth Beam"]
["Grid 11-13/S-T, 230 X 400",1,1,7.11,0.23,0.27500000000000002,0.45,1,"Plinth Beam"]
["Grid 11-13/T-U, 230 X 400",1,1,7.11,0.23,0.27500000000000002,0.45,1,"Plinth Beam"]
["Grid 12-8/R-S, 230 X 400",1,1,5.86,0.23,0.27500000000000002,0.37,1,"Plinth Beam"]
["Grid 12-8/R-S, 230 X 400",1,1,5.03,0.23,0.27500000000000002,0.32,1,"Plinth Beam"]
["Grid 13-14/M-O, 230 X 400",1,1,5.26,0.23,0.27500000000000002,0.33,1,"Plinth Beam"]
["Grid 13-14/M-O, 230 X 400",1,1,3.58,0.23,0.27500000000000002,0.23,1,"Plinth Beam"]
["Grid 13-14/J-K, 230 X 400",1,1,5.03,0.23,0.27500000000000002,0.32,1,"Plinth Beam"]
["Grid B-C/13-14, 230 X 400",1,1,3.4,0.23,0.27500000000000002,0.22,1,"Plinth Beam"]
["Grid 19-15/A-B, 230 X 400",1,1,6.45,0.23,0.27500000000000002,0.41,1,"Plinth Beam"]
["Grid 19-15/A-B, 230 X 400",1,1,2.11,0.23,0.27500000000000002,0.13,1,"Plinth Beam"]
["Grid B-D/19-15, 230 X 400",1,2,4.7,0.23,0.27500000000000002,{"$f":"ROUND(PRODUCT(B219:F219),2)","v":0.59},1,"Plinth Beam"]
["Grid B-D/19-15, 230 X 400",1,1,6.47,0.23,0.27500000000000002,{"$f":"ROUND(PRODUCT(B220:F220),2)","v":0.41},1,"Plinth Beam"]
["Grid B-D/19-15, 230 X 400",1,1,2.39,0.23,0.27500000000000002,0.15,1,"Plinth Beam"]
["Grid B-D/19-15, 230 X 400",1,1,1.1200000000000001,0.23,0.27500000000000002,7.0000000000000007E-2,1,"Plinth Beam"]
["Grid 15-17/D-E, 230 X 400",1,1,4.46,0.23,0.27500000000000002,0.28000000000000003,1,"Plinth Beam"]
["Grid 15-17/D-E, 230 X 400",1,1,3.83,0.23,0.27500000000000002,0.24,1,"Plinth Beam"]
["Grid 20-23/D-E, 230 X 400",1,3,4.43,0.23,0.27500000000000002,0.84,1,"Plinth Beam"]
["Grid F-H/23-20, 230 X 400",1,3,4.46,0.23,0.27500000000000002,0.85,1,"Plinth Beam"]
["Grid F-H/24-22, 230 X 400",1,1,6.32,0.23,0.27500000000000002,0.4,1,"Plinth Beam"]
["Grid F-H/24-22, 230 X 400",1,2,2.14,0.23,0.27500000000000002,0.27,1,"Plinth Beam"]
["Grid 27-24/F-H, 230 X 400",1,1,1.1399999999999999,0.23,0.27500000000000002,7.0000000000000007E-2,1,"Plinth Beam"]
["Grid 27-24/F-H, 230 X 400",1,1,1.75,0.23,0.27500000000000002,0.11,1,"Plinth Beam"]
["Grid 27-24/F-H, 230 X 400",1,1,1,0.23,0.27500000000000002,0.06,1,"Plinth Beam"]
["Grid 27-24/F-H, 230 X 400",1,1,4.46,0.23,0.27500000000000002,0.28000000000000003,1,"Plinth Beam"]
["Grid 27-24/F-H, 230 X 400",1,2,1.84,0.23,0.27500000000000002,0.23,1,"Plinth Beam"]
["Grid 27-24/F-H, 230 X 400",1,1,1.84,0.23,0.27500000000000002,0.12,1,"Plinth Beam"]
["Grid 27-24/F-H, 230 X 400",1,1,1.93,0.23,0.27500000000000002,0.12,1,"Plinth Beam"]
["Grid 27-24/F-H, 230 X 400",1,2,2.81,0.23,0.27500000000000002,0.36,1,"Plinth Beam"]
["Grid 27-24/F-H, 230 X 400",1,2,2.85,0.23,0.27500000000000002,0.36,1,"Plinth Beam"]
["Grid 20-22/J-K, 230 X 400",1,1,4.43,0.23,0.27500000000000002,0.28000000000000003,1,"Plinth Beam"]
["Grid 23-22/J-K, 230 X 400",1,1,4.43,0.23,0.27500000000000002,0.28000000000000003,1,"Plinth Beam"]
["Grid 23-22/J-K, 230 X 400",1,1,1.2,0.23,0.27500000000000002,0.08,1,"Plinth Beam"]
["Grid L-M/22-23, 230 X 400",1,1,4.43,0.23,0.27500000000000002,0.28000000000000003,1,"Plinth Beam"]
["Grid L-M/22-23, 230 X 400",1,1,1.1599999999999999,0.23,0.27500000000000002,7.0000000000000007E-2,1,"Plinth Beam"]
["Grid J-K/23-24, 230 X 400",1,1,4.43,0.23,0.27500000000000002,0.28000000000000003,1,"Plinth Beam"]
["Grid J-K/23-24, 230 X 400",1,1,3.53,0.23,0.27500000000000002,0.22,1,"Plinth Beam"]
["Raft",null,null,null,null,null,null,1,"Plinth Beam"]
["Long span",1,3,31.5,0.23,0.27500000000000002,5.98,1,"Plinth Beam"]
["Short Span",1,6,5.76,0.23,0.27500000000000002,2.19,1,"Plinth Beam"]
["Grade slab",null,null,null,null,null,null,1,"Grade slab"]
["Porch area",1,1,9.27,12.51,0.125,{"$f":"ROUND(PRODUCT(B249:F249),2)","v":14.5},1,"Grade slab"]
["Central area",1,1,41.01,26.64,0.125,136.56,1,"Grade slab"]
["Block B & C  area",1,1,28.98,14.04,0.125,50.86,1,"Grade slab"]
["Block B & C  area",1,1,12.66,6.92,0.125,10.95,1,"Grade slab"]
["Block B & C  area",1,1,4.83,1.22,0.125,0.74,1,"Grade slab"]
["Block G & F  area",1,1,28.98,15.52,0.125,56.22,1,"Grade slab"]
["Block G & F  area",1,1,12.66,6.91,0.125,10.94,1,"Grade slab"]
["Block G & F  area",1,1,4.83,1.24,0.125,0.75,1,"Grade slab"]
["B/w ramp & doctors entry",1,1,7.41,18.82,0.125,17.43,1,"Grade slab"]
["Block D & E  area",1,1,29.3,40.82,0.125,149.5,1,"Grade slab"]
["Ramp",1,1,31.03,5.58,0.125,21.64,1,"Grade slab"]
["Lift Pit",null,null,null,null,null,null,1,"Lift"]
["Long wall",3,2,5.49,0.23,2.2999999999999998,{"$f":"ROUND(PRODUCT(B261:F261),2)","v":17.43},1,"Lift"]
["Short wall",3,3,3,0.23,2.2999999999999998,{"$f":"ROUND(PRODUCT(B262:F262),2)","v":14.28},1,"Lift"]
["Building side ramp",null,null,null,null,null,null,1,"Slab"]
["Block A",1,1,7,2.1,0.2,{"$f":"ROUND(PRODUCT(B264:F264),2)","v":2.94},1,"Slab"]
["Block D",1,1,7,2.1,0.2,{"$f":"ROUND(PRODUCT(B265:F265),2)","v":2.94},1,"Slab"]
["Block E",1,1,7,2.1,0.2,{"$f":"ROUND(PRODUCT(B266:F266),2)","v":2.94},1,"Slab"]
["Columns",null,null,null,null,null,null,1,"Column"]
["Column 0.4mX0.35m",4,1,0.4,0.35,4.5,{"$f":"ROUND(PRODUCT(B268:F268),2)","v":2.52},1,"Column"]
["Column 0.4mX0.35m",{"$f":"88-4-24","v":60},1,0.4,0.35,{"$f":"20.4-0.6","v":19.799999999999997},166.32,1,"Column"]
["Column 0.4mX0.35m",24,1,0.4,0.35,{"$f":"23.4-0.6","v":22.799999999999997},76.61,1,"Column"]
["Column 0.4mX0.4m",2,1,0.4,0.4,{"$f":"12.3-0.6","v":11.700000000000001},3.74,1,"Column"]
["Column 0.4mX0.4m",{"$f":"54-2-10","v":42},1,0.4,0.4,{"$f":"20.4-0.6","v":19.799999999999997},133.06,1,"Column"]
["Column 0.4mX0.4m",10,1,0.4,0.4,{"$f":"23.4-0.6","v":22.799999999999997},36.479999999999997,1,"Column"]
["Column 0.45mX0.5m",{"$f":"30-7","v":23},1,0.45,0.5,{"$f":"20.4-0.6","v":19.799999999999997},102.47,1,"Column"]
["Column 0.45mX0.5m",7,1,0.45,0.5,{"$f":"23.4-0.6","v":22.799999999999997},35.909999999999997,1,"Column"]
["Column 0.5mX0.5m",{"$f":"22-1","v":21},1,0.5,0.5,{"$f":"20.4-0.6","v":19.799999999999997},103.95,1,"Column"]
["Column 0.5mX0.5m",1,1,0.5,0.5,{"$f":"23.4-0.6","v":22.799999999999997},5.7,1,"Column"]
["Column 0.4mX0.65m",5,1,0.4,0.65,{"$f":"12.3-0.6","v":11.700000000000001},15.21,1,"Column"]
["Ramp",null,null,null,null,null,null,1,"Column"]
["Column 0.4mX0.35m",18,1,0.4,0.35,{"$f":"23.4-0.6","v":22.799999999999997},{"$f":"ROUND(PRODUCT(B280:F280),2)","v":57.46},1,"Column"]
["Ground Floor",null,null,null,null,null,null,1]
["Beam",null,null,null,null,null,null,1,"Beam"]
["Grid A,B/17-7 300 X 600",1,2,26.14,0.3,0.47500000000000003,{"$f":"ROUND(PRODUCT(B283:F283),2)","v":7.45},1,"Beam"]
["Grid 8/A-F 300 X 600",1,1,19.66,0.3,0.47500000000000003,2.8,1,"Beam"]
["Grid 11,12,13,14,15,17/A-H 300 X 600",1,1,24.09,0.3,0.47500000000000003,3.43,1,"Beam"]
["Grid 11,12,13,14,15/B-H 300 X 600",1,5,16.96,0.3,0.47500000000000003,12.08,1,"Beam"]
["Grid C/13-14 300 X 600",1,1,5.26,0.3,0.47500000000000003,0.75,1,"Beam"]
["Grid D/1-12 300 X 600",1,1,29.98,0.3,0.47500000000000003,4.2699999999999996,1,"Beam"]
["Grid E/15-8 300 X 600",1,1,19.59,0.3,0.47500000000000003,2.79,1,"Beam"]
["Grid 1/D-E 300 X 600",1,1,4.43,0.3,0.47500000000000003,0.63,1,"Beam"]
["Grid 2/E-H 300 X 600",1,1,7.83,0.3,0.47500000000000003,1.1200000000000001,1,"Beam"]
["Grid 4,6/D-H 300 X 600",1,2,12.26,0.3,0.47500000000000003,3.49,1,"Beam"]
["Grid 7/D-F 300 X 600",1,1,7.83,0.3,0.47500000000000003,1.1200000000000001,1,"Beam"]
["Grid G/9-7 300 X 600",1,1,1.63,0.3,0.47500000000000003,0.23,1,"Beam"]
["Grid F/8-11 300 X 600",1,1,4.0199999999999996,0.3,0.47500000000000003,0.56999999999999995,1,"Beam"]
["Grid 10/F-H 300 X 600",1,1,4.43,0.3,0.47500000000000003,0.63,1,"Beam"]
["Grid 9/G-H 300 X 600",1,1,4.05,0.3,0.47500000000000003,0.57999999999999996,1,"Beam"]
["Grid H/4-19 300 X 600",1,1,40.17,0.3,0.47500000000000003,5.72,1,"Beam"]
["Grid H/26-20 300 X 600",1,1,21.6,0.3,0.47500000000000003,3.08,1,"Beam"]
["Grid D/20-27 300 X 600",1,1,22.85,0.3,0.47500000000000003,3.26,1,"Beam"]
["Grid 27/D-E 300 X 600",1,1,4.43,0.3,0.47500000000000003,0.63,1,"Beam"]
["Grid I/24-4 300 X 600",1,1,55.7,0.3,0.47500000000000003,7.94,1,"Beam"]
["Grid 4/I-M 300 X 600",1,1,15.79,0.3,0.47500000000000003,2.25,1,"Beam"]
["Grid 3,5,23,25/D-H 300 X 700",1,4,12.26,0.3,0.57500000000000007,8.4600000000000009,1,"Beam"]
["Grid 20,21,24/D-H 300 X 600",1,3,12.26,0.3,0.47500000000000003,5.24,1,"Beam"]
["Grid 20-21/D-H 230 X 400",1,1,12.26,0.23,0.27500000000000002,0.78,1,"Beam"]
["Grid E-D/2-3 230 X 400",1,1,4.4000000000000004,0.23,0.27500000000000002,0.28000000000000003,1,"Beam"]
["Grid E-D/4-3 230 X 400",1,1,4.4000000000000004,0.23,0.27500000000000002,0.28000000000000003,1,"Beam"]
["Grid E-D/5-6 230 X 400",1,1,4.4000000000000004,0.23,0.27500000000000002,0.28000000000000003,1,"Beam"]
["Grid E-D/6-7 230 X 400",1,1,4.4000000000000004,0.23,0.27500000000000002,0.28000000000000003,1,"Beam"]
["Grid F-H/5-6 230 X 400",1,1,4.43,0.23,0.27500000000000002,0.28000000000000003,1,"Beam"]
["Grid F-H/5-6 230 X 400",1,1,2,0.23,0.27500000000000002,0.13,1,"Beam"]
["Grid F-H/6-7 230 X 400",1,2,4.43,0.23,0.27500000000000002,0.56000000000000005,1,"Beam"]
["Grid G-H/2-4 230 X 400",1,1,6.86,0.23,0.27500000000000002,0.43,1,"Beam"]
["Grid G-H/4-6 230 X 400",1,1,6.22,0.23,0.27500000000000002,0.39,1,"Beam"]
["Grid G-H/3-4 230 X 400",1,1,1.36,0.23,0.27500000000000002,0.09,1,"Beam"]
["Grid G-H/3-4 230 X 400",1,1,1.91,0.23,0.27500000000000002,0.12,1,"Beam"]
["Grid E/1-8 300 X 700",1,1,22.18,0.3,0.57500000000000007,3.83,1,"Beam"]
["Grid E/2-8 300 X 700",1,1,20.93,0.3,0.57500000000000007,3.61,1,"Beam"]
["Grid 10-11/B-F 230 X 400",1,1,8.91,0.23,0.27500000000000002,0.56000000000000005,1,"Beam"]
["Grid 13-14/B-F 230 X 400",1,1,9.1,0.23,0.27500000000000002,0.57999999999999996,1,"Beam"]
["Grid 16/B-F 230 X 400",1,1,17.07,0.23,0.27500000000000002,1.08,1,"Beam"]
["Grid 11-12/B-D' 230 X 400",1,1,4.47,0.23,0.27500000000000002,0.28000000000000003,1,"Beam"]
["Grid 11-12/F-D' 230 X 400",1,1,3.83,0.23,0.27500000000000002,0.24,1,"Beam"]
["Grid 24-25/D-E 230 X 400",1,1,4.2,0.23,0.27500000000000002,0.27,1,"Beam"]
["Grid 25-26/D-E 230 X 400",1,1,4.2,0.23,0.27500000000000002,0.27,1,"Beam"]
["Grid 25/D-E 300 X 700",1,1,4.2,0.3,0.57500000000000007,0.72,1,"Beam"]
["Grid D/19-15 300 X 700",1,1,9.7100000000000009,0.3,0.57500000000000007,1.67,1,"Beam"]
["Grid E/15-27 300 X 700",1,1,30.22,0.3,0.57500000000000007,5.21,1,"Beam"]
["Grid F/15-26 300 X 700",1,1,28.97,0.3,0.57500000000000007,5,1,"Beam"]
["Grid E-D/20-23 230 X 400",1,3,4.43,0.23,0.27500000000000002,0.84,1,"Beam"]
["Grid F-H/20-23 230 X 400",1,3,4.43,0.23,0.27500000000000002,0.84,1,"Beam"]
["Grid 26-24/G-H 230 X 400",1,1,6.63,0.23,0.27500000000000002,0.42,1,"Beam"]
["Grid 25-26/G-H 230 X 400",1,1,2.85,0.23,0.27500000000000002,0.18,1,"Beam"]
["Grid 26-24/F 230 X 400",1,1,1.85,0.23,0.27500000000000002,0.12,1,"Beam"]
["Grid 25-26/G-H 230 X 400",1,1,1.91,0.23,0.27500000000000002,0.12,1,"Beam"]
["Grid H-E/26 300 X 600",1,1,7.83,0.3,0.47500000000000003,1.1200000000000001,1,"Beam"]
["Grid 5,6,10,21,23/J-M 300 X 600",1,1,12.26,0.3,0.47500000000000003,1.75,1,"Beam"]
["Grid J-M/5-6 230 X 400",1,1,12.26,0.23,0.27500000000000002,0.78,1,"Beam"]
["Grid J-M/6-7 230 X 400",1,1,12.26,0.23,0.27500000000000002,0.78,1,"Beam"]
["Grid J-M/20-21 230 X 400",1,1,12.26,0.23,0.27500000000000002,0.78,1,"Beam"]
["Grid 24,19,12,13,14/H-M 300 X 600",1,5,16.32,0.3,0.47500000000000003,11.63,1,"Beam"]
["Grid 17/H-M 230 X 400",1,1,16.32,0.23,0.27500000000000002,1.03,1,"Beam"]
["Grid I-Q/15 300 X 600",1,1,22.7,0.3,0.47500000000000003,3.23,1,"Beam"]
["Grid I-Q/11 230 X 400",1,1,22.7,0.23,0.27500000000000002,1.44,1,"Beam"]
["Grid 14-13/J 300 X 600",1,1,5.43,0.3,0.47500000000000003,0.77,1,"Beam"]
["Grid L/13-14 300 X 600",1,1,4.97,0.3,0.47500000000000003,{"$f":"ROUND(PRODUCT(B347:F347),2)","v":0.71},1,"Beam"]
["Grid J,L/12-4 300 X 700",1,2,21.84,0.3,0.57500000000000007,7.53,1,"Beam"]
["Grid K/4-24 300 X 700",1,1,55.7,0.3,0.57500000000000007,9.61,1,"Beam"]
["Grid M/4-10 300 X 600",1,1,15.53,0.3,0.47500000000000003,2.21,1,"Beam"]
["Grid M/10-15 300 X 700",1,1,18.29,0.3,0.57500000000000007,3.16,1,"Beam"]
["Grid J,L/15-24 300 X 700",1,2,21.85,0.3,0.57500000000000007,7.54,1,"Beam"]
["Grid M/15-24 300 X 600",1,1,22.07,0.3,0.47500000000000003,3.14,1,"Beam"]
["Grid 15/M-Q 300 X 600",1,1,6.82,0.3,0.47500000000000003,0.97,1,"Beam"]
["Grid 11-12/I-J 230 X 400",1,2,3.53,0.23,0.27500000000000002,0.45,1,"Beam"]
["Grid J-K/13-14 230 X 400",1,1,5.13,0.23,0.27500000000000002,0.32,1,"Beam"]
["Grid J-K/22-24 230 X 400",1,2,4.46,0.23,0.27500000000000002,0.56000000000000005,1,"Beam"]
["Grid J-K/22-24 230 X 400",1,2,1.78,0.23,0.27500000000000002,0.23,1,"Beam"]
["Grid J-K/22-24 230 X 400",1,1,4.91,0.23,0.27500000000000002,0.31,1,"Beam"]
["Grid J-K/22-24 230 X 400",1,1,4.46,0.23,0.27500000000000002,0.28000000000000003,1,"Beam"]
["Grid M-L/22-24 230 X 400",1,3,4.43,0.23,0.27500000000000002,0.84,1,"Beam"]
["Grid M-L/22-24 230 X 400",1,1,1.23,0.23,0.27500000000000002,0.08,1,"Beam"]
["Grid 10,12/M-Q 300 X 700",1,2,6.91,0.3,0.57500000000000007,2.38,1,"Beam"]
["Grid O/10-12 230 X 400",1,1,6.29,0.23,0.27500000000000002,0.4,1,"Beam"]
["Grid M-O/13-14 230 X 400",1,1,3.58,0.23,0.27500000000000002,0.23,1,"Beam"]
["Grid M-W/13-14 300 X 700",1,2,36.700000000000003,0.3,0.57500000000000007,12.66,1,"Beam"]
["Grid Q/10-15 300 X 700",1,1,18.23,0.3,0.57500000000000007,3.14,1,"Beam"]
["Grid 6,9,11,13,14,17,20,22/R-W 300 X 700",1,8,28.75,0.3,0.57500000000000007,39.68,1,"Beam"]
["Grid R-V/5-6 230 X 400",1,1,24.44,0.23,0.27500000000000002,1.55,1,"Beam"]
["Grid U-V/5-6 230 X 400",1,2,1.72,0.23,0.27500000000000002,0.22,1,"Beam"]
["Grid V-W/5-6 230 X 400",1,2,4,0.23,0.27500000000000002,0.51,1,"Beam"]
["Grid R-V/12-11 230 X 400",1,1,24.44,0.23,0.27500000000000002,1.55,1,"Beam"]
["Grid T-U/12-11 230 X 400",1,1,7.21,0.23,0.27500000000000002,0.46,1,"Beam"]
["Grid V-W/11-12 230 X 400",1,1,4.2300000000000004,0.23,0.27500000000000002,0.27,1,"Beam"]
["Grid V-W/11-12 230 X 400",1,1,0.71,0.23,0.27500000000000002,0.04,1,"Beam"]
["Grid 15/R-V 230 X 400",1,1,24.44,0.23,0.27500000000000002,1.55,1,"Beam"]
["Grid 20-21/R-V 230 X 400",1,1,24.44,0.23,0.27500000000000002,1.55,1,"Beam"]
["Grid T-U/22-20 230 X 400",1,1,6.97,0.23,0.27500000000000002,0.44,1,"Beam"]
["Grid R,S/6-22 300 X 700",1,2,40.33,0.3,0.57500000000000007,13.91,1,"Beam"]
["Grid T,U,V,W/6-13 300 X 700",1,4,17.38,0.3,0.57500000000000007,11.99,1,"Beam"]
["Grid T,U,V,W/22-24 300 X 700",1,4,17.399999999999999,0.3,0.57500000000000007,12.01,1,"Beam"]
["Slab",null,null,null,null,null,null,1,"Slab"]
["Porch area",1,1,9.27,12.51,0.125,14.5,1,"Slab"]
["Central area",1,1,41.01,26.64,0.125,136.56,1,"Slab"]
["Block B & C  area",1,1,28.98,14.04,0.125,50.86,1,"Slab"]
["Block B & C  area",1,1,12.66,6.92,0.125,10.95,1,"Slab"]
["Block B & C  area",1,1,4.83,1.22,0.125,0.74,1,"Slab"]
["Block G & F  area",1,1,28.98,15.52,0.125,56.22,1,"Slab"]
["Block G & F  area",1,1,12.66,6.91,0.125,10.94,1,"Slab"]
["Block G & F  area",1,1,4.83,1.24,0.125,0.75,1,"Slab"]
["B/w ramp & doctors entry",1,1,7.41,18.82,0.125,17.43,1,"Slab"]
["Block D & E  area",1,1,29.3,40.82,0.125,149.5,1,"Slab"]
["Ramp",1,1,31.03,5.58,0.125,21.64,1,"Slab"]
["Dduct open area at Block C",-1,1,3.13,21.87,0.125,-8.56,1,"Slab"]
["Dduct open area at Block F",-1,1,3.13,15.8,0.125,-6.18,1,"Slab"]
["Dduct open area b/w Block D & E",-1,1,23.84,5.0199999999999996,0.125,-14.96,1,"Slab"]
["Dduct entrance lobby double height area",-1,1,12.07,26.63,0.125,-40.18,1,"Slab"]
["Deuct OTS are (Central big)",-1,1,7.3,5.03,0.125,-4.59,1,"Slab"]
["Deuct OTS are (Central small)",-1,1,3,5.03,0.125,-1.89,1,"Slab"]
["Lift area",-3,1,3.23,5.49,0.125,-6.65,1,"Slab"]
["Fire staicase",-4,1,4.2,7.65,0.125,-16.07,1,"Slab"]
["Central straicase",-1,1,8.26,5,0.125,-5.16,1,"Slab"]
["Staircase at Block A",-1,1,4.47,7.59,0.125,-4.24,1,"Slab"]
["OTS near AHU's",-2,1,1.5,3.6,0.125,-1.35,1,"Slab"]
["First Floor",null,null,null,null,null,null,1,"Beam"]
["Beam",null,null,null,null,null,null,1,"Beam"]
["Grid A,B/17-7 300 X 600",1,2,26.14,0.3,0.47500000000000003,{"$f":"ROUND(PRODUCT(B407:F407),2)","v":7.45},1,"Beam"]
["Grid 8/A-F 300 X 600",1,1,19.66,0.3,0.47500000000000003,2.8,1,"Beam"]
["Grid 11,12,13,14,15,17/A-H 300 X 600",1,6,24.09,0.3,0.47500000000000003,20.6,1,"Beam"]
["Grid C/13-14 300 X 600",1,1,5.26,0.3,0.47500000000000003,0.75,1,"Beam"]
["Grid D/1-12 300 X 600",1,1,29.98,0.3,0.47500000000000003,4.2699999999999996,1,"Beam"]
["Grid E/15-8 300 X 600",1,1,19.59,0.3,0.47500000000000003,2.79,1,"Beam"]
["Grid 1/D-E 300 X 600",1,1,4.43,0.3,0.47500000000000003,0.63,1,"Beam"]
["Grid 2/E-H 300 X 600",1,1,7.83,0.3,0.47500000000000003,1.1200000000000001,1,"Beam"]
["Grid 4,6/D-H 300 X 600",1,2,12.26,0.3,0.47500000000000003,3.49,1,"Beam"]
["Grid 7/D-F 300 X 600",1,1,7.83,0.3,0.47500000000000003,1.1200000000000001,1,"Beam"]
["Grid G/9-7 300 X 600",1,1,1.63,0.3,0.47500000000000003,0.23,1,"Beam"]
["Grid F/8-11 300 X 600",1,1,4.0199999999999996,0.3,0.47500000000000003,0.56999999999999995,1,"Beam"]
["Grid 10/F-H 300 X 600",1,1,4.43,0.3,0.47500000000000003,0.63,1,"Beam"]
["Grid 9/G-H 300 X 600",1,1,4.05,0.3,0.47500000000000003,0.57999999999999996,1,"Beam"]
["Grid H/4-19 300 X 600",1,1,40.17,0.3,0.47500000000000003,5.72,1,"Beam"]
["Grid H/26-20 300 X 600",1,1,21.6,0.3,0.47500000000000003,3.08,1,"Beam"]
["Grid D/20-27 300 X 600",1,1,22.85,0.3,0.47500000000000003,3.26,1,"Beam"]
["Grid 27/D-E 300 X 600",1,1,4.43,0.3,0.47500000000000003,0.63,1,"Beam"]
["Grid I/24-4 300 X 600",1,1,55.7,0.3,0.47500000000000003,7.94,1,"Beam"]
["Grid 4/I-M 300 X 600",1,1,15.79,0.3,0.47500000000000003,2.25,1,"Beam"]
["Grid 3,5,23,25/D-H 300 X 700",1,4,12.26,0.3,0.57500000000000007,8.4600000000000009,1,"Beam"]
["Grid 20,21,24/D-H 300 X 600",1,3,12.26,0.3,0.47500000000000003,5.24,1,"Beam"]
["Grid 20-21/D-H 230 X 400",1,1,12.26,0.23,0.27500000000000002,0.78,1,"Beam"]
["Grid 21-23/D-H 230 X 400",1,1,12.26,0.23,0.27500000000000002,0.78,1,"Beam"]
["Grid F-H/5-6 230 X 400",1,1,4.43,0.23,0.27500000000000002,0.28000000000000003,1,"Beam"]
["Grid F-H/6-7 230 X 400",1,2,4.43,0.23,0.27500000000000002,0.56000000000000005,1,"Beam"]
["Grid G-H/2-4 230 X 400",1,1,6.86,0.23,0.27500000000000002,0.43,1,"Beam"]
["Grid G-H/3-4 230 X 400",1,1,1.91,0.23,0.27500000000000002,0.12,1,"Beam"]
["Grid E/1-8 300 X 700",1,1,22.18,0.3,0.57500000000000007,3.83,1,"Beam"]
["Grid E/2-8 300 X 700",1,1,20.93,0.3,0.57500000000000007,3.61,1,"Beam"]
["Grid 10-11/B-F 230 X 400",1,1,8.91,0.23,0.27500000000000002,0.56000000000000005,1,"Beam"]
["Grid 11-12/F-D' 230 X 400",1,2,3.83,0.23,0.27500000000000002,0.48,1,"Beam"]
["Grid B/8-12 230 X 400",1,1,3.92,0.23,0.27500000000000002,0.25,1,"Beam"]
["Grid 11-12/B-D 230 X 400",1,1,4.5,0.23,0.27500000000000002,0.28000000000000003,1,"Beam"]
["Grid A-E/13-14 230 X 400",1,1,16.239999999999998,0.23,0.27500000000000002,1.03,1,"Beam"]
["Grid 16/A-H 230 X 400",1,1,24.09,0.23,0.27500000000000002,1.52,1,"Beam"]
["Grid 15-16/DUCT 230 X 400",1,1,1.1200000000000001,0.23,0.27500000000000002,7.0000000000000007E-2,1,"Beam"]
["Grid 24-25/D-E 230 X 400",1,1,4.2,0.23,0.27500000000000002,0.27,1,"Beam"]
["Grid 25-26/D-E 230 X 400",1,1,4.2,0.23,0.27500000000000002,0.27,1,"Beam"]
["Grid 25/D-E 300 X 700",1,1,4.2,0.3,0.57500000000000007,0.72,1,"Beam"]
["Grid D/19-15 300 X 700",1,1,9.7100000000000009,0.3,0.57500000000000007,1.67,1,"Beam"]
["Grid E/15-27 300 X 700",1,1,30.22,0.3,0.57500000000000007,5.21,1,"Beam"]
["Grid F/15-26 300 X 700",1,1,28.97,0.3,0.57500000000000007,5,1,"Beam"]
["Grid 26-24/G-H 230 X 400",1,1,6.63,0.23,0.27500000000000002,0.42,1,"Beam"]
["Grid 25-26/G-H 230 X 400",1,1,2.85,0.23,0.27500000000000002,0.18,1,"Beam"]
["Grid 26-24/F 230 X 400",1,1,1.85,0.23,0.27500000000000002,0.12,1,"Beam"]
["Grid 25-26/G-H 230 X 400",1,1,1.91,0.23,0.27500000000000002,0.12,1,"Beam"]
["Grid H-E/26 300 X 600",1,1,7.83,0.3,0.47500000000000003,1.1200000000000001,1,"Beam"]
["Grid 5,6,10,21,23/J-M 300 X 600",1,1,12.26,0.3,0.47500000000000003,1.75,1,"Beam"]
["Grid J-M/5-6 230 X 400",1,1,12.26,0.23,0.27500000000000002,0.78,1,"Beam"]
["Grid J-M/6-7 230 X 400",1,1,12.26,0.23,0.27500000000000002,0.78,1,"Beam"]
["Grid J-M/20-21 230 X 400",1,1,12.26,0.23,0.27500000000000002,0.78,1,"Beam"]
["Grid J-M/22-23 230 X 400",1,1,12.26,0.23,0.27500000000000002,0.78,1,"Beam"]
["Grid 24,19,12,13,14/H-M 300 X 600",1,5,16.32,0.3,0.47500000000000003,11.63,1,"Beam"]
["Grid 17/H-M 230 X 400",1,1,16.32,0.23,0.27500000000000002,1.03,1,"Beam"]
["Grid I-Q/15 300 X 600",1,1,22.7,0.3,0.47500000000000003,3.23,1,"Beam"]
["Grid I-Q/11 230 X 400",1,1,22.7,0.23,0.27500000000000002,1.44,1,"Beam"]
["Grid 14-13/J 300 X 600",1,1,5.43,0.3,0.47500000000000003,0.77,1,"Beam"]
["Grid L/13-14 300 X 600",1,1,4.97,0.3,0.47500000000000003,0.71,1,"Beam"]
["Grid J,L/12-4 300 X 700",1,2,21.84,0.3,0.57500000000000007,7.53,1,"Beam"]
["Grid K/4-24 300 X 700",1,1,55.7,0.3,0.57500000000000007,9.61,1,"Beam"]
["Grid M/4-10 300 X 600",1,1,15.53,0.3,0.47500000000000003,2.21,1,"Beam"]
["Grid M/10-15 300 X 700",1,1,18.29,0.3,0.57500000000000007,3.16,1,"Beam"]
["Grid J,L/15-24 300 X 700",1,2,21.85,0.3,0.57500000000000007,7.54,1,"Beam"]
["Grid M/15-24 300 X 600",1,1,22.07,0.3,0.47500000000000003,{"$f":"ROUND(PRODUCT(B471:F471),2)","v":3.14},1,"Beam"]
["Grid 15/M-Q 300 X 600",1,1,6.82,0.3,0.47500000000000003,0.97,1,"Beam"]
["Grid 11-12/I-J 230 X 400",1,2,3.53,0.23,0.27500000000000002,0.45,1,"Beam"]
["Grid J-K/13-14 230 X 400",1,1,5.13,0.23,0.27500000000000002,0.32,1,"Beam"]
["Grid 10,12/M-Q 300 X 700",1,2,6.91,0.3,0.57500000000000007,2.38,1,"Beam"]
["Grid O/10-12 230 X 400",1,1,6.29,0.23,0.27500000000000002,0.4,1,"Beam"]
["Grid M-O/13-14 230 X 400",1,1,3.58,0.23,0.27500000000000002,0.23,1,"Beam"]
["Grid M-W/13-14 300 X 700",1,2,36.700000000000003,0.3,0.57500000000000007,12.66,1,"Beam"]
["Grid Q/10-15 300 X 700",1,1,18.23,0.3,0.57500000000000007,3.14,1,"Beam"]
["Grid 6,9,11,13,14,17,20,22/R-W 300 X 700",1,8,28.75,0.3,0.57500000000000007,39.68,1,"Beam"]
["Grid R-V/5-6 230 X 400",1,1,24.44,0.23,0.27500000000000002,1.55,1,"Beam"]
["Grid U-V/5-6 230 X 400",1,2,1.72,0.23,0.27500000000000002,0.22,1,"Beam"]
["Grid V-W/5-6 230 X 400",1,2,4,0.23,0.27500000000000002,0.51,1,"Beam"]
["Grid R-V/12-11 230 X 400",1,1,24.44,0.23,0.27500000000000002,1.55,1,"Beam"]
["Grid V-W/11-12 230 X 400",1,1,4.2300000000000004,0.23,0.27500000000000002,0.27,1,"Beam"]
["Grid V-W/11-12 230 X 400",1,1,0.71,0.23,0.27500000000000002,0.04,1,"Beam"]
["Grid 15/R-V 230 X 400",1,1,24.44,0.23,0.27500000000000002,1.55,1,"Beam"]
["Grid 20-21/R-V 230 X 400",1,1,24.44,0.23,0.27500000000000002,1.55,1,"Beam"]
["Grid T-U/22-20 230 X 400",1,1,6.97,0.23,0.27500000000000002,0.44,1,"Beam"]
["Grid R,S/6-22 300 X 700",1,2,40.33,0.3,0.57500000000000007,13.91,1,"Beam"]
["Grid T,U,V,W/6-13 300 X 700",1,4,17.38,0.3,0.57500000000000007,11.99,1,"Beam"]
["Grid T,U,V,W/22-24 300 X 700",1,4,17.399999999999999,0.3,0.57500000000000007,12.01,1,"Beam"]
["Slab",null,null,null,null,null,null,1,"Slab"]
["Central area",1,1,41.01,26.64,0.125,136.56,1,"Slab"]
["Block B & C  area",1,1,28.98,14.04,0.125,50.86,1,"Slab"]
["Block B & C  area",1,1,12.66,6.92,0.125,10.95,1,"Slab"]
["Block B & C  area",1,1,4.83,1.22,0.125,0.74,1,"Slab"]
["Block G & F  area",1,1,28.98,15.52,0.125,56.22,1,"Slab"]
["Block G & F  area",1,1,12.66,6.91,0.125,10.94,1,"Slab"]
["Block G & F  area",1,1,4.83,1.24,0.125,0.75,1,"Slab"]
["B/w ramp & doctors entry",1,1,7.41,18.82,0.125,17.43,1,"Slab"]
["Block D & E  area",1,1,29.3,40.82,0.125,149.5,1,"Slab"]
["Ramp",1,1,31.03,5.58,0.125,21.64,1,"Slab"]
["Dduct open area at Block C",-1,1,3.13,21.87,0.125,-8.56,1,"Slab"]
["Dduct open area at Block F",-1,1,3.13,15.8,0.125,-6.18,1,"Slab"]
["Dduct open area b/w Block D & E",-1,1,23.84,5.0199999999999996,0.125,-14.96,1,"Slab"]
["Deuct OTS are (Central big)",-1,1,7.3,5.03,0.125,-4.59,1,"Slab"]
["Deuct OTS are (Central small)",-1,1,3,5.03,0.125,-1.89,1,"Slab"]
["Lift area",-3,1,3.23,5.49,0.125,-6.65,1,"Slab"]
["Fire staicase",-4,1,4.2,7.65,0.125,-16.07,1,"Slab"]
["Central straicase",-1,1,8.26,5,0.125,-5.16,1,"Slab"]
["Staircase at Block A",-1,1,4.47,7.59,0.125,-4.24,1,"Slab"]
["OTS near AHU's",-2,1,1.5,3.6,0.125,-1.35,1,"Slab"]
["Second Floor",null,null,null,null,null,null,1]
["Beam",null,null,null,null,null,null,1,"Beam"]
["Grid A,B/17-7 300 X 600",1,2,26.14,0.3,0.47500000000000003,{"$f":"ROUND(PRODUCT(B516:F516),2)","v":7.45},1,"Beam"]
["Grid 8/A-F 300 X 600",1,1,19.66,0.3,0.47500000000000003,2.8,1,"Beam"]
["Grid 11,12,13,14,15,17/A-H 300 X 600",1,6,24.09,0.3,0.47500000000000003,20.6,1,"Beam"]
["Grid C/13-14 300 X 600",1,1,5.26,0.3,0.47500000000000003,0.75,1,"Beam"]
["Grid D/1-12 300 X 600",1,1,29.98,0.3,0.47500000000000003,4.2699999999999996,1,"Beam"]
["Grid E/15-8 300 X 600",1,1,19.59,0.3,0.47500000000000003,2.79,1,"Beam"]
["Grid 1/D-E 300 X 600",1,1,4.43,0.3,0.47500000000000003,0.63,1,"Beam"]
["Grid 2/E-H 300 X 600",1,1,7.83,0.3,0.47500000000000003,1.1200000000000001,1,"Beam"]
["Grid 4,6/D-H 300 X 600",1,2,12.26,0.3,0.47500000000000003,3.49,1,"Beam"]
["Grid 7/D-F 300 X 600",1,1,7.83,0.3,0.47500000000000003,1.1200000000000001,1,"Beam"]
["Grid G/9-7 300 X 600",1,1,1.63,0.3,0.47500000000000003,0.23,1,"Beam"]
["Grid F/8-11 300 X 600",1,1,4.0199999999999996,0.3,0.47500000000000003,0.56999999999999995,1,"Beam"]
["Grid 10/F-H 300 X 600",1,1,4.43,0.3,0.47500000000000003,0.63,1,"Beam"]
["Grid 9/G-H 300 X 600",1,1,4.05,0.3,0.47500000000000003,0.57999999999999996,1,"Beam"]
["Grid H/4-19 300 X 600",1,1,40.17,0.3,0.47500000000000003,5.72,1,"Beam"]
["Grid H/26-20 300 X 600",1,1,21.6,0.3,0.47500000000000003,3.08,1,"Beam"]
["Grid D/20-27 300 X 600",1,1,22.85,0.3,0.47500000000000003,3.26,1,"Beam"]
["Grid 27/D-E 300 X 600",1,1,4.43,0.3,0.47500000000000003,0.63,1,"Beam"]
["Grid I/24-4 300 X 600",1,1,55.7,0.3,0.47500000000000003,7.94,1,"Beam"]
["Grid 4/I-M 300 X 600",1,1,15.79,0.3,0.47500000000000003,2.25,1,"Beam"]
["Grid 3,5,23,25/D-H 300 X 700",1,4,12.26,0.3,0.57500000000000007,8.4600000000000009,1,"Beam"]
["Grid 20,21,24/D-H 300 X 600",1,3,12.26,0.3,0.47500000000000003,5.24,1,"Beam"]
["Grid 20-21/D-H 230 X 400",1,1,12.26,0.23,0.27500000000000002,0.78,1,"Beam"]
["Grid 21-23/D-H 230 X 400",1,1,12.26,0.23,0.27500000000000002,0.78,1,"Beam"]
["Grid F-H/5-6 230 X 400",1,1,4.43,0.23,0.27500000000000002,0.28000000000000003,1,"Beam"]
["Grid F-H/6-7 230 X 400",1,2,4.43,0.23,0.27500000000000002,0.56000000000000005,1,"Beam"]
["Grid G-H/2-4 230 X 400",1,1,6.86,0.23,0.27500000000000002,0.43,1,"Beam"]
["Grid G-H/3-4 230 X 400",1,1,1.91,0.23,0.27500000000000002,0.12,1,"Beam"]
["Grid E/1-8 300 X 700",1,1,22.18,0.3,0.57500000000000007,3.83,1,"Beam"]
["Grid E/2-8 300 X 700",1,1,20.93,0.3,0.57500000000000007,3.61,1,"Beam"]
["Grid 10-11/B-F 230 X 400",1,1,8.91,0.23,0.27500000000000002,0.56000000000000005,1,"Beam"]
["Grid 11-12/F-D' 230 X 400",1,2,3.83,0.23,0.27500000000000002,0.48,1,"Beam"]
["Grid B/8-12 230 X 400",1,1,3.92,0.23,0.27500000000000002,0.25,1,"Beam"]
["Grid 11-12/B-D 230 X 400",1,1,4.5,0.23,0.27500000000000002,0.28000000000000003,1,"Beam"]
["Grid A-E/13-14 230 X 400",1,1,16.239999999999998,0.23,0.27500000000000002,1.03,1,"Beam"]
["Grid 16/A-H 230 X 400",1,1,24.09,0.23,0.27500000000000002,1.52,1,"Beam"]
["Grid 15-16/DUCT 230 X 400",1,1,1.1200000000000001,0.23,0.27500000000000002,7.0000000000000007E-2,1,"Beam"]
["Grid 24-25/D-E 230 X 400",1,1,4.2,0.23,0.27500000000000002,0.27,1,"Beam"]
["Grid 25-26/D-E 230 X 400",1,1,4.2,0.23,0.27500000000000002,0.27,1,"Beam"]
["Grid 25/D-E 300 X 700",1,1,4.2,0.3,0.57500000000000007,0.72,1,"Beam"]
["Grid D/19-15 300 X 700",1,1,9.7100000000000009,0.3,0.57500000000000007,1.67,1,"Beam"]
["Grid E/15-27 300 X 700",1,1,30.22,0.3,0.57500000000000007,5.21,1,"Beam"]
["Grid F/15-26 300 X 700",1,1,28.97,0.3,0.57500000000000007,5,1,"Beam"]
["Grid 26-24/G-H 230 X 400",1,1,6.63,0.23,0.27500000000000002,0.42,1,"Beam"]
["Grid 25-26/G-H 230 X 400",1,1,2.85,0.23,0.27500000000000002,0.18,1,"Beam"]
["Grid 26-24/F 230 X 400",1,1,1.85,0.23,0.27500000000000002,0.12,1,"Beam"]
["Grid 25-26/G-H 230 X 400",1,1,1.91,0.23,0.27500000000000002,0.12,1,"Beam"]
["Grid H-E/26 300 X 600",1,1,7.83,0.3,0.47500000000000003,1.1200000000000001,1,"Beam"]
["Grid 5,6,10,21,23/J-M 300 X 600",1,1,12.26,0.3,0.47500000000000003,1.75,1,"Beam"]
["Grid J-M/5-6 230 X 400",1,1,12.26,0.23,0.27500000000000002,0.78,1,"Beam"]
["Grid J-M/6-7 230 X 400",1,1,12.26,0.23,0.27500000000000002,0.78,1,"Beam"]
["Grid J-M/20-21 230 X 400",1,1,12.26,0.23,0.27500000000000002,0.78,1,"Beam"]
["Grid J-M/22-23 230 X 400",1,1,12.26,0.23,0.27500000000000002,0.78,1,"Beam"]
["Grid 24,19,12,13,14/H-M 300 X 600",1,5,16.32,0.3,0.47500000000000003,11.63,1,"Beam"]
["Grid 17/H-M 230 X 400",1,1,16.32,0.23,0.27500000000000002,1.03,1,"Beam"]
["Grid I-Q/15 300 X 600",1,1,22.7,0.3,0.47500000000000003,3.23,1,"Beam"]
["Grid I-Q/11 230 X 400",1,1,22.7,0.23,0.27500000000000002,1.44,1,"Beam"]
["Grid 14-13/J 300 X 600",1,1,5.43,0.3,0.47500000000000003,0.77,1,"Beam"]
["Grid L/13-14 300 X 600",1,1,4.97,0.3,0.47500000000000003,0.71,1,"Beam"]
["Grid J,L/12-4 300 X 700",1,2,21.84,0.3,0.57500000000000007,7.53,1,"Beam"]
["Grid K/4-24 300 X 700",1,1,55.7,0.3,0.57500000000000007,9.61,1,"Beam"]
["Grid M/4-10 300 X 600",1,1,15.53,0.3,0.47500000000000003,2.21,1,"Beam"]
["Grid M/10-15 300 X 700",1,1,18.29,0.3,0.57500000000000007,3.16,1,"Beam"]
["Grid J,L/15-24 300 X 700",1,2,21.85,0.3,0.57500000000000007,7.54,1,"Beam"]
["Grid M/15-24 300 X 600",1,1,22.07,0.3,0.47500000000000003,{"$f":"ROUND(PRODUCT(B580:F580),2)","v":3.14},1,"Beam"]
["Grid 15/M-Q 300 X 600",1,1,6.82,0.3,0.47500000000000003,0.97,1,"Beam"]
["Grid 11-12/I-J 230 X 400",1,1,3.53,0.23,0.27500000000000002,0.22,1,"Beam"]
["Grid J-K/13-14 230 X 400",1,1,5.13,0.23,0.27500000000000002,0.32,1,"Beam"]
["Grid 10,12/M-Q 300 X 700",1,2,6.91,0.3,0.57500000000000007,2.38,1,"Beam"]
["Grid O/10-12 230 X 400",1,1,6.29,0.23,0.27500000000000002,0.4,1,"Beam"]
["Grid M-O/13-14 230 X 400",1,1,3.58,0.23,0.27500000000000002,0.23,1,"Beam"]
["Grid M-W/13-14 300 X 700",1,2,36.700000000000003,0.3,0.57500000000000007,12.66,1,"Beam"]
["Grid Q/10-15 300 X 700",1,1,18.23,0.3,0.57500000000000007,3.14,1,"Beam"]
["Grid 6,9,11,13,14,17,20,22/R-W 300 X 700",1,8,28.75,0.3,0.57500000000000007,39.68,1,"Beam"]
["Grid R-V/5-6 230 X 400",1,1,24.44,0.23,0.27500000000000002,1.55,1,"Beam"]
["Grid U-V/5-6 230 X 400",1,2,1.72,0.23,0.27500000000000002,0.22,1,"Beam"]
["Grid V-W/5-6 230 X 400",1,2,4,0.23,0.27500000000000002,0.51,1,"Beam"]
["Grid R-V/12-11 230 X 400",1,1,24.44,0.23,0.27500000000000002,1.55,1,"Beam"]
["Grid V-W/11-12 230 X 400",1,1,4.2300000000000004,0.23,0.27500000000000002,0.27,1,"Beam"]
["Grid V-W/11-12 230 X 400",1,1,0.71,0.23,0.27500000000000002,0.04,1,"Beam"]
["Grid 15/R-V 230 X 400",1,1,24.44,0.23,0.27500000000000002,1.55,1,"Beam"]
["Grid 20-21/R-V 230 X 400",1,1,24.44,0.23,0.27500000000000002,1.55,1,"Beam"]
["Grid T-U/22-20 230 X 400",1,1,6.97,0.23,0.27500000000000002,0.44,1,"Beam"]
["Grid R,S/6-22 300 X 700",1,2,40.33,0.3,0.57500000000000007,13.91,1,"Beam"]
["Grid T,U,V,W/6-13 300 X 700",1,4,17.38,0.3,0.57500000000000007,11.99,1,"Beam"]
["Grid T,U,V,W/22-24 300 X 700",1,4,17.399999999999999,0.3,0.57500000000000007,12.01,1,"Beam"]
["Slab",null,null,null,null,null,null,1,"Slab"]
["Central area",1,1,41.01,26.64,0.125,136.56,1,"Slab"]
["Block B & C  area",1,1,28.98,14.04,0.125,50.86,1,"Slab"]
["Block B & C  area",1,1,12.66,6.92,0.125,10.95,1,"Slab"]
["Block B & C  area",1,1,4.83,1.22,0.125,0.74,1,"Slab"]
["Block G & F  area",1,1,28.98,15.52,0.125,56.22,1,"Slab"]
["Block G & F  area",1,1,12.66,6.91,0.125,10.94,1,"Slab"]
["Block G & F  area",1,1,4.83,1.24,0.125,0.75,1,"Slab"]
["B/w ramp & doctors entry",1,1,7.41,18.82,0.125,17.43,1,"Slab"]
["Block D & E  area",1,1,29.3,40.82,0.125,149.5,1,"Slab"]
["Ramp",1,1,31.03,5.58,0.125,21.64,1,"Slab"]
["Dduct open area at Block C",-1,1,3.13,21.87,0.125,-8.56,1,"Slab"]
["Dduct open area at Block F",-1,1,3.13,15.8,0.125,-6.18,1,"Slab"]
["Dduct open area b/w Block D & E",-1,1,23.84,5.0199999999999996,0.125,-14.96,1,"Slab"]
["Deuct OTS are (Central big)",-1,1,7.3,5.03,0.125,-4.59,1,"Slab"]
["Deuct OTS are (Central small)",-1,1,3,5.03,0.125,-1.89,1,"Slab"]
["Lift area",-3,1,3.23,5.49,0.125,-6.65,1,"Slab"]
["Fire staicase",-4,1,4.2,7.65,0.125,-16.07,1,"Slab"]
["Central straicase",-1,1,8.26,5,0.125,-5.16,1,"Slab"]
["Staircase at Block A",-1,1,4.47,7.59,0.125,-4.24,1,"Slab"]
["OTS near AHU's",-2,1,1.5,3.6,0.125,-1.35,1,"Slab"]
["Third Floor",null,null,null,null,null,null,1]
["Beam",null,null,null,null,null,null,1,"Beam"]
["Grid B/17-8 300 X 600",1,1,26.14,0.3,0.47500000000000003,{"$f":"ROUND(PRODUCT(B625:F625),2)","v":3.72},1,"Beam"]
["Grid 8/B-F 300 X 600",1,1,12.53,0.3,0.47500000000000003,1.79,1,"Beam"]
["Grid 11,12,13,14,15,19/B-H 300 X 600",1,6,16.96,0.3,0.47500000000000003,14.5,1,"Beam"]
["Grid C/13-14 300 X 600",1,1,5.26,0.3,0.47500000000000003,0.75,1,"Beam"]
["Grid D/1-12 300 X 600",1,1,29.98,0.3,0.47500000000000003,4.2699999999999996,1,"Beam"]
["Grid E/15-8 300 X 600",1,1,19.59,0.3,0.47500000000000003,2.79,1,"Beam"]
["Grid 1/D-E 300 X 600",1,1,4.43,0.3,0.47500000000000003,0.63,1,"Beam"]
["Grid 2/E-H 300 X 600",1,1,7.83,0.3,0.47500000000000003,1.1200000000000001,1,"Beam"]
["Grid 4,6/D-H 300 X 600",1,2,12.26,0.3,0.47500000000000003,3.49,1,"Beam"]
["Grid 7/D-F 300 X 600",1,1,7.83,0.3,0.47500000000000003,1.1200000000000001,1,"Beam"]
["Grid G/9-7 300 X 600",1,1,1.63,0.3,0.47500000000000003,0.23,1,"Beam"]
["Grid F/8-11 300 X 600",1,1,4.0199999999999996,0.3,0.47500000000000003,0.56999999999999995,1,"Beam"]
["Grid 10/F-H 300 X 600",1,1,4.43,0.3,0.47500000000000003,0.63,1,"Beam"]
["Grid 9/G-H 300 X 600",1,1,4.05,0.3,0.47500000000000003,0.57999999999999996,1,"Beam"]
["Grid H/4-19 300 X 600",1,1,40.17,0.3,0.47500000000000003,5.72,1,"Beam"]
["Grid H/26-20 300 X 600",1,1,21.6,0.3,0.47500000000000003,3.08,1,"Beam"]
["Grid D/20-27 300 X 600",1,1,22.85,0.3,0.47500000000000003,3.26,1,"Beam"]
["Grid 27/D-E 300 X 600",1,1,4.43,0.3,0.47500000000000003,0.63,1,"Beam"]
["Grid I/24-4 300 X 600",1,1,55.7,0.3,0.47500000000000003,7.94,1,"Beam"]
["Grid 4/I-M 300 X 600",1,1,15.79,0.3,0.47500000000000003,2.25,1,"Beam"]
["Grid 3,5,23,25/D-H 300 X 700",1,4,12.26,0.3,0.57500000000000007,8.4600000000000009,1,"Beam"]
["Grid 20,21,24/D-H 300 X 600",1,3,12.26,0.3,0.47500000000000003,5.24,1,"Beam"]
["Grid 20-21/D-H 230 X 400",1,1,12.26,0.23,0.27500000000000002,0.78,1,"Beam"]
["Grid 21-23/D-H 230 X 400",1,1,12.26,0.23,0.27500000000000002,0.78,1,"Beam"]
["Grid F-H/5-6 230 X 400",1,1,4.43,0.23,0.27500000000000002,0.28000000000000003,1,"Beam"]
["Grid F-H/6-7 230 X 400",1,2,4.43,0.23,0.27500000000000002,0.56000000000000005,1,"Beam"]
["Grid G-H/2-4 230 X 400",1,1,6.86,0.23,0.27500000000000002,0.43,1,"Beam"]
["Grid G-H/3-4 230 X 400",1,1,1.91,0.23,0.27500000000000002,0.12,1,"Beam"]
["Grid E/1-8 300 X 700",1,1,22.18,0.3,0.57500000000000007,3.83,1,"Beam"]
["Grid E/2-8 300 X 700",1,1,20.93,0.3,0.57500000000000007,3.61,1,"Beam"]
["Grid 10-11/B-F 230 X 400",1,1,8.91,0.23,0.27500000000000002,0.56000000000000005,1,"Beam"]
["Grid 11-12/F-D' 230 X 400",1,2,3.83,0.23,0.27500000000000002,0.48,1,"Beam"]
["Grid B/8-12 230 X 400",1,1,3.92,0.23,0.27500000000000002,0.25,1,"Beam"]
["Grid 11-12/B-D 230 X 400",1,1,4.5,0.23,0.27500000000000002,0.28000000000000003,1,"Beam"]
["Grid A-E/13-14 230 X 400",1,1,16.239999999999998,0.23,0.27500000000000002,1.03,1,"Beam"]
["Grid 16/A-H 230 X 400",1,1,24.09,0.23,0.27500000000000002,1.52,1,"Beam"]
["Grid 15-16/DUCT 230 X 400",1,1,1.1200000000000001,0.23,0.27500000000000002,7.0000000000000007E-2,1,"Beam"]
["Grid 24-25/D-E 230 X 400",1,1,4.2,0.23,0.27500000000000002,0.27,1,"Beam"]
["Grid 25-26/D-E 230 X 400",1,1,4.2,0.23,0.27500000000000002,0.27,1,"Beam"]
["Grid 25/D-E 300 X 700",1,1,4.2,0.3,0.57500000000000007,0.72,1,"Beam"]
["Grid D/19-15 300 X 700",1,1,9.7100000000000009,0.3,0.57500000000000007,1.67,1,"Beam"]
["Grid E/15-27 300 X 700",1,1,30.22,0.3,0.57500000000000007,5.21,1,"Beam"]
["Grid F/15-26 300 X 700",1,1,28.97,0.3,0.57500000000000007,5,1,"Beam"]
["Grid 26-24/G-H 230 X 400",1,1,6.63,0.23,0.27500000000000002,0.42,1,"Beam"]
["Grid 25-26/G-H 230 X 400",1,1,2.85,0.23,0.27500000000000002,0.18,1,"Beam"]
["Grid 26-24/F 230 X 400",1,1,1.85,0.23,0.27500000000000002,0.12,1,"Beam"]
["Grid 25-26/G-H 230 X 400",1,1,1.91,0.23,0.27500000000000002,0.12,1,"Beam"]
["Grid H-E/26 300 X 600",1,1,7.83,0.3,0.47500000000000003,1.1200000000000001,1,"Beam"]
["Grid 5,6,10,21,23/J-M 300 X 600",1,1,12.26,0.3,0.47500000000000003,1.75,1,"Beam"]
["Grid J-M/5-6 230 X 400",1,1,12.26,0.23,0.27500000000000002,0.78,1,"Beam"]
["Grid J-M/6-7 230 X 400",1,1,12.26,0.23,0.27500000000000002,0.78,1,"Beam"]
["Grid J-M/20-21 230 X 400",1,1,12.26,0.23,0.27500000000000002,0.78,1,"Beam"]
["Grid J-M/22-23 230 X 400",1,1,12.26,0.23,0.27500000000000002,0.78,1,"Beam"]
["Grid 24,19,12,13,14/H-M 300 X 600",1,5,16.32,0.3,0.47500000000000003,11.63,1,"Beam"]
["Grid 17/H-M 230 X 400",1,1,16.32,0.23,0.27500000000000002,1.03,1,"Beam"]
["Grid I-Q/15 300 X 600",1,1,22.7,0.3,0.47500000000000003,3.23,1,"Beam"]
["Grid I-Q/11 230 X 400",1,1,22.7,0.23,0.27500000000000002,1.44,1,"Beam"]
["Grid 14-13/J 300 X 600",1,1,5.43,0.3,0.47500000000000003,0.77,1,"Beam"]
["Grid L/13-14 300 X 600",1,1,4.97,0.3,0.47500000000000003,0.71,1,"Beam"]
["Grid J,L/12-4 300 X 700",1,2,21.84,0.3,0.57500000000000007,7.53,1,"Beam"]
["Grid K/4-24 300 X 700",1,1,55.7,0.3,0.57500000000000007,9.61,1,"Beam"]
["Grid M/4-10 300 X 600",1,1,15.53,0.3,0.47500000000000003,2.21,1,"Beam"]
["Grid M/10-15 300 X 700",1,1,18.29,0.3,0.57500000000000007,3.16,1,"Beam"]
["Grid J,L/15-24 300 X 700",1,2,21.85,0.3,0.57500000000000007,7.54,1,"Beam"]
["Grid M/15-24 300 X 600",1,1,22.07,0.3,0.47500000000000003,{"$f":"ROUND(PRODUCT(B689:F689),2)","v":3.14},1,"Beam"]
["Grid 15/M-Q 300 X 600",1,1,6.82,0.3,0.47500000000000003,0.97,1,"Beam"]
["Grid 11-12/I-J 230 X 400",1,2,3.53,0.23,0.27500000000000002,0.45,1,"Beam"]
["Grid J-K/13-14 230 X 400",1,1,5.13,0.23,0.27500000000000002,0.32,1,"Beam"]
["Grid 10,12/M-Q 300 X 700",1,2,6.91,0.3,0.57500000000000007,2.38,1,"Beam"]
["Grid O/10-12 230 X 400",1,1,6.29,0.23,0.27500000000000002,0.4,1,"Beam"]
["Grid M-O/13-14 230 X 400",1,1,3.58,0.23,0.27500000000000002,0.23,1,"Beam"]
["Grid M-W/13-14 300 X 700",1,2,36.700000000000003,0.3,0.57500000000000007,12.66,1,"Beam"]
["Grid Q/10-15 300 X 700",1,1,18.23,0.3,0.57500000000000007,3.14,1,"Beam"]
["Grid 6,9,11,13,14,17,20,22/R-W 300 X 700",1,8,28.75,0.3,0.57500000000000007,39.68,1,"Beam"]
["Grid R-V/5-6 230 X 400",1,1,24.44,0.23,0.27500000000000002,1.55,1,"Beam"]
["Grid U-V/5-6 230 X 400",1,2,1.72,0.23,0.27500000000000002,0.22,1,"Beam"]
["Grid V-W/5-6 230 X 400",1,2,4,0.23,0.27500000000000002,0.51,1,"Beam"]
["Grid R-V/12-11 230 X 400",1,1,24.44,0.23,0.27500000000000002,1.55,1,"Beam"]
["Grid V-W/11-12 230 X 400",1,1,4.2300000000000004,0.23,0.27500000000000002,0.27,1,"Beam"]
["Grid V-W/11-12 230 X 400",1,1,0.71,0.23,0.27500000000000002,0.04,1,"Beam"]
["Grid 15/R-V 230 X 400",1,1,24.44,0.23,0.27500000000000002,1.55,1,"Beam"]
["Grid 20-21/R-V 230 X 400",1,1,24.44,0.23,0.27500000000000002,1.55,1,"Beam"]
["Grid T-U/22-20 230 X 400",1,1,6.97,0.23,0.27500000000000002,0.44,1,"Beam"]
["Grid R,S/6-22 300 X 700",1,2,40.33,0.3,0.57500000000000007,13.91,1,"Beam"]
["Grid T,U,V,W/6-13 300 X 700",1,4,17.38,0.3,0.57500000000000007,11.99,1,"Beam"]
["Grid T,U,V,W/22-24 300 X 700",1,4,17.399999999999999,0.3,0.57500000000000007,12.01,1,"Beam"]
["Slab",null,null,null,null,null,null,1,"Slab"]
["Central area",1,1,41.01,26.64,0.125,136.56,1,"Slab"]
["Block B & C  area",1,1,28.98,14.04,0.125,50.86,1,"Slab"]
["Block B & C  area",1,1,12.66,6.92,0.125,10.95,1,"Slab"]
["Block B & C  area",1,1,4.83,1.22,0.125,0.74,1,"Slab"]
["Block G & F  area",1,1,28.98,15.52,0.125,56.22,1,"Slab"]
["Block G & F  area",1,1,12.66,6.91,0.125,10.94,1,"Slab"]
["Block G & F  area",1,1,4.83,1.24,0.125,0.75,1,"Slab"]
["B/w ramp & doctors entry",1,1,7.41,18.82,0.125,17.43,1,"Slab"]
["Block D & E  area",1,1,29.3,40.82,0.125,149.5,1,"Slab"]
["Ramp",1,1,31.03,5.58,0.125,21.64,1,"Slab"]
["Dduct open area at Block C",-1,1,3.13,21.87,0.125,-8.56,1,"Slab"]
["Dduct open area at Block F",-1,1,3.13,15.8,0.125,-6.18,1,"Slab"]
["Dduct open area b/w Block D & E",-1,1,23.84,5.0199999999999996,0.125,-14.96,1,"Slab"]
["Dduct entrance lobby double height area",-1,1,12.07,26.63,0.125,-40.18,1,"Slab"]
["Deuct OTS are (Central big)",-1,1,7.3,5.03,0.125,-4.59,1,"Slab"]
["Deuct OTS are (Central small)",-1,1,3,5.03,0.125,-1.89,1,"Slab"]
["Lift area",-3,1,3.23,5.49,0.125,-6.65,1,"Slab"]
["Fire staicase",-4,1,4.2,7.65,0.125,-16.07,1,"Slab"]
["Central straicase",-1,1,8.26,5,0.125,-5.16,1,"Slab"]
["Staircase at Block A",-1,1,4.47,7.59,0.125,-4.24,1,"Slab"]
["OTS near AHU's",-2,1,1.5,3.6,0.125,-1.35,1,"Slab"]
["Fourth Floor",null,null,null,null,null,null,1]
["Beam",null,null,null,null,null,null,1,"Beam"]
["Grid C/13-14 300 X 600",1,1,5.26,0.3,0.47500000000000003,{"$f":"ROUND(PRODUCT(B735:F735),2)","v":0.75},1,"Beam"]
["Grid D/1-12 300 X 600",1,1,29.98,0.3,0.47500000000000003,4.2699999999999996,1,"Beam"]
["Grid E/15-8 300 X 600",1,1,19.59,0.3,0.47500000000000003,2.79,1,"Beam"]
["Grid 1/D-E 300 X 600",1,1,4.43,0.3,0.47500000000000003,0.63,1,"Beam"]
["Grid 2/E-H 300 X 600",1,1,7.83,0.3,0.47500000000000003,1.1200000000000001,1,"Beam"]
["Grid 4,6/D-H 300 X 600",1,2,12.26,0.3,0.47500000000000003,3.49,1,"Beam"]
["Grid 7/D-F 300 X 600",1,1,7.83,0.3,0.47500000000000003,1.1200000000000001,1,"Beam"]
["Grid G/9-7 300 X 600",1,1,1.63,0.3,0.47500000000000003,0.23,1,"Beam"]
["Grid F/8-11 300 X 600",1,1,4.0199999999999996,0.3,0.47500000000000003,0.56999999999999995,1,"Beam"]
["Grid 10/F-H 300 X 600",1,1,4.43,0.3,0.47500000000000003,0.63,1,"Beam"]
["Grid 9/G-H 300 X 600",1,1,4.05,0.3,0.47500000000000003,0.57999999999999996,1,"Beam"]
["Grid H/4-19 300 X 600",1,1,40.17,0.3,0.47500000000000003,5.72,1,"Beam"]
["Grid H/26-20 300 X 600",1,1,21.6,0.3,0.47500000000000003,3.08,1,"Beam"]
["Grid D/20-27 300 X 600",1,1,22.85,0.3,0.47500000000000003,3.26,1,"Beam"]
["Grid 27/D-E 300 X 600",1,1,4.43,0.3,0.47500000000000003,0.63,1,"Beam"]
["Grid I/24-4 300 X 600",1,1,55.7,0.3,0.47500000000000003,7.94,1,"Beam"]
["Grid 4/I-M 300 X 600",1,1,15.79,0.3,0.47500000000000003,2.25,1,"Beam"]
["Grid 3,5,23,25/D-H 300 X 700",1,4,12.26,0.3,0.57500000000000007,8.4600000000000009,1,"Beam"]
["Grid 20,21,24/D-H 300 X 600",1,3,12.26,0.3,0.47500000000000003,5.24,1,"Beam"]
["Grid 20-21/D-H 230 X 400",1,1,12.26,0.23,0.27500000000000002,0.78,1,"Beam"]
["Grid 21-23/D-H 230 X 400",1,1,12.26,0.23,0.27500000000000002,0.78,1,"Beam"]
["Grid F-H/5-6 230 X 400",1,1,4.43,0.23,0.27500000000000002,0.28000000000000003,1,"Beam"]
["Grid F-H/6-7 230 X 400",1,2,4.43,0.23,0.27500000000000002,0.56000000000000005,1,"Beam"]
["Grid G-H/2-4 230 X 400",1,1,6.86,0.23,0.27500000000000002,0.43,1,"Beam"]
["Grid E/1-8 300 X 700",1,1,22.18,0.3,0.57500000000000007,3.83,1,"Beam"]
["Grid E/2-8 300 X 700",1,1,20.93,0.3,0.57500000000000007,3.61,1,"Beam"]
["Grid 10-11/B-F 230 X 400",1,1,8.91,0.23,0.27500000000000002,0.56000000000000005,1,"Beam"]
["Grid 11-12/F-D' 230 X 400",1,2,3.83,0.23,0.27500000000000002,0.48,1,"Beam"]
["Grid B/8-12 230 X 400",1,1,3.92,0.23,0.27500000000000002,0.25,1,"Beam"]
["Grid 11-12/B-D 230 X 400",1,1,4.5,0.23,0.27500000000000002,0.28000000000000003,1,"Beam"]
["Grid A-E/13-14 230 X 400",1,1,16.239999999999998,0.23,0.27500000000000002,1.03,1,"Beam"]
["Grid 16/A-H 230 X 400",1,1,24.09,0.23,0.27500000000000002,1.52,1,"Beam"]
["Grid 24-25/D-E 230 X 400",1,1,4.2,0.23,0.27500000000000002,0.27,1,"Beam"]
["Grid 25-26/D-E 230 X 400",1,1,4.2,0.23,0.27500000000000002,0.27,1,"Beam"]
["Grid 25/D-E 300 X 700",1,1,4.2,0.3,0.57500000000000007,0.72,1,"Beam"]
["Grid D/19-15 300 X 700",1,1,9.7100000000000009,0.3,0.57500000000000007,1.67,1,"Beam"]
["Grid E/15-27 300 X 700",1,1,30.22,0.3,0.57500000000000007,5.21,1,"Beam"]
["Grid F/15-26 300 X 700",1,1,28.97,0.3,0.57500000000000007,5,1,"Beam"]
["Grid 26-24/G-H 230 X 400",1,1,6.63,0.23,0.27500000000000002,0.42,1,"Beam"]
["Grid 25-26/G-H 230 X 400",1,1,2.85,0.23,0.27500000000000002,0.18,1,"Beam"]
["Grid 26-24/F 230 X 400",1,1,1.85,0.23,0.27500000000000002,0.12,1,"Beam"]
["Grid 25-26/G-H 230 X 400",1,1,1.91,0.23,0.27500000000000002,0.12,1,"Beam"]
["Grid H-E/26 300 X 600",1,1,7.83,0.3,0.47500000000000003,1.1200000000000001,1,"Beam"]
["Grid 5,6,10,21,23/J-M 300 X 600",1,1,12.26,0.3,0.47500000000000003,1.75,1,"Beam"]
["Grid J-M/5-6 230 X 400",1,1,12.26,0.23,0.27500000000000002,0.78,1,"Beam"]
["Grid J-M/6-7 230 X 400",1,1,12.26,0.23,0.27500000000000002,0.78,1,"Beam"]
["Grid J-M/20-21 230 X 400",1,1,12.26,0.23,0.27500000000000002,0.78,1,"Beam"]
["Grid J-M/22-23 230 X 400",1,1,12.26,0.23,0.27500000000000002,0.78,1,"Beam"]
["Grid 24,19,12,13,14/H-M 300 X 600",1,5,16.32,0.3,0.47500000000000003,11.63,1,"Beam"]
["Grid 17/H-M 230 X 400",1,1,16.32,0.23,0.27500000000000002,1.03,1,"Beam"]
["Grid I-Q/15 300 X 600",1,1,22.7,0.3,0.47500000000000003,3.23,1,"Beam"]
["Grid I-Q/11 230 X 400",1,1,22.7,0.23,0.27500000000000002,1.44,1,"Beam"]
["Grid 14-13/J 300 X 600",1,1,5.43,0.3,0.47500000000000003,0.77,1,"Beam"]
["Grid L/13-14 300 X 600",1,1,4.97,0.3,0.47500000000000003,0.71,1,"Beam"]
["Grid J,L/12-4 300 X 700",1,2,21.84,0.3,0.57500000000000007,7.53,1,"Beam"]
["Grid K/4-24 300 X 700",1,1,55.7,0.3,0.57500000000000007,9.61,1,"Beam"]
["Grid M/4-10 300 X 600",1,1,15.53,0.3,0.47500000000000003,2.21,1,"Beam"]
["Grid M/10-15 300 X 700",1,1,18.29,0.3,0.57500000000000007,3.16,1,"Beam"]
["Grid J,L/15-24 300 X 700",1,2,21.85,0.3,0.57500000000000007,7.54,1,"Beam"]
["Grid M/15-24 300 X 600",1,1,22.07,0.3,0.47500000000000003,3.14,1,"Beam"]
["Grid 15/M-Q 300 X 600",1,1,6.82,0.3,0.47500000000000003,0.97,1,"Beam"]
["Grid 11-12/I-J 230 X 400",1,1,3.53,0.23,0.27500000000000002,0.22,1,"Beam"]
["Grid J-K/13-14 230 X 400",1,1,5.13,0.23,0.27500000000000002,0.32,1,"Beam"]
["Grid 10,12/M-Q 300 X 700",1,2,6.91,0.3,0.57500000000000007,2.38,1,"Beam"]
["Grid O/10-12 230 X 400",1,1,6.29,0.23,0.27500000000000002,{"$f":"ROUND(PRODUCT(B799:F799),2)","v":0.4},1,"Beam"]
["Grid M-O/13-14 230 X 400",1,1,3.58,0.23,0.27500000000000002,0.23,1,"Beam"]
["Grid M-W/13-14 300 X 700",1,2,36.700000000000003,0.3,0.57500000000000007,12.66,1,"Beam"]
["Grid Q/10-15 300 X 700",1,1,18.23,0.3,0.57500000000000007,3.14,1,"Beam"]
["Grid 6,9,11,13,14,17,20,22/R-W 300 X 700",1,8,28.75,0.3,0.57500000000000007,39.68,1,"Beam"]
["Grid R-V/5-6 230 X 400",1,1,24.44,0.23,0.27500000000000002,1.55,1,"Beam"]
["Grid V-W/5-6 230 X 400",1,2,4,0.23,0.27500000000000002,0.51,1,"Beam"]
["Grid R-V/12-11 230 X 400",1,1,24.44,0.23,0.27500000000000002,1.55,1,"Beam"]
["Grid V-W/11-12 230 X 400",1,1,4.2300000000000004,0.23,0.27500000000000002,0.27,1,"Beam"]
["Grid V-W/11-12 230 X 400",1,1,0.71,0.23,0.27500000000000002,0.04,1,"Beam"]
["Grid 15/R-V 230 X 400",1,1,24.44,0.23,0.27500000000000002,1.55,1,"Beam"]
["Grid 20-21/R-V 230 X 400",1,1,24.44,0.23,0.27500000000000002,1.55,1,"Beam"]
["Grid T-U/22-20 230 X 400",1,1,6.97,0.23,0.27500000000000002,0.44,1,"Beam"]
["Grid R,S/6-22 300 X 700",1,2,40.33,0.3,0.57500000000000007,13.91,1,"Beam"]
["Grid T,U,V,W/6-13 300 X 700",1,4,17.38,0.3,0.57500000000000007,11.99,1,"Beam"]
["Grid T,U,V,W/22-24 300 X 700",1,4,17.399999999999999,0.3,0.57500000000000007,12.01,1,"Beam"]
["Slab",null,null,null,null,null,null,1,"Slab"]
["Central area",1,1,41.01,26.64,0.125,{"$f":"ROUND(PRODUCT(B816:F816),2)","v":136.56},1,"Slab"]
["Block B & C  area",1,1,28.98,14.04,0.125,50.86,1,"Slab"]
["Block B & C  area",1,1,12.66,6.92,0.125,10.95,1,"Slab"]
["Block B & C  area",1,1,4.83,1.22,0.125,0.74,1,"Slab"]
["Block G & F  area",1,1,28.98,15.52,0.125,56.22,1,"Slab"]
["Block G & F  area",1,1,12.66,6.91,0.125,10.94,1,"Slab"]
["Block G & F  area",1,1,4.83,1.24,0.125,0.75,1,"Slab"]
["B/w ramp & doctors entry",1,1,7.41,18.82,0.125,17.43,1,"Slab"]
["Block D & E  area",1,1,29.3,40.82,0.125,149.5,1,"Slab"]
["Ramp",1,1,31.03,5.58,0.125,21.64,1,"Slab"]
["Dduct open area at Block C",-1,1,3.13,21.87,0.125,-8.56,1,"Slab"]
["Dduct open area at Block F",-1,1,3.13,15.8,0.125,-6.18,1,"Slab"]
["Dduct open area b/w Block D & E",-1,1,23.84,5.0199999999999996,0.125,-14.96,1,"Slab"]
["Dduct entrance lobby double height area",-1,1,12.07,26.63,0.125,-40.18,1,"Slab"]
["Deuct OTS are (Central big)",-1,1,7.3,5.03,0.125,-4.59,1,"Slab"]
["Deuct OTS are (Central small)",-1,1,3,5.03,0.125,-1.89,1,"Slab"]
["Lift area",-1,1,3.23,5.49,0.125,-2.2200000000000002,1,"Slab"]
["Fire staicase",-4,1,4.2,7.65,0.125,-16.07,1,"Slab"]
["Central straicase",-1,1,8.26,5,0.125,-5.16,1,"Slab"]
["Staircase at Block A",-1,1,4.47,7.59,0.125,-4.24,1,"Slab"]
["OTS near AHU's",-2,1,1.5,3.6,0.125,-1.35,1,"Slab"]
["Terrace Head Rooms & watertank",null,null,null,null,null,null,1]
["Main stair in Block A ",null,null,null,null,null,null,1,"Colunmn"]
["C1",1,4,0.4,0.35,2.875,{"$f":"ROUND(PRODUCT(B839:F839),2)","v":1.61},1,"Colunmn"]
["C2",1,2,0.4,0.4,2.875,0.92,1,"Colunmn"]
["Central Stair",null,null,null,null,null,null,1,"Colunmn"]
["C1",1,6,0.4,0.35,2.875,2.42,1,"Colunmn"]
["Fire escape stair in Block B&G",null,null,null,null,null,null,1,"Colunmn"]
["C1",2,4,0.4,0.35,2.875,3.22,1,"Colunmn"]
["C2",2,2,0.4,0.4,2.875,1.84,1,"Colunmn"]
["Block D &E",null,null,null,null,null,null,1,"Colunmn"]
["C2",2,1,0.4,0.4,2.875,0.92,1,"Colunmn"]
["C3",2,2,0.45,0.5,2.875,2.59,1,"Colunmn"]
["C4",2,1,0.5,0.5,2.875,1.44,1,"Colunmn"]
["Main lift lobby",null,null,null,null,null,null,1,"Colunmn"]
["C1",1,2,0.4,0.35,2.875,0.81,1,"Colunmn"]
["C2",1,2,0.4,0.4,2.875,0.92,1,"Colunmn"]
["C3",1,2,0.45,0.5,2.875,1.29,1,"Colunmn"]
["Central sub lift ",null,null,null,null,null,null,1,"Colunmn"]
["C2",2,1,0.4,0.4,1.2,0.38,1,"Colunmn"]
["C3",2,2,0.45,0.5,1.2,1.08,1,"Colunmn"]
["Bed lift block C",null,null,null,null,null,null,1,"Colunmn"]
["C1",2,1,0.4,0.35,1.2,0.34,1,"Colunmn"]
["C3",2,2,0.45,0.5,1.2,1.08,1,"Colunmn"]
["Water Tank Above stair head room",null,null,null,null,null,null,1,"Colunmn"]
["Fire escape stair in Block B&G",null,null,null,null,null,null,1,"Colunmn"]
["C1",2,4,0.4,0.35,1,{"$f":"ROUND(PRODUCT(B862:F862),2)","v":1.1200000000000001},1,"Colunmn"]
["C2",2,2,0.4,0.4,1,{"$f":"ROUND(PRODUCT(B863:F863),2)","v":0.64},1,"Colunmn"]
["Beams",null,null,null,null,null,null,1,"Beam"]
["  Stair head rooms",null,null,null,null,null,null,1,"Beam"]
["Main stair in Block A ",null,null,null,null,null,null,1,"Beam"]
["In XX direction ",1,3,4.3,0.3,0.47499999999999998,{"$f":"ROUND(PRODUCT(B867:F867),2)","v":1.84},1,"Beam"]
["In YY direction ",1,2,3.5,0.3,0.47499999999999998,1,1,"Beam"]
[null,1,2,3.35,0.3,0.47499999999999998,0.95,1,"Beam"]
["Central Stair",null,null,null,null,null,null,1,"Beam"]
["In XX direction ",1,2,3.03,0.3,0.47499999999999998,0.86,1,"Beam"]
[null,1,2,4.0199999999999996,0.3,0.47499999999999998,1.1499999999999999,1,"Beam"]
["In YY direction ",1,3,5.03,0.3,0.47499999999999998,2.15,1,"Beam"]
["Fire escape stair in Block B&G",null,null,null,null,null,null,1,"Beam"]
["In XX direction ",2,2,4.03,0.3,0.47499999999999998,2.2999999999999998,1,"Beam"]
[null,2,1,4.03,0.3,0.57499999999999996,1.39,1,"Beam"]
["In YY direction ",2,1,3.93,0.3,0.47499999999999998,1.1200000000000001,1,"Beam"]
[null,2,1,3.93,0.3,0.57499999999999996,1.36,1,"Beam"]
[null,2,1,3.22,0.3,0.47499999999999998,0.92,1,"Beam"]
[null,2,1,3.22,0.3,0.57499999999999996,1.1100000000000001,1,"Beam"]
["Block D &E",null,null,null,null,null,null,1,"Beam"]
["In XX direction ",1,2,4,0.3,0.57499999999999996,1.38,1,"Beam"]
["In YY direction ",1,2,6.45,0.3,0.57499999999999996,2.23,1,"Beam"]
["Main lift lobby",null,null,null,null,null,null,1,"Beam"]
["In XX direction ",1,2,3,0.3,0.47499999999999998,0.86,1,"Beam"]
[null,1,1,3.16,0.3,0.47499999999999998,0.45,1,"Beam"]
[null,1,2,5.52,0.3,0.47499999999999998,1.57,1,"Beam"]
[null,1,1,5.76,0.3,0.47499999999999998,0.82,1,"Beam"]
["In YY direction ",1,3,4.78,0.3,0.47499999999999998,2.04,1,"Beam"]
["Beams Above stair head room",null,null,null,null,null,null,1,"Beam"]
["In XX direction ",2,2,4.03,0.3,0.4,1.93,1,"Beam"]
[null,2,1,4.03,0.3,0.5,1.21,1,"Beam"]
["In YY direction ",2,1,3.93,0.3,0.4,0.94,1,"Beam"]
[null,2,1,3.93,0.3,0.5,1.18,1,"Beam"]
[null,2,1,3.22,0.3,0.4,0.77,1,"Beam"]
[null,2,1,3.22,0.3,0.5,0.97,1,"Beam"]
["Walls",null,null,null,null,null,null,1]
["Main lift at cental portion",null,null,null,null,null,null,1,"Wall"]
["In XX direction ",1,3,3,0.2,3.8,{"$f":"ROUND(PRODUCT(B899:F899),2)","v":6.84},1,"Wall"]
["In YY direction ",1,2,2.5099999999999998,0.2,3.8,3.82,1,"Wall"]
["Bed lift in central area",1,3,3.23,0.2,0.8,1.55,1,"Wall"]
[null,1,1,5.5,0.2,0.8,0.88,1,"Wall"]
["Bed lift in Block C",1,3,3.2,0.2,0.8,1.54,1,"Wall"]
[null,1,1,5.5,0.2,0.8,0.88,1,"Wall"]
["Walls above stair head room",null,null,null,null,null,null,1,"Wall"]
["Water tank  ",2,2,8.1,0.2,1.1000000000000001,7.13,1,"Wall"]
[null,2,3,4.26,0.2,1.1000000000000001,5.62,1,"Wall"]
["Slabs",null,null,null,null,null,null,1,"Slab"]
["Main stair in Block A ",1,1,6.13,{"$f":"8.06+1.2","v":9.26},0.125,7.1,1,"Slab"]
["Fire escape stair in Block B&G",2,1,5.86,9.3000000000000007,0.125,13.62,1,"Slab"]
[" Stair in Block D &E",2,1,{"$f":"4.42+1.2","v":5.62},8.6300000000000008,0.125,12.13,1,"Slab"]
["Main lift lobby",1,1,{"$f":"5.5+1.2","v":6.7},{"$f":"5.83+0.6","v":6.43},0.125,5.39,1,"Slab"]
["Lift top",1,1,5.43,3.46,0.2,3.76,1,"Slab"]
["Slab projection",1,2,{"$f":"5.43+1.2","v":6.63},0.6,0.1,0.8,1,"Slab"]
[null,1,2,3.46,0.6,0.1,0.42,1,"Slab"]
["Bed lift in central area",1,1,3.51,5.5,0.2,3.86,1,"Slab"]
["Slab projection",1,2,{"$f":"3.51+1.2","v":4.71},0.6,0.1,0.56999999999999995,1,"Slab"]
[null,1,2,5.5,0.6,0.1,0.66,1,"Slab"]
["Bed lift in Block C",1,1,5.46,3.43,0.2,3.75,1,"Slab"]
[null,1,2,{"$f":"3.43+1.2","v":4.63},0.6,0.1,0.56000000000000005,1,"Slab"]
[null,1,2,5.46,0.6,0.1,0.66,1,"Slab"]
["Central stair",1,1,{"$f":"8.36+1.2","v":9.5599999999999987},{"$f":"5.83+1.2","v":7.03},0.125,8.4,1,"Slab"]
["Slabs above stair head room level",null,null,null,null,null,null,1,"Slab"]
["Water tank bottom slab",2,1,4.66,8.1,0.2,15.1,1,"Slab"]
["Water tank cover slab",2,1,4.96,8.41,0.125,10.43,1,"Slab"]
["Landing",2,1,1,1,0.125,0.25,1,"Slab"]
["Staircase",null,null,null,null,null,null,1,"Staircase"]
["GROUND FLOOR",null,null,null,null,null,null,1,"Staircase"]
["BLOCK A",null,null,null,null,null,null,1,"Staircase"]
["Stair flight slab",2,1,4.4000000000000004,2,0.15,{"$f":"ROUND(PRODUCT(B930:F930),2)","v":2.64},1,"Staircase"]
["Mid landing slab",1,1,4.47,2,0.15,1.34,1,"Staircase"]
["Stair flight slab",2,1,4.0999999999999996,2,0.15,2.46,1,"Staircase"]
["Mid landing slab",1,1,5.03,2,0.15,1.51,1,"Staircase"]
["BLOCK B",null,null,null,null,null,null,1,"Staircase"]
["Fire escape Stair flight slab",2,1,4.0999999999999996,2,0.15,2.46,1,"Staircase"]
["Fire escape Mid landing slab",1,1,4.2,2,0.15,1.26,1,"Staircase"]
["BLOCK D",null,null,null,null,null,null,1,"Staircase"]
["Fire escape Stair flight slab",2,1,4.0999999999999996,2,0.15,2.46,1,"Staircase"]
["Fire escape Mid landing slab",1,1,4,2,0.15,1.2,1,"Staircase"]
["BLOCK E",null,null,null,null,null,null,1,"Staircase"]
["Fire escape Stair flight slab",2,1,4.0999999999999996,2,0.15,2.46,1,"Staircase"]
["Fire escape Mid landing slab",1,1,4,2,0.15,1.2,1,"Staircase"]
["BLOCK G",null,null,null,null,null,null,1,"Staircase"]
["Fire escape Stair flight slab",2,1,4.0999999999999996,2,0.15,2.46,1,"Staircase"]
["Fire escape Mid landing slab",1,1,4.2,2,0.15,1.26,1,"Staircase"]
["FIRST FLOOR",null,null,null,null,null,null,1,"Staircase"]
["BLOCK A",null,null,null,null,null,null,1,"Staircase"]
["Stair flight slab",2,1,4.4000000000000004,2,0.15,{"$f":"ROUND(PRODUCT(B948:F948),2)","v":2.64},1,"Staircase"]
["Mid landing slab",1,1,4.47,2,0.15,1.34,1,"Staircase"]
["Stair flight slab",2,1,4.0999999999999996,2,0.15,2.46,1,"Staircase"]
["Mid landing slab",1,1,5.03,2,0.15,1.51,1,"Staircase"]
["BLOCK B",null,null,null,null,null,null,1,"Staircase"]
["Fire escape Stair flight slab",2,1,4.0999999999999996,2,0.15,2.46,1,"Staircase"]
["Fire escape Mid landing slab",1,1,4.2,2,0.15,1.26,1,"Staircase"]
["BLOCK D",null,null,null,null,null,null,1,"Staircase"]
["Fire escape Stair flight slab",2,1,4.0999999999999996,2,0.15,2.46,1,"Staircase"]
["Fire escape Mid landing slab",1,1,4,2,0.15,1.2,1,"Staircase"]
["BLOCK E",null,null,null,null,null,null,1,"Staircase"]
["Fire escape Stair flight slab",2,1,4.0999999999999996,2,0.15,2.46,1,"Staircase"]
["Fire escape Mid landing slab",1,1,4,2,0.15,1.2,1,"Staircase"]
["BLOCK G",null,null,null,null,null,null,1,"Staircase"]
["Fire escape Stair flight slab",2,1,4.0999999999999996,2,0.15,2.46,1,"Staircase"]
["Fire escape Mid landing slab",1,1,4.2,2,0.15,1.26,1,"Staircase"]
["SECOND FLOOR",null,null,null,null,null,null,1,"Staircase"]
["BLOCK A",null,null,null,null,null,null,1,"Staircase"]
["Stair flight slab",2,1,4.4000000000000004,2,0.15,{"$f":"ROUND(PRODUCT(B966:F966),2)","v":2.64},1,"Staircase"]
["Mid landing slab",1,1,4.47,2,0.15,1.34,1,"Staircase"]
["Stair flight slab",2,1,4.0999999999999996,2,0.15,2.46,1,"Staircase"]
["Mid landing slab",1,1,5.03,2,0.15,1.51,1,"Staircase"]
["BLOCK B",null,null,null,null,null,null,1,"Staircase"]
["Fire escape Stair flight slab",2,1,4.0999999999999996,2,0.15,2.46,1,"Staircase"]
["Fire escape Mid landing slab",1,1,4.2,2,0.15,1.26,1,"Staircase"]
["BLOCK D",null,null,null,null,null,null,1,"Staircase"]
["Fire escape Stair flight slab",2,1,4.0999999999999996,2,0.15,2.46,1,"Staircase"]
["Fire escape Mid landing slab",1,1,4,2,0.15,1.2,1,"Staircase"]
["BLOCK E",null,null,null,null,null,null,1,"Staircase"]
["Fire escape Stair flight slab",2,1,4.0999999999999996,2,0.15,2.46,1,"Staircase"]
["Fire escape Mid landing slab",1,1,4,2,0.15,1.2,1,"Staircase"]
["BLOCK G",null,null,null,null,null,null,1,"Staircase"]
["Fire escape Stair flight slab",2,1,4.0999999999999996,2,0.15,2.46,1,"Staircase"]
["Fire escape Mid landing slab",1,1,4.2,2,0.15,1.26,1,"Staircase"]
["THIRD FLOOR",null,null,null,null,null,null,1,"Staircase"]
["BLOCK A",null,null,null,null,null,null,1,"Staircase"]
["Stair flight slab",2,1,4.4000000000000004,2,0.15,{"$f":"ROUND(PRODUCT(B984:F984),2)","v":2.64},1,"Staircase"]
["Mid landing slab",1,1,4.47,2,0.15,1.34,1,"Staircase"]
["Stair flight slab",2,1,4.0999999999999996,2,0.15,2.46,1,"Staircase"]
["Mid landing slab",1,1,5.03,2,0.15,1.51,1,"Staircase"]
["BLOCK B",null,null,null,null,null,null,1,"Staircase"]
["Fire escape Stair flight slab",2,1,4.0999999999999996,2,0.15,2.46,1,"Staircase"]
["Fire escape Mid landing slab",1,1,4.2,2,0.15,1.26,1,"Staircase"]
["BLOCK D",null,null,null,null,null,null,1,"Staircase"]
["Fire escape Stair flight slab",2,1,4.0999999999999996,2,0.15,2.46,1,"Staircase"]
["Fire escape Mid landing slab",1,1,4,2,0.15,1.2,1,"Staircase"]
["BLOCK E",null,null,null,null,null,null,1,"Staircase"]
["Fire escape Stair flight slab",2,1,4.0999999999999996,2,0.15,2.46,1,"Staircase"]
["Fire escape Mid landing slab",1,1,4,2,0.15,1.2,1,"Staircase"]
["BLOCK G",null,null,null,null,null,null,1,"Staircase"]
["Fire escape Stair flight slab",2,1,4.0999999999999996,2,0.15,2.46,1,"Staircase"]
["Fire escape Mid landing slab",1,1,4.2,2,0.15,1.26,1,"Staircase"]
["FOURTH FLOOR",null,null,null,null,null,null,1,"Staircase"]
["BLOCK A",null,null,null,null,null,null,1,"Staircase"]
["Stair flight slab",2,1,4.4000000000000004,2,0.15,{"$f":"ROUND(PRODUCT(B1002:F1002),2)","v":2.64},1,"Staircase"]
["Mid landing slab",1,1,4.47,2,0.15,1.34,1,"Staircase"]
["Stair flight slab",2,1,4.0999999999999996,2,0.15,2.46,1,"Staircase"]
["Mid landing slab",1,1,5.03,2,0.15,1.51,1,"Staircase"]
["BLOCK B",null,null,null,null,null,null,1,"Staircase"]
["Fire escape Stair flight slab",2,1,4.0999999999999996,2,0.15,2.46,1,"Staircase"]
["Fire escape Mid landing slab",1,1,4.2,2,0.15,1.26,1,"Staircase"]
["BLOCK D",null,null,null,null,null,null,1,"Staircase"]
["Fire escape Stair flight slab",2,1,4.0999999999999996,2,0.15,2.46,1,"Staircase"]
["Fire escape Mid landing slab",1,1,4,2,0.15,1.2,1,"Staircase"]
["BLOCK E",null,null,null,null,null,null,1,"Staircase"]
["Fire escape Stair flight slab",2,1,4.0999999999999996,2,0.15,2.46,1,"Staircase"]
["Fire escape Mid landing slab",1,1,4,2,0.15,1.2,1,"Staircase"]
["BLOCK G",null,null,null,null,null,null,1,"Staircase"]
["Fire escape Stair flight slab",2,1,4.0999999999999996,2,0.15,2.46,1,"Staircase"]
["Fire escape Mid landing slab",1,1,4.2,2,0.15,1.26,1,"Staircase"]
["TERRACE FLOOR",null,null,null,null,null,null,1,"Staircase"]
["BLOCK A",null,null,null,null,null,null,1,"Staircase"]
["Stair flight slab",2,1,4.4000000000000004,2,0.15,{"$f":"ROUND(PRODUCT(B1020:F1020),2)","v":2.64},1,"Staircase"]
["Mid landing slab",1,1,4.47,2,0.15,1.34,1,"Staircase"]
["Stair flight slab",2,1,4.0999999999999996,2,0.15,2.46,1,"Staircase"]
["Mid landing slab",1,1,5.03,2,0.15,1.51,1,"Staircase"]
["BLOCK B",null,null,null,null,null,null,1,"Staircase"]
["Fire escape Stair flight slab",2,1,4.0999999999999996,2,0.15,2.46,1,"Staircase"]
["Fire escape Mid landing slab",1,1,4.2,2,0.15,1.26,1,"Staircase"]
["BLOCK D",null,null,null,null,null,null,1,"Staircase"]
["Fire escape Stair flight slab",2,1,4.0999999999999996,2,0.15,2.46,1,"Staircase"]
["Fire escape Mid landing slab",1,1,4,2,0.15,1.2,1,"Staircase"]
["BLOCK E",null,null,null,null,null,null,1,"Staircase"]
["Fire escape Stair flight slab",2,1,4.0999999999999996,2,0.15,2.46,1,"Staircase"]
["Fire escape Mid landing slab",1,1,4,2,0.15,1.2,1,"Staircase"]
["BLOCK G",null,null,null,null,null,null,1,"Staircase"]
["Fire escape Stair flight slab",2,1,4.0999999999999996,2,0.15,2.46,1,"Staircase"]
["Fire escape Mid landing slab",1,1,4.2,2,0.15,1.26,1,"Staircase"]
["Lift",null,null,null,null,null,null,1,"Lift"]
["GROUND FLOOR",null,null,null,null,null,null,1,"Lift"]
["Long wall",3,1,5.49,0.23,3.9,{"$f":"ROUND(PRODUCT(B1038:F1038),2)","v":14.77},1,"Lift"]
["Short wall",3,3,3,0.23,3.9,24.22,1,"Lift"]
["FIRST FLOOR",null,null,null,null,null,null,1,"Lift"]
["Long wall",3,1,5.49,0.23,3.9,14.77,1,"Lift"]
["Short wall",3,3,3,0.23,3.9,24.22,1,"Lift"]
["SECOND FLOOR",null,null,null,null,null,null,1,"Lift"]
["Long wall",3,1,5.49,0.23,3.9,14.77,1,"Lift"]
["Short wall",3,3,3,0.23,3.9,24.22,1,"Lift"]
["THIRD FLOOR",null,null,null,null,null,null,1,"Lift"]
["Long wall",3,1,5.49,0.23,3.9,14.77,1,"Lift"]
["Short wall",3,3,3,0.23,3.9,24.22,1,"Lift"]
["FOURTH FLOOR",null,null,null,null,null,null,1,"Lift"]
["Long wall",3,1,5.49,0.23,3.9,14.77,1,"Lift"]
["Short wall",3,3,3,0.23,3.9,24.22,1,"Lift"]
["TERRACE FLOOR",null,null,null,null,null,null,1,"Lift"]
["Long wall",3,1,5.49,0.23,1,3.79,1,"Lift"]
["Short wall",3,3,3,0.23,1,6.21,1,"Lift"]
["Ramp",null,null,null,null,null,null,1,"Column"]
["Ramp column",null,null,null,null,null,null,1,"Column"]
["CI",4,18,0.4,0.35,3.7749999999999999,{"$f":"ROUND(PRODUCT(B1057:F1057),2)","v":38.049999999999997},1,"Column"]
[null,1,18,0.4,0.35,4.0750000000000002,{"$f":"ROUND(PRODUCT(B1058:F1058),2)","v":10.27},1,"Column"]
["Ramp beams",null,null,null,null,null,null,1,"Beam"]
["Beams in XX direction",null,null,null,null,null,null,1,"Beam"]
["Ground floor to fourth floor",4,1,5.13,0.23,0.2,{"$f":"ROUND(PRODUCT(B1061:F1061),2)","v":0.94},1,"Beam"]
[null,4,{"$f":"4*2","v":8},2.4300000000000002,0.23,0.2,3.58,1,"Beam"]
[null,4,{"$f":"1*2","v":2},2.4300000000000002,0.23,0.55000000000000004,2.46,1,"Beam"]
["Beams in YY direction",null,null,null,null,null,null,1,"Beam"]
["Ground floor to fourth floor",4,4,2.83,0.3,0.55000000000000004,7.47,1,"Beam"]
[null,4,4,6.09,0.3,0.55000000000000004,16.079999999999998,1,"Beam"]
[null,4,4,6.09,0.3,0.55000000000000004,16.079999999999998,1,"Beam"]
[null,4,4,5.53,0.3,0.55000000000000004,14.6,1,"Beam"]
[null,4,4,5.36,0.3,0.55000000000000004,14.15,1,"Beam"]
[null,4,4,3.01,0.3,0.55000000000000004,7.95,1,"Beam"]
["Beams in roof",null,null,null,null,null,null,1,"Beam"]
["Beams in XX direction",4,2,2.4300000000000002,0.23,0.22500000000000001,1.01,1,"Beam"]
[null,1,2,2.4300000000000002,0.3,0.57499999999999996,0.84,1,"Beam"]
["Beams in YY direction",4,2,2.83,0.3,0.57499999999999996,3.91,1,"Beam"]
[null,4,2,6.09,0.3,0.57499999999999996,8.4,1,"Beam"]
[null,4,2,6.09,0.3,0.57499999999999996,8.4,1,"Beam"]
[null,4,2,5.53,0.3,0.57499999999999996,7.63,1,"Beam"]
[null,4,2,5.36,0.3,0.57499999999999996,7.4,1,"Beam"]
[null,4,2,3.01,0.3,0.57499999999999996,4.1500000000000004,1,"Beam"]
["Slabs in ramp",5,1,5.15,1.38,0.15,5.33,1,"Slab"]
["Ist flight",4,1,30,3.03,0.15,54.54,1,"Slab"]
["Landing",4,1,5.76,3.23,0.15,11.16,1,"Slab"]
["II nd  flight",4,1,30,3.03,0.15,54.54,1,"Slab"]
["Terrace slab",1,1,6.96,32.35,0.125,28.14,1,"Slab"]
["Side wall",null,null,null,null,null,null,1,"Slab"]
["outer side",4,2,2.83,0.1,1,2.2599999999999998,1,"Slab"]
[null,4,2,6.09,0.1,1,4.87,1,"Slab"]
[null,4,2,6.09,0.1,1,4.87,1,"Slab"]
[null,4,2,5.53,0.1,1,4.42,1,"Slab"]
[null,4,2,5.36,0.1,1,4.29,1,"Slab"]
[null,4,2,3.01,0.1,1,2.41,1,"Slab"]
["inner side",3,1,0.3,0.1,1,0.09,1,"Slab"]
[null,4,2,1.67,0.1,1,1.34,1,"Slab"]
[null,4,2,6.09,0.1,1,4.87,1,"Slab"]
[null,4,2,6.09,0.1,1,4.87,1,"Slab"]
[null,4,2,5.53,0.1,1,4.42,1,"Slab"]
[null,4,2,5.36,0.1,1,4.29,1,"Slab"]
[null,4,2,2.73,0.1,1,2.1800000000000002,1,"Slab"]
["Shade around the ramp",1,2,32.35,0.6,0.08,3.11,1,"Slab"]
[null,1,1,5.76,0.6,0.08,0.28000000000000003,1,"Slab"]
["Lintel Above doors, windows and Half brick walls",null,null,null,null,null,null,1,"Lintel Beam"]
["Ground Floor -Block A",1,2,1.32,0.115,0.2,0.06,1,"Lintel Beam"]
["Toilet wall",null,null,null,null,null,null,1,"Lintel Beam"]
["Ground Floor -Block B&G",2,1,2.08,0.115,0.2,0.1,1,"Lintel Beam"]
["PH toilet",2,2,1.69,0.115,0.2,0.16,1,"Lintel Beam"]
[null,2,2,2.86,0.115,0.2,0.26,1,"Lintel Beam"]
["WC & IC toilet",2,2,2.63,0.115,0.2,0.24,1,"Lintel Beam"]
["Toilet ",2,2,1.8,0.115,0.2,0.17,1,"Lintel Beam"]
["Toilet inside doctors room",2,2,1.2,0.115,0.2,0.11,1,"Lintel Beam"]
[null,null,null,null,null,null,null,1,"Lintel Beam"]
["Ground Floor -Block C",1,4,4.2,0.115,0.2,0.39,1,"Lintel Beam"]
["Clinical lab separation",1,1,1.69,0.115,0.2,0.04,1,"Lintel Beam"]
["Toilet inside Nurses room",1,1,1.2,0.115,0.2,0.03,1,"Lintel Beam"]
[null,1,2,1.54,0.115,0.2,7.0000000000000007E-2,1,"Lintel Beam"]
["Toilet opp staff room",1,2,1.54,0.115,0.2,7.0000000000000007E-2,1,"Lintel Beam"]
[null,1,1,3.6,0.115,0.2,0.08,1,"Lintel Beam"]
["Files room",null,null,null,null,null,null,1,"Lintel Beam"]
["Ground Floor -Block D",2,3,1.5,0.115,0.2,0.21,1,"Lintel Beam"]
["Toilet near PL Duct(2 nos)",2,3,1.81,0.115,0.2,0.25,1,"Lintel Beam"]
[null,1,1,3,0.115,0.2,7.0000000000000007E-2,1,"Lintel Beam"]
["CH",1,1,2.29,0.115,0.2,0.05,1,"Lintel Beam"]
["Files",1,1,2.29,0.115,0.2,0.05,1,"Lintel Beam"]
[null,null,null,null,null,null,null,1,"Lintel Beam"]
["Ground Floor -Block E",1,2,6.99,0.115,0.2,0.32,1,"Lintel Beam"]
["CSSD",1,1,1.5,0.115,0.2,{"$f":"ROUND(PRODUCT(B1125:F1125),2)","v":0.03},1,"Lintel Beam"]
["Dumb waiter at clean linen room",1,1,1,0.115,0.2,0.02,1,"Lintel Beam"]
[null,null,null,null,null,null,null,1,"Lintel Beam"]
["Ground Floor -Block F",1,2,3.3,0.115,0.2,0.15,1,"Lintel Beam"]
["Toilet",2,1,1.81,0.115,0.2,0.08,1,"Lintel Beam"]
["Toilet inside AMS&MS",2,1,1.2,0.115,0.2,0.06,1,"Lintel Beam"]
[null,1,1,350,0.23,0.2,16.100000000000001,1,"Lintel Beam"]
["Along outer side",1,9,2.2999999999999998,0.23,0.2,0.95,1,"Lintel Beam"]
["D",1,17,2,0.23,0.2,1.56,1,"Lintel Beam"]
["D1",1,22,1.7,0.23,0.2,1.72,1,"Lintel Beam"]
["D2",1,2,1.5,0.23,0.2,0.14000000000000001,1,"Lintel Beam"]
["D3",1,20,1.4,0.23,0.2,1.29,1,"Lintel Beam"]
["D4",1,1,1.7,0.23,0.2,0.08,1,"Lintel Beam"]
["WD",1,3,2,0.23,0.2,0.28000000000000003,1,"Lintel Beam"]
["LD",1,2,2,0.23,0.2,0.18,1,"Lintel Beam"]
["FRD",null,null,null,null,null,null,1,"Lintel Beam"]
["First Floor -Block A",1,1,2.17,0.115,0.2,0.05,1,"Lintel Beam"]
["Toilet ",null,null,null,null,null,null,1,"Lintel Beam"]
["First Floor -Block B&G",2,1,2.08,0.115,0.2,0.1,1,"Lintel Beam"]
["PH toilet",2,2,1.69,0.115,0.2,0.16,1,"Lintel Beam"]
[null,2,2,2.86,0.115,0.2,0.26,1,"Lintel Beam"]
["WC & IC toilet",2,2,1.8,0.115,0.2,0.17,1,"Lintel Beam"]
["Toilet ",2,2,2.46,0.115,0.2,0.23,1,"Lintel Beam"]
[null,2,2,1.8,0.115,0.2,0.17,1,"Lintel Beam"]
["Toilet inside doctors room",2,2,1.2,0.115,0.2,0.11,1,"Lintel Beam"]
[null,null,null,null,null,null,null,1,"Lintel Beam"]
["First Floor -Block C",1,4,4.2,0.115,0.2,0.39,1,"Lintel Beam"]
["Clinical lab separation",1,1,1.69,0.115,0.2,0.04,1,"Lintel Beam"]
["Toilet inside Nurses room",1,1,1.2,0.115,0.2,0.03,1,"Lintel Beam"]
[null,1,2,1.54,0.115,0.2,7.0000000000000007E-2,1,"Lintel Beam"]
["Toilet opp staff room",1,2,1.54,0.115,0.2,7.0000000000000007E-2,1,"Lintel Beam"]
[null,1,1,3.6,0.115,0.2,0.08,1,"Lintel Beam"]
["Files room",1,2,0.86,0.115,0.2,0.04,1,"Lintel Beam"]
["Duct Separation",null,null,null,0.115,0.2,0.02,1,"Lintel Beam"]
["First Floor -Block E",1,2,1.32,0.115,0.2,0.06,1,"Lintel Beam"]
["Toilet inside Duty doctors room",1,2,1.81,0.115,0.2,0.08,1,"Lintel Beam"]
["Toilet inside nurses room",1,1,1.5,0.115,0.2,0.03,1,"Lintel Beam"]
["Dumb waiter at clean linen room",1,1,1,0.115,0.2,0.02,1,"Lintel Beam"]
[null,null,null,null,null,null,null,1,"Lintel Beam"]
["First Floor -Block F",1,6,4.43,0.115,0.2,0.61,1,"Lintel Beam"]
["Faculty room Separation",1,10,1.62,0.115,0.2,0.37,1,"Lintel Beam"]
["Toilet wall",1,10,1.32,0.115,0.2,0.3,1,"Lintel Beam"]
[null,1,1,350,0.23,0.2,16.100000000000001,1,"Lintel Beam"]
["Along outer side",1,9,2.2999999999999998,0.23,0.2,0.95,1,"Lintel Beam"]
["D",1,18,2,0.23,0.2,1.66,1,"Lintel Beam"]
["D1",1,12,1.7,0.23,0.2,0.94,1,"Lintel Beam"]
["D2",1,19,1.5,0.23,0.2,1.31,1,"Lintel Beam"]
["D3",1,11,1.4,0.23,0.2,0.71,1,"Lintel Beam"]
["DD'",1,4,2,0.23,0.2,0.37,1,"Lintel Beam"]
["Second Floor -Block A",null,null,null,null,null,null,1,"Lintel Beam"]
["Second Floor -Block B&G",2,1,2.29,0.115,0.2,0.11,1,"Lintel Beam"]
["DU toilet",2,2,1.2,0.115,0.2,0.11,1,"Lintel Beam"]
[null,2,2,2.86,0.115,0.2,0.26,1,"Lintel Beam"]
["WC & IC toilet",2,2,2.63,0.115,0.2,0.24,1,"Lintel Beam"]
["Toilet ",2,2,1.51,0.115,0.2,0.14000000000000001,1,"Lintel Beam"]
["Toilet inside nurses room",2,2,1.2,0.115,0.2,0.11,1,"Lintel Beam"]
[null,2,1,5.35,0.115,0.2,0.25,1,"Lintel Beam"]
[" ward wall",null,null,null,null,null,null,1,"Lintel Beam"]
["Second Floor -Block C",1,2,1.32,0.115,0.2,0.06,1,"Lintel Beam"]
["Toilet wall ",1,1,2.23,0.115,0.2,0.05,1,"Lintel Beam"]
[null,1,2,1.53,0.115,0.2,7.0000000000000007E-2,1,"Lintel Beam"]
["Toilet inside room",1,2,1.5,0.115,0.2,7.0000000000000007E-2,1,"Lintel Beam"]
[null,1,2,1.21,0.115,0.2,0.06,1,"Lintel Beam"]
["Toilet inside duty doctor room",1,2,1.8,0.115,0.2,0.08,1,"Lintel Beam"]
[null,1,2,0.86,0.115,0.2,{"$f":"ROUND(PRODUCT(B1189:F1189),2)","v":0.04},1,"Lintel Beam"]
["Duct Separation",null,null,null,null,null,null,1,"Lintel Beam"]
["Second Floor -Block D",1,2,2.93,0.115,0.2,0.13,1,"Lintel Beam"]
["Nurses room",1,2,4.2,0.115,0.2,0.19,1,"Lintel Beam"]
[null,1,1,1.51,0.115,0.2,0.03,1,"Lintel Beam"]
["Toilet inside nurses room",1,1,2,0.115,0.2,0.05,1,"Lintel Beam"]
[null,1,1,1.21,0.115,0.2,0.03,1,"Lintel Beam"]
["Toilet inside room",1,1,1.8,0.115,0.2,0.04,1,"Lintel Beam"]
[null,null,null,null,null,null,null,1,"Lintel Beam"]
["Second Floor -Block E",1,1,1.81,0.115,0.2,0.04,1,"Lintel Beam"]
["Toilet inside nurses room",1,1,2,0.115,0.2,0.05,1,"Lintel Beam"]
[null,1,1,1.5,0.115,0.2,0.03,1,"Lintel Beam"]
["Dumb waiter at clean linen room",1,1,1,0.115,0.2,0.02,1,"Lintel Beam"]
[null,null,null,null,null,null,null,1,"Lintel Beam"]
["Second Floor -Block F",1,2,4.43,0.115,0.2,0.2,1,"Lintel Beam"]
["Faculty room Separation",1,4,1.62,0.115,0.2,0.15,1,"Lintel Beam"]
["Toilet wall",1,4,1.32,0.115,0.2,0.12,1,"Lintel Beam"]
[null,1,1,1.81,0.115,0.2,0.04,1,"Lintel Beam"]
["Toilet inside duty doctors room",1,1,1.2,0.115,0.2,0.03,1,"Lintel Beam"]
[null,1,1,350,0.23,0.2,16.100000000000001,1,"Lintel Beam"]
["Along outer side",1,14,2.2999999999999998,0.23,0.2,1.48,1,"Lintel Beam"]
["D",1,23,2,0.23,0.2,2.12,1,"Lintel Beam"]
["D1",1,3,1.7,0.23,0.2,0.23,1,"Lintel Beam"]
["D2",1,11,1.5,0.23,0.2,0.76,1,"Lintel Beam"]
["D3",1,11,1.4,0.23,0.2,0.71,1,"Lintel Beam"]
["DD'",1,4,2,0.23,0.2,0.37,1,"Lintel Beam"]
["FRD",null,null,null,null,null,null,1,"Lintel Beam"]
["Third Floor -Block B&G",2,1,2.29,0.115,0.2,0.11,1,"Lintel Beam"]
["DU ",2,2,1.2,0.115,0.2,0.11,1,"Lintel Beam"]
[null,2,2,2.86,0.115,0.2,0.26,1,"Lintel Beam"]
["WC & IC toilet",2,2,2.63,0.115,0.2,0.24,1,"Lintel Beam"]
["Toilet ",2,2,1.51,0.115,0.2,0.14000000000000001,1,"Lintel Beam"]
["Toilet inside nurses room",2,2,1.2,0.115,0.2,0.11,1,"Lintel Beam"]
[null,2,1,1.51,0.115,0.2,7.0000000000000007E-2,1,"Lintel Beam"]
["Toilet inside duty doctor room",2,1,1.2,0.115,0.2,0.06,1,"Lintel Beam"]
[null,null,null,null,null,null,null,1,"Lintel Beam"]
["Third Floor -Block C",1,2,1.32,0.115,0.2,0.06,1,"Lintel Beam"]
["Toilet wall ",1,1,2.23,0.115,0.2,0.05,1,"Lintel Beam"]
[null,1,2,1.53,0.115,0.2,7.0000000000000007E-2,1,"Lintel Beam"]
["Toilet inside room",1,2,1.5,0.115,0.2,7.0000000000000007E-2,1,"Lintel Beam"]
[null,1,2,1.21,0.115,0.2,0.06,1,"Lintel Beam"]
["Toilet inside duty doctor room",1,2,1.8,0.115,0.2,0.08,1,"Lintel Beam"]
[null,null,null,null,null,null,null,1,"Lintel Beam"]
["Third Floor -Block D",1,2,2.93,0.115,0.2,0.13,1,"Lintel Beam"]
["Nurses room",1,2,4.2,0.115,0.2,0.19,1,"Lintel Beam"]
[null,1,1,1.51,0.115,0.2,0.03,1,"Lintel Beam"]
["Toilet inside nurses room",1,1,2,0.115,0.2,0.05,1,"Lintel Beam"]
[null,1,1,1.21,0.115,0.2,0.03,1,"Lintel Beam"]
["Toilet inside isolation room",1,1,1.8,0.115,0.2,0.04,1,"Lintel Beam"]
[null,null,null,null,null,null,null,1,"Lintel Beam"]
["Third Floor -Block E",1,1,1.81,0.115,0.2,0.04,1,"Lintel Beam"]
["Toilet inside nurses room",1,1,2,0.115,0.2,0.05,1,"Lintel Beam"]
[null,1,1,1.5,0.115,0.2,0.03,1,"Lintel Beam"]
["Dumb waiter at clean linen room",1,1,1,0.115,0.2,0.02,1,"Lintel Beam"]
[null,1,1,1.54,0.115,0.2,0.04,1,"Lintel Beam"]
["Isolation room toilet",1,1,1.8,0.115,0.2,0.04,1,"Lintel Beam"]
[null,null,null,null,null,null,null,1,"Lintel Beam"]
["Third Floor -Block F",1,2,1.2,0.115,0.2,0.06,1,"Lintel Beam"]
["Toilet wall",1,1,2.23,0.115,0.2,0.05,1,"Lintel Beam"]
[null,1,1,1.81,0.115,0.2,0.04,1,"Lintel Beam"]
["Toilet inside duty doctors room",1,1,1.2,0.115,0.2,0.03,1,"Lintel Beam"]
[null,1,1,350,0.23,0.2,16.100000000000001,1,"Lintel Beam"]
["Along outer side",1,13,2.2999999999999998,0.23,0.2,1.38,1,"Lintel Beam"]
["D",1,17,2,0.23,0.2,1.56,1,"Lintel Beam"]
["D1",1,3,1.7,0.23,0.2,{"$f":"ROUND(PRODUCT(B1253:F1253),2)","v":0.23},1,"Lintel Beam"]
["D2",1,10,1.5,0.23,0.2,0.69,1,"Lintel Beam"]
["D3",1,12,1.4,0.23,0.2,0.77,1,"Lintel Beam"]
["DD'",1,4,2,0.23,0.2,0.37,1,"Lintel Beam"]
["Fourth Floor -Block B&G",2,2,4.2,0.115,0.2,0.39,1,"Lintel Beam"]
["Treatment & Doctors room wall",2,1,2.29,0.115,0.2,0.11,1,"Lintel Beam"]
["DU ",2,2,1.2,0.115,0.2,0.11,1,"Lintel Beam"]
[null,2,2,2.86,0.115,0.2,0.26,1,"Lintel Beam"]
["WC & IC toilet",2,2,2.63,0.115,0.2,0.24,1,"Lintel Beam"]
["Toilet ",2,2,1.51,0.115,0.2,0.14000000000000001,1,"Lintel Beam"]
["Toilet inside nurses room",2,2,1.2,0.115,0.2,0.11,1,"Lintel Beam"]
[null,2,1,1.51,0.115,0.2,7.0000000000000007E-2,1,"Lintel Beam"]
["Toilet inside duty doctor room",2,1,1.2,0.115,0.2,0.06,1,"Lintel Beam"]
[null,null,null,null,null,null,null,1,"Lintel Beam"]
["Fourth Floor -Block C",1,4,2.5499999999999998,0.115,0.2,0.23,1,"Lintel Beam"]
["Toilet at faculty room",1,8,1.5,0.115,0.2,0.28000000000000003,1,"Lintel Beam"]
[null,1,2,1.54,0.115,0.2,7.0000000000000007E-2,1,"Lintel Beam"]
["Gents & ladies toilet",1,1,6.09,0.115,0.2,0.14000000000000001,1,"Lintel Beam"]
["Changing room side wall",1,4,4,0.115,0.2,0.37,1,"Lintel Beam"]
["Stair separation wall",null,null,null,null,null,null,1,"Lintel Beam"]
["Fourth Floor -Block E",1,1,1.5,0.115,0.2,0.03,1,"Lintel Beam"]
["Dumb waiter at clean linen room",1,1,1,0.115,0.2,0.02,1,"Lintel Beam"]
[null,2,2,3.08,0.115,0.2,0.28000000000000003,1,"Lintel Beam"]
["Equipment store(2 Nos)",2,2,2.94,0.115,0.2,0.27,1,"Lintel Beam"]
[null,null,null,null,null,null,null,1,"Lintel Beam"]
["Fourth Floor -Block F",1,2,1.54,0.115,0.2,7.0000000000000007E-2,1,"Lintel Beam"]
["Toilet wall",1,2,1.32,0.115,0.2,0.06,1,"Lintel Beam"]
["DU",1,2,1.2,0.115,0.2,0.06,1,"Lintel Beam"]
[null,1,1,1.81,0.115,0.2,0.04,1,"Lintel Beam"]
["Toilet inside Staff room",1,1,1.2,0.115,0.2,0.03,1,"Lintel Beam"]
[null,1,1,400,0.23,0.2,18.399999999999999,1,"Lintel Beam"]
["Along outer side",1,19,2.2999999999999998,0.23,0.2,2.0099999999999998,1,"Lintel Beam"]
["D",1,21,2,0.23,0.2,1.93,1,"Lintel Beam"]
["D1",1,20,1.7,0.23,0.2,1.56,1,"Lintel Beam"]
["D2",1,3,1.5,0.23,0.2,0.21,1,"Lintel Beam"]
["D3",1,13,1.4,0.23,0.2,0.84,1,"Lintel Beam"]
["DD'",1,4,2,0.23,0.2,0.37,1,"Lintel Beam"]
["FRD",null,null,null,null,0.2,0.2,1,"Lintel Beam"]
[null,null,null,null,null,null,null,1,"Lintel Beam"]
["Terrace",1,2,5.49,0.115,0.2,0.25,1,"Lintel Beam"]
["Stair room at corridor",1,2,8.26,0.115,0.2,0.38,1,"Lintel Beam"]
[null,1,2,8.2899999999999991,0.115,0.2,0.38,1,"Lintel Beam"]
["Stair room at corridor",1,2,5.03,0.115,0.2,0.23,1,"Lintel Beam"]
["Stair room at corridor",1,4,8.1,0.115,0.2,0.75,1,"Lintel Beam"]
["Stair room (4Nos)",1,4,4.03,0.115,0.2,0.37,1,"Lintel Beam"]
[null,1,2,28.68,0.115,0.2,1.32,1,"Lintel Beam"]
["Central portion",1,5,5.03,0.115,0.2,0.57999999999999996,1,"Lintel Beam"]
[null,1,2,1.62,0.115,0.2,7.0000000000000007E-2,1,"Lintel Beam"]
["Duct & dumb waiter separation",14,1,0.72,0.115,0.2,0.23,1,"Lintel Beam"]
["Sunshades and Drop slab",null,null,null,null,null,null,1,"Sunshade"]
["Front side (North face)",null,null,null,null,null,null,1,"Sunshade"]
["Sunshade",5,1,12.65,0.6,0.1,{"$f":"ROUND(PRODUCT(B1304:F1304),2)","v":3.8},1,"Sunshade"]
[null,5,1,14.17,0.6,0.1,{"$f":"ROUND(PRODUCT(B1305:F1305),2)","v":4.25},1,"Sunshade"]
[null,null,null,null,null,null,null,1,"Sunshade"]
[null,null,null,null,null,null,null,1,"Sunshade"]
["drop",5,1,12.65,1.5,0.1,{"$f":"ROUND(PRODUCT(B1308:F1308),2)","v":9.49},1,"Sunshade"]
[null,5,1,14.17,1.5,0.1,{"$f":"ROUND(PRODUCT(B1309:F1309),2)","v":10.63},1,"Sunshade"]
["sunshade",2,1,27.950000000000003,0.6,0.1,{"$f":"ROUND(PRODUCT(B1310:F1310),2)","v":3.35},1,"Sunshade"]
["East face",null,null,null,null,null,null,1,"Sunshade"]
["sunshade",5,1,3.8000000000000003,0.6,0.1,{"$f":"ROUND(PRODUCT(B1312:F1312),2)","v":1.1399999999999999},1,"Sunshade"]
[null,5,1,12.36,0.6,0.1,3.71,1,"Sunshade"]
["tf",1,1,4.13,0.6,0.1,0.25,1,"Sunshade"]
["ots",4,1,2.56,0.6,0.1,0.61,1,"Sunshade"]
[null,5,1,21.1,0.6,0.1,6.33,1,"Sunshade"]
[null,5,1,14.9,0.6,0.1,4.47,1,"Sunshade"]
[null,5,1,13.959999999999999,0.6,0.1,4.1900000000000004,1,"Sunshade"]
["ramp area",1,1,6.3,0.6,0.1,0.38,1,"Sunshade"]
[null,4,1,5.8599999999999994,0.6,0.1,1.41,1,"Sunshade"]
[null,3,1,5.8599999999999994,0.6,0.1,1.05,1,"Sunshade"]
[null,1,1,2.83,0.6,0.1,0.17,1,"Sunshade"]
[null,5,1,30.6,0.6,0.1,9.18,1,"Sunshade"]
["tf",1,1,10.32,0.6,0.1,0.62,1,"Sunshade"]
["tf",1,1,6.09,0.6,0.1,0.37,1,"Sunshade"]
["tf",1,1,6.3,0.6,0.1,0.38,1,"Sunshade"]
[null,null,null,null,null,null,null,1,"Sunshade"]
["West face",null,null,null,null,null,null,1,"Sunshade"]
["sunshade",5,1,30,0.6,0.1,9,1,"Sunshade"]
[null,1,1,5.5,0.6,0.1,0.33,1,"Sunshade"]
[null,5,1,6.3,0.6,0.1,1.89,1,"Sunshade"]
["ots",5,1,8.2099999999999991,0.6,0.1,2.46,1,"Sunshade"]
["ots",5,1,15.91,0.6,0.1,4.7699999999999996,1,"Sunshade"]
[null,4,1,13.959999999999999,0.6,0.1,3.35,1,"Sunshade"]
[null,1,1,13.36,0.6,0.1,0.8,1,"Sunshade"]
[null,4,1,2.56,0.6,0.1,0.61,1,"Sunshade"]
["ots",4,1,18.700000000000003,0.6,0.1,4.49,1,"Sunshade"]
["ots",4,1,25.290000000000003,0.6,0.1,6.07,1,"Sunshade"]
[null,5,1,13.959999999999999,0.6,0.1,4.1900000000000004,1,"Sunshade"]
[null,1,1,4.13,0.6,0.1,0.25,1,"Sunshade"]
[null,5,1,3.8000000000000003,0.6,0.1,1.1399999999999999,1,"Sunshade"]
[null,5,1,22.540000000000003,0.6,0.1,6.76,1,"Sunshade"]
["South face",null,null,null,null,null,null,1,"Sunshade"]
["sunshade",1,1,26.01,0.6,0.1,1.56,1,"Sunshade"]
[null,1,1,14.19,0.6,0.1,0.85,1,"Sunshade"]

{"sheet":"Sheet4","index":13,"n_rows":15,"n_cols":8,"rows_kept":15,"cut":false,"hidden":true,"merged":[]}
[]
[]
[null,"Raft",1,1,1173.42,null,160,{"$f":"ROUNDUP(PRODUCT(C3:G3),2)","v":187747.20000000001}]
[null,"Raft Beam",1,1,711.13,null,160,{"$f":"ROUNDUP(PRODUCT(C4:G4),2)","v":113780.8}]
[null,"Column Pedestal",1,1,61.82,null,225,13909.5]
[null,"Column",1,1,832.6,null,225,187335]
[null,"Plinth beam",1,1,262.93,null,130,34180.9]
[null,"Beam",1,1,1492.96,null,130,194084.8]
[null,"Grade slab",1,1,470.09,null,75,35256.75]
[null,"Slab including ramp",1,1,2126.65,null,85,180765.25]
[null,"Staircase",1,1,136.26,null,130,17713.8]
[null,"Lintel beams & sunshades",1,1,{"$f":"132.42+114.3","v":246.71999999999997},null,75,18504]
[null,"Lift & wall",1,1,{"$f":"236.66+28.26","v":264.92},null,130,34439.599999999999]
[null,null,null,null,{"$f":"SUM(E3:E13)","v":7779.5000000000009},null,null,{"$f":"SUM(H3:H13)","v":1017717.6}]
[null,null,null,null,null,null,null,{"$f":"H14/E14","v":130.82043833151229}]

{"sheet":"Sheet5","index":14,"n_rows":27,"n_cols":8,"rows_kept":27,"cut":false,"hidden":true,"merged":[]}
[]
[]
[null,"Udhi Tree",0.9,null,{"$f":"IF($C3>0.3,IF($C3<=0.6,1,0),0)","v":0},{"$f":"IF($C3>0.6,IF($C3<=1.2,1,0),0)","v":1},{"$f":"IF($C3>1.2,IF($C3<=2.4,1,0),0)","v":0},{"$f":"IF($C3>2.4,1,0)","v":0}]
[null,"Udhi Tree",0.85,null,{"$f":"IF($C4>0.3,IF($C4<=0.6,1,0),0)","v":0},{"$f":"IF($C4>0.6,IF($C4<=1.2,1,0),0)","v":1},{"$f":"IF($C4>1.2,IF($C4<=2.4,1,0),0)","v":0},{"$f":"IF($C4>2.4,1,0)","v":0}]
[null,"Mango Tree",1.27,null,0,0,1,0]
[null,"South Indian Plum Tree",2.4,null,0,0,1,0]
[null,"South Indian Plum Tree",1.78,null,0,0,1,0]
[null,"Aquasia Tree",0.85,null,0,1,0,0]
[null,"Mango Tree",2.5,null,0,0,0,1]
[null,"South Indian Plum Tree",1.5,null,0,0,1,0]
[null,"Aquasia Tree",1.7,null,0,0,1,0]
[null,"Aquasia Tree",1.1499999999999999,null,0,1,0,0]
[null,"Mango Tree",2.2999999999999998,null,0,0,1,0]
[null,"Njaval Tree",1.2,null,0,1,0,0]
[null,"Mango Tree",1.5,null,0,0,1,0]
[null,"Udhi Tree",1.85,null,0,0,1,0]
[null,"Coconut Tree",0.8,null,0,1,0,0]
[null,"Mango Tree",1.4,null,0,0,1,0]
[null,"Mango Tree",0.85,null,0,1,0,0]
[null,"Mango Tree",1.25,null,0,0,1,0]
[null,"Mango Tree",1.7,null,0,0,1,0]
[null,"Tamarind Tree",1.5,null,0,0,1,0]
[null,"Coconut Tree",0.8,null,0,1,0,0]
[null,"Mango Tree",2.5,null,0,0,0,1]
[null,"Perumaram ",1.1000000000000001,null,0,1,0,0]
[null,"Perumaram",0.9,null,0,1,0,0]
[null,null,{"$f":"COUNT(C3:C26)","v":24},null,{"$f":"SUM(E3:E26)","v":0},{"$f":"SUM(F3:F26)","v":10},{"$f":"SUM(G3:G26)","v":12},{"$f":"SUM(H3:H26)","v":2}]

{"sheet":"Sheet2","index":15,"n_rows":70,"n_cols":7,"rows_kept":70,"cut":false,"hidden":true,"merged":[]}
[]
[]
[]
[44,"9.1.1","Teak wood door and window frames (Hold fast separate)",null,"Cum",91496.9,{"$f":"ROUND(D4*F4,2)","v":0}]
[45,"9.5.1.1 + 9.14","Panelled or panelled and glazed shutters for doors, windows excluding, panelling which will be paid for separately, all complete as per direction of Engineer-in-charge. Second class teak wood: 35 mm thick shutters",null,"Sqm",{"$f":"2689.05+253.5","v":2942.55},0]
[46,9.6999999999999993,"Providing and fixing panelling or panelling and glazing in panelled or panelled and glazed shutters for doors, windows and clerestory windows (Area of opening for panel inserts excluding portion inside grooves or rebates to be measured). Panelling for panelled or panelled and glazed shutters 25 mm to 40 mm thick :"]
["a","9.7.1","Second class teak wood",null,"Sqm",2155.6,0]
["b","9.7.3.1","Decorative plywood both side decorative veneer (Type - I) conforming to IS 1328 BWR type.",null,"Sqm",1934.2,0]
["c","9.7.7.2","Float glass panes:5.5 mm thick glass panes",null,"Sqm",1406.75,0]
[47,"9.9.1.1 + 9.11.1 + 9.14","Providing and fixing glazed shutters for doors, windows and clerestory windows using 5.5 mm thick float glass panes including ISI marked Stainless Steel butt hinges bright finished of required size with necessary screws. Second class teak wood 35 mm thick",null,"Sqm",{"$f":"3262.9+203.25+253.5","v":3719.65},0]
[48,9.16,"Providing and fixing 25 mm thick shutters for cup board etc. :"]
["a","9.16.1.1","Panelled or panelled & glazed shutters :Second class teak wood including ISI marked anodised aluminium butt hinges with necessary screws.",null,"Sqm",2760.25,0]
["b","9.16.2.1","Glazed shutters : Second class teak wood including ISI marked anodized aluminium butt hinges with necessary screws.",null,"Sqm",2746.1,0]
[49,"9.48.2","Providing and fixing M.S. grills of required pattern in frames of windows etc. with M.S. flats, square or round bars etc. including priming coat with approved steel primer all complete.Fixed to openings /wooden frames with rawl plugs screws etc.",null,"Kg",116.9,0]
[50,9.5299999999999994,"Providing 40x5 mm flat iron hold fast 40 cm long including fixing to frame with 10 mm diameter bolts, nuts and wooden plugs and embedding in cement concrete block 30x10x15cm 1:3:6 mix (1 cement : 3 coarse sand : 6 graded stone aggregate 20mm nominal size)",null,"Each",117.35,0]
[51,9.74,"Providing and fixing bright finished brass tower bolts (barrel type) with necessary screws etc. complete :"]
["a","9.74.1","250x10 mm",null,"Each",301,0]
["b","9.74.2","200x10 mm",null,"Each",239.3,0]
["c","9.74.3","150x10 mm",null,"Each",192.85,0]
[52,9.76,"Providing and fixing bright finished brass 100 mm mortice latch and lock with 6 levers and a pair of lever handles with necessary screws etc. complete (best make of approved quality).",null,"Each",546.4,0]
[53,"9.79.4","Providing and fixing special quality bright finished brass cupboard or ward robe locks with four levers including necessary screws etc. complete (best make of approved quality) : 75 mm",null,"Each",209.55,0]
[54,"9.81.1","Providing and fixing bright finished brass handles with screws etc. complete: 125 mm",null,"Each",182.45,0]
[55,9.82,"Providing and fixing bright finished brass hanging type floor door stopper with necessary screws, etc. complete.",null,"Each",85.7,0]
[56,9.83,"Providing and fixing aluminium die cast body tubular type universal hydraulic door closer (having brand logo with ISI, IS : 3564, embossed on the body, door weight upto 35 kg and door width upto 700 mm) with necessary accessories and screws etc. complete.",null,"Each",753.75,0]
[57,9.84,"Providing and fixing aluminium extruded section body tubular type universal hydraulic door closer (having brand logo with ISI, IS : 3564, embossed on the body, door weight upto 36 kg to 80 kg and door width from 701 mm to 1000 mm) with double speed adjustment with necessary accessories and screws etc. complete.",null,"Each",1043.5999999999999,0]
[58,9.85,"Providing and fixing bright finished brass casement window fastener with necessary screws etc. complete.",null,"Each",79.599999999999994,0]
[59,9.86,"Providing and fixing bright finished brass casement stays (straight peg type) with necessary screws etc. complete :"]
["a","9.86.1","300 mm weighing not less than 330 gms",null,"Each",180.15,0]
["b","9.86.2","250 mm weighing not less than 280 gms",null,"Each",149.25,0]
["c","9.86.3","200 mm weighing not less than 240 gms",null,"Each",137.65,0]
[60,9.8800000000000008,"Providing and fixing chromium plated brass 100 mm mortice latch and lock with 6 levers and a pair of lever handles with necessary screws etc. complete (best make of approved quality).",null,"Each",790.3,0]
[61,9.1289999999999996,"Providing and fixing cup board shutters 25mm thick, with Pre-laminated flat pressed three layer particle board or graded wood particle board IS: 12823 marked exterior grade (Grade l Type ll) having one side decorative lamination and other side balancing lamination including IInd class teak wood lipping of 25mm wide x12 mm thick with necessary screws and bright finished stainless steel piano hinges complete as per direction of the Engineer-in-Charge",null,"Sqm",1629.75,0]
[62,9.1359999999999992,"Providing and fixing fire resistant door frame of section 143 x 57 mm having built in rebate made out of 16 SWG G.I.sheet (zinc coating not less than 120 gm/sqm) duly filled with vermuculite based concrete mix, suitable for mounting 60 minutes fire rated door shutters. The frame is fitted with intumuscent fire seal strip of size 10x4 mm (minimum) alround the frame and fixing with dash fastener of approved size and make, including applying a coat of approved brand fire resistant primer etc. complete as per direction of Engineer-in-charge (Dash fastener to be paid for separately).",null,"m",1250.05,0]
[63,9.1370000000000005,"Providing and fixing 50 mm thick glazed fire resistant door shutters of 60 minutes fire rating conforming to IS:3614 (Part-II) tested and certified as per laboratory approved by Engineer-in-charge with suitable mounting on door frame, consisting of vertical styles, lock rail, top rail 100mm wide, bottom rail 200mm wide, made out of 16 SWG G.I.sheet (zinc coating not less than 120 gm/m2) duly filled FR insulation material and fixing with necessary stainless steel ball bearing hinges of approved make, including applying a coat of approved fire resistant primer etc. all complete as per direction of Engineer-in-charge (panneling to be paid for separately).",null,"Sqm",6268.2,0]
[64,"9.138.1","Providing and fixing glazing in fire resistant door shutters, fixed panels, ventilators and partitions etc., with G.I. beading of appropriate size made out of 20 SWG G.I.sheet (zinc coating not less than 120 gm/m2), fire resistant sealant, including applying a coat of approved fire resistant primer on G.I. beading etc. complete all as per direction of Engineer-in-charge. With clear fire resistant glass panes 6mm thick of approved brand, having minimum 60 minutes fire resistance",null,"Sqm",27658.7,0]
[65,9.141,"Providing and fixing PVC Door Frame of size 50x47mm with a wall thickness of 5 mm (± 0.2 mm) made out of single piece extruded PVC profile, with mitred cut joints and joint with 2nos of PVC bracket of size 190 mm x 100 mm long arms of cross section size 35 x 15mm & self driven self taping screws, the vertical door profiles to be reinforced with 40x20mm M.S. rectangular tube of 0.8 mm , including providing EPDM rubber gasket weather seal throughout the frame, including jointing 5mm PVC frame strip with PVC solvent cement on the back of the profile. The door frame to be fixed to the wall using 8 x100mm long anchor fasteners complete, all as per manufacturer’s specification and direction of Engineer -in- charge.",null,"m",611.54999999999995,0]
[66,"9.142.2","35 mm thick factory made Solid panel PVC Door shutter made out of single piece extruded soild PVC profiles, 5 mm (± 0.2mm) thick, having styles & rails (except lock rail) of size 95 mmx 35 mm x 5 mm, out of which 75 mm shall be flat and 20 mm shall be tapered (on both side), having one side thickness of 15 mm integrally extruded on the hinge side of the profile for better screw holding power, including reinforcing with MS tube of size 40 mm X 20 mm x 1 mm, joints of styles & rails to be mitered cut & joint with the help of PVC solvent cement, self driven self tapping screws & M.S. rectangular pipes bracket of size 190 mm X 100 mm of cross section size 35 mm x 17 mm x 1 mm at each corner."]
[null,null,"Single piece extruded 5mm thick solid PVC Lock rail of size 115 mm x 35 mm x 35 mm, out of which 95 mm to be flat and 20 mm to be tapered at both ends, having 15 mm solid core in middle of rail section integrally extruded, fixing the styles & rails with the help of solvent and self driven self tapping screws of 125 mm x 11 mm, including providing 5 mm Single piece solid PVC extruded sheet inserted in the door as panel, all complete as per manufacturer's specification and direction of Engineer-in-charge.Decorative finish (wood grained finish).",null,"Sqm",3222.9,{"$f":"ROUND(D38*F38,2)","v":0}]
[67,9.1470000000000002,"Providing and Fixing, uPVC factory made, white colour casement/sliding window and door made of extruded profiles. Profiles of frames and sash will be mitered cut and fusion welded at all corners including drilling of holes for fixing hardware and drainage of water etc., making arrangement for fixing of hardware, EPDM gasket, 1.2 ± 0.2mm thick galvanised steel profile to be inserted in required profile, frame will be fixed to the wall with 8 mm x 100 mm long fasteners, all complete as per direction of Engineer-in-charge. (Glazing, hardware hinges and fitting etc. to be paid separately.)Note :- Each member of window to be measured separately with clear length. "]
["a)","9.147.1","Casement Window (Outward/Inward opening) with hinge System."]
["i","9.147.1.1","Frame (50 mm x 50mm)",null,"m",436.85,{"$f":"ROUND(D41*F41,2)","v":0}]
["ii","9.147.1.2","Sash (Style and Rail) (62 mm x 34 mm)",null,"m",418.55,0]
["iii","9.147.1.3","Mullion (intermediate Section) (66mm x 50 mm)",null,"m",461.25,0]
["iv","9.147.1.4","T' Profile (one vertical length in between two shutters) (24mm x 34.5mm)",null,"m",100.15,0]
["v","9.147.1.5","Glazing bead (12mm x 18mm)",null,"m",130.65,0]
["b)","9.147.2","Casement Window (With friction hinge & outward opening)"]
["i","9.147.2.1","Casement Frame (67mm x 62mm)",null,"m",491.7,0]
["ii","9.147.2.2","Casement Window Sash/Mullion (67mm x 75mm ) (style, rail and intermediate section)",null,"m",528.29999999999995,0]
["iii","9.147.2.3","Casement Glazing bead (35mm x 18 mm)",null,"m",174.55,0]
["c)","9.147.3","Sliding Window (Two Track, 2/4 Shutters)"]
["i","9.147.3.1","Two Track Sliding Frame (67mm x 52mm)",null,"m",586.20000000000005,0]
["ii","9.147.3.2","Sliding window Sash (60mm x 44mm)",null,"m",544.75,0]
["iii","9.147.3.3","Sliding Interlock for Window (one vertical length in each shutter)( 45.5 mm x 28 mm)",null,"m",149.94999999999999,0]
["iv","9.147.3.4","Sliding Glazing bead (35 mm x 18 mm)",null,"m",174.55,0]
["d)","9.147.4","Sliding Door (Two Track, 2/4 Shutters)"]
["i","9.147.4.1","Two Track Sliding Frame (67mm x 52mm)",null,"m",562.4,0]
["ii","9.147.4.2","Sliding Door Sash (80mm x 44mm)",null,"m",683.9,0]
["iii","9.147.4.3","Sliding Interlock for Door (one vertical length in each shutter) (45.5 mm x 28 mm)",null,"m",149.94999999999999,0]
["iv","9.147.4.4","Sliding Glazing bead (35 mm x 18 mm)",null,"m",174.55,0]
[68,9.1479999999999997,"Providing and fixing stainless steel (SS-304 grade) friction hinges to the side/ top hung uPVC windows, of approved quality with necessary stainless steel screws etc. as per direction of Engineer-in-charge."]
["a","9.148.1","200 x 19 x 1.9 mm",null,"Each",304.25,0]
["b","9.148.2","250 x 19 x 1.9 mm",null,"Each",362.35,0]
["c","9.148.3","300 x 19 x 1.9 mm",null,"Each",455.25,0]
["d)","9.148.4","350 x 19 x 1.9 mm",null,"Each",524.95000000000005,0]
[69,9.1489999999999991,"Providing and fixing casement handle made of zinc alloyed (white powder coated) for uPVC casement window with necessary screws etc. complete.",null,"Each",216.65,0]
[70,9.15,"Providing and fixing zinc alloyed (white powder coated) touch lock for uPVC sliding window with necessary screws etc. complete.",null,"Each",146.94999999999999,0]
[71,9.1509999999999998,"Providing and fixing steel roller for uPVC sliding window with necessary screws etc. complete.",null,"Each",71.45,0]
[72,9.1519999999999992,"Providing and fixing steel roller for uPVC sliding door with necessary screws etc. complete.",null,"Each",112.1,0]
[73,9.1530000000000005,"Providing and fixing steel (white power coated) crescent lock for uPVC sliding window/ door with necessary screws etc. complete.",null,"Each",135.35,0]
[74,"10.5.1","Providing and fixing 1mm thick M.S. sheet door with frame of 40x40x6mm angle iron and 3mm M.S. gusset plates at the junctions and corners, all necessary fittings complete, including applying a priming coat of approved steel primer:Using M.S. angels 40x40x6 mm for diagonal braces.",null,"Sqm",3073.85,0]

{"sheet":"Pile comparison","index":16,"n_rows":24,"n_cols":12,"rows_kept":24,"cut":false,"hidden":true,"merged":[[2,9,2,10],[2,5,2,6]]}
["ABSTRACT OF ESTIMATE - CIVIL WORKS "]
[]
[null,null,null,null,null,"Raft Foundation",null,null,null,"Pile Foundation"]
["Item No","DSR code","Details of items","Unit","Rate","Quantity","Amount",null,null,"Quantity","Amount"]
[null,20.2,"Boring, providing and installation bored cast-in-situ reinforced cementconcrete piles of grade M-25 of specified diameter and length below thepile cap, to carry a safe working load not less than specified, excluding thecost of steel reinforcement but including the cost of boring with bentonitesolution and temporary casing of appropriate length for setting out andremoval of same and the length of the pile to be embedded in the pile capetc. by percussion drilling using Direct mud circulation (DMC) orBailer and chisel technique by tripod and mechanical WinchMachine all complete, including removal of excavated earth with all itslifts and leads (length of pile for payment shall be measured up to bottomof pile cap)"]
[null,null,"600 mm dia piles","m",2671,0,{"$f":"ROUND(E6*F6,2)","v":0},165,20,{"$f":"+ROUNDUP(H6*I6,0)","v":3300},{"$f":"+ROUND(J6*E6,2)","v":8814300},{"$f":"+K6-G6","v":8814300}]
[null,null,"750 mm dia piles","m",4022.95,0,{"$f":"ROUND(E7*F7,2)","v":0},336,20,{"$f":"+ROUNDUP(H7*I7,0)","v":6720},{"$f":"+ROUND(J7*E7,2)","v":27034224},{"$f":"+K7-G7","v":27034224}]
[null,"20.6.2","Vertical load testing of piles in accordance with IS 2911 (Part IV) including installation of loading platform by Kentledge method and preparation of pile head or construction of test cap and dismantling of test cap after test etc. complete as per specification & the direction of Engineer in-charge. Note: 1. Initial and Routine Load Test shall not be carried out by Dynamic method of testing. Note: 2. Testing agency shall submitt the design of loading platform for the approval of Engineer-in-charge.: Single pile above 50 tonne and upto 100 tonne Safe capacity",null,null,null,null,82.5]
[null,"20.6.2.1","Initial test (Test Load 2.5 times the Safe capacity)","Nos",46808.45,0,{"$f":"ROUND(E9*F9,2)","v":0},{"$f":"11*3","v":33},null,2,{"$f":"+ROUND(J9*E9,2)","v":93616.9},{"$f":"+K9-G9","v":93616.9}]
[null,"20.6.2.2","Routine test (Test Load 1.5 times the Safe capacity)","Nos",26714.5,0,{"$f":"ROUND(E10*F10,2)","v":0},{"$f":"+H6-H9","v":132},null,{"$f":"+ROUNDUP((H6+H7)*1.5%,0)","v":8},{"$f":"+ROUND(J10*E10,2)","v":213716},213716]
[null,"4.1.5","1:3:6 (1 Cement : 3 coarse sand : 6 graded stone aggregate 20 mm nominal size).for foundation and flooring ","Cum",4834.3,395.57,{"$f":"ROUND(F11*E11,2)","v":1912304.05},{"$f":"+H10/2","v":66},11,{"$f":"ROUNDUP(SUM(#REF!),0)","v":{"$error":"#REF!"}},{"$f":"+ROUND(J11*E11,2)","v":{"$error":"#REF!"}},{"$error":"#REF!"}]
[null,"5.37.1","Providing and laying in position ready mixed M-25 grade concrete for reinforced cement concrete work, using cement content as per approved design mix, manufactured in fully automatic batching plant and transported to site of work in transit mixer for all leads having continuous agitated mixer, manufactured as per mix design of specified grade for reinforced cement concrete work including pumping of R.M.C. from transit mixer to site of laying , excluding the cost of centering, shuttering finishing and reinforcement including cost of admixtures in recommended proportions as per IS : 9103 to accelerate/ retard setting of concrete, improve workability without impairing strength and durability as per direction of the Engineer - in - charge.","Cum",6644.6,{"$f":"1173.42+1946.37","v":3119.79},20729756.629999999,{"$f":"+ROUNDUP(H7/2,0)","v":168},null,{"$f":"ROUNDUP(SUM(#REF!),0)","v":{"$error":"#REF!"}},{"$error":"#REF!"},{"$error":"#REF!"}]
[null,"5.34.1","Providing M-30 grade concrete instead of M-25 grade BMC/RMC. (Note:- Cement content considered in M-30 is @ 340 kg/cum).","Cum",76.5,3120,238680,null,null,{"$f":"+J12","v":{"$error":"#REF!"}},{"$error":"#REF!"},{"$error":"#REF!"}]
[null,5.35,"Add for using extra cement in the items of design mix over and above the specified cement content therein","Quintal",742.75,{"$f":"+F13*0.6","v":1872},1390428,null,null,{"$f":"+ROUNDUP(J13*0.6,0)","v":{"$error":"#REF!"}},{"$error":"#REF!"},{"$error":"#REF!"}]
[null,"5.22.6","Steel reinforcement for R.C.C. work including straightening, cutting, bending, placing in position and binding all complete Thermo-Mechanically Treated bars.","Kg",68.099999999999994,{"$f":"+F12*140","v":436770.6},29744077.859999999,null,null,{"$f":"+J12*140","v":{"$error":"#REF!"}},{"$error":"#REF!"},{"$error":"#REF!"}]
[null,"5.9.1","Foundations, footings, bases of columns, etc. for mass concrete.","Sqm",196.45,3449.47,677648.38,null,null,{"$f":"ROUNDUP(SUM(#REF!),0)","v":{"$error":"#REF!"}},{"$error":"#REF!"},{"$error":"#REF!"}]
[null,null,"Total",null,null,null,{"$f":"SUM(G5:G16)","v":54692894.920000002},null,null,null,{"$f":"SUM(K5:K16)","v":{"$error":"#REF!"}},{"$f":"+G17-K17","v":{"$error":"#REF!"}}]
[]
[]
[null,null,null,null,null,null,105262368.08000001]
[]
[null,null,null,null,null,null,{"$f":"+G20-G17","v":50569473.160000011}]
[null,null,null,null,null,null,54.5]
[null,null,null,null,null,null,5.13]

{"sheet":"Sheet3","index":17,"n_rows":0,"n_cols":0,"rows_kept":0,"cut":false,"hidden":true,"merged":[]}